Workbook

Sheet 60mncdp2023073000-2024080300
A1: 1 | B1: 2 | C1: 3 | D1: 4 | E1: 5 | F1: 6 | G1: 7 | H1: 8 | I1: 9 | J1: 10 | K1: 11 | L1: 12 | M1: 13 | N1: 14 | O1: 15 | P1: 16 | Q1: 17 | R1: 18 | S1: 19 | T1: 20 | U1: 21 | V1: 22 | W1: 23 | X1: 24 | Y1: 25 | Z1: 26 | AA1: 27 | AB1: 28 | AC1: 29 | AD1: 30 | AE1: 31 | AF1: 32 | AG1: 33 | AH1: 34 | AI1: 35 | AJ1: 36 | AK1: 37 | AL1: 38 | AM1: 39 | AN1: 40 | AO1: 41 | AP1: 42 | AQ1: 43 | AR1: 44 | AS1: 45 | AT1: 46 | AU1: 47 | AV1: 48 | AW1: 49 | AX1: 50 | AY1: 51 | AZ1: 52 | BA1: 53 | BB1: 54 | BC1: 55 | BD1: 56 | BE1: 57 | BF1: 58 | BG1: 59 | BH1: 60 | BI1: 61 | BJ1: 62 | BK1: 63 | BL1: 64 | BM1: 65 | BN1: 66 | BO1: 67 | BP1: 68 | BQ1: 69 | BR1: 70 | BS1: 71 | BT1: 72 | BU1: 73 | BV1: 74 | BW1: 75 | BX1: 76 | BY1: 77 | BZ1: 78 | CA1: 79 | CB1: 80 | CC1: 81 | CD1: 82 | CE1: 83 | CF1: 84 | CG1: 85 | CH1: 86 | CI1: 87 | CJ1: 88 | CK1: 89 | CL1: 90 | CM1: 91 | CN1: 92 | CO1: 93 | CP1: 94 | CQ1: 95 | CR1: 96 | CS1: 97 | CT1: 98 | CU1: 99 | CV1: 100 | CW1: 101 | CX1: 102 | CY1: 103 | CZ1: 104 | DA1: 105 | DB1: 106 | DC1: 107 | DD1: 108 | DE1: 109 | DF1: 110 | DG1: 111 | DH1: 112 | DI1: 113 | DJ1: 114 | DK1: 115 | DL1: 116 | DM1: 117 | DN1: 118 | DO1: 119 | DP1: 120 | DQ1: 121 | DR1: 122 | DS1: 123 | DT1: 124 | DU1: 125 | DV1: 126 | DW1: 127 | DX1: 128 | DY1: 129 | DZ1: 130 | EA1: 131 | EB1: 132 | EC1: 133 | ED1: 134 | EE1: 135 | EF1: 136 | EG1: 137 | EH1: 138 | EI1: 139 | EJ1: 140 | EK1: 141 | EL1: 142 | EM1: 143 | EN1: 144 | EO1: 145 | EP1: 146 | EQ1: 147 | ER1: 148 | ES1: 149 | ET1: 150 | EU1: 151 | EV1: 152 | EW1: 153 | EX1: 154 | EY1: 155 | EZ1: 156 | FA1: 157 | FB1: 158 | FC1: 159 | FD1: 160 | FE1: 161 | FF1: 162 | FG1: 163 | FH1: 164 | FI1: 165 | FJ1: 166 | FK1: 167 | FL1: 168 | FM1: 169 | FN1: 170 | FO1: 171 | FP1: 172 | FQ1: 173 | FR1: 174 | FS1: 175 | FT1: 176 | FU1: 177 | FV1: 178 | FW1: 179 | FX1: 180 | FY1: 181 | FZ1: 182 | GA1: 183 | GB1: 184 | GC1: 185 | GD1: 186 | GE1: 187 | GF1: 188 | GG1: 189 | GH1: 190 | GI1: 191 | GJ1: 192
A2: JJMMAAAAhh du 30/07/aaaa 00hUTC au 03/08/aaaa+1 00hUTC | B2: t_abri | C2: t_3m_serru | D2: t_sol_10cm | E2: t_sol_20cm | F2: t_sol_50cm | G2: t_sol_5cm_1 | H2: t_sol_5cm_2 | I2: t_sol_5cm_3 | J2: t_sol_10cm_1 | K2: t_sol_10cm_2 | L2: t_sol_10cm_3 | M2: t_sol_20cm_1 | N2: t_sol_20cm_2 | O2: t_sol_30cm_1 | P2: t_sol_30cm_2 | Q2: t_anemo_us_3m | R2: t_4m_serru_1 | S2: t_4m_serru_2 | T2: u_abri | U2: u_sol_5cm_1 | V2: u_sol_5cm_2 | W2: u_sol_5cm_3 | X2: u_sol_10cm_1 | Y2: u_sol_10cm_2 | Z2: u_sol_10cm_3 | AA2: u_sol_20cm_1 | AB2: u_sol_20cm_2 | AC2: u_sol_30cm_1 | AD2: u_sol_30cm_2 | AE2: p_station | AF2: p_ptb330_v1 | AG2: p_ptb330_v2 | AH2: dd_meca_10mn_10m | AI2: dd_us_1mn_3m | AJ2: dd_us_10mn_10m | AK2: ff_meca_60mn_10m_nchf | AL2: fx_meca_60mn_10m_nchf | AM2: ff_meca_60mn_10m_chf | AN2: fx_meca_60mn_10m_chf | AO2: ff_meca_60mn_3m_chf | AP2: fx_meca_60mn_3m_chf | AQ2: ff_us_60mn_10m | AR2: fx_us_60mn_10m | AS2: ff_us_60mn_3m | AT2: fx_us_60mn_3m | AU2: ff_calculee_60mn_10m | AV2: diff_rr_60mn_geo_0 | AW2: rr_geo_0 | AX2: rr_60mn_pg2000_chf | AY2: rr_60mn_pg2000_nchf | AZ2: diff_rr_60mn_geo_1_c1 | BA2: rr_geo_1_c1 | BB2: diff_rr_60mn_geo_1_c2 | BC2: rr_geo_1_c2 | BD2: diff_rr_60mn_geo_1_c3 | BE2: rr_geo_1_c3 | BF2: diff_rr_60mn_geo_2_c1 | BG2: rr_geo_2_c1 | BH2: diff_rr_60mn_geo_2_c2 | BI2: rr_geo_2_c2 | BJ2: diff_rr_60mn_geo_2_c3 | BK2: rr_geo_2_c3 | BL2: diff_rr_60mn_ott_ntr | BM2: rr_ott_ntr | BN2: diff_rr_60mn_ott_tr | BO2: rr_ott_tr | BP2: rr_pluie_calculee_60mn | BQ2: rr_neige_calculee_60mn | BR2: glo_descendant_rayt_intg50mn_60mn | BS2: glo_montant_rayt_intg50mn_60mn | BT2: infrar_descendant_rayt_intg50mn_60mn | BU2: infrar_montant_rayt_intg50mn_60mn | BV2: diff_ecoulement_5m2 | BW2: ecoulement_5m2 | BX2: diff_ecoulement_1m2 | BY2: ecoulement_1m2 | BZ2: htn_us_disk | CA2: htn_us_serru_1 | CB2: htn_us_serru_2 | CC2: htn_us_serru_3 | CD2: htn_laser_disk | CE2: htn_laser_serru_1 | CF2: htn_laser_serru_2 | CG2: htn_ref | CH2: ts_ir_disk | CI2: ts_ir_serru | CJ2: ts_ir_rayt_1 | CK2: ts_ir_rayt_2 | CL2: ts_ref | CM2: flux_sol_1 | CN2: flux_sol_2 | CO2: flux_sol_3 | CP2: t_disk_1 | CQ2: t_disk_2 | CR2: t_disk_3 | CS2: t_disk_4 | CT2: t_disk_5 | CU2: t_disk_6 | CV2: t_disk_7 | CW2: t_disk_8 | CX2: t_disk_9 | CY2: t_disk_10 | CZ2: t_disk_11 | DA2: t_disk_12 | DB2: t_disk_13 | DC2: t_disk_14 | DD2: t_disk_15 | DE2: t_disk_16 | DF2: t_disk_17 | DG2: t_disk_18 | DH2: t_disk_19 | DI2: t_disk_20 | DJ2: h_disk_1 | DK2: h_disk_2 | DL2: h_disk_3 | DM2: h_disk_4 | DN2: h_disk_5 | DO2: h_disk_6 | DP2: h_disk_7 | DQ2: h_disk_8 | DR2: h_disk_9 | DS2: h_disk_10 | DT2: h_disk_11 | DU2: h_disk_12 | DV2: h_disk_13 | DW2: h_disk_14 | DX2: h_disk_15 | DY2: h_disk_16 | DZ2: h_disk_17 | EA2: h_disk_18 | EB2: h_disk_19 | EC2: h_disk_20 | ED2: t_ctrl_retal_1 | EE2: t_ctrl_centrale2_1 | EF2: t_ctrl_centrale2_2 | EG2: t_ctrl_centrale2_3 | EH2: t_ctrl_chbre | EI2: t_ctrl_centrale8_1 | EJ2: t_ctrl_centrale8_2 | EK2: t_ctrl_htn_laser_serru_1 | EL2: t_ctrl_htn_laser_serru_2 | EM2: t_ctrl_bague_geo_1 | EN2: t_ctrl_bague_geo_2 | EO2: t_ctrl_elec_ott | EP2: t_ctrl_cellule_ott | EQ2: t_ctrl_bague_ott | ER2: t_ctrl_ts_ir_rayt_2 | ES2: t_ctrl_ts_ir_serru | ET2: tension_ctrl_mat1 | EU2: tension_ctrl_mat2 | EV2: tension_ctrl_decalconv | EW2: tension_ctrl_ott | EX2: d_ctrl_rr_60mn_nchf | EY2: d_ctrl_int_rayonnement | EZ2: d_ctrl_fonct_groupe_elec | FA2: signal_ctrl_htn_laser_serru_1 | FB2: signal_ctrl_htn_laser_serru_2 | FC2: alarme_fct_groupe | FD2: alarme_ctrl_rayt | FE2: err_ctrl_htn_laser_serru_1 | FF2: err_ctrl_htn_laser_serru_2 | FG2: q_t_abri | FH2: q_u_abri | FI2: q_glo_descendant_rayt_intg50mn_60mn | FJ2: q_glo_montant_rayt_intg50mn_60mn | FK2: q_infrar_descendant_rayt_intg50mn_60mn | FL2: q_infrar_montant_rayt_intg50mn_60mn | FM2: q_auto_ctrl_chauf_ott | FN2: q_auto_ctrl_capt_ott | FO2: q_auto_ctrl_htn_us_serru_2 | FP2: q_auto_ctrl_htn_us_serru_3 | FQ2: ff_us_10mn_10m | FR2: glo_descendant_serru_intg50mn_60mn | FS2: glo_descendant_serru_intg60mn_60mn | FT2: dif_descendant_serru_intg50mn_60mn | FU2: dif_descendant_serru_intg60mn_60mn | FV2: q_glo_descendant_serru_intg50mn_60mn | FW2: q_dif_descendant_serru_intg50mn_60mn | FX2: t_ctrl_infrar_montant | FY2: d_ctrl_horsrepos_rayt | FZ2: t_ctrl_centrale6_1 | GA2: t_ctrl_htn_us_disk | GB2: t_ctrl_centrale3_1 | GC2: t_ctrl_centrale3_2 | GD2: t_ctrl_infrar_descendant | GE2: ff_60mn_3m_ref | GF2: diff_rr_60mn_geo_1_ref | GG2: diff_rr_60mn_geo_2_ref | GH2: ts_ir_rayt_3 | GI2: t_ctrl_ts_ir_rayt_3 | GJ2: tension_ctrl_ts_ir_rayt_3
A3: 2023-07-30 | B3: 12.82 | C3: 13.42 | D3: 18.09 | E3: 17.77 | F3: 16.97 | G3: 17.98 | H3: 17.81 | I3: 17.73 | J3: 18.35 | K3: 18.59 | L3: 18.39 | M3: 18.2 | N3: 18.41 | O3: 18.09 | P3: 17.77 | Q3: 14.9 | R3: 0 | S3: 12.5 | T3: 99.1 | U3: 0.1623 | V3: 0.168 | W3: 0.1552 | X3: 0.1668 | Y3: 0.2633 | Z3: 0.0026 | AA3: 0.2557 | AB3: 0.3884 | AC3: 0.3884 | AD3: 0.4044 | AE3: 840 | AF3: 871.38 | AG3: 871.4 | AH3: 0 | AI3: 133 | AJ3: 170 | AK3: 0.2 | AL3: 1.2 | AM3: 0 | AN3: 0 | AO3: 0 | AP3: 0 | AQ3: 0.8 | AR3: 2.5 | AS3: 0.6 | AT3: 0.9 | AU3: NULL | AV3: NULL | AW3: NULL | AX3: 0 | AY3: 0.1 | AZ3: 0.1 | BA3: 220 | BB3: -0.1 | BC3: 216.1 | BD3: 0 | BE3: 219.3 | BF3: 0 | BG3: 207.3 | BH3: 0 | BI3: 211 | BJ3: 0 | BK3: 214.1 | BL3: 0 | BM3: 226.6 | BN3: 0 | BO3: 226.6 | BP3: NULL | BQ3: NULL | BR3: -0.52 | BS3: 0.18 | BT3: 128.43 | BU3: 134.86 | BV3: 0.1 | BW3: 691.4 | BX3: 0 | BY3: 497.4 | BZ3: 14.7 | CA3: NULL | CB3: 6 | CC3: NULL | CD3: NULL | CE3: NULL | CF3: NULL | CG3: NULL | CH3: 9.7 | CI3: 43.5 | CJ3: -27.2 | CK3: 10.9 | CL3: NULL | CM3: -22 | CN3: -18.4 | CO3: -21.7 | CP3: NULL | CQ3: NULL | CR3: 12.67 | CS3: 12.42 | CT3: 12.83 | CU3: 12.84 | CV3: 12.88 | CW3: 12.85 | CX3: 12.91 | CY3: NULL | CZ3: 12.85 | DA3: 12.91 | DB3: 12.83 | DC3: 12.85 | DD3: 12.78 | DE3: 12.87 | DF3: 12.7 | DG3: 12.75 | DH3: NULL | DI3: NULL | DJ3: 2609 | DK3: 2456 | DL3: 1898 | DM3: 2660 | DN3: 2916 | DO3: 3286 | DP3: 2893 | DQ3: 3289 | DR3: 2916 | DS3: 3289 | DT3: 1688 | DU3: 3292 | DV3: 1948 | DW3: 3294 | DX3: 2884 | DY3: 3031 | DZ3: 2869 | EA3: 3296 | EB3: 1068 | EC3: 725 | ED3: 12.73 | EE3: -20.15 | EF3: -0.04 | EG3: 20 | EH3: 17.1 | EI3: -0.04 | EJ3: 28.53 | EK3: NULL | EL3: NULL | EM3: 11.7 | EN3: 11.6 | EO3: 13.4 | EP3: 13.5 | EQ3: 11.3 | ER3: 12.3 | ES3: 41.18 | ET3: 4778 | EU3: 4776 | EV3: NULL | EW3: 12.6 | EX3: 0 | EY3: 3000 | EZ3: NULL | FA3: NULL | FB3: NULL | FC3: 1179 | FD3: 1 | FE3: NULL | FF3: NULL | FG3: NULL | FH3: NULL | FI3: NULL | FJ3: NULL | FK3: NULL | FL3: NULL | FM3: 0 | FN3: 0 | FO3: 218 | FP3: 0 | FQ3: 0.7 | FR3: 0.19 | FS3: 0.19 | FT3: 0.35 | FU3: 0.35 | FV3: NULL | FW3: NULL | FX3: 12.35 | FY3: 0 | FZ3: 0.02 | GA3: 13.41 | GB3: -19.98 | GC3: 40.02 | GD3: 12.09 | GE3: NULL | GF3: NULL | GG3: NULL | GH3: 10.11 | GI3: 12.6 | GJ3: -0.0295
A4: 2023-07-30T01:00:00 | B4: 12.67 | C4: 12.69 | D4: 17.94 | E4: 17.7 | F4: 16.98 | G4: 17.66 | H4: 17.47 | I4: 17.38 | J4: 18.11 | K4: 18.35 | L4: 18.22 | M4: 18.11 | N4: 18.33 | O4: 18.05 | P4: 17.75 | Q4: 14.5 | R4: 0 | S4: 12.4 | T4: 98.8 | U4: 0.1623 | V4: 0.1681 | W4: 0.155 | X4: 0.1668 | Y4: 0.2607 | Z4: 0.0026 | AA4: 0.2556 | AB4: 0.388 | AC4: 0.3886 | AD4: 0.4039 | AE4: 839.9 | AF4: 871.06 | AG4: 871.09 | AH4: 0 | AI4: 141 | AJ4: 230 | AK4: 0.2 | AL4: 2 | AM4: 0 | AN4: 0 | AO4: 0 | AP4: 0 | AQ4: 0.8 | AR4: 2.9 | AS4: 0.6 | AT4: 1.2 | AU4: NULL | AV4: NULL | AW4: NULL | AX4: 0 | AY4: 0 | AZ4: 0 | BA4: 220 | BB4: 0.1 | BC4: 216.2 | BD4: 0 | BE4: 219.3 | BF4: 0 | BG4: 207.3 | BH4: 0 | BI4: 211 | BJ4: 0 | BK4: 214.1 | BL4: 0 | BM4: 226.6 | BN4: 0 | BO4: 226.6 | BP4: NULL | BQ4: NULL | BR4: -0.59 | BS4: 0.2 | BT4: 128.27 | BU4: 134.29 | BV4: 0.1 | BW4: 691.5 | BX4: 0.1 | BY4: 497.5 | BZ4: 15.9 | CA4: NULL | CB4: 8.6 | CC4: NULL | CD4: 3.8 | CE4: NULL | CF4: NULL | CG4: NULL | CH4: 8.9 | CI4: 44.1 | CJ4: -27.2 | CK4: 10.5 | CL4: NULL | CM4: -23.9 | CN4: -19.7 | CO4: -23.4 | CP4: NULL | CQ4: NULL | CR4: 12.42 | CS4: 11.99 | CT4: 12.54 | CU4: 12.57 | CV4: 12.61 | CW4: 12.6 | CX4: 12.65 | CY4: NULL | CZ4: 12.58 | DA4: 12.67 | DB4: 12.56 | DC4: 12.61 | DD4: 12.48 | DE4: 12.59 | DF4: 12.38 | DG4: 12.47 | DH4: NULL | DI4: NULL | DJ4: 2595 | DK4: 2442 | DL4: 1867 | DM4: 2637 | DN4: 2910 | DO4: 3292 | DP4: 2892 | DQ4: 3293 | DR4: 2916 | DS4: 3292 | DT4: 1661 | DU4: 3293 | DV4: 1955 | DW4: 3301 | DX4: 2890 | DY4: 3027 | DZ4: 2866 | EA4: 3295 | EB4: 1041 | EC4: 707 | ED4: 12.2 | EE4: -20.15 | EF4: -0.04 | EG4: 19.99 | EH4: 17 | EI4: -0.04 | EJ4: 28.55 | EK4: NULL | EL4: NULL | EM4: 11.5 | EN4: 11.5 | EO4: 13.2 | EP4: 13.3 | EQ4: 11.1 | ER4: 12.1 | ES4: 41.6 | ET4: 4932 | EU4: 4924 | EV4: NULL | EW4: 12.6 | EX4: 0 | EY4: 3000 | EZ4: NULL | FA4: NULL | FB4: NULL | FC4: 1179 | FD4: 1 | FE4: NULL | FF4: NULL | FG4: NULL | FH4: NULL | FI4: NULL | FJ4: NULL | FK4: NULL | FL4: NULL | FM4: 0 | FN4: 0 | FO4: 221 | FP4: 0 | FQ4: 0.9 | FR4: 0.18 | FS4: 0.18 | FT4: 0.36 | FU4: 0.36 | FV4: NULL | FW4: NULL | FX4: 12.14 | FY4: 0 | FZ4: -0.02 | GA4: 12.96 | GB4: -19.98 | GC4: 40.02 | GD4: 11.9 | GE4: NULL | GF4: NULL | GG4: NULL | GH4: 9.35 | GI4: 12.48 | GJ4: -0.0343
A5: 2023-07-30T02:00:00 | B5: 13 | C5: 13 | D5: 17.77 | E5: 17.63 | F5: 16.99 | G5: 17.3 | H5: 17.1 | I5: 17 | J5: 17.86 | K5: 18.11 | L5: 18.05 | M5: 18.01 | N5: 18.22 | O5: 18.03 | P5: 17.77 | Q5: 15.1 | R5: 0 | S5: 12.8 | T5: 99.3 | U5: 0.1621 | V5: 0.1683 | W5: 0.1547 | X5: 0.1667 | Y5: 0.2585 | Z5: 0.0029 | AA5: 0.2555 | AB5: 0.3876 | AC5: 0.3889 | AD5: 0.403 | AE5: 840 | AF5: 871.19 | AG5: 871.21 | AH5: 0 | AI5: 164 | AJ5: 150 | AK5: 0.1 | AL5: 1.6 | AM5: 0 | AN5: 0 | AO5: 0 | AP5: 0 | AQ5: 0.7 | AR5: 2.6 | AS5: 0.6 | AT5: 1 | AU5: NULL | AV5: NULL | AW5: NULL | AX5: 0.1 | AY5: 0 | AZ5: 0 | BA5: 220 | BB5: 0 | BC5: 216.2 | BD5: 0 | BE5: 219.3 | BF5: 0 | BG5: 207.3 | BH5: 0.1 | BI5: 211.1 | BJ5: 0 | BK5: 214.1 | BL5: 0 | BM5: 226.6 | BN5: 0 | BO5: 226.6 | BP5: NULL | BQ5: NULL | BR5: -0.55 | BS5: 0.22 | BT5: 128.8 | BU5: 133.85 | BV5: 0.1 | BW5: 691.6 | BX5: 0 | BY5: 497.5 | BZ5: 11 | CA5: NULL | CB5: 2 | CC5: NULL | CD5: 3.9 | CE5: 0 | CF5: NULL | CG5: NULL | CH5: 8.9 | CI5: 44.3 | CJ5: -27.2 | CK5: 10.6 | CL5: NULL | CM5: -24.3 | CN5: -19.9 | CO5: -24.2 | CP5: NULL | CQ5: NULL | CR5: 12.47 | CS5: 12.34 | CT5: 12.89 | CU5: 12.91 | CV5: 12.96 | CW5: 12.93 | CX5: 12.99 | CY5: NULL | CZ5: 12.92 | DA5: 12.99 | DB5: 12.91 | DC5: 12.94 | DD5: 12.85 | DE5: 12.94 | DF5: 12.78 | DG5: 12.82 | DH5: NULL | DI5: NULL | DJ5: 2551 | DK5: 2474 | DL5: 1933 | DM5: 2687 | DN5: 2898 | DO5: 3456 | DP5: 3009 | DQ5: 3442 | DR5: 3011 | DS5: 3424 | DT5: 1730 | DU5: 3437 | DV5: 2054 | DW5: 3343 | DX5: 2944 | DY5: 3057 | DZ5: 2769 | EA5: 3211 | EB5: 1073 | EC5: 749 | ED5: 11.82 | EE5: -20.15 | EF5: -0.04 | EG5: 20 | EH5: 16.9 | EI5: -0.06 | EJ5: 28.53 | EK5: 19 | EL5: NULL | EM5: 12 | EN5: 11.9 | EO5: 13.3 | EP5: 13.2 | EQ5: 11.3 | ER5: 12.3 | ES5: 41.92 | ET5: 4709 | EU5: 4657 | EV5: NULL | EW5: 12.6 | EX5: 0 | EY5: 3000 | EZ5: NULL | FA5: 0.763 | FB5: NULL | FC5: 1179 | FD5: 1 | FE5: 0 | FF5: NULL | FG5: NULL | FH5: NULL | FI5: NULL | FJ5: NULL | FK5: NULL | FL5: NULL | FM5: 0 | FN5: 0 | FO5: 182 | FP5: 0 | FQ5: 0.7 | FR5: 0.17 | FS5: 0.18 | FT5: 0.35 | FU5: 0.35 | FV5: NULL | FW5: NULL | FX5: 12.49 | FY5: 0 | FZ5: -0.02 | GA5: 13.2 | GB5: -19.98 | GC5: 40.02 | GD5: 12.21 | GE5: NULL | GF5: NULL | GG5: NULL | GH5: 9.57 | GI5: 12.51 | GJ5: -0.0341
A6: 2023-07-30T03:00:00 | B6: 13.31 | C6: 13.22 | D6: 17.61 | E6: 17.54 | F6: 16.99 | G6: 17.04 | H6: 16.87 | I6: 16.76 | J6: 17.6 | K6: 17.9 | L6: 17.88 | M6: 17.9 | N6: 18.14 | O6: 17.99 | P6: 17.71 | Q6: 15.2 | R6: 0 | S6: 13.1 | T6: 97.9 | U6: 0.1621 | V6: 0.1685 | W6: 0.1547 | X6: 0.1667 | Y6: 0.2566 | Z6: 0.0041 | AA6: 0.2553 | AB6: 0.3874 | AC6: 0.389 | AD6: 0.4025 | AE6: 839.6 | AF6: 871.02 | AG6: 871.04 | AH6: 0 | AI6: 152 | AJ6: 200 | AK6: 0.7 | AL6: 3.6 | AM6: 0 | AN6: 0 | AO6: 0 | AP6: 0 | AQ6: 1.3 | AR6: 4.9 | AS6: 1 | AT6: 2.2 | AU6: NULL | AV6: NULL | AW6: NULL | AX6: 0 | AY6: 0.1 | AZ6: 0 | BA6: 220 | BB6: 0 | BC6: 216.2 | BD6: 0.1 | BE6: 219.4 | BF6: 0.1 | BG6: 207.4 | BH6: 0 | BI6: 211.1 | BJ6: 0 | BK6: 214.1 | BL6: 0 | BM6: 226.6 | BN6: 0 | BO6: 226.6 | BP6: NULL | BQ6: NULL | BR6: -0.53 | BS6: 0.18 | BT6: 129.89 | BU6: 134.98 | BV6: 0.1 | BW6: 691.7 | BX6: 0.1 | BY6: 497.6 | BZ6: 14.1 | CA6: NULL | CB6: 8.3 | CC6: NULL | CD6: 4.7 | CE6: NULL | CF6: NULL | CG6: NULL | CH6: 10.4 | CI6: 45 | CJ6: -27.2 | CK6: 11.6 | CL6: NULL | CM6: -22.2 | CN6: -18.2 | CO6: -22.6 | CP6: NULL | CQ6: NULL | CR6: 12.88 | CS6: 12.62 | CT6: 12.95 | CU6: 13.03 | CV6: 13.02 | CW6: 13 | CX6: 13 | CY6: NULL | CZ6: 13.11 | DA6: 13.14 | DB6: 12.99 | DC6: 13.04 | DD6: 12.92 | DE6: 13.01 | DF6: 12.95 | DG6: 12.97 | DH6: NULL | DI6: NULL | DJ6: 2604 | DK6: 2480 | DL6: 1878 | DM6: 2628 | DN6: 2934 | DO6: 3295 | DP6: 2893 | DQ6: 3295 | DR6: 2914 | DS6: 3294 | DT6: 1663 | DU6: 3295 | DV6: 2005 | DW6: 3296 | DX6: 2896 | DY6: 3012 | DZ6: 2880 | EA6: 3296 | EB6: 1041 | EC6: 704 | ED6: 11.78 | EE6: -20.15 | EF6: -0.04 | EG6: 20 | EH6: 16.8 | EI6: -0.06 | EJ6: 28.53 | EK6: NULL | EL6: NULL | EM6: 12.3 | EN6: 12.2 | EO6: 13.6 | EP6: 13.4 | EQ6: 11.8 | ER6: 12.6 | ES6: 42.59 | ET6: 4942 | EU6: 4941 | EV6: NULL | EW6: 12.6 | EX6: 0 | EY6: 3000 | EZ6: NULL | FA6: NULL | FB6: NULL | FC6: 1178 | FD6: 1 | FE6: NULL | FF6: NULL | FG6: NULL | FH6: NULL | FI6: NULL | FJ6: NULL | FK6: NULL | FL6: NULL | FM6: 0 | FN6: 0 | FO6: 236 | FP6: 0 | FQ6: 1.4 | FR6: 0.16 | FS6: 0.16 | FT6: 0.35 | FU6: 0.35 | FV6: NULL | FW6: NULL | FX6: 12.76 | FY6: 0 | FZ6: -0.04 | GA6: 13.39 | GB6: -19.98 | GC6: 40.02 | GD6: 12.53 | GE6: NULL | GF6: NULL | GG6: NULL | GH6: 10.99 | GI6: 12.9 | GJ6: -0.0215
A7: 2023-07-30T04:00:00 | B7: 12.9 | C7: 13.31 | D7: 17.47 | E7: 17.45 | F7: 17 | G7: 16.85 | H7: 16.7 | I7: 16.61 | J7: 17.43 | K7: 17.71 | L7: 17.75 | M7: 17.77 | N7: 18.01 | O7: 17.94 | P7: 17.66 | Q7: 14.9 | R7: 0 | S7: 12.5 | T7: 96.1 | U7: 0.1621 | V7: 0.1687 | W7: 0.1545 | X7: 0.1666 | Y7: 0.255 | Z7: 0.0092 | AA7: 0.2554 | AB7: 0.3871 | AC7: 0.389 | AD7: 0.4022 | AE7: 839 | AF7: 871.22 | AG7: 871.24 | AH7: 0 | AI7: 117 | AJ7: 180 | AK7: 0.6 | AL7: 3 | AM7: 0 | AN7: 0 | AO7: 0 | AP7: 0 | AQ7: 1.1 | AR7: 4.1 | AS7: 0.9 | AT7: 1.4 | AU7: NULL | AV7: NULL | AW7: NULL | AX7: 0 | AY7: 0 | AZ7: 0 | BA7: 220 | BB7: 0 | BC7: 216.2 | BD7: 0 | BE7: 219.4 | BF7: 0 | BG7: 207.4 | BH7: 0 | BI7: 211.1 | BJ7: 0 | BK7: 214.1 | BL7: 0 | BM7: 226.6 | BN7: 0 | BO7: 226.6 | BP7: NULL | BQ7: NULL | BR7: -0.55 | BS7: 0.13 | BT7: 130.04 | BU7: 134.95 | BV7: 0 | BW7: 691.7 | BX7: 0 | BY7: 497.6 | BZ7: 14.9 | CA7: NULL | CB7: 5.7 | CC7: NULL | CD7: 5 | CE7: NULL | CF7: NULL | CG7: NULL | CH7: 10 | CI7: 45.9 | CJ7: -27.2 | CK7: 11.2 | CL7: NULL | CM7: -21 | CN7: -17.4 | CO7: -21.5 | CP7: NULL | CQ7: NULL | CR7: 12.36 | CS7: 12.02 | CT7: 12.46 | CU7: 12.6 | CV7: 12.57 | CW7: 12.55 | CX7: 12.78 | CY7: NULL | CZ7: 12.76 | DA7: 12.8 | DB7: 12.7 | DC7: 12.67 | DD7: 12.51 | DE7: 12.6 | DF7: 12.64 | DG7: 12.72 | DH7: NULL | DI7: NULL | DJ7: 2613 | DK7: 2480 | DL7: 1869 | DM7: 2621 | DN7: 2923 | DO7: 3281 | DP7: 2863 | DQ7: 3289 | DR7: 2882 | DS7: 3292 | DT7: 1661 | DU7: 3294 | DV7: 2015 | DW7: 3294 | DX7: 2878 | DY7: 2904 | DZ7: 2897 | EA7: 3296 | EB7: 1040 | EC7: 703 | ED7: 11.87 | EE7: -20.15 | EF7: -0.04 | EG7: 20 | EH7: 16.7 | EI7: -0.04 | EJ7: 28.55 | EK7: NULL | EL7: NULL | EM7: 11.7 | EN7: 11.7 | EO7: 13.4 | EP7: 13.3 | EQ7: 11.3 | ER7: 12.1 | ES7: 43.11 | ET7: 4943 | EU7: 4941 | EV7: NULL | EW7: 12.6 | EX7: 0 | EY7: 3000 | EZ7: NULL | FA7: NULL | FB7: NULL | FC7: 1177 | FD7: 1 | FE7: NULL | FF7: NULL | FG7: NULL | FH7: NULL | FI7: NULL | FJ7: NULL | FK7: NULL | FL7: NULL | FM7: 0 | FN7: 0 | FO7: 200 | FP7: 0 | FQ7: 1.1 | FR7: 0.2 | FS7: 0.2 | FT7: 0.35 | FU7: 0.36 | FV7: NULL | FW7: NULL | FX7: 12.26 | FY7: 0 | FZ7: -0.02 | GA7: 13.2 | GB7: -19.98 | GC7: 40.02 | GD7: 12.01 | GE7: NULL | GF7: NULL | GG7: NULL | GH7: 10.56 | GI7: 12.59 | GJ7: -0.0241
A8: 2023-07-30T05:00:00 | B8: 12.71 | C8: 12.77 | D8: 17.34 | E8: 17.36 | F8: 16.99 | G8: 16.68 | H8: 16.55 | I8: 16.46 | J8: 17.19 | K8: 17.53 | L8: 17.58 | M8: 17.66 | N8: 17.9 | O8: 17.88 | P8: 17.6 | Q8: 14.7 | R8: 0 | S8: 12.5 | T8: 96.7 | U8: 0.162 | V8: 0.169 | W8: 0.1545 | X8: 0.1666 | Y8: 0.2537 | Z8: 0.0408 | AA8: 0.2553 | AB8: 0.3867 | AC8: 0.3891 | AD8: 0.4018 | AE8: 839 | AF8: 871.47 | AG8: 871.49 | AH8: 0 | AI8: 169 | AJ8: 180 | AK8: 0.4 | AL8: 3 | AM8: 0 | AN8: 0 | AO8: 0 | AP8: 0 | AQ8: 1 | AR8: 4.1 | AS8: 0.9 | AT8: 1.8 | AU8: NULL | AV8: NULL | AW8: NULL | AX8: 0 | AY8: 0 | AZ8: 0 | BA8: 220 | BB8: 0 | BC8: 216.2 | BD8: 0 | BE8: 219.4 | BF8: 0 | BG8: 207.4 | BH8: 0 | BI8: 211.1 | BJ8: 0 | BK8: 214.1 | BL8: 0.1 | BM8: 226.7 | BN8: 0.1 | BO8: 226.7 | BP8: NULL | BQ8: NULL | BR8: 3.09 | BS8: 1.04 | BT8: 128.25 | BU8: 133.66 | BV8: 0.1 | BW8: 691.8 | BX8: 0 | BY8: 497.6 | BZ8: 15.2 | CA8: NULL | CB8: 8.5 | CC8: NULL | CD8: 4.8 | CE8: -0.2 | CF8: NULL | CG8: NULL | CH8: 9.9 | CI8: 45.7 | CJ8: -27.2 | CK8: 11.1 | CL8: NULL | CM8: -21.1 | CN8: -17.4 | CO8: -21.4 | CP8: NULL | CQ8: NULL | CR8: 12.29 | CS8: 12.11 | CT8: 12.46 | CU8: 12.57 | CV8: 12.62 | CW8: 12.59 | CX8: 12.83 | CY8: NULL | CZ8: 12.76 | DA8: 12.76 | DB8: 12.76 | DC8: 12.66 | DD8: 12.57 | DE8: 12.6 | DF8: 12.54 | DG8: 12.63 | DH8: NULL | DI8: NULL | DJ8: 2626 | DK8: 2512 | DL8: 1884 | DM8: 2636 | DN8: 2932 | DO8: 3294 | DP8: 2858 | DQ8: 3295 | DR8: 2874 | DS8: 3294 | DT8: 1666 | DU8: 3295 | DV8: 2042 | DW8: 3295 | DX8: 2896 | DY8: 2705 | DZ8: 2919 | EA8: 3296 | EB8: 1042 | EC8: 704 | ED8: 11.66 | EE8: -20.15 | EF8: -0.04 | EG8: 20 | EH8: 16.6 | EI8: -0.06 | EJ8: 28.53 | EK8: 18 | EL8: NULL | EM8: 11.8 | EN8: 11.7 | EO8: 13.3 | EP8: 13.1 | EQ8: 11.1 | ER8: 12 | ES8: 43.05 | ET8: 4935 | EU8: 4934 | EV8: NULL | EW8: 12.6 | EX8: 0 | EY8: 3000 | EZ8: NULL | FA8: 0.944 | FB8: NULL | FC8: 1176 | FD8: 1 | FE8: 0 | FF8: NULL | FG8: NULL | FH8: NULL | FI8: NULL | FJ8: NULL | FK8: NULL | FL8: NULL | FM8: 0 | FN8: 0 | FO8: 210 | FP8: 0 | FQ8: 0.9 | FR8: 4.53 | FS8: 5.36 | FT8: 4.22 | FU8: 4.98 | FV8: NULL | FW8: NULL | FX8: 12.18 | FY8: 0 | FZ8: 0.02 | GA8: 13 | GB8: -19.98 | GC8: 40.02 | GD8: 11.9 | GE8: NULL | GF8: NULL | GG8: NULL | GH8: 10.43 | GI8: 12.35 | GJ8: -0.0221
A9: 2023-07-30T06:00:00 | B9: 13.17 | C9: 13.11 | D9: 17.23 | E9: 17.27 | F9: 16.99 | G9: 16.52 | H9: 16.39 | I9: 16.31 | J9: 17.08 | K9: 17.36 | L9: 17.43 | M9: 17.58 | N9: 17.77 | O9: 17.83 | P9: 17.58 | Q9: 15 | R9: 0 | S9: 12.6 | T9: 98.4 | U9: 0.162 | V9: 0.1691 | W9: 0.1545 | X9: 0.1666 | Y9: 0.2523 | Z9: 0.0533 | AA9: 0.2553 | AB9: 0.3863 | AC9: 0.3891 | AD9: 0.4013 | AE9: 839.4 | AF9: 871.88 | AG9: 871.92 | AH9: 0 | AI9: 9 | AJ9: 350 | AK9: 0.2 | AL9: 1.4 | AM9: 0 | AN9: 0 | AO9: 0 | AP9: 0 | AQ9: 0.7 | AR9: 2.3 | AS9: 0.7 | AT9: 1.2 | AU9: NULL | AV9: NULL | AW9: NULL | AX9: 0 | AY9: 0 | AZ9: 0 | BA9: 220 | BB9: 0.1 | BC9: 216.3 | BD9: 0 | BE9: 219.4 | BF9: 0 | BG9: 207.4 | BH9: 0 | BI9: 211.1 | BJ9: 0.1 | BK9: 214.2 | BL9: 0 | BM9: 226.7 | BN9: 0 | BO9: 226.7 | BP9: NULL | BQ9: NULL | BR9: 12.21 | BS9: 2.5 | BT9: 128.32 | BU9: 134.38 | BV9: 0.1 | BW9: 691.9 | BX9: 0.1 | BY9: 497.7 | BZ9: 12.5 | CA9: NULL | CB9: 10.1 | CC9: NULL | CD9: 4.6 | CE9: NULL | CF9: NULL | CG9: NULL | CH9: 10.3 | CI9: 46.8 | CJ9: -27.2 | CK9: 11.2 | CL9: NULL | CM9: -19.2 | CN9: -15.2 | CO9: -19.4 | CP9: NULL | CQ9: NULL | CR9: 12.81 | CS9: 12.05 | CT9: 12.81 | CU9: 12.79 | CV9: 12.95 | CW9: 12.85 | CX9: 13.06 | CY9: NULL | CZ9: 13.01 | DA9: 12.99 | DB9: 13.02 | DC9: 12.9 | DD9: 12.86 | DE9: 12.89 | DF9: 12.81 | DG9: 12.83 | DH9: NULL | DI9: NULL | DJ9: 2630 | DK9: 2523 | DL9: 1915 | DM9: 2631 | DN9: 2915 | DO9: 3413 | DP9: 2946 | DQ9: 3430 | DR9: 2973 | DS9: 2753 | DT9: 1734 | DU9: 3415 | DV9: 2126 | DW9: 3416 | DX9: 2993 | DY9: 2618 | DZ9: 3012 | EA9: 3416 | EB9: 1086 | EC9: 733 | ED9: 11.65 | EE9: -20.14 | EF9: -0.04 | EG9: 20 | EH9: 16.5 | EI9: -0.04 | EJ9: 28.58 | EK9: NULL | EL9: NULL | EM9: 12.4 | EN9: 12.6 | EO9: 13.5 | EP9: 13.2 | EQ9: 11.8 | ER9: 12.1 | ES9: 43.8 | ET9: 4729 | EU9: 4725 | EV9: NULL | EW9: 12.6 | EX9: 0 | EY9: 3000 | EZ9: NULL | FA9: NULL | FB9: NULL | FC9: 1175 | FD9: 1 | FE9: NULL | FF9: NULL | FG9: NULL | FH9: NULL | FI9: NULL | FJ9: NULL | FK9: NULL | FL9: NULL | FM9: 0 | FN9: 0 | FO9: 243 | FP9: 0 | FQ9: 0.7 | FR9: 15.06 | FS9: 15.77 | FT9: 13.23 | FU9: 13.64 | FV9: NULL | FW9: NULL | FX9: 12.44 | FY9: 0 | FZ9: 0.02 | GA9: 13.18 | GB9: -19.98 | GC9: 40.02 | GD9: 12.11 | GE9: NULL | GF9: NULL | GG9: NULL | GH9: 10.78 | GI9: 12.66 | GJ9: -0.0216
A10: 2023-07-30T07:00:00 | B10: 13.99 | C10: 13.59 | D10: 17.13 | E10: 17.19 | F10: 16.98 | G10: 16.48 | H10: 16.39 | I10: 16.33 | J10: 16.95 | K10: 17.23 | L10: 17.31 | M10: 17.49 | N10: 17.68 | O10: 17.77 | P10: 17.53 | Q10: 15.6 | R10: 0 | S10: 13.9 | T10: 98.1 | U10: 0.1621 | V10: 0.1693 | W10: 0.1545 | X10: 0.1666 | Y10: 0.2511 | Z10: 0.0511 | AA10: 0.2553 | AB10: 0.3859 | AC10: 0.3891 | AD10: 0.401 | AE10: 839.1 | AF10: 872.17 | AG10: 872.18 | AH10: 0 | AI10: 87 | AJ10: 20 | AK10: 0.2 | AL10: 1.4 | AM10: 0 | AN10: 0 | AO10: 0 | AP10: 0 | AQ10: 0.5 | AR10: 2.5 | AS10: 0.6 | AT10: 1.4 | AU10: NULL | AV10: NULL | AW10: NULL | AX10: 0 | AY10: 0 | AZ10: 0 | BA10: 220 | BB10: 0 | BC10: 216.3 | BD10: 0 | BE10: 219.4 | BF10: 0 | BG10: 207.4 | BH10: 0 | BI10: 211.1 | BJ10: 0 | BK10: 214.2 | BL10: 0 | BM10: 226.7 | BN10: 0 | BO10: 226.7 | BP10: NULL | BQ10: NULL | BR10: 24.13 | BS10: 4.97 | BT10: 130.46 | BU10: 136.51 | BV10: 0.1 | BW10: 692 | BX10: 0 | BY10: 497.7 | BZ10: 14.5 | CA10: NULL | CB10: 7.4 | CC10: NULL | CD10: 4.5 | CE10: NULL | CF10: NULL | CG10: NULL | CH10: 13 | CI10: 48.7 | CJ10: -27.2 | CK10: 13.2 | CL10: NULL | CM10: -11.5 | CN10: -8.4 | CO10: -12.8 | CP10: NULL | CQ10: NULL | CR10: 13.81 | CS10: 13.23 | CT10: 13.73 | CU10: 13.7 | CV10: 13.84 | CW10: 13.69 | CX10: 13.92 | CY10: NULL | CZ10: 13.86 | DA10: 13.86 | DB10: 13.88 | DC10: 13.73 | DD10: 13.79 | DE10: 13.72 | DF10: 13.72 | DG10: 13.7 | DH10: NULL | DI10: NULL | DJ10: 2677 | DK10: 2569 | DL10: 1983 | DM10: 2669 | DN10: 2920 | DO10: 3278 | DP10: 3092 | DQ10: 3624 | DR10: 3068 | DS10: 3279 | DT10: 1772 | DU10: 3284 | DV10: 2122 | DW10: 3286 | DX10: 2887 | DY10: 2358 | DZ10: 2894 | EA10: 3296 | EB10: 1147 | EC10: 780 | ED10: 12.11 | EE10: -20.15 | EF10: -0.04 | EG10: 19.99 | EH10: 16.5 | EI10: -0.04 | EJ10: 28.54 | EK10: NULL | EL10: NULL | EM10: 14.2 | EN10: 14.5 | EO10: 14.5 | EP10: 14 | EQ10: 13.2 | ER10: 13.5 | ES10: 45.45 | ET10: 4369 | EU10: 4361 | EV10: NULL | EW10: 12.6 | EX10: 0 | EY10: 3000 | EZ10: NULL | FA10: NULL | FB10: NULL | FC10: 1174 | FD10: 1 | FE10: NULL | FF10: NULL | FG10: NULL | FH10: NULL | FI10: NULL | FJ10: NULL | FK10: NULL | FL10: NULL | FM10: 0 | FN10: 0 | FO10: 210 | FP10: 0 | FQ10: 0.6 | FR10: 70.07 | FS10: 67.8 | FT10: 28.19 | FU10: 29 | FV10: NULL | FW10: NULL | FX10: 13.83 | FY10: 0 | FZ10: 0 | GA10: 13.78 | GB10: -19.97 | GC10: 40.02 | GD10: 13.49 | GE10: NULL | GF10: NULL | GG10: NULL | GH10: 13.19 | GI10: 13.94 | GJ10: -0.008
A11: 2023-07-30T08:00:00 | B11: 15.55 | C11: 14.78 | D11: 17.06 | E11: 17.11 | F11: 16.97 | G11: 16.62 | H11: 16.58 | I11: 16.58 | J11: 16.92 | K11: 17.16 | L11: 17.24 | M11: 17.35 | N11: 17.59 | O11: 17.74 | P11: 17.52 | Q11: 16.9 | R11: 0 | S11: 15.5 | T11: 93.4 | U11: 0.1623 | V11: 0.1697 | W11: 0.1549 | X11: 0.1666 | Y11: 0.25 | Z11: 0.046 | AA11: 0.2552 | AB11: 0.3858 | AC11: 0.3891 | AD11: 0.4007 | AE11: 837.8 | AF11: 872.21 | AG11: 872.22 | AH11: 0 | AI11: 74 | AJ11: 50 | AK11: 0.4 | AL11: 2.4 | AM11: 0 | AN11: 0 | AO11: 0 | AP11: 0 | AQ11: 0.6 | AR11: 3.2 | AS11: 0.7 | AT11: 2.4 | AU11: NULL | AV11: NULL | AW11: NULL | AX11: 0 | AY11: 0.1 | AZ11: 0 | BA11: 220 | BB11: 0 | BC11: 216.3 | BD11: 0 | BE11: 219.4 | BF11: 0 | BG11: 207.4 | BH11: 0 | BI11: 211.1 | BJ11: 0 | BK11: 214.2 | BL11: 0 | BM11: 226.7 | BN11: 0 | BO11: 226.7 | BP11: NULL | BQ11: NULL | BR11: 65.16 | BS11: 13.78 | BT11: 133.38 | BU11: 140.33 | BV11: 0 | BW11: 692 | BX11: 0.1 | BY11: 497.8 | BZ11: 14.3 | CA11: NULL | CB11: 8 | CC11: NULL | CD11: 4.7 | CE11: -0.6 | CF11: NULL | CG11: NULL | CH11: 17.8 | CI11: NULL | CJ11: -27.2 | CK11: 17.5 | CL11: NULL | CM11: 1.6 | CN11: 4.1 | CO11: 2.1 | CP11: NULL | CQ11: NULL | CR11: 16.69 | CS11: 15.66 | CT11: 15.47 | CU11: 15.19 | CV11: 15.37 | CW11: 15.12 | CX11: 15.44 | CY11: NULL | CZ11: 15.33 | DA11: 15.18 | DB11: 15.4 | DC11: 15.08 | DD11: 15.59 | DE11: 15.11 | DF11: 15.84 | DG11: 15.47 | DH11: NULL | DI11: NULL | DJ11: 2645 | DK11: 2483 | DL11: 1818 | DM11: 2596 | DN11: 2752 | DO11: 3295 | DP11: 2595 | DQ11: 3296 | DR11: 2393 | DS11: 3295 | DT11: 1670 | DU11: 3296 | DV11: 2040 | DW11: 3296 | DX11: 2380 | DY11: 1642 | DZ11: 1983 | EA11: 3297 | EB11: 1040 | EC11: 705 | ED11: 13.3 | EE11: -20.15 | EF11: -0.04 | EG11: 20 | EH11: 16.4 | EI11: -0.04 | EJ11: 28.56 | EK11: 22 | EL11: NULL | EM11: 20.3 | EN11: 21.3 | EO11: 16.7 | EP11: 15.6 | EQ11: 17.6 | ER11: 15.6 | ES11: 48.05 | ET11: 4946 | EU11: 4944 | EV11: NULL | EW11: 12.6 | EX11: 0 | EY11: 3000 | EZ11: NULL | FA11: 1.263 | FB11: NULL | FC11: 1174 | FD11: 1 | FE11: 0 | FF11: NULL | FG11: NULL | FH11: NULL | FI11: NULL | FJ11: NULL | FK11: NULL | FL11: NULL | FM11: 0 | FN11: 0 | FO11: 206 | FP11: 0 | FQ11: 0.7 | FR11: 214.67 | FS11: 198.5 | FT11: 56.13 | FU11: 61.92 | FV11: NULL | FW11: NULL | FX11: 15.36 | FY11: 0 | FZ11: -0.02 | GA11: 14.92 | GB11: -19.98 | GC11: 40.02 | GD11: 15.3 | GE11: NULL | GF11: NULL | GG11: NULL | GH11: 18.86 | GI11: 16.06 | GJ11: 0.0341
A12: 2023-07-30T09:00:00 | B12: 18.03 | C12: 16.97 | D12: 17.1 | E12: 17.04 | F12: 16.95 | G12: 17.55 | H12: 17.51 | I12: 17.9 | J12: 17.1 | K12: 17.23 | L12: 17.3 | M12: 17.27 | N12: 17.53 | O12: 17.64 | P12: 17.45 | Q12: 18.3 | R12: 0 | S12: 16.7 | T12: 69.8 | U12: 0.1632 | V12: 0.1706 | W12: 0.1559 | X12: 0.1668 | Y12: 0.2482 | Z12: 0.0437 | AA12: 0.2552 | AB12: 0.385 | AC12: 0.3891 | AD12: 0.4003 | AE12: 828.5 | AF12: 872.28 | AG12: 872.31 | AH12: 0 | AI12: 356 | AJ12: 60 | AK12: 0.6 | AL12: 2.4 | AM12: 0 | AN12: 0 | AO12: 0 | AP12: 0 | AQ12: 1 | AR12: 3.9 | AS12: 0.8 | AT12: 1.8 | AU12: NULL | AV12: NULL | AW12: NULL | AX12: 0 | AY12: 0 | AZ12: 0 | BA12: 220 | BB12: -0.1 | BC12: 216.2 | BD12: -0.1 | BE12: 219.3 | BF12: 0.1 | BG12: 207.5 | BH12: -0.1 | BI12: 211 | BJ12: 0 | BK12: 214.2 | BL12: 0 | BM12: 226.7 | BN12: 0 | BO12: 226.7 | BP12: NULL | BQ12: NULL | BR12: 263.33 | BS12: 57.01 | BT12: 127.56 | BU12: 155.48 | BV12: 0.1 | BW12: 692.1 | BX12: 0 | BY12: 497.8 | BZ12: 14.7 | CA12: NULL | CB12: 7 | CC12: NULL | CD12: 4.7 | CE12: NULL | CF12: NULL | CG12: NULL | CH12: 26.3 | CI12: NULL | CJ12: -27.2 | CK12: 25 | CL12: NULL | CM12: 43.3 | CN12: 38.6 | CO12: 49.6 | CP12: NULL | CQ12: NULL | CR12: 21.57 | CS12: 22.92 | CT12: 19.15 | CU12: 19.22 | CV12: 18.89 | CW12: 18.68 | CX12: 18.94 | CY12: NULL | CZ12: 18.95 | DA12: 18.79 | DB12: 19.31 | DC12: 18.82 | DD12: 21.28 | DE12: 19.47 | DF12: 22.86 | DG12: 19.28 | DH12: NULL | DI12: NULL | DJ12: 2659 | DK12: 2328 | DL12: 1844 | DM12: 2589 | DN12: 1926 | DO12: 3298 | DP12: 2369 | DQ12: 3300 | DR12: 1822 | DS12: 3298 | DT12: 1667 | DU12: 3300 | DV12: 1864 | DW12: 3300 | DX12: 1783 | DY12: 1376 | DZ12: 1404 | EA12: 3300 | EB12: 1021 | EC12: 678 | ED12: 18.01 | EE12: -20.15 | EF12: -0.04 | EG12: 20 | EH12: 16.5 | EI12: -0.04 | EJ12: 28.54 | EK12: NULL | EL12: NULL | EM12: 32.2 | EN12: 31 | EO12: 19.9 | EP12: 18.6 | EQ12: 28.7 | ER12: 23.2 | ES12: NULL | ET12: 4931 | EU12: 4930 | EV12: NULL | EW12: 12.6 | EX12: 0 | EY12: 3000 | EZ12: NULL | FA12: NULL | FB12: NULL | FC12: 1174 | FD12: 1 | FE12: NULL | FF12: NULL | FG12: NULL | FH12: NULL | FI12: NULL | FJ12: NULL | FK12: NULL | FL12: NULL | FM12: 0 | FN12: 0 | FO12: 225 | FP12: 0 | FQ12: 0.9 | FR12: 172.09 | FS12: 187.3 | FT12: 72.06 | FU12: 74.23 | FV12: NULL | FW12: NULL | FX12: 20.27 | FY12: 0 | FZ12: -0.02 | GA12: 17.34 | GB12: -19.98 | GC12: 40.02 | GD12: 19.78 | GE12: NULL | GF12: NULL | GG12: NULL | GH12: 25.48 | GI12: 22.42 | GJ12: 0.0404
A13: 2023-07-30T10:00:00 | B13: 19.82 | C13: 17.72 | D13: 17.35 | E13: 17.01 | F13: 16.94 | G13: 19.02 | H13: 18.89 | I13: 19.49 | J13: 17.73 | K13: 17.71 | L13: 17.63 | M13: 17.22 | N13: 17.54 | O13: 17.63 | P13: 17.37 | Q13: 19.4 | R13: 0 | S13: 21.3 | T13: 59.5 | U13: 0.1643 | V13: 0.1717 | W13: 0.1573 | X13: 0.1672 | Y13: 0.2463 | Z13: 0.0449 | AA13: 0.2552 | AB13: 0.3843 | AC13: 0.389 | AD13: 0.3998 | AE13: 822.7 | AF13: 872.37 | AG13: 872.39 | AH13: 0 | AI13: 41 | AJ13: 90 | AK13: 0.5 | AL13: 3.4 | AM13: 0 | AN13: 0 | AO13: 0 | AP13: 0 | AQ13: 0.9 | AR13: 4.4 | AS13: 0.8 | AT13: 1.9 | AU13: NULL | AV13: NULL | AW13: NULL | AX13: 0 | AY13: 0 | AZ13: -0.1 | BA13: 219.9 | BB13: 0 | BC13: 216.2 | BD13: 0 | BE13: 219.3 | BF13: -0.1 | BG13: 207.4 | BH13: -0.1 | BI13: 210.9 | BJ13: -0.1 | BK13: 214.1 | BL13: -0.1 | BM13: 226.6 | BN13: -0.1 | BO13: 226.6 | BP13: NULL | BQ13: NULL | BR13: 249.33 | BS13: 56.23 | BT13: 127.07 | BU13: 158.09 | BV13: 0.1 | BW13: 692.2 | BX13: 0 | BY13: 497.8 | BZ13: 14.2 | CA13: NULL | CB13: 7.3 | CC13: NULL | CD13: 5 | CE13: NULL | CF13: NULL | CG13: NULL | CH13: 26.8 | CI13: NULL | CJ13: -27.2 | CK13: 27.3 | CL13: NULL | CM13: 51.8 | CN13: 38.3 | CO13: 65.4 | CP13: NULL | CQ13: NULL | CR13: 22.35 | CS13: 24.38 | CT13: 21.65 | CU13: 21.36 | CV13: 21.29 | CW13: 20.82 | CX13: 21.19 | CY13: NULL | CZ13: 20.85 | DA13: 20.77 | DB13: 21.22 | DC13: 20.31 | DD13: 23.56 | DE13: 20.85 | DF13: 21.55 | DG13: 20.21 | DH13: NULL | DI13: NULL | DJ13: 2668 | DK13: 2349 | DL13: 1836 | DM13: 2547 | DN13: 1937 | DO13: 3255 | DP13: 2331 | DQ13: 3208 | DR13: 1771 | DS13: 3200 | DT13: 1645 | DU13: 3225 | DV13: 1912 | DW13: 3234 | DX13: 1742 | DY13: 1346 | DZ13: 1341 | EA13: 3248 | EB13: 1023 | EC13: 676 | ED13: 22.08 | EE13: -20.15 | EF13: -0.04 | EG13: 20 | EH13: 16.6 | EI13: -0.04 | EJ13: 28.56 | EK13: NULL | EL13: NULL | EM13: 35.6 | EN13: 34.8 | EO13: 24 | EP13: 22.2 | EQ13: 35.8 | ER13: 28.1 | ES13: NULL | ET13: 4880 | EU13: 4880 | EV13: NULL | EW13: 12.6 | EX13: 0 | EY13: 3000 | EZ13: NULL | FA13: NULL | FB13: NULL | FC13: 1174 | FD13: 1 | FE13: NULL | FF13: NULL | FG13: NULL | FH13: NULL | FI13: NULL | FJ13: NULL | FK13: NULL | FL13: NULL | FM13: 0 | FN13: 0 | FO13: 268 | FP13: 0 | FQ13: 0.9 | FR13: 339.61 | FS13: 344.46 | FT13: 86.71 | FU13: 87.99 | FV13: NULL | FW13: NULL | FX13: 23.76 | FY13: 0 | FZ13: -0.02 | GA13: 18.24 | GB13: -19.98 | GC13: 40.01 | GD13: 24.18 | GE13: NULL | GF13: NULL | GG13: NULL | GH13: 26.45 | GI13: 26.78 | GJ13: -0.0042
A14: 2023-07-30T11:00:00 | B14: 18.43 | C14: 17.24 | D14: 17.69 | E14: 17.04 | F14: 16.92 | G14: 20.19 | H14: 20.07 | I14: 20.97 | J14: 18.37 | K14: 18.22 | L14: 18.01 | M14: 17.3 | N14: 17.58 | O14: 17.56 | P14: 17.3 | Q14: 18.9 | R14: 0 | S14: 20 | T14: 64.9 | U14: 0.1651 | V14: 0.1724 | W14: 0.1586 | X14: 0.1677 | Y14: 0.2435 | Z14: 0.0552 | AA14: 0.2553 | AB14: 0.3831 | AC14: 0.3888 | AD14: 0.3989 | AE14: 825.8 | AF14: 872.47 | AG14: 872.5 | AH14: 0 | AI14: 332 | AJ14: 260 | AK14: 0.7 | AL14: 2.8 | AM14: 0 | AN14: 0 | AO14: 0 | AP14: 0 | AQ14: 1.1 | AR14: 4 | AS14: 0.9 | AT14: 1.7 | AU14: NULL | AV14: NULL | AW14: NULL | AX14: 0 | AY14: 0 | AZ14: 0 | BA14: 219.9 | BB14: -0.2 | BC14: 216 | BD14: -0.1 | BE14: 219.2 | BF14: -0.1 | BG14: 207.3 | BH14: 0 | BI14: 210.9 | BJ14: 0 | BK14: 214.1 | BL14: 0.1 | BM14: 226.7 | BN14: 0.1 | BO14: 226.7 | BP14: NULL | BQ14: NULL | BR14: 298.28 | BS14: 68.59 | BT14: 127.93 | BU14: 162.96 | BV14: 0 | BW14: 692.2 | BX14: 0.1 | BY14: 497.9 | BZ14: 15 | CA14: NULL | CB14: 8.4 | CC14: NULL | CD14: NULL | CE14: -0.6 | CF14: NULL | CG14: NULL | CH14: 23.4 | CI14: NULL | CJ14: -27.2 | CK14: 24.9 | CL14: NULL | CM14: 63.2 | CN14: 38.7 | CO14: 75.1 | CP14: NULL | CQ14: NULL | CR14: 18.96 | CS14: 21.07 | CT14: 18.97 | CU14: 19.29 | CV14: 18.61 | CW14: 18.77 | CX14: 18.44 | CY14: NULL | CZ14: 18.24 | DA14: 18.55 | DB14: 18.38 | DC14: 18.52 | DD14: 18.6 | DE14: 18.4 | DF14: 18.19 | DG14: 18.2 | DH14: NULL | DI14: NULL | DJ14: 2652 | DK14: 2313 | DL14: 1815 | DM14: 2521 | DN14: 1905 | DO14: 3294 | DP14: 2355 | DQ14: 3295 | DR14: 1772 | DS14: 3293 | DT14: 1651 | DU14: 3295 | DV14: 1929 | DW14: 3296 | DX14: 1739 | DY14: 1342 | DZ14: 1359 | EA14: 3298 | EB14: 1019 | EC14: 677 | ED14: 23.95 | EE14: -20.15 | EF14: -0.04 | EG14: 20 | EH14: 16.8 | EI14: -0.02 | EJ14: 28.57 | EK14: 32 | EL14: NULL | EM14: 28.9 | EN14: 28.4 | EO14: 23.1 | EP14: 23 | EQ14: 28 | ER14: 27.1 | ES14: NULL | ET14: 4935 | EU14: 4933 | EV14: NULL | EW14: 12.6 | EX14: 0 | EY14: 3000 | EZ14: NULL | FA14: 2.723 | FB14: NULL | FC14: 1174 | FD14: 1 | FE14: 0 | FF14: NULL | FG14: NULL | FH14: NULL | FI14: NULL | FJ14: NULL | FK14: NULL | FL14: NULL | FM14: 0 | FN14: 0 | FO14: 308 | FP14: 0 | FQ14: 1 | FR14: 318.49 | FS14: 303.3 | FT14: 91.25 | FU14: 89.74 | FV14: NULL | FW14: NULL | FX14: 21.53 | FY14: 0 | FZ14: 0.02 | GA14: 17.65 | GB14: -19.98 | GC14: 40.02 | GD14: 23.04 | GE14: NULL | GF14: NULL | GG14: NULL | GH14: 23.37 | GI14: 25.3 | GJ14: -0.0246
A15: 2023-07-30T12:00:00 | B15: 18.89 | C15: 18.09 | D15: 18.07 | E15: 17.13 | F15: 16.9 | G15: 20.71 | H15: 20.5 | I15: 21.27 | J15: 18.99 | K15: 18.8 | L15: 18.48 | M15: 17.43 | N15: 17.71 | O15: 17.52 | P15: 17.28 | Q15: 18.9 | R15: 0 | S15: 19.6 | T15: 59.6 | U15: 0.1654 | V15: 0.1727 | W15: 0.1589 | X15: 0.168 | Y15: 0.2416 | Z15: 0.0598 | AA15: 0.2555 | AB15: 0.3824 | AC15: 0.3888 | AD15: 0.3981 | AE15: 822.7 | AF15: 872.5 | AG15: 872.53 | AH15: 0 | AI15: 333 | AJ15: 290 | AK15: 0.7 | AL15: 3.4 | AM15: 0 | AN15: 0 | AO15: 0 | AP15: 0 | AQ15: 1.1 | AR15: 4.8 | AS15: 1.1 | AT15: 2.3 | AU15: NULL | AV15: NULL | AW15: NULL | AX15: 0 | AY15: 0 | AZ15: 0 | BA15: 219.9 | BB15: 0.1 | BC15: 216.1 | BD15: 0.1 | BE15: 219.3 | BF15: 0.1 | BG15: 207.4 | BH15: 0.1 | BI15: 211 | BJ15: -0.1 | BK15: 214 | BL15: 0 | BM15: 226.7 | BN15: 0 | BO15: 226.7 | BP15: NULL | BQ15: NULL | BR15: 158.02 | BS15: 36.09 | BT15: 131.2 | BU15: 154.02 | BV15: 0.1 | BW15: 692.3 | BX15: 0 | BY15: 497.9 | BZ15: 12.4 | CA15: NULL | CB15: 7.8 | CC15: NULL | CD15: 4.8 | CE15: NULL | CF15: NULL | CG15: NULL | CH15: 27.1 | CI15: NULL | CJ15: -27.2 | CK15: 25.2 | CL15: NULL | CM15: 51.8 | CN15: 34.2 | CO15: 58.1 | CP15: NULL | CQ15: NULL | CR15: 21.05 | CS15: 21.55 | CT15: 19.79 | CU15: 20.72 | CV15: 19.41 | CW15: 20.06 | CX15: 19.53 | CY15: NULL | CZ15: 19.3 | DA15: 20.1 | DB15: 20.41 | DC15: 20.09 | DD15: 19.51 | DE15: 19.9 | DF15: 19.13 | DG15: 19.36 | DH15: NULL | DI15: NULL | DJ15: 2676 | DK15: 2339 | DL15: 1838 | DM15: 2544 | DN15: 1913 | DO15: 3291 | DP15: 2344 | DQ15: 3293 | DR15: 1783 | DS15: 3291 | DT15: 1666 | DU15: 3293 | DV15: 1941 | DW15: 3295 | DX15: 1752 | DY15: 1355 | DZ15: 1370 | EA15: 3297 | EB15: 1030 | EC15: 685 | ED15: 22.97 | EE15: -20.15 | EF15: -0.04 | EG15: 19.99 | EH15: 17 | EI15: -0.04 | EJ15: 28.55 | EK15: NULL | EL15: NULL | EM15: 28.4 | EN15: 28.3 | EO15: 21.7 | EP15: 21.3 | EQ15: 27.1 | ER15: 22.7 | ES15: NULL | ET15: 4872 | EU15: 4868 | EV15: NULL | EW15: 12.6 | EX15: 0 | EY15: 3000 | EZ15: NULL | FA15: NULL | FB15: NULL | FC15: 1174 | FD15: 1 | FE15: NULL | FF15: NULL | FG15: NULL | FH15: NULL | FI15: NULL | FJ15: NULL | FK15: NULL | FL15: NULL | FM15: 0 | FN15: 0 | FO15: 285 | FP15: 0 | FQ15: 1.5 | FR15: 168.03 | FS15: 185.89 | FT15: 87.99 | FU15: 92.07 | FV15: NULL | FW15: NULL | FX15: 21.1 | FY15: 0 | FZ15: 0.02 | GA15: 18.61 | GB15: -19.98 | GC15: 40.02 | GD15: 22.12 | GE15: NULL | GF15: NULL | GG15: NULL | GH15: 26.57 | GI15: 21.9 | GJ15: 0.0592
A16: 2023-07-30T13:00:00 | B16: 20.57 | C16: 17.95 | D16: 18.39 | E16: 17.25 | F16: 16.88 | G16: 21.35 | H16: 21.12 | I16: 22 | J16: 19.42 | K16: 19.25 | L16: 18.8 | M16: 17.62 | N16: 17.9 | O16: 17.55 | P16: 17.28 | Q16: 19.1 | R16: 0 | S16: 21.8 | T16: 54.9 | U16: 0.1657 | V16: 0.1729 | W16: 0.1597 | X16: 0.1681 | Y16: 0.2389 | Z16: 0.064 | AA16: 0.2556 | AB16: 0.3812 | AC16: 0.3884 | AD16: 0.3972 | AE16: 819.9 | AF16: 872.54 | AG16: 872.56 | AH16: 0 | AI16: 180 | AJ16: 70 | AK16: 0.8 | AL16: 3.8 | AM16: 0 | AN16: 0 | AO16: 0 | AP16: 0 | AQ16: 1.2 | AR16: 5.1 | AS16: 1 | AT16: 2 | AU16: NULL | AV16: NULL | AW16: NULL | AX16: 0 | AY16: 0 | AZ16: 0 | BA16: 219.9 | BB16: -0.1 | BC16: 216 | BD16: -0.1 | BE16: 219.2 | BF16: -0.1 | BG16: 207.3 | BH16: -0.1 | BI16: 210.9 | BJ16: 0.1 | BK16: 214.1 | BL16: -0.1 | BM16: 226.6 | BN16: -0.1 | BO16: 226.6 | BP16: NULL | BQ16: NULL | BR16: 256.32 | BS16: 59.08 | BT16: 130.82 | BU16: 159.74 | BV16: 0.1 | BW16: 692.4 | BX16: 0 | BY16: 497.9 | BZ16: 13.3 | CA16: NULL | CB16: 6.3 | CC16: NULL | CD16: 1 | CE16: NULL | CF16: NULL | CG16: NULL | CH16: 25.8 | CI16: 49.6 | CJ16: -27.2 | CK16: 24.1 | CL16: NULL | CM16: 70.6 | CN16: 42.6 | CO16: 69.6 | CP16: NULL | CQ16: NULL | CR16: 21.38 | CS16: 22.62 | CT16: 21.14 | CU16: 20.95 | CV16: 20.86 | CW16: 20.51 | CX16: 20.67 | CY16: NULL | CZ16: 20.81 | DA16: 21.24 | DB16: 21.42 | DC16: 20.64 | DD16: 21 | DE16: 20.88 | DF16: 20.48 | DG16: 20.21 | DH16: NULL | DI16: NULL | DJ16: 2671 | DK16: 2326 | DL16: 1844 | DM16: 2530 | DN16: 1920 | DO16: 3281 | DP16: 2372 | DQ16: 3285 | DR16: 1803 | DS16: 3285 | DT16: 1683 | DU16: 3287 | DV16: 1968 | DW16: 3289 | DX16: 1769 | DY16: 1366 | DZ16: 1381 | EA16: 3291 | EB16: 1049 | EC16: 700 | ED16: 23.08 | EE16: -20.15 | EF16: -0.04 | EG16: 20 | EH16: 17.1 | EI16: -0.04 | EJ16: 28.57 | EK16: NULL | EL16: NULL | EM16: 32.3 | EN16: 31.8 | EO16: 24 | EP16: 22.9 | EQ16: 31.5 | ER16: 25.4 | ES16: 48.73 | ET16: 4766 | EU16: 4764 | EV16: NULL | EW16: 12.7 | EX16: 0 | EY16: 3000 | EZ16: NULL | FA16: NULL | FB16: NULL | FC16: 1175 | FD16: 1 | FE16: NULL | FF16: NULL | FG16: NULL | FH16: NULL | FI16: NULL | FJ16: NULL | FK16: NULL | FL16: NULL | FM16: 0 | FN16: 0 | FO16: 282 | FP16: 0 | FQ16: 0.7 | FR16: 267.06 | FS16: 271.29 | FT16: 109.58 | FU16: 107.77 | FV16: NULL | FW16: NULL | FX16: 23.99 | FY16: 0 | FZ16: -0.02 | GA16: 18.79 | GB16: -19.98 | GC16: 40.02 | GD16: 25.57 | GE16: NULL | GF16: NULL | GG16: NULL | GH16: 22.89 | GI16: 24.44 | GJ16: -0.0206
A17: 2023-07-30T14:00:00 | B17: 20.19 | C17: 19.22 | D17: 18.72 | E17: 17.4 | F17: 16.87 | G17: 21.99 | H17: 21.67 | I17: 22.59 | J17: 19.9 | K17: 19.71 | L17: 19.2 | M17: 17.8 | N17: 18.08 | O17: 17.55 | P17: 17.33 | Q17: 19.6 | R17: 0 | S17: 22.1 | T17: 61.6 | U17: 0.1659 | V17: 0.1731 | W17: 0.16 | X17: 0.1684 | Y17: 0.2365 | Z17: 0.0682 | AA17: 0.2558 | AB17: 0.3802 | AC17: 0.3884 | AD17: 0.3966 | AE17: 824.4 | AF17: 872.45 | AG17: 872.46 | AH17: 0 | AI17: 260 | AJ17: 290 | AK17: 0.5 | AL17: 2.4 | AM17: 0 | AN17: 0 | AO17: 0 | AP17: 0 | AQ17: 0.9 | AR17: 3.4 | AS17: 0.7 | AT17: 1.9 | AU17: NULL | AV17: NULL | AW17: NULL | AX17: 0 | AY17: 0 | AZ17: 0 | BA17: 219.9 | BB17: 0.1 | BC17: 216.1 | BD17: 0 | BE17: 219.2 | BF17: 0 | BG17: 207.3 | BH17: 0 | BI17: 210.9 | BJ17: -0.1 | BK17: 214 | BL17: 0 | BM17: 226.6 | BN17: 0 | BO17: 226.6 | BP17: NULL | BQ17: NULL | BR17: 225.74 | BS17: 52.17 | BT17: 125.57 | BU17: 159.1 | BV17: 0 | BW17: 692.4 | BX17: 0.1 | BY17: 498 | BZ17: 13.9 | CA17: NULL | CB17: 4.2 | CC17: NULL | CD17: 0.2 | CE17: -0.6 | CF17: NULL | CG17: NULL | CH17: 25.4 | CI17: 49.8 | CJ17: -27.2 | CK17: 25.7 | CL17: NULL | CM17: 61.5 | CN17: 43.9 | CO17: 59.5 | CP17: NULL | CQ17: NULL | CR17: 23.48 | CS17: 25.32 | CT17: 21.27 | CU17: 21.71 | CV17: 20.95 | CW17: 21.22 | CX17: 20.96 | CY17: NULL | CZ17: 20.91 | DA17: 21.35 | DB17: 22.05 | DC17: 22.34 | DD17: 22.48 | DE17: 22.75 | DF17: 21.33 | DG17: 21.7 | DH17: NULL | DI17: NULL | DJ17: 2680 | DK17: 2333 | DL17: 1823 | DM17: 2576 | DN17: 1893 | DO17: 3269 | DP17: 2342 | DQ17: 3293 | DR17: 1784 | DS17: 3293 | DT17: 1657 | DU17: 3297 | DV17: 1947 | DW17: 3292 | DX17: 1748 | DY17: 1342 | DZ17: 1364 | EA17: 3296 | EB17: 1021 | EC17: 683 | ED17: 23.58 | EE17: -20.15 | EF17: -0.04 | EG17: 20 | EH17: 17.3 | EI17: -0.04 | EJ17: 28.56 | EK17: 31 | EL17: NULL | EM17: 32.5 | EN17: 32.1 | EO17: 24 | EP17: 23.5 | EQ17: 29.6 | ER17: 25.5 | ES17: 48.66 | ET17: 4936 | EU17: 4934 | EV17: NULL | EW17: 12.6 | EX17: 0 | EY17: 3000 | EZ17: NULL | FA17: 1.768 | FB17: NULL | FC17: 1177 | FD17: 1 | FE17: 0 | FF17: NULL | FG17: NULL | FH17: NULL | FI17: NULL | FJ17: NULL | FK17: NULL | FL17: NULL | FM17: 0 | FN17: 0 | FO17: 270 | FP17: 0 | FQ17: 0.7 | FR17: 240.72 | FS17: 244.31 | FT17: 82.49 | FU17: 79.56 | FV17: NULL | FW17: NULL | FX17: 24.05 | FY17: 0 | FZ17: 0 | GA17: 19.3 | GB17: -19.98 | GC17: 40.02 | GD17: 25.05 | GE17: NULL | GF17: NULL | GG17: NULL | GH17: 25.94 | GI17: 24.56 | GJ17: 0.0194
A18: 2023-07-30T15:00:00 | B18: 19.49 | C18: 18.59 | D18: 18.99 | E18: 17.55 | F18: 16.86 | G18: 22.18 | H18: 21.86 | I18: 22.63 | J18: 20.27 | K18: 20.1 | L18: 19.51 | M18: 18.04 | N18: 18.31 | O18: 17.61 | P18: 17.37 | Q18: 19.1 | R18: 0 | S18: 21.5 | T18: 55.4 | U18: 0.1659 | V18: 0.1731 | W18: 0.16 | X18: 0.1685 | Y18: 0.2345 | Z18: 0.0684 | AA18: 0.256 | AB18: 0.3794 | AC18: 0.3883 | AD18: 0.3961 | AE18: 820.9 | AF18: 872.57 | AG18: 872.58 | AH18: 0 | AI18: 11 | AJ18: 50 | AK18: 0.5 | AL18: 2.2 | AM18: 0 | AN18: 0 | AO18: 0 | AP18: 0 | AQ18: 0.8 | AR18: 3.1 | AS18: 0.8 | AT18: 1.7 | AU18: NULL | AV18: NULL | AW18: NULL | AX18: 0 | AY18: 0 | AZ18: 0 | BA18: 219.9 | BB18: 0 | BC18: 216.1 | BD18: -0.1 | BE18: 219.1 | BF18: 0 | BG18: 207.3 | BH18: 0 | BI18: 210.9 | BJ18: 0 | BK18: 214 | BL18: 0 | BM18: 226.6 | BN18: 0 | BO18: 226.6 | BP18: NULL | BQ18: NULL | BR18: 186.34 | BS18: 43.72 | BT18: 119.09 | BU18: 156.36 | BV18: 0.1 | BW18: 692.5 | BX18: 0 | BY18: 498 | BZ18: 13.1 | CA18: NULL | CB18: 3.6 | CC18: NULL | CD18: -0.1 | CE18: -0.6 | CF18: NULL | CG18: NULL | CH18: 23.4 | CI18: 49.5 | CJ18: -27.2 | CK18: 24.4 | CL18: NULL | CM18: 54.7 | CN18: 38.7 | CO18: 48.3 | CP18: NULL | CQ18: NULL | CR18: 23.25 | CS18: 23.73 | CT18: 20.71 | CU18: 20.17 | CV18: 20.4 | CW18: 19.5 | CX18: 20.45 | CY18: NULL | CZ18: 20.36 | DA18: 19.54 | DB18: 21.45 | DC18: 19.62 | DD18: 22.92 | DE18: 23.32 | DF18: 22.29 | DG18: 23.02 | DH18: NULL | DI18: NULL | DJ18: 2676 | DK18: 2307 | DL18: 1826 | DM18: 2547 | DN18: 1879 | DO18: 3295 | DP18: 2345 | DQ18: 3296 | DR18: 1781 | DS18: 3295 | DT18: 1656 | DU18: 3297 | DV18: 1920 | DW18: 3296 | DX18: 1745 | DY18: 1335 | DZ18: 1355 | EA18: 3298 | EB18: 1021 | EC18: 687 | ED18: 23.74 | EE18: -20.15 | EF18: -0.04 | EG18: 20 | EH18: 17.4 | EI18: -0.02 | EJ18: 28.55 | EK18: 31 | EL18: NULL | EM18: 31.8 | EN18: 30.5 | EO18: 24.3 | EP18: 23.8 | EQ18: 31.3 | ER18: 25.5 | ES18: 48.49 | ET18: 4936 | EU18: 4933 | EV18: NULL | EW18: 12.6 | EX18: 0 | EY18: 3000 | EZ18: NULL | FA18: 1.842 | FB18: NULL | FC18: 1179 | FD18: 1 | FE18: 0 | FF18: NULL | FG18: NULL | FH18: NULL | FI18: NULL | FJ18: NULL | FK18: NULL | FL18: NULL | FM18: 0 | FN18: 0 | FO18: 216 | FP18: 0 | FQ18: 1.3 | FR18: 191.76 | FS18: 200.6 | FT18: 62.56 | FU18: 57.59 | FV18: NULL | FW18: NULL | FX18: 24.79 | FY18: 0 | FZ18: 0 | GA18: 19.28 | GB18: -19.98 | GC18: 40.02 | GD18: 24.74 | GE18: NULL | GF18: NULL | GG18: NULL | GH18: 23.66 | GI18: 24.47 | GJ18: -0.0112
A19: 2023-07-30T16:00:00 | B19: 18.22 | C19: 17.93 | D19: 19.18 | E19: 17.7 | F19: 16.85 | G19: 22.31 | H19: 21.79 | I19: 22.59 | J19: 20.52 | K19: 20.35 | L19: 19.77 | M19: 18.27 | N19: 18.48 | O19: 17.71 | P19: 17.43 | Q19: 18.9 | R19: 0 | S19: 19.1 | T19: 51.4 | U19: 0.1659 | V19: 0.1729 | W19: 0.1599 | X19: 0.1686 | Y19: 0.2322 | Z19: 0.0688 | AA19: 0.2561 | AB19: 0.3787 | AC19: 0.3881 | AD19: 0.3955 | AE19: 818.7 | AF19: 872.52 | AG19: 872.54 | AH19: 0 | AI19: 66 | AJ19: 40 | AK19: 1 | AL19: 3.6 | AM19: 0 | AN19: 0 | AO19: 0 | AP19: 0 | AQ19: 1.4 | AR19: 5.3 | AS19: 1 | AT19: 1.9 | AU19: NULL | AV19: NULL | AW19: NULL | AX19: 0 | AY19: 0 | AZ19: 0 | BA19: 219.9 | BB19: 0 | BC19: 216.1 | BD19: 0.1 | BE19: 219.2 | BF19: -0.1 | BG19: 207.2 | BH19: 0 | BI19: 210.9 | BJ19: 0 | BK19: 214 | BL19: 0.1 | BM19: 226.7 | BN19: 0.1 | BO19: 226.7 | BP19: NULL | BQ19: NULL | BR19: 200.26 | BS19: 48.46 | BT19: 114.36 | BU19: 155.6 | BV19: 0.1 | BW19: 692.6 | BX19: 0 | BY19: 498 | BZ19: 14.1 | CA19: NULL | CB19: 4.9 | CC19: NULL | CD19: 2.3 | CE19: NULL | CF19: NULL | CG19: NULL | CH19: 18.8 | CI19: NULL | CJ19: -27.2 | CK19: 21.2 | CL19: NULL | CM19: 38.9 | CN19: 27.4 | CO19: 33 | CP19: NULL | CQ19: NULL | CR19: 18.43 | CS19: 20.33 | CT19: 18.58 | CU19: 18.46 | CV19: 18.48 | CW19: 18.07 | CX19: 18.57 | CY19: NULL | CZ19: 18.54 | DA19: 18.11 | DB19: 18.51 | DC19: 18.16 | DD19: 19.47 | DE19: 18.92 | DF19: 20.28 | DG19: 20.24 | DH19: NULL | DI19: NULL | DJ19: 2617 | DK19: 2249 | DL19: 1804 | DM19: 2450 | DN19: 1833 | DO19: 3296 | DP19: 2298 | DQ19: 3296 | DR19: 1758 | DS19: 3294 | DT19: 1645 | DU19: 3296 | DV19: 1852 | DW19: 3296 | DX19: 1727 | DY19: 1308 | DZ19: 1346 | EA19: 3297 | EB19: 1018 | EC19: 694 | ED19: 23.89 | EE19: -20.15 | EF19: -0.04 | EG19: 19.99 | EH19: 17.5 | EI19: -0.04 | EJ19: 28.55 | EK19: NULL | EL19: NULL | EM19: 28 | EN19: 27.4 | EO19: 23.1 | EP19: 23.3 | EQ19: 27.1 | ER19: 24.9 | ES19: NULL | ET19: 4948 | EU19: 4946 | EV19: NULL | EW19: 12.6 | EX19: 0 | EY19: 3000 | EZ19: NULL | FA19: NULL | FB19: NULL | FC19: 1180 | FD19: 1 | FE19: NULL | FF19: NULL | FG19: NULL | FH19: NULL | FI19: NULL | FJ19: NULL | FK19: NULL | FL19: NULL | FM19: 0 | FN19: 0 | FO19: 220 | FP19: 0 | FQ19: 1.3 | FR19: 204.59 | FS19: 195.24 | FT19: 39.12 | FU19: 43.71 | FV19: NULL | FW19: NULL | FX19: 22.75 | FY19: 0 | FZ19: 0 | GA19: 18.16 | GB19: -19.98 | GC19: 40.02 | GD19: 22.08 | GE19: NULL | GF19: NULL | GG19: NULL | GH19: 19.26 | GI19: 22.99 | GJ19: -0.0463
A20: 2023-07-30T17:00:00 | B20: 16.56 | C20: 16.37 | D20: 19.28 | E20: 17.84 | F20: 16.85 | G20: 21.99 | H20: 21.43 | I20: 22.1 | J20: 20.57 | K20: 20.46 | L20: 19.86 | M20: 18.4 | N20: 18.66 | O20: 17.78 | P20: 17.5 | Q20: 17.6 | R20: 0 | S20: 17.2 | T20: 49.7 | U20: 0.1657 | V20: 0.1726 | W20: 0.1595 | X20: 0.1686 | Y20: 0.2308 | Z20: 0.0669 | AA20: 0.2564 | AB20: 0.3783 | AC20: 0.3881 | AD20: 0.3954 | AE20: 817.9 | AF20: 872.47 | AG20: 872.49 | AH20: 0 | AI20: 8 | AJ20: 40 | AK20: 0.6 | AL20: 2.2 | AM20: 0 | AN20: 0 | AO20: 0 | AP20: 0 | AQ20: 1 | AR20: 3.7 | AS20: 0.8 | AT20: 1.1 | AU20: NULL | AV20: NULL | AW20: NULL | AX20: 0 | AY20: 0 | AZ20: 0 | BA20: 219.9 | BB20: -0.1 | BC20: 216 | BD20: 0 | BE20: 219.2 | BF20: 0 | BG20: 207.2 | BH20: 0 | BI20: 210.9 | BJ20: 0.1 | BK20: 214.1 | BL20: 0 | BM20: 226.7 | BN20: 0 | BO20: 226.7 | BP20: NULL | BQ20: NULL | BR20: 117.6 | BS20: 29.58 | BT20: 112.47 | BU20: 148.55 | BV20: 0 | BW20: 692.6 | BX20: 0.1 | BY20: 498.1 | BZ20: 13.9 | CA20: NULL | CB20: 4.9 | CC20: NULL | CD20: 4.7 | CE20: -0.6 | CF20: NULL | CG20: NULL | CH20: 16.2 | CI20: 49.6 | CJ20: -27.2 | CK20: 18.1 | CL20: NULL | CM20: 18.6 | CN20: 11.8 | CO20: 13.6 | CP20: NULL | CQ20: NULL | CR20: 17.06 | CS20: 17.03 | CT20: 17.09 | CU20: 16.97 | CV20: 17.16 | CW20: 16.84 | CX20: 17.27 | CY20: NULL | CZ20: 17.2 | DA20: 16.91 | DB20: 17.12 | DC20: 16.85 | DD20: 17.3 | DE20: 17.04 | DF20: 17.92 | DG20: 17.21 | DH20: NULL | DI20: NULL | DJ20: 2645 | DK20: 2250 | DL20: 1819 | DM20: 2457 | DN20: 1828 | DO20: 3291 | DP20: 2329 | DQ20: 3294 | DR20: 1763 | DS20: 3296 | DT20: 1657 | DU20: 3298 | DV20: 1834 | DW20: 3295 | DX20: 1732 | DY20: 1314 | DZ20: 1347 | EA20: 3299 | EB20: 1022 | EC20: 700 | ED20: 22.28 | EE20: -20.15 | EF20: -0.04 | EG20: 20 | EH20: 17.6 | EI20: -0.04 | EJ20: 28.51 | EK20: 27 | EL20: NULL | EM20: 22.6 | EN20: 22.6 | EO20: 21.7 | EP20: 22.1 | EQ20: 22.4 | ER20: 22.3 | ES20: 49.12 | ET20: 4929 | EU20: 4926 | EV20: NULL | EW20: 12.6 | EX20: 0 | EY20: 3000 | EZ20: NULL | FA20: 2.558 | FB20: NULL | FC20: 1182 | FD20: 1 | FE20: 0 | FF20: NULL | FG20: NULL | FH20: NULL | FI20: NULL | FJ20: NULL | FK20: NULL | FL20: NULL | FM20: 0 | FN20: 0 | FO20: 200 | FP20: 0 | FQ20: 1.2 | FR20: 126.03 | FS20: 119.34 | FT20: 61.96 | FU20: 61.24 | FV20: NULL | FW20: NULL | FX20: 20.34 | FY20: 0 | FZ20: 0 | GA20: 16.93 | GB20: -19.98 | GC20: 40.03 | GD20: 19.58 | GE20: NULL | GF20: NULL | GG20: NULL | GH20: 16.09 | GI20: 20.65 | GJ20: -0.0565
A21: 2023-07-30T18:00:00 | B21: 14.25 | C21: 14.23 | D21: 19.28 | E21: 17.96 | F21: 16.87 | G21: 21.35 | H21: 20.81 | I21: 21.31 | J21: 20.45 | K21: 20.43 | L21: 19.8 | M21: 18.56 | N21: 18.8 | O21: 17.88 | P21: 17.57 | Q21: 15.2 | R21: 0 | S21: 14.8 | T21: 61 | U21: 0.1653 | V21: 0.1724 | W21: 0.1591 | X21: 0.1685 | Y21: 0.2298 | Z21: 0.0643 | AA21: 0.2566 | AB21: 0.3782 | AC21: 0.3881 | AD21: 0.3954 | AE21: 825 | AF21: 872.54 | AG21: 872.57 | AH21: 0 | AI21: 352 | AJ21: 0 | AK21: 0.2 | AL21: 2.4 | AM21: 0 | AN21: 0 | AO21: 0 | AP21: 0 | AQ21: 0.4 | AR21: 3 | AS21: 0.8 | AT21: 1 | AU21: NULL | AV21: NULL | AW21: NULL | AX21: 0 | AY21: 0 | AZ21: 0.1 | BA21: 220 | BB21: 0.1 | BC21: 216.1 | BD21: 0.1 | BE21: 219.3 | BF21: 0.1 | BG21: 207.3 | BH21: 0.1 | BI21: 211 | BJ21: 0 | BK21: 214.1 | BL21: 0 | BM21: 226.7 | BN21: 0 | BO21: 226.7 | BP21: NULL | BQ21: NULL | BR21: 47.14 | BS21: 11.6 | BT21: 112.12 | BU21: 141.06 | BV21: 0.1 | BW21: 692.7 | BX21: 0 | BY21: 498.1 | BZ21: 13.5 | CA21: NULL | CB21: 5.3 | CC21: NULL | CD21: 3.5 | CE21: -0.6 | CF21: NULL | CG21: NULL | CH21: 11.5 | CI21: 45.8 | CJ21: -27.2 | CK21: 13.6 | CL21: NULL | CM21: -2 | CN21: -2.4 | CO21: -2.7 | CP21: NULL | CQ21: NULL | CR21: 13.61 | CS21: 13.44 | CT21: 14.51 | CU21: 14.52 | CV21: 14.75 | CW21: 14.64 | CX21: 14.83 | CY21: NULL | CZ21: 14.8 | DA21: 14.8 | DB21: 14.71 | DC21: 14.74 | DD21: 14.62 | DE21: 14.78 | DF21: 14.47 | DG21: 14.55 | DH21: NULL | DI21: NULL | DJ21: 2639 | DK21: 2222 | DL21: 1819 | DM21: 2513 | DN21: 1826 | DO21: 3389 | DP21: 2375 | DQ21: 3388 | DR21: 1800 | DS21: 3387 | DT21: 1703 | DU21: 3388 | DV21: 1846 | DW21: 3386 | DX21: 1771 | DY21: 1346 | DZ21: 1378 | EA21: 3386 | EB21: 1051 | EC21: 720 | ED21: 19.62 | EE21: -20.15 | EF21: -0.04 | EG21: 20 | EH21: 17.6 | EI21: -0.04 | EJ21: 28.57 | EK21: 23 | EL21: NULL | EM21: 15.8 | EN21: 17.8 | EO21: 18.7 | EP21: 19.6 | EQ21: 16.5 | ER21: 17.1 | ES21: 45.43 | ET21: 4783 | EU21: 4782 | EV21: NULL | EW21: 12.6 | EX21: 0 | EY21: 3000 | EZ21: NULL | FA21: 2.351 | FB21: NULL | FC21: 1183 | FD21: 1 | FE21: 0 | FF21: NULL | FG21: NULL | FH21: NULL | FI21: NULL | FJ21: NULL | FK21: NULL | FL21: NULL | FM21: 0 | FN21: 0 | FO21: 220 | FP21: 0 | FQ21: 0 | FR21: 60.03 | FS21: 57.01 | FT21: 44.42 | FU21: 40.96 | FV21: NULL | FW21: NULL | FX21: 16.27 | FY21: 0 | FZ21: 0.02 | GA21: 14.57 | GB21: -19.98 | GC21: 40.01 | GD21: 15.64 | GE21: NULL | GF21: NULL | GG21: NULL | GH21: 11.88 | GI21: 16.77 | GJ21: -0.0583
A22: 2023-07-30T19:00:00 | B22: 11.62 | C22: 11.65 | D22: 19.18 | E22: 18.04 | F22: 16.88 | G22: 20.64 | H22: 20.14 | I22: 20.4 | J22: 20.14 | K22: 20.23 | L22: 19.72 | M22: 18.66 | N22: 18.88 | O22: 18 | P22: 17.66 | Q22: 13 | R22: 0 | S22: 11.2 | T22: 70.6 | U22: 0.1647 | V22: 0.172 | W22: 0.1583 | X22: 0.1685 | Y22: 0.2289 | Z22: 0.0605 | AA22: 0.2568 | AB22: 0.3781 | AC22: 0.3882 | AD22: 0.3955 | AE22: 830 | AF22: 872.89 | AG22: 872.89 | AH22: 0 | AI22: 10 | AJ22: 0 | AK22: 0.1 | AL22: 1.2 | AM22: 0 | AN22: 0 | AO22: 0 | AP22: 0 | AQ22: 0.3 | AR22: 1.9 | AS22: 0.5 | AT22: 0.8 | AU22: NULL | AV22: NULL | AW22: NULL | AX22: 0 | AY22: 0 | AZ22: 0 | BA22: 220 | BB22: 0 | BC22: 216.1 | BD22: 0 | BE22: 219.3 | BF22: 0 | BG22: 207.3 | BH22: 0.1 | BI22: 211.1 | BJ22: 0 | BK22: 214.1 | BL22: 0 | BM22: 226.7 | BN22: 0 | BO22: 226.7 | BP22: NULL | BQ22: NULL | BR22: 9.79 | BS22: 2.26 | BT22: 107.11 | BU22: 132.59 | BV22: 0.1 | BW22: 692.8 | BX22: 0 | BY22: 498.1 | BZ22: 14.4 | CA22: NULL | CB22: 10.9 | CC22: NULL | CD22: 1.6 | CE22: NULL | CF22: NULL | CG22: NULL | CH22: 7.6 | CI22: 42.7 | CJ22: -27.2 | CK22: 9.5 | CL22: NULL | CM22: -20.2 | CN22: -15.8 | CO22: -17.4 | CP22: NULL | CQ22: NULL | CR22: 11 | CS22: 10.62 | CT22: 11.79 | CU22: 11.8 | CV22: 12.07 | CW22: 12.05 | CX22: 12.16 | CY22: NULL | CZ22: 12.08 | DA22: 12.23 | DB22: 12.08 | DC22: 12.13 | DD22: 11.86 | DE22: 12.03 | DF22: 11.5 | DG22: 11.73 | DH22: NULL | DI22: NULL | DJ22: 2588 | DK22: 2160 | DL22: 1766 | DM22: 2559 | DN22: 1770 | DO22: 3296 | DP22: 2261 | DQ22: 3296 | DR22: 1722 | DS22: 3294 | DT22: 1640 | DU22: 3296 | DV22: 1741 | DW22: 3296 | DX22: 1702 | DY22: 1292 | DZ22: 1329 | EA22: 3296 | EB22: 1014 | EC22: 692 | ED22: 16.38 | EE22: -20.15 | EF22: -0.04 | EG22: 20 | EH22: 17.5 | EI22: -0.04 | EJ22: 28.57 | EK22: NULL | EL22: NULL | EM22: 11.1 | EN22: 11.2 | EO22: 14.8 | EP22: 16 | EQ22: 10.6 | ER22: 12.3 | ES22: 42.1 | ET22: 4949 | EU22: 4947 | EV22: NULL | EW22: 12.6 | EX22: 0 | EY22: 3000 | EZ22: NULL | FA22: NULL | FB22: NULL | FC22: 1183 | FD22: 1 | FE22: NULL | FF22: NULL | FG22: NULL | FH22: NULL | FI22: NULL | FJ22: NULL | FK22: NULL | FL22: NULL | FM22: 0 | FN22: 0 | FO22: 420 | FP22: 0 | FQ22: 0 | FR22: 15.79 | FS22: 14.02 | FT22: 14.19 | FU22: 12.62 | FV22: NULL | FW22: NULL | FX22: 11.7 | FY22: 0 | FZ22: 0.02 | GA22: 11.91 | GB22: -19.98 | GC22: 40.02 | GD22: 11.18 | GE22: NULL | GF22: NULL | GG22: NULL | GH22: 8.17 | GI22: 12.95 | GJ22: -0.0577
A23: 2023-07-30T20:00:00 | B23: 10.24 | C23: 10.67 | D23: 18.98 | E23: 18.06 | F23: 16.9 | G23: 19.82 | H23: 19.41 | I23: 19.47 | J23: 19.77 | K23: 19.93 | L23: 19.47 | M23: 18.7 | N23: 18.89 | O23: 18.06 | P23: 17.71 | Q23: 12.1 | R23: 0 | S23: 9.4 | T23: 79.3 | U23: 0.164 | V23: 0.1716 | W23: 0.1577 | X23: 0.1681 | Y23: 0.228 | Z23: 0.0536 | AA23: 0.2567 | AB23: 0.378 | AC23: 0.3883 | AD23: 0.3954 | AE23: 833.6 | AF23: 873.09 | AG23: 873.11 | AH23: 0 | AI23: 12 | AJ23: 0 | AK23: 0 | AL23: 0.4 | AM23: 0 | AN23: 0 | AO23: 0 | AP23: 0 | AQ23: 0 | AR23: 1.2 | AS23: 0.4 | AT23: 0.7 | AU23: NULL | AV23: NULL | AW23: NULL | AX23: 0 | AY23: 0 | AZ23: 0 | BA23: 220 | BB23: 0.1 | BC23: 216.2 | BD23: 0.1 | BE23: 219.4 | BF23: 0 | BG23: 207.3 | BH23: 0 | BI23: 211.1 | BJ23: 0.1 | BK23: 214.2 | BL23: 0 | BM23: 226.7 | BN23: 0 | BO23: 226.7 | BP23: NULL | BQ23: NULL | BR23: -0.72 | BS23: 0.25 | BT23: 105.09 | BU23: 126.67 | BV23: 0 | BW23: 692.8 | BX23: 0.1 | BY23: 498.2 | BZ23: 14.1 | CA23: NULL | CB23: 11.9 | CC23: NULL | CD23: 0.9 | CE23: -0.3 | CF23: NULL | CG23: NULL | CH23: 5.9 | CI23: 41.4 | CJ23: -27.2 | CK23: 7.2 | CL23: NULL | CM23: -30.8 | CN23: -24.3 | CO23: -26.4 | CP23: NULL | CQ23: NULL | CR23: 9.67 | CS23: 8.28 | CT23: 10.16 | CU23: 10.13 | CV23: 10.47 | CW23: 10.46 | CX23: 10.61 | CY23: NULL | CZ23: 10.54 | DA23: 10.7 | DB23: 10.56 | DC23: 10.61 | DD23: 10.34 | DE23: 10.44 | DF23: 9.92 | DG23: 10.14 | DH23: NULL | DI23: NULL | DJ23: 2568 | DK23: 2130 | DL23: 1744 | DM23: 2511 | DN23: 1752 | DO23: 3296 | DP23: 2240 | DQ23: 3296 | DR23: 1713 | DS23: 3294 | DT23: 1634 | DU23: 3296 | DV23: 1712 | DW23: 3296 | DX23: 1699 | DY23: 1292 | DZ23: 1349 | EA23: 3296 | EB23: 1015 | EC23: 692 | ED23: 13.36 | EE23: -20.15 | EF23: -0.04 | EG23: 20 | EH23: 17.3 | EI23: -0.06 | EJ23: 28.53 | EK23: 16 | EL23: NULL | EM23: 8.9 | EN23: 9.1 | EO23: 12.3 | EP23: 13.2 | EQ23: 8.5 | ER23: 9.3 | ES23: 40.31 | ET23: 4938 | EU23: 4937 | EV23: NULL | EW23: 12.5 | EX23: 0 | EY23: 3000 | EZ23: NULL | FA23: 1.338 | FB23: NULL | FC23: 1183 | FD23: 1 | FE23: 0 | FF23: NULL | FG23: NULL | FH23: NULL | FI23: NULL | FJ23: NULL | FK23: NULL | FL23: NULL | FM23: 0 | FN23: 0 | FO23: 238 | FP23: 0 | FQ23: 0 | FR23: 1.13 | FS23: 0.98 | FT23: 1.06 | FU23: 0.94 | FV23: NULL | FW23: NULL | FX23: 9.36 | FY23: 0 | FZ23: 0 | GA23: 10.91 | GB23: -19.98 | GC23: 40.02 | GD23: 8.75 | GE23: NULL | GF23: NULL | GG23: NULL | GH23: 6.25 | GI23: 10.43 | GJ23: -0.0496
A24: 2023-07-30T21:00:00 | B24: 9.8 | C24: 9.93 | D24: 18.73 | E24: 18.06 | F24: 16.93 | G24: 19.16 | H24: 18.75 | I24: 18.73 | J24: 19.36 | K24: 19.53 | L24: 19.2 | M24: 18.62 | N24: 18.88 | O24: 18.11 | P24: 17.81 | Q24: 11.4 | R24: 0 | S24: 9.1 | T24: 84.8 | U24: 0.1636 | V24: 0.1711 | W24: 0.157 | X24: 0.168 | Y24: 0.2274 | Z24: 0.0578 | AA24: 0.2567 | AB24: 0.378 | AC24: 0.3883 | AD24: 0.3955 | AE24: 835.5 | AF24: 873.15 | AG24: 873.15 | AH24: 0 | AI24: 347 | AJ24: 0 | AK24: 0 | AL24: 0.2 | AM24: 0 | AN24: 0 | AO24: 0 | AP24: 0 | AQ24: 0.1 | AR24: 1.3 | AS24: 0.7 | AT24: 1 | AU24: NULL | AV24: NULL | AW24: NULL | AX24: 0 | AY24: 0 | AZ24: 0 | BA24: 220 | BB24: 0 | BC24: 216.2 | BD24: 0 | BE24: 219.4 | BF24: 0 | BG24: 207.3 | BH24: 0 | BI24: 211.1 | BJ24: 0 | BK24: 214.2 | BL24: 0 | BM24: 226.7 | BN24: 0 | BO24: 226.7 | BP24: NULL | BQ24: NULL | BR24: -0.97 | BS24: 0.32 | BT24: 103.87 | BU24: 125.38 | BV24: 0.1 | BW24: 692.9 | BX24: 0 | BY24: 498.2 | BZ24: 14.5 | CA24: NULL | CB24: 403 | CC24: NULL | CD24: 0.8 | CE24: -0.3 | CF24: NULL | CG24: NULL | CH24: 5.2 | CI24: 41.2 | CJ24: -27.2 | CK24: 6.6 | CL24: NULL | CM24: -33.8 | CN24: -25.6 | CO24: -29.8 | CP24: NULL | CQ24: NULL | CR24: 8.61 | CS24: 7.91 | CT24: 9.49 | CU24: 9.53 | CV24: 9.8 | CW24: 9.81 | CX24: 9.9 | CY24: NULL | CZ24: 9.83 | DA24: 9.98 | DB24: 9.86 | DC24: 9.89 | DD24: 9.65 | DE24: 9.75 | DF24: 9.29 | DG24: 9.44 | DH24: NULL | DI24: NULL | DJ24: 2569 | DK24: 2122 | DL24: 1734 | DM24: 2469 | DN24: 1755 | DO24: 3286 | DP24: 2240 | DQ24: 3293 | DR24: 1716 | DS24: 3293 | DT24: 1635 | DU24: 3296 | DV24: 1698 | DW24: 3296 | DX24: 1710 | DY24: 1311 | DZ24: 1397 | EA24: 3298 | EB24: 1017 | EC24: 698 | ED24: 11.15 | EE24: -20.15 | EF24: -0.04 | EG24: 19.99 | EH24: 17.1 | EI24: -0.06 | EJ24: 28.54 | EK24: 15 | EL24: NULL | EM24: 8.1 | EN24: 8.1 | EO24: 10.9 | EP24: 11.6 | EQ24: 7.3 | ER24: 8.1 | ES24: 39.54 | ET24: 4931 | EU24: 4932 | EV24: NULL | EW24: 12.6 | EX24: 0 | EY24: 3000 | EZ24: NULL | FA24: 1.179 | FB24: NULL | FC24: 1182 | FD24: 1 | FE24: 0 | FF24: NULL | FG24: NULL | FH24: NULL | FI24: NULL | FJ24: NULL | FK24: NULL | FL24: NULL | FM24: 0 | FN24: 0 | FO24: 0 | FP24: 0 | FQ24: 0 | FR24: 0.21 | FS24: 0.21 | FT24: 0.36 | FU24: 0.36 | FV24: NULL | FW24: NULL | FX24: 8.56 | FY24: 0 | FZ24: 0 | GA24: 10.12 | GB24: -19.98 | GC24: 40.03 | GD24: 7.95 | GE24: NULL | GF24: NULL | GG24: NULL | GH24: 5.71 | GI24: 9.35 | GJ24: -0.042
A25: 2023-07-30T22:00:00 | B25: 9.02 | C25: 9.19 | D25: 18.47 | E25: 18 | F25: 16.95 | G25: 18.55 | H25: 18.22 | I25: 18.14 | J25: 18.91 | K25: 19.19 | L25: 18.89 | M25: 18.55 | N25: 18.78 | O25: 18.16 | P25: 17.84 | Q25: 10.7 | R25: 0 | S25: 8.5 | T25: 87.8 | U25: 0.1633 | V25: 0.171 | W25: 0.1567 | X25: 0.1677 | Y25: 0.2265 | Z25: 0.0627 | AA25: 0.2567 | AB25: 0.3778 | AC25: 0.3884 | AD25: 0.3956 | AE25: 836.4 | AF25: 873.26 | AG25: 873.28 | AH25: 0 | AI25: 352 | AJ25: 0 | AK25: 0 | AL25: 0.4 | AM25: 0 | AN25: 0 | AO25: 0 | AP25: 0 | AQ25: 0.1 | AR25: 1.1 | AS25: 0.7 | AT25: 1 | AU25: NULL | AV25: NULL | AW25: NULL | AX25: 0 | AY25: 0 | AZ25: 0 | BA25: 220 | BB25: 0 | BC25: 216.2 | BD25: 0 | BE25: 219.4 | BF25: 0.1 | BG25: 207.4 | BH25: 0.1 | BI25: 211.2 | BJ25: 0 | BK25: 214.2 | BL25: -0.1 | BM25: 226.6 | BN25: -0.1 | BO25: 226.6 | BP25: NULL | BQ25: NULL | BR25: -0.97 | BS25: 0.31 | BT25: 102.65 | BU25: 124.77 | BV25: 0.1 | BW25: 693 | BX25: 0 | BY25: 498.2 | BZ25: 14.8 | CA25: NULL | CB25: NULL | CC25: NULL | CD25: 1.7 | CE25: NULL | CF25: NULL | CG25: NULL | CH25: 5 | CI25: 40.8 | CJ25: -27.2 | CK25: 6.2 | CL25: NULL | CM25: -34.6 | CN25: -26 | CO25: -30.9 | CP25: NULL | CQ25: NULL | CR25: 8.1 | CS25: 7.54 | CT25: 8.84 | CU25: 8.87 | CV25: 9.15 | CW25: 9.14 | CX25: 9.2 | CY25: NULL | CZ25: 9.15 | DA25: 9.33 | DB25: 9.15 | DC25: 9.24 | DD25: 8.93 | DE25: 9.11 | DF25: 8.5 | DG25: 8.79 | DH25: NULL | DI25: NULL | DJ25: 2570 | DK25: 2116 | DL25: 1724 | DM25: 2444 | DN25: 1764 | DO25: 3296 | DP25: 2242 | DQ25: 3296 | DR25: 1723 | DS25: 3295 | DT25: 1631 | DU25: 3296 | DV25: 1687 | DW25: 3296 | DX25: 1725 | DY25: 1340 | DZ25: 1477 | EA25: 3297 | EB25: 1016 | EC25: 707 | ED25: 9.67 | EE25: -20.15 | EF25: -0.04 | EG25: 20 | EH25: 16.9 | EI25: -0.04 | EJ25: 28.54 | EK25: NULL | EL25: NULL | EM25: 7.4 | EN25: 7.4 | EO25: 10 | EP25: 10.6 | EQ25: 6.8 | ER25: 7.6 | ES25: 39.32 | ET25: 4947 | EU25: 4946 | EV25: NULL | EW25: 12.6 | EX25: 0 | EY25: 3000 | EZ25: NULL | FA25: NULL | FB25: NULL | FC25: 1180 | FD25: 1 | FE25: NULL | FF25: NULL | FG25: NULL | FH25: NULL | FI25: NULL | FJ25: NULL | FK25: NULL | FL25: NULL | FM25: 0 | FN25: 0 | FO25: 269 | FP25: 0 | FQ25: 0 | FR25: 0.2 | FS25: 0.2 | FT25: 0.36 | FU25: 0.36 | FV25: NULL | FW25: NULL | FX25: 8.09 | FY25: 0 | FZ25: 0.02 | GA25: 9.34 | GB25: -19.98 | GC25: 40.02 | GD25: 7.47 | GE25: NULL | GF25: NULL | GG25: NULL | GH25: 5.41 | GI25: 8.74 | GJ25: -0.0381
A26: 2023-07-30T23:00:00 | B26: 9.05 | C26: 9 | D26: 18.21 | E26: 17.92 | F26: 16.97 | G26: 18.03 | H26: 17.76 | I26: 17.6 | J26: 18.57 | K26: 18.81 | L26: 18.62 | M26: 18.47 | N26: 18.68 | O26: 18.14 | P26: 17.86 | Q26: 10.5 | R26: 0 | S26: 8.2 | T26: 91.1 | U26: 0.1629 | V26: 0.1707 | W26: 0.1563 | X26: 0.1676 | Y26: 0.2259 | Z26: 0.066 | AA26: 0.2565 | AB26: 0.3776 | AC26: 0.3884 | AD26: 0.3955 | AE26: 837.2 | AF26: 873.03 | AG26: 873.04 | AH26: 0 | AI26: 355 | AJ26: 0 | AK26: 0 | AL26: 0.8 | AM26: 0 | AN26: 0 | AO26: 0 | AP26: 0 | AQ26: 0 | AR26: 2 | AS26: 0.8 | AT26: 1 | AU26: NULL | AV26: NULL | AW26: NULL | AX26: 0 | AY26: 0 | AZ26: 0 | BA26: 220 | BB26: 0 | BC26: 216.2 | BD26: 0 | BE26: 219.4 | BF26: 0 | BG26: 207.4 | BH26: 0 | BI26: 211.2 | BJ26: 0 | BK26: 214.2 | BL26: 0 | BM26: 226.6 | BN26: 0 | BO26: 226.6 | BP26: NULL | BQ26: NULL | BR26: -0.9 | BS26: 0.32 | BT26: 102.3 | BU26: 123.84 | BV26: 0 | BW26: 693 | BX26: 0.1 | BY26: 498.3 | BZ26: 14.6 | CA26: NULL | CB26: 5.4 | CC26: NULL | CD26: 1.6 | CE26: -0.2 | CF26: NULL | CG26: NULL | CH26: 4.8 | CI26: 41.3 | CJ26: -27.2 | CK26: 6.2 | CL26: NULL | CM26: -35.6 | CN26: -26.8 | CO26: -31.9 | CP26: NULL | CQ26: NULL | CR26: 8.09 | CS26: 7.35 | CT26: 8.7 | CU26: 8.74 | CV26: 8.94 | CW26: 8.94 | CX26: 9.01 | CY26: NULL | CZ26: 8.94 | DA26: 9.06 | DB26: 8.94 | DC26: 8.99 | DD26: 8.76 | DE26: 8.87 | DF26: 8.39 | DG26: 8.6 | DH26: NULL | DI26: NULL | DJ26: 2581 | DK26: 2127 | DL26: 1732 | DM26: 2439 | DN26: 1803 | DO26: 3299 | DP26: 2263 | DQ26: 3300 | DR26: 1757 | DS26: 3300 | DT26: 1646 | DU26: 3301 | DV26: 1696 | DW26: 3302 | DX26: 1763 | DY26: 1393 | DZ26: 1646 | EA26: 3304 | EB26: 1033 | EC26: 722 | ED26: 8.7 | EE26: -20.15 | EF26: -0.04 | EG26: 20 | EH26: 16.7 | EI26: -0.04 | EJ26: 28.54 | EK26: 14 | EL26: NULL | EM26: 7.3 | EN26: 7.2 | EO26: 9.5 | EP26: 10 | EQ26: 6.6 | ER26: 7.3 | ES26: 39.18 | ET26: 4873 | EU26: 4871 | EV26: NULL | EW26: 12.5 | EX26: 0 | EY26: 3000 | EZ26: NULL | FA26: 0.957 | FB26: NULL | FC26: 1178 | FD26: 1 | FE26: 0 | FF26: NULL | FG26: NULL | FH26: NULL | FI26: NULL | FJ26: NULL | FK26: NULL | FL26: NULL | FM26: 0 | FN26: 0 | FO26: 205 | FP26: 0 | FQ26: 0 | FR26: 0.19 | FS26: 0.18 | FT26: 0.36 | FU26: 0.36 | FV26: NULL | FW26: NULL | FX26: 7.72 | FY26: 0 | FZ26: -0.02 | GA26: 9.24 | GB26: -19.98 | GC26: 40.02 | GD26: 7.15 | GE26: NULL | GF26: NULL | GG26: NULL | GH26: 5.37 | GI26: 8.35 | GJ26: -0.0325
A27: 2023-07-31 | B27: 8.71 | C27: 8.81 | D27: 17.97 | E27: 17.82 | F27: 16.99 | G27: 17.65 | H27: 17.35 | I27: 17.2 | J27: 18.23 | K27: 18.47 | L27: 18.36 | M27: 18.32 | N27: 18.51 | O27: 18.15 | P27: 17.85 | Q27: 10.2 | R27: 0 | S27: 8.2 | T27: 93.4 | U27: 0.1629 | V27: 0.1704 | W27: 0.1562 | X27: 0.1674 | Y27: 0.2252 | Z27: 0.0674 | AA27: 0.2563 | AB27: 0.3776 | AC27: 0.3884 | AD27: 0.3954 | AE27: 837.8 | AF27: 872.78 | AG27: 872.8 | AH27: 0 | AI27: 1 | AJ27: 20 | AK27: 0.1 | AL27: 1.2 | AM27: 0 | AN27: 0 | AO27: 0 | AP27: 0 | AQ27: 0.5 | AR27: 1.9 | AS27: 0.7 | AT27: 1 | AU27: NULL | AV27: NULL | AW27: NULL | AX27: 0 | AY27: 0 | AZ27: 0.1 | BA27: 220.1 | BB27: 0 | BC27: 216.2 | BD27: 0.1 | BE27: 219.5 | BF27: 0 | BG27: 207.4 | BH27: 0 | BI27: 211.2 | BJ27: 0 | BK27: 214.2 | BL27: 0 | BM27: 226.6 | BN27: 0 | BO27: 226.6 | BP27: NULL | BQ27: NULL | BR27: -0.83 | BS27: 0.36 | BT27: 102.8 | BU27: 124.41 | BV27: 0.1 | BW27: 693.1 | BX27: 0 | BY27: 498.3 | BZ27: 15.4 | CA27: NULL | CB27: 4.9 | CC27: NULL | CD27: 2.7 | CE27: -0.1 | CF27: NULL | CG27: NULL | CH27: 5.5 | CI27: 41.1 | CJ27: -27.2 | CK27: 6.6 | CL27: NULL | CM27: -34.4 | CN27: -24.3 | CO27: -30.9 | CP27: NULL | CQ27: NULL | CR27: 7.88 | CS27: 7.58 | CT27: 8.64 | CU27: 8.68 | CV27: 8.78 | CW27: 8.78 | CX27: 8.8 | CY27: NULL | CZ27: 8.73 | DA27: 8.87 | DB27: 8.74 | DC27: 8.79 | DD27: 8.59 | DE27: 8.72 | DF27: 8.36 | DG27: 8.47 | DH27: NULL | DI27: NULL | DJ27: 2582 | DK27: 2119 | DL27: 1726 | DM27: 2410 | DN27: 1810 | DO27: 3265 | DP27: 2253 | DQ27: 3269 | DR27: 1767 | DS27: 3267 | DT27: 1638 | DU27: 3269 | DV27: 1685 | DW27: 3264 | DX27: 1775 | DY27: 1414 | DZ27: 1799 | EA27: 3261 | EB27: 1031 | EC27: 718 | ED27: 8.1 | EE27: -20.15 | EF27: -0.04 | EG27: 20 | EH27: 16.5 | EI27: -0.02 | EJ27: 28.57 | EK27: 14 | EL27: NULL | EM27: 7 | EN27: 7 | EO27: 9.4 | EP27: 9.6 | EQ27: 6.8 | ER27: 7.2 | ES27: 39.06 | ET27: 4878 | EU27: 4875 | EV27: NULL | EW27: 12.5 | EX27: 0 | EY27: 3000 | EZ27: NULL | FA27: 0.876 | FB27: NULL | FC27: 1175 | FD27: 1 | FE27: 0 | FF27: NULL | FG27: NULL | FH27: NULL | FI27: NULL | FJ27: NULL | FK27: NULL | FL27: NULL | FM27: 0 | FN27: 0 | FO27: 211 | FP27: 0 | FQ27: 0.7 | FR27: 0.18 | FS27: 0.18 | FT27: 0.36 | FU27: 0.36 | FV27: NULL | FW27: NULL | FX27: 7.84 | FY27: 0 | FZ27: -0.02 | GA27: 8.93 | GB27: -19.98 | GC27: 40.02 | GD27: 7.3 | GE27: NULL | GF27: NULL | GG27: NULL | GH27: 6.32 | GI27: 8.15 | GJ27: -0.0201
A28: 2023-07-31T01:00:00 | B28: 8.21 | C28: 8.67 | D28: 17.74 | E28: 17.71 | F28: 17 | G28: 17.29 | H28: 17.01 | I28: 16.86 | J28: 17.91 | K28: 18.19 | L28: 18.13 | M28: 18.19 | N28: 18.43 | O28: 18.13 | P28: 17.8 | Q28: 10 | R28: 0 | S28: 8.1 | T28: 92.9 | U28: 0.1627 | V28: 0.1703 | W28: 0.1558 | X28: 0.1673 | Y28: 0.2245 | Z28: 0.0689 | AA28: 0.2563 | AB28: 0.3772 | AC28: 0.3884 | AD28: 0.3953 | AE28: 837.3 | AF28: 872.16 | AG28: 872.18 | AH28: 0 | AI28: 348 | AJ28: 20 | AK28: 0.3 | AL28: 2.6 | AM28: 0 | AN28: 0 | AO28: 0 | AP28: 0 | AQ28: 0.8 | AR28: 3.4 | AS28: 0.6 | AT28: 1 | AU28: NULL | AV28: NULL | AW28: NULL | AX28: 0 | AY28: 0 | AZ28: 0 | BA28: 220.1 | BB28: 0 | BC28: 216.2 | BD28: 0 | BE28: 219.5 | BF28: 0 | BG28: 207.4 | BH28: 0 | BI28: 211.2 | BJ28: 0 | BK28: 214.2 | BL28: 0 | BM28: 226.6 | BN28: 0 | BO28: 226.6 | BP28: NULL | BQ28: NULL | BR28: -0.82 | BS28: 0.29 | BT28: 103.83 | BU28: 123.67 | BV28: 0 | BW28: 693.1 | BX28: 0 | BY28: 498.3 | BZ28: 14.6 | CA28: NULL | CB28: 5.9 | CC28: NULL | CD28: 2.5 | CE28: NULL | CF28: NULL | CG28: NULL | CH28: 4.3 | CI28: 39.9 | CJ28: -27.2 | CK28: 5.6 | CL28: NULL | CM28: -34.2 | CN28: -25 | CO28: -31 | CP28: NULL | CQ28: NULL | CR28: 7.58 | CS28: 7.14 | CT28: 8.34 | CU28: 8.39 | CV28: 8.61 | CW28: 8.63 | CX28: 8.68 | CY28: NULL | CZ28: 8.6 | DA28: 8.77 | DB28: 8.63 | DC28: 8.69 | DD28: 8.43 | DE28: 8.56 | DF28: 8.11 | DG28: 8.29 | DH28: NULL | DI28: NULL | DJ28: 2600 | DK28: 2143 | DL28: 1756 | DM28: 2443 | DN28: 1847 | DO28: 3289 | DP28: 2287 | DQ28: 3292 | DR28: 1797 | DS28: 3288 | DT28: 1674 | DU28: 3291 | DV28: 1712 | DW28: 3288 | DX28: 1804 | DY28: 1432 | DZ28: 1812 | EA28: 3293 | EB28: 1062 | EC28: 740 | ED28: 7.67 | EE28: -20.15 | EF28: -0.04 | EG28: 19.99 | EH28: 16.3 | EI28: -0.04 | EJ28: 28.55 | EK28: NULL | EL28: NULL | EM28: 6.4 | EN28: 6.3 | EO28: 9.2 | EP28: 9.3 | EQ28: 6.1 | ER28: 7.1 | ES28: 39.03 | ET28: 4703 | EU28: 4703 | EV28: NULL | EW28: 12.5 | EX28: 0 | EY28: 3000 | EZ28: NULL | FA28: NULL | FB28: NULL | FC28: 1172 | FD28: 1 | FE28: NULL | FF28: NULL | FG28: NULL | FH28: NULL | FI28: NULL | FJ28: NULL | FK28: NULL | FL28: NULL | FM28: 0 | FN28: 0 | FO28: 231 | FP28: 0 | FQ28: 0.6 | FR28: 0.18 | FS28: 0.17 | FT28: 0.36 | FU28: 0.36 | FV28: NULL | FW28: NULL | FX28: 7.41 | FY28: 0 | FZ28: 0.04 | GA28: 8.79 | GB28: -19.98 | GC28: 40.02 | GD28: 6.93 | GE28: NULL | GF28: NULL | GG28: NULL | GH28: 4.66 | GI28: 8.09 | GJ28: -0.0384
A29: 2023-07-31T02:00:00 | B29: 8.32 | C29: 8.98 | D29: 17.53 | E29: 17.59 | F29: 17.01 | G29: 16.97 | H29: 16.67 | I29: 16.47 | J29: 17.61 | K29: 17.94 | L29: 17.91 | M29: 18.06 | N29: 18.26 | O29: 18.09 | P29: 17.78 | Q29: 10.1 | R29: 0 | S29: 8 | T29: 93.8 | U29: 0.1626 | V29: 0.1702 | W29: 0.1557 | X29: 0.1671 | Y29: 0.2238 | Z29: 0.0712 | AA29: 0.2561 | AB29: 0.377 | AC29: 0.3884 | AD29: 0.3953 | AE29: 837.3 | AF29: 871.86 | AG29: 871.86 | AH29: 0 | AI29: 28 | AJ29: 20 | AK29: 0.1 | AL29: 1.2 | AM29: 0 | AN29: 0 | AO29: 0 | AP29: 0 | AQ29: 0.6 | AR29: 2.3 | AS29: 0.5 | AT29: 0.8 | AU29: NULL | AV29: NULL | AW29: NULL | AX29: 0 | AY29: 0 | AZ29: 0 | BA29: 220.1 | BB29: 0 | BC29: 216.2 | BD29: 0 | BE29: 219.5 | BF29: 0 | BG29: 207.4 | BH29: 0 | BI29: 211.2 | BJ29: 0 | BK29: 214.2 | BL29: 0 | BM29: 226.6 | BN29: 0 | BO29: 226.6 | BP29: NULL | BQ29: NULL | BR29: -0.78 | BS29: 0.32 | BT29: 107.09 | BU29: 122.72 | BV29: 0.1 | BW29: 693.2 | BX29: 0.1 | BY29: 498.4 | BZ29: 14.2 | CA29: NULL | CB29: NULL | CC29: NULL | CD29: 3.1 | CE29: 0 | CF29: NULL | CG29: NULL | CH29: 4.1 | CI29: 41.8 | CJ29: -27.2 | CK29: 5.4 | CL29: NULL | CM29: -35.1 | CN29: -25.9 | CO29: -31.6 | CP29: NULL | CQ29: NULL | CR29: 7.75 | CS29: 7.26 | CT29: 8.37 | CU29: 8.39 | CV29: 8.69 | CW29: 8.68 | CX29: 8.8 | CY29: NULL | CZ29: 8.73 | DA29: 8.86 | DB29: 8.73 | DC29: 8.79 | DD29: 8.55 | DE29: 8.69 | DF29: 8.25 | DG29: 8.47 | DH29: NULL | DI29: NULL | DJ29: 2589 | DK29: 2115 | DL29: 1721 | DM29: 2415 | DN29: 1799 | DO29: 3298 | DP29: 2280 | DQ29: 3304 | DR29: 1758 | DS29: 3305 | DT29: 1643 | DU29: 3306 | DV29: 1676 | DW29: 3304 | DX29: 1760 | DY29: 1378 | DZ29: 1695 | EA29: 3305 | EB29: 1025 | EC29: 713 | ED29: 7.35 | EE29: -20.14 | EF29: -0.04 | EG29: 20 | EH29: 16.2 | EI29: -0.02 | EJ29: 28.55 | EK29: 14 | EL29: NULL | EM29: 6.4 | EN29: 6.4 | EO29: 9.1 | EP29: 9.1 | EQ29: 6.1 | ER29: 6.9 | ES29: 39.18 | ET29: 4900 | EU29: 4903 | EV29: NULL | EW29: 12.5 | EX29: 0 | EY29: 3000 | EZ29: NULL | FA29: 0.878 | FB29: NULL | FC29: 1170 | FD29: 1 | FE29: 0 | FF29: NULL | FG29: NULL | FH29: NULL | FI29: NULL | FJ29: NULL | FK29: NULL | FL29: NULL | FM29: 0 | FN29: 0 | FO29: 182 | FP29: 0 | FQ29: 0.6 | FR29: 0.18 | FS29: 0.18 | FT29: 0.36 | FU29: 0.36 | FV29: NULL | FW29: NULL | FX29: 7.4 | FY29: 0 | FZ29: 0 | GA29: 9.06 | GB29: -19.98 | GC29: 40.02 | GD29: 6.92 | GE29: NULL | GF29: NULL | GG29: NULL | GH29: 4.56 | GI29: 7.91 | GJ29: -0.0367
A30: 2023-07-31T03:00:00 | B30: 8.69 | C30: 9.26 | D30: 17.32 | E30: 17.47 | F30: 17.02 | G30: 16.58 | H30: 16.41 | I30: 16.19 | J30: 17.38 | K30: 17.66 | L30: 17.63 | M30: 17.94 | N30: 18.11 | O30: 18.04 | P30: 17.74 | Q30: 10.6 | R30: 0 | S30: 8 | T30: 91.8 | U30: 0.1624 | V30: 0.1699 | W30: 0.1555 | X30: 0.167 | Y30: 0.223 | Z30: 0.0735 | AA30: 0.256 | AB30: 0.3768 | AC30: 0.3883 | AD30: 0.3953 | AE30: 836.4 | AF30: 871.59 | AG30: 871.61 | AH30: 0 | AI30: 28 | AJ30: 10 | AK30: 0.2 | AL30: 1.4 | AM30: 0 | AN30: 0 | AO30: 0 | AP30: 0 | AQ30: 0.6 | AR30: 2.1 | AS30: 0.5 | AT30: 0.9 | AU30: NULL | AV30: NULL | AW30: NULL | AX30: 0 | AY30: 0 | AZ30: 0 | BA30: 220.1 | BB30: 0 | BC30: 216.2 | BD30: 0 | BE30: 219.5 | BF30: 0 | BG30: 207.4 | BH30: 0 | BI30: 211.2 | BJ30: 0 | BK30: 214.2 | BL30: 0 | BM30: 226.6 | BN30: 0 | BO30: 226.6 | BP30: NULL | BQ30: NULL | BR30: -0.81 | BS30: 0.32 | BT30: 107.45 | BU30: 122.3 | BV30: 0.1 | BW30: 693.3 | BX30: 0 | BY30: 498.4 | BZ30: 13.8 | CA30: NULL | CB30: 10.9 | CC30: NULL | CD30: 3.5 | CE30: 0 | CF30: NULL | CG30: NULL | CH30: 5.7 | CI30: 42.1 | CJ30: -27.2 | CK30: 6.4 | CL30: NULL | CM30: -34.8 | CN30: -26 | CO30: -31.8 | CP30: NULL | CQ30: NULL | CR30: 8.63 | CS30: 7.75 | CT30: 9.16 | CU30: 9.22 | CV30: 9.3 | CW30: 9.33 | CX30: 9.38 | CY30: NULL | CZ30: 9.34 | DA30: 9.45 | DB30: 9.31 | DC30: 9.42 | DD30: 9.19 | DE30: 9.39 | DF30: 9.02 | DG30: 9.24 | DH30: NULL | DI30: NULL | DJ30: 2600 | DK30: 2122 | DL30: 1729 | DM30: 2422 | DN30: 1785 | DO30: 3284 | DP30: 2287 | DQ30: 3286 | DR30: 1744 | DS30: 3285 | DT30: 1644 | DU30: 3287 | DV30: 1668 | DW30: 3286 | DX30: 1740 | DY30: 1343 | DZ30: 1517 | EA30: 3287 | EB30: 1028 | EC30: 714 | ED30: 7.13 | EE30: -20.15 | EF30: -0.04 | EG30: 19.99 | EH30: 16 | EI30: -0.02 | EJ30: 28.53 | EK30: 14 | EL30: NULL | EM30: 6.7 | EN30: 6.6 | EO30: 9.2 | EP30: 9.1 | EQ30: 6.6 | ER30: 6.9 | ES30: 39.3 | ET30: 4846 | EU30: 4844 | EV30: NULL | EW30: 12.5 | EX30: 0 | EY30: 3000 | EZ30: NULL | FA30: 1.052 | FB30: NULL | FC30: 1167 | FD30: 1 | FE30: 0 | FF30: NULL | FG30: NULL | FH30: NULL | FI30: NULL | FJ30: NULL | FK30: NULL | FL30: NULL | FM30: 0 | FN30: 0 | FO30: 273 | FP30: 0 | FQ30: 0.8 | FR30: 0.17 | FS30: 0.16 | FT30: 0.36 | FU30: 0.36 | FV30: NULL | FW30: NULL | FX30: 7.8 | FY30: 0 | FZ30: 0 | GA30: 9.57 | GB30: -19.98 | GC30: 40.02 | GD30: 7.21 | GE30: NULL | GF30: NULL | GG30: NULL | GH30: 5.91 | GI30: 7.92 | GJ30: -0.0212
A31: 2023-07-31T04:00:00 | B31: 8.52 | C31: 8.8 | D31: 17.12 | E31: 17.35 | F31: 17.02 | G31: 16.32 | H31: 16.13 | I31: 15.94 | J31: 17.1 | K31: 17.46 | L31: 17.46 | M31: 17.74 | N31: 17.98 | O31: 18 | P31: 17.72 | Q31: 10.1 | R31: 0 | S31: 8 | T31: 91.6 | U31: 0.1622 | V31: 0.1699 | W31: 0.1553 | X31: 0.1669 | Y31: 0.2224 | Z31: 0.0742 | AA31: 0.256 | AB31: 0.3766 | AC31: 0.3883 | AD31: 0.3952 | AE31: 836.2 | AF31: 871.66 | AG31: 871.66 | AH31: 0 | AI31: 342 | AJ31: 10 | AK31: 0.2 | AL31: 1.2 | AM31: 0 | AN31: 0 | AO31: 0 | AP31: 0 | AQ31: 0.6 | AR31: 2.2 | AS31: 0.5 | AT31: 0.9 | AU31: NULL | AV31: NULL | AW31: NULL | AX31: 0 | AY31: 0 | AZ31: 0 | BA31: 220.1 | BB31: 0.1 | BC31: 216.3 | BD31: 0 | BE31: 219.5 | BF31: 0 | BG31: 207.4 | BH31: 0 | BI31: 211.2 | BJ31: 0 | BK31: 214.2 | BL31: 0 | BM31: 226.6 | BN31: 0 | BO31: 226.6 | BP31: NULL | BQ31: NULL | BR31: -0.78 | BS31: 0.33 | BT31: 106.17 | BU31: 123.02 | BV31: 0 | BW31: 693.3 | BX31: 0 | BY31: 498.4 | BZ31: 13.5 | CA31: NULL | CB31: 11.7 | CC31: NULL | CD31: 5 | CE31: NULL | CF31: NULL | CG31: NULL | CH31: 4.9 | CI31: 41.8 | CJ31: -27.2 | CK31: 6.1 | CL31: NULL | CM31: -33.7 | CN31: -24.8 | CO31: -30.5 | CP31: NULL | CQ31: NULL | CR31: 7.73 | CS31: 7.21 | CT31: 8.4 | CU31: 8.45 | CV31: 8.68 | CW31: 8.66 | CX31: 8.74 | CY31: NULL | CZ31: 8.69 | DA31: 8.83 | DB31: 8.69 | DC31: 8.74 | DD31: 8.52 | DE31: 8.65 | DF31: 8.28 | DG31: 8.43 | DH31: NULL | DI31: NULL | DJ31: 2588 | DK31: 2104 | DL31: 1712 | DM31: 2411 | DN31: 1775 | DO31: 3295 | DP31: 2271 | DQ31: 3296 | DR31: 1734 | DS31: 3294 | DT31: 1631 | DU31: 3296 | DV31: 1652 | DW31: 3296 | DX31: 1734 | DY31: 1350 | DZ31: 1543 | EA31: 3298 | EB31: 1014 | EC31: 702 | ED31: 7.08 | EE31: -20.15 | EF31: -0.04 | EG31: 19.99 | EH31: 15.8 | EI31: 0 | EJ31: 28.54 | EK31: NULL | EL31: NULL | EM31: 6.5 | EN31: 6.5 | EO31: 9.2 | EP31: 9.1 | EQ31: 6.1 | ER31: 6.9 | ES31: 39.37 | ET31: 4941 | EU31: 4939 | EV31: NULL | EW31: 12.5 | EX31: 0 | EY31: 3000 | EZ31: NULL | FA31: NULL | FB31: NULL | FC31: 1165 | FD31: 1 | FE31: NULL | FF31: NULL | FG31: NULL | FH31: NULL | FI31: NULL | FJ31: NULL | FK31: NULL | FL31: NULL | FM31: 0 | FN31: 0 | FO31: 236 | FP31: 0 | FQ31: 0.5 | FR31: 0.17 | FS31: 0.18 | FT31: 0.36 | FU31: 0.36 | FV31: NULL | FW31: NULL | FX31: 7.58 | FY31: 0 | FZ31: 0 | GA31: 8.95 | GB31: -19.98 | GC31: 40.02 | GD31: 7.04 | GE31: NULL | GF31: NULL | GG31: NULL | GH31: 5.6 | GI31: 7.95 | GJ31: -0.0258
A32: 2023-07-31T05:00:00 | B32: 8.65 | C32: 8.85 | D32: 16.94 | E32: 17.22 | F32: 17.02 | G32: 16.13 | H32: 15.92 | I32: 15.77 | J32: 16.91 | K32: 17.23 | L32: 17.27 | M32: 17.61 | N32: 17.83 | O32: 17.94 | P32: 17.64 | Q32: 10.5 | R32: 0 | S32: 8.1 | T32: 91.3 | U32: 0.1622 | V32: 0.1697 | W32: 0.1553 | X32: 0.1669 | Y32: 0.2219 | Z32: 0.0744 | AA32: 0.2559 | AB32: 0.3764 | AC32: 0.3882 | AD32: 0.3951 | AE32: 835.9 | AF32: 871.66 | AG32: 871.68 | AH32: 0 | AI32: 344 | AJ32: 20 | AK32: 0.1 | AL32: 1.6 | AM32: 0 | AN32: 0 | AO32: 0 | AP32: 0 | AQ32: 0.4 | AR32: 2.6 | AS32: 0.6 | AT32: 1 | AU32: NULL | AV32: NULL | AW32: NULL | AX32: 0 | AY32: 0 | AZ32: -0.1 | BA32: 220 | BB32: 0 | BC32: 216.3 | BD32: 0 | BE32: 219.5 | BF32: 0 | BG32: 207.4 | BH32: 0 | BI32: 211.2 | BJ32: 0 | BK32: 214.2 | BL32: 0 | BM32: 226.6 | BN32: 0 | BO32: 226.6 | BP32: NULL | BQ32: NULL | BR32: 1.27 | BS32: 0.7 | BT32: 106.34 | BU32: 123.76 | BV32: 0.1 | BW32: 693.4 | BX32: 0.1 | BY32: 498.5 | BZ32: 14 | CA32: NULL | CB32: 11.4 | CC32: NULL | CD32: 4.8 | CE32: -0.1 | CF32: NULL | CG32: NULL | CH32: 6 | CI32: 40.7 | CJ32: -27.2 | CK32: 6.7 | CL32: NULL | CM32: -31.8 | CN32: -23.3 | CO32: -28.8 | CP32: NULL | CQ32: NULL | CR32: 8.13 | CS32: 7.39 | CT32: 8.73 | CU32: 8.74 | CV32: 8.83 | CW32: 8.85 | CX32: 8.91 | CY32: NULL | CZ32: 8.83 | DA32: 8.94 | DB32: 8.86 | DC32: 8.86 | DD32: 8.74 | DE32: 8.78 | DF32: 8.63 | DG32: 8.65 | DH32: NULL | DI32: NULL | DJ32: 2619 | DK32: 2154 | DL32: 1767 | DM32: 2447 | DN32: 1829 | DO32: 3300 | DP32: 2322 | DQ32: 3302 | DR32: 1794 | DS32: 3303 | DT32: 1689 | DU32: 3304 | DV32: 1704 | DW32: 3304 | DX32: 1794 | DY32: 1402 | DZ32: 1602 | EA32: 3305 | EB32: 1069 | EC32: 745 | ED32: 7.05 | EE32: -20.15 | EF32: -0.04 | EG32: 19.99 | EH32: 15.8 | EI32: -0.04 | EJ32: 28.51 | EK32: 14 | EL32: NULL | EM32: 7 | EN32: 7.1 | EO32: 9 | EP32: 8.9 | EQ32: 6.6 | ER32: 6.9 | ES32: 39.23 | ET32: 4624 | EU32: 4624 | EV32: NULL | EW32: 12.5 | EX32: 0 | EY32: 3000 | EZ32: NULL | FA32: 0.992 | FB32: NULL | FC32: 1164 | FD32: 1 | FE32: 0 | FF32: NULL | FG32: NULL | FH32: NULL | FI32: NULL | FJ32: NULL | FK32: NULL | FL32: NULL | FM32: 0 | FN32: 0 | FO32: 224 | FP32: 0 | FQ32: 0.9 | FR32: 2.24 | FS32: 3.8 | FT32: 2.11 | FU32: 3.59 | FV32: NULL | FW32: NULL | FX32: 7.75 | FY32: 0 | FZ32: -0.02 | GA32: 9.18 | GB32: -19.98 | GC32: 40.02 | GD32: 7.17 | GE32: NULL | GF32: NULL | GG32: NULL | GH32: 6.71 | GI32: 7.81 | GJ32: -0.0128
A33: 2023-07-31T06:00:00 | B33: 9.15 | C33: 9.2 | D33: 16.78 | E33: 17.1 | F33: 17.01 | G33: 15.98 | H33: 15.81 | I33: 15.64 | J33: 16.69 | K33: 17.03 | L33: 17.1 | M33: 17.46 | N33: 17.68 | O33: 17.83 | P33: 17.59 | Q33: 10.6 | R33: 0 | S33: 8.4 | T33: 90.7 | U33: 0.1622 | V33: 0.1697 | W33: 0.1551 | X33: 0.1668 | Y33: 0.2212 | Z33: 0.0729 | AA33: 0.2558 | AB33: 0.3762 | AC33: 0.3882 | AD33: 0.3951 | AE33: 835.6 | AF33: 871.46 | AG33: 871.47 | AH33: 0 | AI33: 357 | AJ33: 0 | AK33: 0.1 | AL33: 1 | AM33: 0 | AN33: 0 | AO33: 0 | AP33: 0 | AQ33: 0.2 | AR33: 1.7 | AS33: 0.7 | AT33: 1.3 | AU33: NULL | AV33: NULL | AW33: NULL | AX33: 0 | AY33: 0 | AZ33: 0 | BA33: 220 | BB33: 0.1 | BC33: 216.4 | BD33: 0 | BE33: 219.5 | BF33: 0 | BG33: 207.4 | BH33: 0 | BI33: 211.2 | BJ33: 0 | BK33: 214.2 | BL33: 0 | BM33: 226.6 | BN33: 0 | BO33: 226.6 | BP33: NULL | BQ33: NULL | BR33: 13.57 | BS33: 3.39 | BT33: 104.6 | BU33: 126.19 | BV33: 0.1 | BW33: 693.5 | BX33: 0 | BY33: 498.5 | BZ33: 14 | CA33: NULL | CB33: 12.5 | CC33: NULL | CD33: NULL | CE33: -0.2 | CF33: NULL | CG33: NULL | CH33: 6.1 | CI33: 42.1 | CJ33: -27.2 | CK33: 6.9 | CL33: NULL | CM33: -27.7 | CN33: -20 | CO33: -24.9 | CP33: NULL | CQ33: NULL | CR33: 8.24 | CS33: 7.43 | CT33: 8.88 | CU33: 8.87 | CV33: 9.09 | CW33: 9.03 | CX33: 9.16 | CY33: NULL | CZ33: 9.08 | DA33: 9.17 | DB33: 9.08 | DC33: 9.08 | DD33: 8.92 | DE33: 9.01 | DF33: 8.73 | DG33: 8.84 | DH33: NULL | DI33: NULL | DJ33: 2591 | DK33: 2112 | DL33: 1715 | DM33: 2420 | DN33: 1779 | DO33: 3296 | DP33: 2284 | DQ33: 3296 | DR33: 1739 | DS33: 3295 | DT33: 1631 | DU33: 3296 | DV33: 1645 | DW33: 3296 | DX33: 1738 | DY33: 1358 | DZ33: 1559 | EA33: 3296 | EB33: 1012 | EC33: 699 | ED33: 7.23 | EE33: -20.15 | EF33: -0.04 | EG33: 19.99 | EH33: 15.6 | EI33: -0.04 | EJ33: 28.58 | EK33: 15 | EL33: NULL | EM33: 7.7 | EN33: 7.8 | EO33: 9.4 | EP33: 9.2 | EQ33: 6.8 | ER33: 7.6 | ES33: 39.42 | ET33: 4950 | EU33: 4949 | EV33: NULL | EW33: 12.5 | EX33: 0 | EY33: 3000 | EZ33: NULL | FA33: 1.067 | FB33: NULL | FC33: 1162 | FD33: 1 | FE33: 0 | FF33: NULL | FG33: NULL | FH33: NULL | FI33: NULL | FJ33: NULL | FK33: NULL | FL33: NULL | FM33: 0 | FN33: 0 | FO33: 218 | FP33: 0 | FQ33: 0 | FR33: 18.47 | FS33: 17.81 | FT33: 16.76 | FU33: 16.08 | FV33: NULL | FW33: NULL | FX33: 8.34 | FY33: 0 | FZ33: -0.02 | GA33: 9.32 | GB33: -19.98 | GC33: 40.02 | GD33: 7.63 | GE33: NULL | GF33: NULL | GG33: NULL | GH33: 6.53 | GI33: 8.65 | GJ33: -0.0243
A34: 2023-07-31T07:00:00 | B34: 10.79 | C34: 11.56 | D34: 16.64 | E34: 16.98 | F34: 16.99 | G34: 15.87 | H34: 15.7 | I34: 15.5 | J34: 16.56 | K34: 16.86 | L34: 16.99 | M34: 17.35 | N34: 17.52 | O34: 17.78 | P34: 17.52 | Q34: 12.8 | R34: 0 | S34: 9.9 | T34: 83.7 | U34: 0.1622 | V34: 0.1697 | W34: 0.1551 | X34: 0.1668 | Y34: 0.2206 | Z34: 0.0728 | AA34: 0.2557 | AB34: 0.376 | AC34: 0.3882 | AD34: 0.395 | AE34: 832.5 | AF34: 871.37 | AG34: 871.4 | AH34: 0 | AI34: 8 | AJ34: 360 | AK34: 0.2 | AL34: 2 | AM34: 0 | AN34: 0 | AO34: 0 | AP34: 0 | AQ34: 0.5 | AR34: 2.9 | AS34: 0.5 | AT34: 1 | AU34: NULL | AV34: NULL | AW34: NULL | AX34: 0 | AY34: 0 | AZ34: 0 | BA34: 220 | BB34: 0 | BC34: 216.4 | BD34: 0 | BE34: 219.5 | BF34: 0 | BG34: 207.4 | BH34: 0 | BI34: 211.2 | BJ34: 0 | BK34: 214.2 | BL34: 0 | BM34: 226.6 | BN34: 0 | BO34: 226.6 | BP34: NULL | BQ34: NULL | BR34: 11.94 | BS34: 2.23 | BT34: 103.24 | BU34: 125.73 | BV34: 0 | BW34: 693.5 | BX34: 0 | BY34: 498.5 | BZ34: 14.3 | CA34: NULL | CB34: NULL | CC34: NULL | CD34: 4.8 | CE34: NULL | CF34: NULL | CG34: NULL | CH34: 7.5 | CI34: 41.3 | CJ34: -27.2 | CK34: 8 | CL34: NULL | CM34: -26.7 | CN34: -20 | CO34: -24.7 | CP34: NULL | CQ34: NULL | CR34: 10.73 | CS34: 9.98 | CT34: 10.88 | CU34: 10.86 | CV34: 11 | CW34: 10.97 | CX34: 11.11 | CY34: NULL | CZ34: 11.07 | DA34: 11.11 | DB34: 11.07 | DC34: 11.07 | DD34: 10.98 | DE34: 11.01 | DF34: 11.03 | DG34: 11 | DH34: NULL | DI34: NULL | DJ34: 2598 | DK34: 2126 | DL34: 1711 | DM34: 2460 | DN34: 1794 | DO34: 3170 | DP34: 2220 | DQ34: 3161 | DR34: 1700 | DS34: 3165 | DT34: 1613 | DU34: 3166 | DV34: 1617 | DW34: 3172 | DX34: 1691 | DY34: 1323 | DZ34: 1387 | EA34: 3166 | EB34: 1030 | EC34: 710 | ED34: 7.48 | EE34: -20.15 | EF34: -0.04 | EG34: 19.99 | EH34: 15.5 | EI34: -0.04 | EJ34: 28.53 | EK34: NULL | EL34: NULL | EM34: 8.9 | EN34: 9.2 | EO34: 10.4 | EP34: 9.9 | EQ34: 7.5 | ER34: 8.2 | ES34: 39.47 | ET34: 4779 | EU34: 4699 | EV34: 25.715 | EW34: 12.6 | EX34: 0 | EY34: 3000 | EZ34: NULL | FA34: NULL | FB34: NULL | FC34: 1156 | FD34: 1 | FE34: NULL | FF34: NULL | FG34: NULL | FH34: NULL | FI34: NULL | FJ34: NULL | FK34: NULL | FL34: NULL | FM34: 0 | FN34: 0 | FO34: 206 | FP34: 0 | FQ34: 0.7 | FR34: 74.11 | FS34: 85.82 | FT34: 10.79 | FU34: 11.15 | FV34: NULL | FW34: NULL | FX34: 9.6 | FY34: 0 | FZ34: 0 | GA34: 11.53 | GB34: -19.98 | GC34: 40.02 | GD34: 8.66 | GE34: NULL | GF34: NULL | GG34: NULL | GH34: 7.95 | GI34: 9.42 | GJ34: -0.0168
A35: 2023-07-31T08:00:00 | B35: 14.36 | C35: 13.3 | D35: 16.52 | E35: 16.87 | F35: 16.98 | G35: 15.75 | H35: 15.63 | I35: 15.5 | J35: 16.42 | K35: 16.74 | L35: 16.85 | M35: 17.24 | N35: 17.41 | O35: 17.69 | P35: 17.43 | Q35: 14.9 | R35: 0 | S35: 12.1 | T35: 72.2 | U35: 0.1623 | V35: 0.1697 | W35: 0.155 | X35: 0.1668 | Y35: 0.2201 | Z35: 0.0659 | AA35: 0.2556 | AB35: 0.3759 | AC35: 0.3882 | AD35: 0.395 | AE35: 827 | AF35: 871.33 | AG35: 871.37 | AH35: 0 | AI35: 10 | AJ35: 20 | AK35: 0.5 | AL35: 2.4 | AM35: 0 | AN35: 0 | AO35: 0 | AP35: 0 | AQ35: 0.9 | AR35: 3.5 | AS35: 0.8 | AT35: 1.5 | AU35: NULL | AV35: NULL | AW35: NULL | AX35: 0 | AY35: 0 | AZ35: 0 | BA35: 220 | BB35: -0.1 | BC35: 216.3 | BD35: -0.1 | BE35: 219.4 | BF35: 0.1 | BG35: 207.5 | BH35: -0.2 | BI35: 211 | BJ35: -0.1 | BK35: 214.1 | BL35: 0 | BM35: 226.6 | BN35: 0 | BO35: 226.6 | BP35: NULL | BQ35: NULL | BR35: 32.87 | BS35: 6.71 | BT35: 105.17 | BU35: 131.11 | BV35: 0.1 | BW35: 693.6 | BX35: 0 | BY35: 498.5 | BZ35: 13.1 | CA35: NULL | CB35: 11.8 | CC35: NULL | CD35: 4.8 | CE35: -0.8 | CF35: NULL | CG35: NULL | CH35: 10.1 | CI35: 42.8 | CJ35: -27.2 | CK35: 15 | CL35: NULL | CM35: -20.4 | CN35: -14.9 | CO35: -18.8 | CP35: NULL | CQ35: NULL | CR35: 13.38 | CS35: 12.46 | CT35: 13.91 | CU35: 13.93 | CV35: 13.92 | CW35: 13.97 | CX35: 14.07 | CY35: NULL | CZ35: 14.08 | DA35: 14.18 | DB35: 14.25 | DC35: 14.23 | DD35: 14.81 | DE35: 14.7 | DF35: 17.63 | DG35: 16.99 | DH35: NULL | DI35: NULL | DJ35: 2633 | DK35: 2149 | DL35: 1739 | DM35: 2417 | DN35: 1782 | DO35: 3296 | DP35: 2345 | DQ35: 3296 | DR35: 1738 | DS35: 3295 | DT35: 1638 | DU35: 3296 | DV35: 1644 | DW35: 3296 | DX35: 1714 | DY35: 1315 | DZ35: 1354 | EA35: 3296 | EB35: 1005 | EC35: 675 | ED35: 8.41 | EE35: -20.14 | EF35: -0.04 | EG35: 19.99 | EH35: 15.5 | EI35: -0.04 | EJ35: 28.54 | EK35: 18 | EL35: NULL | EM35: 25.4 | EN35: 25.1 | EO35: 13.6 | EP35: 12.1 | EQ35: 17.9 | ER35: 11.6 | ES35: 40.02 | ET35: 4950 | EU35: 4948 | EV35: 20.572 | EW35: 12.6 | EX35: 0 | EY35: 3000 | EZ35: NULL | FA35: 1.528 | FB35: NULL | FC35: 1154 | FD35: 1 | FE35: 0 | FF35: NULL | FG35: NULL | FH35: NULL | FI35: NULL | FJ35: NULL | FK35: NULL | FL35: NULL | FM35: 0 | FN35: 0 | FO35: 234 | FP35: 0 | FQ35: 1.3 | FR35: 178.63 | FS35: 177.33 | FT35: 16.1 | FU35: 17.04 | FV35: NULL | FW35: NULL | FX35: 15.19 | FY35: 0 | FZ35: 0 | GA35: 13.56 | GB35: -19.97 | GC35: 40.02 | GD35: 13.76 | GE35: NULL | GF35: NULL | GG35: NULL | GH35: 17.39 | GI35: 12.87 | GJ35: 0.0553
A36: 2023-07-31T09:00:00 | B36: 16.59 | C36: 15.55 | D36: 16.46 | E36: 16.76 | F36: 16.95 | G36: 16.24 | H36: 16.2 | I36: 16.32 | J36: 16.39 | K36: 16.71 | L36: 16.8 | M36: 17.1 | N36: 17.29 | O36: 17.59 | P36: 17.4 | Q36: 16.9 | R36: 0 | S36: 14.4 | T36: 65.4 | U36: 0.1626 | V36: 0.1701 | W36: 0.1557 | X36: 0.1669 | Y36: 0.2193 | Z36: 0.0596 | AA36: 0.2557 | AB36: 0.3756 | AC36: 0.3881 | AD36: 0.3948 | AE36: 823.8 | AF36: 871.3 | AG36: 871.32 | AH36: 0 | AI36: 42 | AJ36: 10 | AK36: 0.6 | AL36: 2.2 | AM36: 0 | AN36: 0 | AO36: 0 | AP36: 0 | AQ36: 1 | AR36: 3.3 | AS36: 1 | AT36: 1.8 | AU36: NULL | AV36: NULL | AW36: NULL | AX36: 0 | AY36: 0 | AZ36: -0.1 | BA36: 219.9 | BB36: -0.1 | BC36: 216.2 | BD36: -0.1 | BE36: 219.3 | BF36: -0.1 | BG36: 207.4 | BH36: -0.1 | BI36: 210.9 | BJ36: 0 | BK36: 214.1 | BL36: 0 | BM36: 226.6 | BN36: 0 | BO36: 226.6 | BP36: NULL | BQ36: NULL | BR36: 229.13 | BS36: 47.38 | BT36: 112.34 | BU36: 147.59 | BV36: 0 | BW36: 693.6 | BX36: 0.1 | BY36: 498.6 | BZ36: 13.4 | CA36: NULL | CB36: 5.8 | CC36: NULL | CD36: 4.8 | CE36: -0.1 | CF36: NULL | CG36: NULL | CH36: 22.6 | CI36: 42.7 | CJ36: -27.2 | CK36: 21.3 | CL36: NULL | CM36: 16.8 | CN36: 23.5 | CO36: 31.3 | CP36: NULL | CQ36: NULL | CR36: 19.43 | CS36: 19.12 | CT36: 17.14 | CU36: 17.24 | CV36: 17.06 | CW36: 17.07 | CX36: 17.06 | CY36: NULL | CZ36: 16.96 | DA36: 17.26 | DB36: 17.48 | DC36: 17.45 | DD36: 19.55 | DE36: 18.17 | DF36: 22.07 | DG36: 18.17 | DH36: NULL | DI36: NULL | DJ36: 2647 | DK36: 2218 | DL36: 1800 | DM36: 2465 | DN36: 1833 | DO36: 3267 | DP36: 2336 | DQ36: 3280 | DR36: 1774 | DS36: 3262 | DT36: 1659 | DU36: 3251 | DV36: 1645 | DW36: 3240 | DX36: 1717 | DY36: 1326 | DZ36: 1328 | EA36: 3243 | EB36: 1016 | EC36: 687 | ED36: 12.83 | EE36: -20.15 | EF36: -0.04 | EG36: 20 | EH36: 15.5 | EI36: 0.02 | EJ36: 28.56 | EK36: 20 | EL36: NULL | EM36: 28.4 | EN36: 28 | EO36: 16.7 | EP36: 15.1 | EQ36: 24.7 | ER36: 20.3 | ES36: 40.62 | ET36: 4900 | EU36: 4892 | EV36: 30.858 | EW36: 12.6 | EX36: 0 | EY36: 3000 | EZ36: NULL | FA36: 0.943 | FB36: NULL | FC36: 1159 | FD36: 1 | FE36: 0 | FF36: NULL | FG36: NULL | FH36: NULL | FI36: NULL | FJ36: NULL | FK36: NULL | FL36: NULL | FM36: 0 | FN36: 0 | FO36: 228 | FP36: 0 | FQ36: 1 | FR36: 128.94 | FS36: 151.48 | FT36: 17.75 | FU36: 18.35 | FV36: NULL | FW36: NULL | FX36: 19.39 | FY36: 0 | FZ36: 0 | GA36: 16.03 | GB36: -19.97 | GC36: 40.02 | GD36: 19.34 | GE36: NULL | GF36: NULL | GG36: NULL | GH36: 21.73 | GI36: 18.98 | GJ36: 0.0328
A37: 2023-07-31T10:00:00 | B37: 16.26 | C37: 15.8 | D37: 16.6 | E37: 16.68 | F37: 16.92 | G37: 17.45 | H37: 17.34 | I37: 17.66 | J37: 16.87 | K37: 16.96 | L37: 16.96 | M37: 17.04 | N37: 17.21 | O37: 17.49 | P37: 17.32 | Q37: 16.7 | R37: 0 | S37: 17 | T37: 67 | U37: 0.1636 | V37: 0.1708 | W37: 0.1567 | X37: 0.1673 | Y37: 0.2181 | Z37: 0.0601 | AA37: 0.2557 | AB37: 0.375 | AC37: 0.3879 | AD37: 0.3944 | AE37: 824.7 | AF37: 871.07 | AG37: 871.09 | AH37: 0 | AI37: 226 | AJ37: 230 | AK37: 0.9 | AL37: 4 | AM37: 0 | AN37: 0 | AO37: 0 | AP37: 0 | AQ37: 1.3 | AR37: 4.7 | AS37: 1 | AT37: 2.2 | AU37: NULL | AV37: NULL | AW37: NULL | AX37: 0 | AY37: 0 | AZ37: 0 | BA37: 219.9 | BB37: -0.1 | BC37: 216.1 | BD37: 0 | BE37: 219.3 | BF37: 0 | BG37: 207.4 | BH37: 0 | BI37: 210.9 | BJ37: 0 | BK37: 214.1 | BL37: 0 | BM37: 226.6 | BN37: 0 | BO37: 226.6 | BP37: NULL | BQ37: NULL | BR37: 196.56 | BS37: 42.76 | BT37: 117.29 | BU37: 150.74 | BV37: 0.1 | BW37: 693.7 | BX37: 0 | BY37: 498.6 | BZ37: 12.9 | CA37: NULL | CB37: 3.7 | CC37: NULL | CD37: 5 | CE37: NULL | CF37: NULL | CG37: NULL | CH37: 21.9 | CI37: 45.1 | CJ37: -27.2 | CK37: 22.7 | CL37: NULL | CM37: 19.4 | CN37: 18.6 | CO37: 40.2 | CP37: NULL | CQ37: NULL | CR37: 18.42 | CS37: 18.17 | CT37: 16.07 | CU37: 16.28 | CV37: 15.88 | CW37: 16 | CX37: 15.87 | CY37: NULL | CZ37: 15.67 | DA37: 16.06 | DB37: 15.94 | DC37: 16.03 | DD37: 17.89 | DE37: 16.18 | DF37: 15.95 | DG37: 15.79 | DH37: NULL | DI37: NULL | DJ37: 2648 | DK37: 2221 | DL37: 1785 | DM37: 2494 | DN37: 1806 | DO37: 3296 | DP37: 2344 | DQ37: 3296 | DR37: 1759 | DS37: 3295 | DT37: 1647 | DU37: 3296 | DV37: 1645 | DW37: 3296 | DX37: 1724 | DY37: 1328 | DZ37: 1333 | EA37: 3297 | EB37: 1007 | EC37: 654 | ED37: 17.43 | EE37: -20.14 | EF37: -0.04 | EG37: 20 | EH37: 15.6 | EI37: -0.04 | EJ37: 28.52 | EK37: NULL | EL37: NULL | EM37: 27.2 | EN37: 26.5 | EO37: 19.8 | EP37: 18.5 | EQ37: 27.1 | ER37: 24.1 | ES37: 43.04 | ET37: 4945 | EU37: 4943 | EV37: 41.144 | EW37: 12.6 | EX37: 0 | EY37: 3000 | EZ37: NULL | FA37: NULL | FB37: NULL | FC37: 1158 | FD37: 1 | FE37: NULL | FF37: NULL | FG37: NULL | FH37: NULL | FI37: NULL | FJ37: NULL | FK37: NULL | FL37: NULL | FM37: 0 | FN37: 0 | FO37: 206 | FP37: 0 | FQ37: 2 | FR37: 286.81 | FS37: 289.84 | FT37: 22.67 | FU37: 23.27 | FV37: NULL | FW37: NULL | FX37: 19.42 | FY37: 0 | FZ37: 0 | GA37: 16.2 | GB37: -19.98 | GC37: 40.02 | GD37: 20.56 | GE37: NULL | GF37: NULL | GG37: NULL | GH37: 22.75 | GI37: 22.33 | GJ37: 0.0051
A38: 2023-07-31T11:00:00 | B38: 16.89 | C38: 16.31 | D38: 16.83 | E38: 16.66 | F38: 16.9 | G38: 18.33 | H38: 18.41 | I38: 18.99 | J38: 17.32 | K38: 17.32 | L38: 17.19 | M38: 17.02 | N38: 17.21 | O38: 17.42 | P38: 17.23 | Q38: 17.1 | R38: 0 | S38: 17.4 | T38: 68.5 | U38: 0.164 | V38: 0.1711 | W38: 0.1577 | X38: 0.1673 | Y38: 0.216 | Z38: 0.0631 | AA38: 0.2555 | AB38: 0.3739 | AC38: 0.3876 | AD38: 0.3937 | AE38: 827.1 | AF38: 870.86 | AG38: 870.89 | AH38: 0 | AI38: 242 | AJ38: 220 | AK38: 1.9 | AL38: 4.6 | AM38: 0 | AN38: 0 | AO38: 0 | AP38: 0 | AQ38: 2.3 | AR38: 5.9 | AS38: 1.9 | AT38: 2.8 | AU38: NULL | AV38: NULL | AW38: NULL | AX38: 0.1 | AY38: 0 | AZ38: 0 | BA38: 219.9 | BB38: 0 | BC38: 216.1 | BD38: 0 | BE38: 219.3 | BF38: 0 | BG38: 207.4 | BH38: 0 | BI38: 210.9 | BJ38: 0 | BK38: 214.1 | BL38: 0 | BM38: 226.6 | BN38: 0 | BO38: 226.6 | BP38: NULL | BQ38: NULL | BR38: 311.52 | BS38: 70.65 | BT38: 121.84 | BU38: 157.68 | BV38: 0.1 | BW38: 693.8 | BX38: 0 | BY38: 498.6 | BZ38: 14 | CA38: NULL | CB38: 7.3 | CC38: NULL | CD38: 4.9 | CE38: NULL | CF38: NULL | CG38: NULL | CH38: 22.9 | CI38: 45.1 | CJ38: -27.2 | CK38: 23.1 | CL38: NULL | CM38: 48.7 | CN38: 37.1 | CO38: 76.3 | CP38: NULL | CQ38: NULL | CR38: 16.85 | CS38: 19.74 | CT38: 16.89 | CU38: 17.19 | CV38: 16.65 | CW38: 16.85 | CX38: 16.67 | CY38: NULL | CZ38: 16.51 | DA38: 16.8 | DB38: 16.6 | DC38: 17.35 | DD38: 17.3 | DE38: 16.82 | DF38: 16.38 | DG38: 16.51 | DH38: NULL | DI38: NULL | DJ38: 2643 | DK38: 2209 | DL38: 1782 | DM38: 2504 | DN38: 1807 | DO38: 3293 | DP38: 2334 | DQ38: 3295 | DR38: 1764 | DS38: 3296 | DT38: 1653 | DU38: 3298 | DV38: 1646 | DW38: 3298 | DX38: 1732 | DY38: 1339 | DZ38: 1347 | EA38: 3299 | EB38: 1016 | EC38: 670 | ED38: 19.3 | EE38: -20.15 | EF38: -0.04 | EG38: 20 | EH38: 15.8 | EI38: -0.04 | EJ38: 28.56 | EK38: NULL | EL38: NULL | EM38: 26 | EN38: 25.7 | EO38: 20.2 | EP38: 19.3 | EQ38: 26.1 | ER38: 22.8 | ES38: 43.82 | ET38: 4942 | EU38: 4940 | EV38: NULL | EW38: 12.6 | EX38: 0 | EY38: 3000 | EZ38: NULL | FA38: NULL | FB38: NULL | FC38: 1169 | FD38: 1 | FE38: NULL | FF38: NULL | FG38: NULL | FH38: NULL | FI38: NULL | FJ38: NULL | FK38: NULL | FL38: NULL | FM38: 0 | FN38: 0 | FO38: 316 | FP38: 0 | FQ38: 2.5 | FR38: 315.01 | FS38: 317.09 | FT38: 24.09 | FU38: 24.07 | FV38: NULL | FW38: NULL | FX38: 19.33 | FY38: 0 | FZ38: 0 | GA38: 17.14 | GB38: -19.98 | GC38: 40.02 | GD38: 20.57 | GE38: NULL | GF38: NULL | GG38: NULL | GH38: 23.65 | GI38: 21.76 | GJ38: 0.0235
A39: 2023-07-31T12:00:00 | B39: 17.99 | C39: 17.74 | D39: 17.22 | E39: 16.69 | F39: 16.87 | G39: 19.69 | H39: 19.78 | I39: 20.55 | J39: 17.97 | K39: 17.89 | L39: 17.61 | M39: 17.08 | N39: 17.29 | O39: 17.39 | P39: 17.18 | Q39: 18.3 | R39: 0 | S39: 19 | T39: 61.4 | U39: 0.1644 | V39: 0.1714 | W39: 0.1588 | X39: 0.1675 | Y39: 0.2135 | Z39: 0.0655 | AA39: 0.2554 | AB39: 0.3727 | AC39: 0.3873 | AD39: 0.3927 | AE39: 823.8 | AF39: 870.56 | AG39: 870.58 | AH39: 0 | AI39: 257 | AJ39: 230 | AK39: 1.8 | AL39: 4.2 | AM39: 0 | AN39: 0 | AO39: 0 | AP39: 0 | AQ39: 2.1 | AR39: 5.6 | AS39: 1.7 | AT39: 3.1 | AU39: NULL | AV39: NULL | AW39: NULL | AX39: 0 | AY39: 0 | AZ39: 0 | BA39: 219.9 | BB39: -0.1 | BC39: 216 | BD39: 0 | BE39: 219.3 | BF39: -0.1 | BG39: 207.3 | BH39: 0 | BI39: 210.9 | BJ39: -0.1 | BK39: 214 | BL39: 0 | BM39: 226.6 | BN39: 0 | BO39: 226.6 | BP39: NULL | BQ39: NULL | BR39: 330.42 | BS39: 73.9 | BT39: 118.75 | BU39: 161.39 | BV39: 0 | BW39: 693.8 | BX39: 0 | BY39: 498.6 | BZ39: 11.2 | CA39: NULL | CB39: 1.1 | CC39: NULL | CD39: 4.3 | CE39: -0.5 | CF39: NULL | CG39: NULL | CH39: 24.6 | CI39: 45 | CJ39: -27.2 | CK39: 24.5 | CL39: NULL | CM39: 65.7 | CN39: 43.7 | CO39: 86.7 | CP39: NULL | CQ39: NULL | CR39: 18.7 | CS39: 20.44 | CT39: 17.88 | CU39: 18.66 | CV39: 17.78 | CW39: 18.33 | CX39: 17.99 | CY39: NULL | CZ39: 17.97 | DA39: 18.61 | DB39: 18.92 | DC39: 18.63 | DD39: 18.02 | DE39: 18.28 | DF39: 17.73 | DG39: 17.9 | DH39: NULL | DI39: NULL | DJ39: 2664 | DK39: 2229 | DL39: 1827 | DM39: 2506 | DN39: 1850 | DO39: 3294 | DP39: 2370 | DQ39: 3295 | DR39: 1815 | DS39: 3294 | DT39: 1703 | DU39: 3295 | DV39: 1690 | DW39: 3296 | DX39: 1783 | DY39: 1379 | DZ39: 1387 | EA39: 3296 | EB39: 1068 | EC39: 712 | ED39: 20.58 | EE39: -20.14 | EF39: -0.04 | EG39: 19.99 | EH39: 16 | EI39: -0.02 | EJ39: 28.57 | EK39: 28 | EL39: NULL | EM39: 26.9 | EN39: 26.8 | EO39: 22.1 | EP39: 21.1 | EQ39: 27.1 | ER39: 24.3 | ES39: 43.65 | ET39: 4654 | EU39: 4653 | EV39: 30.858 | EW39: 12.6 | EX39: 0 | EY39: 3000 | EZ39: NULL | FA39: 1.45 | FB39: NULL | FC39: 1174 | FD39: 1 | FE39: 0 | FF39: NULL | FG39: NULL | FH39: NULL | FI39: NULL | FJ39: NULL | FK39: NULL | FL39: NULL | FM39: 0 | FN39: 0 | FO39: 198 | FP39: 0 | FQ39: 2.4 | FR39: 331.14 | FS39: 331.05 | FT39: 22.86 | FU39: 22.91 | FV39: NULL | FW39: NULL | FX39: 20.82 | FY39: 0 | FZ39: 0 | GA39: 18.84 | GB39: -19.98 | GC39: 40.01 | GD39: 22.4 | GE39: NULL | GF39: NULL | GG39: NULL | GH39: 24.32 | GI39: 23.24 | GJ39: 0.0155
A40: 2023-07-31T13:00:00 | B40: 19.51 | C40: 19.09 | D40: 17.7 | E40: 16.79 | F40: 16.84 | G40: 20.74 | H40: 20.87 | I40: 21.71 | J40: 18.72 | K40: 18.57 | L40: 18.14 | M40: 17.2 | N40: 17.46 | O40: 17.37 | P40: 17.13 | Q40: 20.7 | R40: 0 | S40: 20.2 | T40: 56.6 | U40: 0.1646 | V40: 0.1715 | W40: 0.1594 | X40: 0.1676 | Y40: 0.2107 | Z40: 0.0678 | AA40: 0.2554 | AB40: 0.3712 | AC40: 0.3869 | AD40: 0.3917 | AE40: 821 | AF40: 870.15 | AG40: 870.17 | AH40: 0 | AI40: 255 | AJ40: 240 | AK40: 1.8 | AL40: 6 | AM40: 0 | AN40: 0 | AO40: 0 | AP40: 0 | AQ40: 2.2 | AR40: 7.7 | AS40: 1.8 | AT40: 3.4 | AU40: NULL | AV40: NULL | AW40: NULL | AX40: 0 | AY40: 0 | AZ40: 0 | BA40: 219.9 | BB40: 0.1 | BC40: 216.1 | BD40: -0.1 | BE40: 219.2 | BF40: 0 | BG40: 207.3 | BH40: 0 | BI40: 210.9 | BJ40: 0 | BK40: 214 | BL40: 0 | BM40: 226.6 | BN40: 0 | BO40: 226.6 | BP40: NULL | BQ40: NULL | BR40: 325.94 | BS40: 73.03 | BT40: 120.35 | BU40: 162.62 | BV40: 0.1 | BW40: 693.9 | BX40: 0.1 | BY40: 498.7 | BZ40: 12 | CA40: NULL | CB40: 7 | CC40: NULL | CD40: 4.8 | CE40: NULL | CF40: NULL | CG40: NULL | CH40: 26.2 | CI40: 44.9 | CJ40: -27.2 | CK40: 25.8 | CL40: NULL | CM40: 68.2 | CN40: 49.3 | CO40: 84.9 | CP40: NULL | CQ40: NULL | CR40: 19.94 | CS40: 22.12 | CT40: 20.31 | CU40: 20.56 | CV40: 20.05 | CW40: 20.16 | CX40: 20.17 | CY40: NULL | CZ40: 20.41 | DA40: 20.68 | DB40: 21.57 | DC40: 20.59 | DD40: 20.43 | DE40: 20.8 | DF40: 19.88 | DG40: 20.21 | DH40: NULL | DI40: NULL | DJ40: 2654 | DK40: 2187 | DL40: 1788 | DM40: 2543 | DN40: 1819 | DO40: 3298 | DP40: 2352 | DQ40: 3298 | DR40: 1779 | DS40: 3295 | DT40: 1655 | DU40: 3297 | DV40: 1640 | DW40: 3296 | DX40: 1741 | DY40: 1338 | DZ40: 1354 | EA40: 3297 | EB40: 1019 | EC40: 680 | ED40: 21.87 | EE40: -20.15 | EF40: -0.04 | EG40: 20 | EH40: 16.2 | EI40: -0.04 | EJ40: 28.56 | EK40: NULL | EL40: NULL | EM40: 28.2 | EN40: 28.1 | EO40: 23.1 | EP40: 22.3 | EQ40: 28 | ER40: 24.3 | ES40: 43.54 | ET40: 4938 | EU40: 4936 | EV40: NULL | EW40: 12.6 | EX40: 0 | EY40: 3005 | EZ40: NULL | FA40: NULL | FB40: NULL | FC40: 1174 | FD40: 1 | FE40: NULL | FF40: NULL | FG40: NULL | FH40: NULL | FI40: NULL | FJ40: NULL | FK40: NULL | FL40: NULL | FM40: 0 | FN40: 0 | FO40: 214 | FP40: 0 | FQ40: 2 | FR40: 322.77 | FS40: 322.34 | FT40: 23.87 | FU40: 23.98 | FV40: NULL | FW40: NULL | FX40: 21.75 | FY40: 0 | FZ40: 0 | GA40: 19.25 | GB40: -19.97 | GC40: 40.02 | GD40: 23.08 | GE40: NULL | GF40: NULL | GG40: NULL | GH40: 27.04 | GI40: 23.67 | GJ40: 0.0419
A41: 2023-07-31T14:00:00 | B41: 20.89 | C41: 19.8 | D41: 18.17 | E41: 16.94 | F41: 16.81 | G41: 21.53 | H41: 21.53 | I41: 22.45 | J41: 19.36 | K41: 19.19 | L41: 18.72 | M41: 17.43 | N41: 17.64 | O41: 17.41 | P41: 17.15 | Q41: 20.6 | R41: 0 | S41: 21.6 | T41: 55.2 | U41: 0.1647 | V41: 0.1713 | W41: 0.1597 | X41: 0.1676 | Y41: 0.2081 | Z41: 0.0692 | AA41: 0.2554 | AB41: 0.37 | AC41: 0.3867 | AD41: 0.3908 | AE41: 820.2 | AF41: 869.81 | AG41: 869.83 | AH41: 0 | AI41: 267 | AJ41: 220 | AK41: 1.5 | AL41: 4.8 | AM41: 0 | AN41: 0 | AO41: 0 | AP41: 0 | AQ41: 1.8 | AR41: 6.4 | AS41: 1.5 | AT41: 2.7 | AU41: NULL | AV41: NULL | AW41: NULL | AX41: 0 | AY41: 0 | AZ41: 0 | BA41: 219.9 | BB41: -0.1 | BC41: 216 | BD41: 0 | BE41: 219.2 | BF41: -0.1 | BG41: 207.2 | BH41: 0 | BI41: 210.9 | BJ41: 0 | BK41: 214 | BL41: 0 | BM41: 226.6 | BN41: 0 | BO41: 226.6 | BP41: NULL | BQ41: NULL | BR41: 299.85 | BS41: 68.86 | BT41: 121.69 | BU41: 163.03 | BV41: 0 | BW41: 693.9 | BX41: 0 | BY41: 498.7 | BZ41: 11.9 | CA41: NULL | CB41: -1.2 | CC41: NULL | CD41: 0.8 | CE41: -0.6 | CF41: NULL | CG41: NULL | CH41: 26.6 | CI41: 45.4 | CJ41: -27.2 | CK41: 26 | CL41: NULL | CM41: 66.2 | CN41: 52.2 | CO41: 75.4 | CP41: NULL | CQ41: NULL | CR41: 22.02 | CS41: 24.11 | CT41: 20.98 | CU41: 21.28 | CV41: 20.87 | CW41: 21.07 | CX41: 21.12 | CY41: NULL | CZ41: 21.12 | DA41: 21.3 | DB41: 21.99 | DC41: 22.33 | DD41: 22.56 | DE41: 22.85 | DF41: 21.51 | DG41: 21.77 | DH41: NULL | DI41: NULL | DJ41: 2654 | DK41: 2173 | DL41: 1796 | DM41: 2539 | DN41: 1825 | DO41: 3298 | DP41: 2364 | DQ41: 3295 | DR41: 1788 | DS41: 3294 | DT41: 1661 | DU41: 3294 | DV41: 1640 | DW41: 3295 | DX41: 1748 | DY41: 1339 | DZ41: 1360 | EA41: 3296 | EB41: 1024 | EC41: 690 | ED41: 23.2 | EE41: -20.15 | EF41: -0.04 | EG41: 20 | EH41: 16.5 | EI41: -0.02 | EJ41: 28.55 | EK41: 30 | EL41: NULL | EM41: 30.4 | EN41: 29.8 | EO41: 23.6 | EP41: 23 | EQ41: 29.6 | ER41: 25 | ES41: 44.39 | ET41: 4913 | EU41: 4909 | EV41: NULL | EW41: 12.6 | EX41: 0 | EY41: 3000 | EZ41: NULL | FA41: 2.448 | FB41: NULL | FC41: 1175 | FD41: 1 | FE41: 0 | FF41: NULL | FG41: NULL | FH41: NULL | FI41: NULL | FJ41: NULL | FK41: NULL | FL41: NULL | FM41: 0 | FN41: 0 | FO41: 187 | FP41: 0 | FQ41: 1.8 | FR41: 304.32 | FS41: 301.19 | FT41: 24.85 | FU41: 24.81 | FV41: NULL | FW41: NULL | FX41: 23.25 | FY41: 0 | FZ41: 0 | GA41: 19.88 | GB41: -19.98 | GC41: 40.02 | GD41: 24.12 | GE41: NULL | GF41: NULL | GG41: NULL | GH41: 26.45 | GI41: 24.27 | GJ41: 0.0282
A42: 2023-07-31T15:00:00 | B42: 20.86 | C42: 19.89 | D42: 18.55 | E42: 17.13 | F42: 16.79 | G42: 21.91 | H42: 21.8 | I42: 22.72 | J42: 19.87 | K42: 19.71 | L42: 19.11 | M42: 17.66 | N42: 17.87 | O42: 17.4 | P42: 17.21 | Q42: 20.7 | R42: 0 | S42: 22.1 | T42: 55.2 | U42: 0.1645 | V42: 0.171 | W42: 0.1596 | X42: 0.1678 | Y42: 0.2058 | Z42: 0.0687 | AA42: 0.2555 | AB42: 0.3691 | AC42: 0.3864 | AD42: 0.3899 | AE42: 820.9 | AF42: 869.89 | AG42: 869.91 | AH42: 0 | AI42: 208 | AJ42: 240 | AK42: 1.3 | AL42: 4.4 | AM42: 0 | AN42: 0 | AO42: 0 | AP42: 0 | AQ42: 1.7 | AR42: 6.5 | AS42: 1.4 | AT42: 2.7 | AU42: NULL | AV42: NULL | AW42: NULL | AX42: 0 | AY42: 0 | AZ42: 0 | BA42: 219.9 | BB42: 0 | BC42: 216 | BD42: 0 | BE42: 219.2 | BF42: 0 | BG42: 207.2 | BH42: 0 | BI42: 210.9 | BJ42: 0 | BK42: 214 | BL42: 0 | BM42: 226.6 | BN42: 0 | BO42: 226.6 | BP42: NULL | BQ42: NULL | BR42: 261.1 | BS42: 61.34 | BT42: 122.71 | BU42: 161.32 | BV42: 0.1 | BW42: 694 | BX42: 0 | BY42: 498.7 | BZ42: 11.2 | CA42: NULL | CB42: 6.7 | CC42: NULL | CD42: 0.5 | CE42: -0.7 | CF42: NULL | CG42: NULL | CH42: 23.1 | CI42: 46.2 | CJ42: -27.2 | CK42: 24 | CL42: NULL | CM42: 53.3 | CN42: 48.1 | CO42: 60.2 | CP42: NULL | CQ42: NULL | CR42: 22 | CS42: 23.46 | CT42: 20.67 | CU42: 20.71 | CV42: 20.61 | CW42: 20.36 | CX42: 20.77 | CY42: NULL | CZ42: 20.75 | DA42: 20.41 | DB42: 21.35 | DC42: 20.5 | DD42: 22.32 | DE42: 23.2 | DF42: 22.42 | DG42: 23.11 | DH42: NULL | DI42: NULL | DJ42: 2646 | DK42: 2129 | DL42: 1788 | DM42: 2561 | DN42: 1817 | DO42: 3291 | DP42: 2345 | DQ42: 3294 | DR42: 1790 | DS42: 3293 | DT42: 1658 | DU42: 3295 | DV42: 1631 | DW42: 3293 | DX42: 1745 | DY42: 1325 | DZ42: 1357 | EA42: 3296 | EB42: 1021 | EC42: 697 | ED42: 24.4 | EE42: -20.14 | EF42: -0.04 | EG42: 20 | EH42: 16.7 | EI42: -0.06 | EJ42: 28.56 | EK42: 31 | EL42: NULL | EM42: 29.7 | EN42: 29.1 | EO42: 24.4 | EP42: 23.8 | EQ42: 30.8 | ER42: 25.2 | ES42: 45.23 | ET42: 4942 | EU42: 4940 | EV42: NULL | EW42: 12.6 | EX42: 0 | EY42: 3000 | EZ42: NULL | FA42: 3.378 | FB42: NULL | FC42: 1179 | FD42: 1 | FE42: 0 | FF42: NULL | FG42: NULL | FH42: NULL | FI42: NULL | FJ42: NULL | FK42: NULL | FL42: NULL | FM42: 0 | FN42: 0 | FO42: 221 | FP42: 0 | FQ42: 1.7 | FR42: 263.48 | FS42: 259.16 | FT42: 24.72 | FU42: 24.68 | FV42: NULL | FW42: NULL | FX42: 24.07 | FY42: 0 | FZ42: 0 | GA42: 20.64 | GB42: -19.98 | GC42: 40.02 | GD42: 24.07 | GE42: NULL | GF42: NULL | GG42: NULL | GH42: 23.27 | GI42: 24.13 | GJ42: -0.0101
A43: 2023-07-31T16:00:00 | B43: 21.04 | C43: 19.82 | D43: 18.84 | E43: 17.31 | F43: 16.77 | G43: 21.99 | H43: 21.77 | I43: 22.63 | J43: 20.2 | K43: 20.07 | L43: 19.45 | M43: 17.91 | N43: 18.14 | O43: 17.48 | P43: 17.22 | Q43: 20.9 | R43: 0 | S43: 22.4 | T43: 51.6 | U43: 0.1644 | V43: 0.1705 | W43: 0.1592 | X43: 0.1676 | Y43: 0.2039 | Z43: 0.0674 | AA43: 0.2556 | AB43: 0.3684 | AC43: 0.3862 | AD43: 0.3894 | AE43: 820.6 | AF43: 869.51 | AG43: 869.54 | AH43: 0 | AI43: 273 | AJ43: 240 | AK43: 1 | AL43: 5 | AM43: 0 | AN43: 0 | AO43: 0 | AP43: 0 | AQ43: 1.4 | AR43: 6.1 | AS43: 1.2 | AT43: 2.5 | AU43: NULL | AV43: NULL | AW43: NULL | AX43: 0 | AY43: 0 | AZ43: 0 | BA43: 219.9 | BB43: 0 | BC43: 216 | BD43: 0 | BE43: 219.2 | BF43: -0.1 | BG43: 207.1 | BH43: 0 | BI43: 210.9 | BJ43: 0 | BK43: 214 | BL43: 0 | BM43: 226.6 | BN43: 0 | BO43: 226.6 | BP43: NULL | BQ43: NULL | BR43: 210.85 | BS43: 50.69 | BT43: 125.58 | BU43: 158.23 | BV43: 0 | BW43: 694 | BX43: 0 | BY43: 498.7 | BZ43: 10.4 | CA43: NULL | CB43: -0.1 | CC43: NULL | CD43: 4.8 | CE43: NULL | CF43: NULL | CG43: NULL | CH43: 22.1 | CI43: 48.9 | CJ43: -27.2 | CK43: 23.4 | CL43: NULL | CM43: 38.7 | CN43: 36.4 | CO43: 40.8 | CP43: NULL | CQ43: NULL | CR43: 23.9 | CS43: 23.17 | CT43: 20.63 | CU43: 20.55 | CV43: 20.7 | CW43: 20.22 | CX43: 20.88 | CY43: NULL | CZ43: 20.79 | DA43: 20.46 | DB43: 20.91 | DC43: 20.65 | DD43: 21.75 | DE43: 21.32 | DF43: 22.45 | DG43: 23.07 | DH43: NULL | DI43: NULL | DJ43: 2646 | DK43: 2117 | DL43: 1804 | DM43: 2513 | DN43: 1822 | DO43: 3296 | DP43: 2359 | DQ43: 3297 | DR43: 1807 | DS43: 3296 | DT43: 1677 | DU43: 3299 | DV43: 1640 | DW43: 3298 | DX43: 1766 | DY43: 1337 | DZ43: 1382 | EA43: 3300 | EB43: 1040 | EC43: 721 | ED43: 24.82 | EE43: -20.15 | EF43: -0.04 | EG43: 20 | EH43: 16.9 | EI43: -0.02 | EJ43: 28.53 | EK43: NULL | EL43: NULL | EM43: 29.8 | EN43: 29.2 | EO43: 24.8 | EP43: 24.5 | EQ43: 30.6 | ER43: 25.5 | ES43: 47.87 | ET43: 4858 | EU43: 4857 | EV43: NULL | EW43: 12.6 | EX43: 0 | EY43: 3000 | EZ43: NULL | FA43: NULL | FB43: NULL | FC43: 1189 | FD43: 1 | FE43: NULL | FF43: NULL | FG43: NULL | FH43: NULL | FI43: NULL | FJ43: NULL | FK43: NULL | FL43: NULL | FM43: 0 | FN43: 0 | FO43: 196 | FP43: 0 | FQ43: 1.3 | FR43: 209.32 | FS43: 204.23 | FT43: 23.5 | FU43: 23.12 | FV43: NULL | FW43: NULL | FX43: 24.77 | FY43: 0 | FZ43: -0.04 | GA43: 20.25 | GB43: -19.98 | GC43: 40.02 | GD43: 23.93 | GE43: NULL | GF43: NULL | GG43: NULL | GH43: 22.52 | GI43: 23.97 | GJ43: -0.0174
A44: 2023-07-31T17:00:00 | B44: 19.11 | C44: 19.58 | D44: 19 | E44: 17.49 | F44: 16.76 | G44: 21.77 | H44: 21.58 | I44: 22.24 | J44: 20.33 | K44: 20.27 | L44: 19.6 | M44: 18.12 | N44: 18.36 | O44: 17.59 | P44: 17.29 | Q44: 20.9 | R44: 0 | S44: 21.8 | T44: 58.4 | U44: 0.1639 | V44: 0.17 | W44: 0.1587 | X44: 0.1677 | Y44: 0.2022 | Z44: 0.0654 | AA44: 0.2559 | AB44: 0.3678 | AC44: 0.3861 | AD44: 0.3891 | AE44: 825.6 | AF44: 869.52 | AG44: 869.55 | AH44: 0 | AI44: 4 | AJ44: 40 | AK44: 0.8 | AL44: 3.4 | AM44: 0 | AN44: 0 | AO44: 0 | AP44: 0 | AQ44: 1.2 | AR44: 4.1 | AS44: 1.1 | AT44: 2 | AU44: NULL | AV44: NULL | AW44: NULL | AX44: 0 | AY44: 0 | AZ44: 0 | BA44: 219.9 | BB44: 0.1 | BC44: 216.1 | BD44: -0.1 | BE44: 219.1 | BF44: 0.1 | BG44: 207.2 | BH44: 0 | BI44: 210.9 | BJ44: 0 | BK44: 214 | BL44: 0 | BM44: 226.6 | BN44: 0 | BO44: 226.6 | BP44: NULL | BQ44: NULL | BR44: 148.35 | BS44: 37.77 | BT44: 122.06 | BU44: 153.84 | BV44: 0.1 | BW44: 694.1 | BX44: 0.1 | BY44: 498.8 | BZ44: 13.8 | CA44: NULL | CB44: 10.2 | CC44: NULL | CD44: 3 | CE44: -0.5 | CF44: NULL | CG44: NULL | CH44: 19.5 | CI44: 49 | CJ44: -27.2 | CK44: 22.1 | CL44: NULL | CM44: 22.9 | CN44: 22.3 | CO44: 20.6 | CP44: NULL | CQ44: NULL | CR44: 23.01 | CS44: 22.93 | CT44: 21.46 | CU44: 21.04 | CV44: 21.81 | CW44: 20.96 | CX44: 22.27 | CY44: NULL | CZ44: 22.31 | DA44: 21.21 | DB44: 22.19 | DC44: 21.16 | DD44: 22.95 | DE44: 21.4 | DF44: 26.16 | DG44: 22.71 | DH44: NULL | DI44: NULL | DJ44: 2626 | DK44: 2109 | DL44: 1796 | DM44: 2468 | DN44: 1810 | DO44: 3293 | DP44: 2370 | DQ44: 3295 | DR44: 1808 | DS44: 3294 | DT44: 1667 | DU44: 3295 | DV44: 1627 | DW44: 3289 | DX44: 1763 | DY44: 1336 | DZ44: 1379 | EA44: 3293 | EB44: 1031 | EC44: 715 | ED44: 23.99 | EE44: -20.15 | EF44: -0.04 | EG44: 20 | EH44: 17.1 | EI44: -0.04 | EJ44: 28.55 | EK44: 29 | EL44: NULL | EM44: 29.9 | EN44: 30 | EO44: 24.8 | EP44: 24.3 | EQ44: 30.6 | ER44: 25.8 | ES44: 48.39 | ET44: 4908 | EU44: 4903 | EV44: NULL | EW44: 12.6 | EX44: 0 | EY44: 3000 | EZ44: NULL | FA44: 1.645 | FB44: NULL | FC44: 1194 | FD44: 1 | FE44: 0 | FF44: NULL | FG44: NULL | FH44: NULL | FI44: NULL | FJ44: NULL | FK44: NULL | FL44: NULL | FM44: 0 | FN44: 0 | FO44: 380 | FP44: 0 | FQ44: 0.6 | FR44: 145.89 | FS44: 141.54 | FT44: 20.53 | FU44: 20.74 | FV44: NULL | FW44: NULL | FX44: 25.82 | FY44: 0 | FZ44: 0.02 | GA44: 20.25 | GB44: -19.98 | GC44: 40.02 | GD44: 23.94 | GE44: NULL | GF44: NULL | GG44: NULL | GH44: 20.25 | GI44: 24.04 | GJ44: -0.0466
A45: 2023-07-31T18:00:00 | B45: 17.77 | C45: 17.61 | D45: 19.05 | E45: 17.63 | F45: 16.76 | G45: 21.31 | H45: 21.06 | I45: 21.55 | J45: 20.31 | K45: 20.31 | L45: 19.7 | M45: 18.31 | N45: 18.52 | O45: 17.69 | P45: 17.39 | Q45: 19.3 | R45: 0 | S45: 18.8 | T45: 59.5 | U45: 0.1637 | V45: 0.1698 | W45: 0.1582 | X45: 0.1676 | Y45: 0.2013 | Z45: 0.0624 | AA45: 0.2561 | AB45: 0.3676 | AC45: 0.3861 | AD45: 0.3891 | AE45: 826.3 | AF45: 869.43 | AG45: 869.45 | AH45: 0 | AI45: 289 | AJ45: 240 | AK45: 0.2 | AL45: 2 | AM45: 0 | AN45: 0 | AO45: 0 | AP45: 0 | AQ45: 0.4 | AR45: 2.3 | AS45: 0.6 | AT45: 1.3 | AU45: NULL | AV45: NULL | AW45: NULL | AX45: 0 | AY45: 0 | AZ45: 0 | BA45: 219.9 | BB45: -0.1 | BC45: 216 | BD45: 0.1 | BE45: 219.2 | BF45: 0 | BG45: 207.2 | BH45: 0 | BI45: 210.9 | BJ45: 0 | BK45: 214 | BL45: 0 | BM45: 226.6 | BN45: 0 | BO45: 226.6 | BP45: NULL | BQ45: NULL | BR45: 65.98 | BS45: 16.73 | BT45: 120.99 | BU45: 147.1 | BV45: 0 | BW45: 694.1 | BX45: 0 | BY45: 498.8 | BZ45: 13.1 | CA45: NULL | CB45: 10.6 | CC45: NULL | CD45: 3.9 | CE45: -0.6 | CF45: NULL | CG45: NULL | CH45: 13.4 | CI45: 49.6 | CJ45: -27.2 | CK45: 16.8 | CL45: NULL | CM45: 4.9 | CN45: 2.1 | CO45: 3.2 | CP45: NULL | CQ45: NULL | CR45: 17.24 | CS45: 17.24 | CT45: 17.99 | CU45: 18.01 | CV45: 18.21 | CW45: 18.17 | CX45: 18.26 | CY45: NULL | CZ45: 18.19 | DA45: 18.32 | DB45: 18.25 | DC45: 18.24 | DD45: 18.13 | DE45: 18.28 | DF45: 17.89 | DG45: 18.05 | DH45: NULL | DI45: NULL | DJ45: 2627 | DK45: 2061 | DL45: 1792 | DM45: 2637 | DN45: 1789 | DO45: 3298 | DP45: 2374 | DQ45: 3299 | DR45: 1780 | DS45: 3289 | DT45: 1665 | DU45: 3301 | DV45: 1622 | DW45: 3305 | DX45: 1741 | DY45: 1320 | DZ45: 1350 | EA45: 3307 | EB45: 1030 | EC45: 716 | ED45: 22.21 | EE45: -20.15 | EF45: -0.04 | EG45: 20 | EH45: 17.1 | EI45: -0.02 | EJ45: 28.57 | EK45: 27 | EL45: NULL | EM45: 20 | EN45: 24.6 | EO45: 24.5 | EP45: 24.7 | EQ45: 22.8 | ER45: 21.9 | ES45: 48.59 | ET45: 4906 | EU45: 4902 | EV45: NULL | EW45: 12.6 | EX45: 0 | EY45: 3000 | EZ45: NULL | FA45: 1.979 | FB45: NULL | FC45: 1195 | FD45: 1 | FE45: 0 | FF45: NULL | FG45: NULL | FH45: NULL | FI45: NULL | FJ45: NULL | FK45: NULL | FL45: NULL | FM45: 0 | FN45: 0 | FO45: 268 | FP45: 0 | FQ45: 1 | FR45: 81.56 | FS45: 77.58 | FT45: 17.5 | FU45: 18.16 | FV45: NULL | FW45: NULL | FX45: 20.91 | FY45: 0 | FZ45: 0 | GA45: 17.97 | GB45: -19.97 | GC45: 40.02 | GD45: 20.38 | GE45: NULL | GF45: NULL | GG45: NULL | GH45: 14.51 | GI45: 21.2 | GJ45: -0.0817
A46: 2023-07-31T19:00:00 | B46: 15.68 | C46: 16.35 | D46: 18.98 | E46: 17.74 | F46: 16.77 | G46: 20.56 | H46: 20.28 | I46: 20.56 | J46: 20.09 | K46: 20.15 | L46: 19.61 | M46: 18.43 | N46: 18.65 | O46: 17.77 | P46: 17.47 | Q46: 17.8 | R46: 0 | S46: 14.7 | T46: 48.5 | U46: 0.163 | V46: 0.1693 | W46: 0.1577 | X46: 0.1676 | Y46: 0.2006 | Z46: 0.0591 | AA46: 0.2563 | AB46: 0.3676 | AC46: 0.3861 | AD46: 0.3893 | AE46: 820.1 | AF46: 869.38 | AG46: 869.39 | AH46: 0 | AI46: 187 | AJ46: 210 | AK46: 0.1 | AL46: 0.8 | AM46: 0 | AN46: 0 | AO46: 0 | AP46: 0 | AQ46: 0.4 | AR46: 2.1 | AS46: 0.4 | AT46: 1 | AU46: NULL | AV46: NULL | AW46: NULL | AX46: 0 | AY46: 0 | AZ46: 0 | BA46: 219.9 | BB46: 0.1 | BC46: 216.1 | BD46: 0.1 | BE46: 219.3 | BF46: 0.1 | BG46: 207.3 | BH46: 0.1 | BI46: 211 | BJ46: 0.1 | BK46: 214.1 | BL46: 0 | BM46: 226.6 | BN46: 0 | BO46: 226.6 | BP46: NULL | BQ46: NULL | BR46: 3.8 | BS46: 0.2 | BT46: 116.59 | BU46: 136.31 | BV46: 0.1 | BW46: 694.2 | BX46: 0 | BY46: 498.8 | BZ46: 12.6 | CA46: NULL | CB46: 5.6 | CC46: NULL | CD46: 3.7 | CE46: NULL | CF46: NULL | CG46: NULL | CH46: 9.3 | CI46: 44.8 | CJ46: -27.2 | CK46: 11.9 | CL46: NULL | CM46: -14.1 | CN46: -11.9 | CO46: -12.4 | CP46: NULL | CQ46: NULL | CR46: 14.05 | CS46: 14.92 | CT46: 15.92 | CU46: 15.87 | CV46: 16.13 | CW46: 16.09 | CX46: 16.22 | CY46: NULL | CZ46: 16.15 | DA46: 16.19 | DB46: 16.06 | DC46: 16.09 | DD46: 15.88 | DE46: 15.99 | DF46: 15.8 | DG46: 15.89 | DH46: NULL | DI46: NULL | DJ46: 2613 | DK46: 2025 | DL46: 1779 | DM46: 2801 | DN46: 1780 | DO46: 3300 | DP46: 2352 | DQ46: 3310 | DR46: 1767 | DS46: 3301 | DT46: 1667 | DU46: 3318 | DV46: 1620 | DW46: 3318 | DX46: 1737 | DY46: 1323 | DZ46: 1341 | EA46: 3331 | EB46: 1032 | EC46: 718 | ED46: 19.05 | EE46: -20.15 | EF46: -0.04 | EG46: 20 | EH46: 17.1 | EI46: -0.04 | EJ46: 28.5 | EK46: NULL | EL46: NULL | EM46: 14.5 | EN46: 14.9 | EO46: 19.1 | EP46: 20.2 | EQ46: 13.9 | ER46: 15.6 | ES46: 44.41 | ET46: 4887 | EU46: 4874 | EV46: NULL | EW46: 12.6 | EX46: 0 | EY46: 3000 | EZ46: NULL | FA46: NULL | FB46: NULL | FC46: 1196 | FD46: 1 | FE46: NULL | FF46: NULL | FG46: NULL | FH46: NULL | FI46: NULL | FJ46: NULL | FK46: NULL | FL46: NULL | FM46: 0 | FN46: 0 | FO46: 193 | FP46: 0 | FQ46: 0.6 | FR46: 8.18 | FS46: 7.19 | FT46: 7.58 | FU46: 6.65 | FV46: NULL | FW46: NULL | FX46: 15.12 | FY46: 0 | FZ46: -0.02 | GA46: 16.36 | GB46: -19.98 | GC46: 40.02 | GD46: 14.84 | GE46: NULL | GF46: NULL | GG46: NULL | GH46: 10.14 | GI46: 16.35 | GJ46: -0.0729
A47: 2023-07-31T20:00:00 | B47: 15.93 | C47: 17.29 | D47: 18.81 | E47: 17.8 | F47: 16.79 | G47: 19.87 | H47: 19.56 | I47: 19.69 | J47: 19.69 | K47: 19.84 | L47: 19.39 | M47: 18.49 | N47: 18.73 | O47: 17.85 | P47: 17.52 | Q47: 18.1 | R47: 0 | S47: 15.1 | T47: 41.5 | U47: 0.1623 | V47: 0.1687 | W47: 0.1567 | X47: 0.1673 | Y47: 0.2 | Z47: 0.054 | AA47: 0.2563 | AB47: 0.3676 | AC47: 0.3862 | AD47: 0.3894 | AE47: 816 | AF47: 869.59 | AG47: 869.61 | AH47: 0 | AI47: 89 | AJ47: 270 | AK47: 0.3 | AL47: 1.4 | AM47: 0 | AN47: 0 | AO47: 0 | AP47: 0.6 | AQ47: 0.7 | AR47: 2.2 | AS47: 0.6 | AT47: 1 | AU47: NULL | AV47: NULL | AW47: NULL | AX47: 0 | AY47: 0 | AZ47: 0 | BA47: 219.9 | BB47: 0 | BC47: 216.1 | BD47: 0 | BE47: 219.3 | BF47: 0 | BG47: 207.3 | BH47: 0 | BI47: 211 | BJ47: 0 | BK47: 214.1 | BL47: 0 | BM47: 226.6 | BN47: 0 | BO47: 226.6 | BP47: NULL | BQ47: NULL | BR47: -0.67 | BS47: 0.27 | BT47: 117 | BU47: 132.22 | BV47: 0.1 | BW47: 694.3 | BX47: 0 | BY47: 498.8 | BZ47: 11.8 | CA47: NULL | CB47: 12.8 | CC47: NULL | CD47: 3.9 | CE47: -0.3 | CF47: NULL | CG47: NULL | CH47: 9 | CI47: 42 | CJ47: -27.2 | CK47: 11.1 | CL47: NULL | CM47: -21.7 | CN47: -17 | CO47: -19.1 | CP47: NULL | CQ47: NULL | CR47: 14.96 | CS47: 14.72 | CT47: 16.06 | CU47: 15.99 | CV47: 16.45 | CW47: 16.35 | CX47: 16.6 | CY47: NULL | CZ47: 16.56 | DA47: 16.63 | DB47: 16.51 | DC47: 16.61 | DD47: 16.35 | DE47: 16.46 | DF47: 16.1 | DG47: 16.38 | DH47: NULL | DI47: NULL | DJ47: 2634 | DK47: 1991 | DL47: 1750 | DM47: 2751 | DN47: 1766 | DO47: 3280 | DP47: 2357 | DQ47: 3296 | DR47: 1760 | DS47: 3294 | DT47: 1652 | DU47: 3298 | DV47: 1603 | DW47: 3302 | DX47: 1728 | DY47: 1309 | DZ47: 1325 | EA47: 3299 | EB47: 1021 | EC47: 705 | ED47: 16.4 | EE47: -20.15 | EF47: -0.04 | EG47: 19.99 | EH47: 17.1 | EI47: -0.04 | EJ47: 28.55 | EK47: 22 | EL47: NULL | EM47: 14.4 | EN47: 14.5 | EO47: 17.1 | EP47: 17.5 | EQ47: 13.6 | ER47: 14.6 | ES47: 41.49 | ET47: 4932 | EU47: 4929 | EV47: NULL | EW47: 12.6 | EX47: 0 | EY47: 3000 | EZ47: NULL | FA47: 1.185 | FB47: NULL | FC47: 1196 | FD47: 1 | FE47: 0 | FF47: NULL | FG47: NULL | FH47: NULL | FI47: NULL | FJ47: NULL | FK47: NULL | FL47: NULL | FM47: 0 | FN47: 0 | FO47: 281 | FP47: 0 | FQ47: 0.7 | FR47: 0.3 | FS47: 0.27 | FT47: 0.4 | FU47: 0.39 | FV47: NULL | FW47: NULL | FX47: 14.89 | FY47: 0 | FZ47: -0.04 | GA47: 16.91 | GB47: -19.98 | GC47: 40.02 | GD47: 14.57 | GE47: NULL | GF47: NULL | GG47: NULL | GH47: 9.6 | GI47: 15.35 | GJ47: -0.0672
A48: 2023-07-31T21:00:00 | B48: 14.95 | C48: 15.98 | D48: 18.6 | E48: 17.81 | F48: 16.81 | G48: 19.23 | H48: 18.95 | I48: 19.01 | J48: 19.34 | K48: 19.53 | L48: 19.12 | M48: 18.5 | N48: 18.69 | O48: 17.92 | P48: 17.62 | Q48: 17 | R48: 0 | S48: 14.2 | T48: 47.9 | U48: 0.1621 | V48: 0.1683 | W48: 0.1563 | X48: 0.167 | Y48: 0.1993 | Z48: 0.0474 | AA48: 0.2564 | AB48: 0.3675 | AC48: 0.3863 | AD48: 0.3895 | AE48: 820.1 | AF48: 869.22 | AG48: 869.23 | AH48: 0 | AI48: 138 | AJ48: 100 | AK48: 0 | AL48: 0.6 | AM48: 0 | AN48: 0 | AO48: 0 | AP48: 0 | AQ48: 0.2 | AR48: 1.1 | AS48: 0.4 | AT48: 1.1 | AU48: NULL | AV48: NULL | AW48: NULL | AX48: 0 | AY48: 0 | AZ48: 0.1 | BA48: 220 | BB48: 0 | BC48: 216.1 | BD48: 0 | BE48: 219.3 | BF48: 0 | BG48: 207.3 | BH48: 0 | BI48: 211 | BJ48: 0 | BK48: 214.1 | BL48: 0 | BM48: 226.6 | BN48: 0 | BO48: 226.6 | BP48: NULL | BQ48: NULL | BR48: -0.83 | BS48: 0.12 | BT48: 118.74 | BU48: 131.61 | BV48: 0 | BW48: 694.3 | BX48: 0.1 | BY48: 498.9 | BZ48: 12.4 | CA48: NULL | CB48: 11.6 | CC48: NULL | CD48: 4.6 | CE48: -0.2 | CF48: NULL | CG48: NULL | CH48: 10.1 | CI48: 40.8 | CJ48: -27.2 | CK48: 11.7 | CL48: NULL | CM48: -22.8 | CN48: -17.1 | CO48: -20.7 | CP48: NULL | CQ48: NULL | CR48: 14.12 | CS48: 14.21 | CT48: 15.52 | CU48: 15.71 | CV48: 15.71 | CW48: 15.83 | CX48: 15.86 | CY48: NULL | CZ48: 15.82 | DA48: 15.91 | DB48: 15.8 | DC48: 15.9 | DD48: 15.71 | DE48: 15.89 | DF48: 15.62 | DG48: 15.78 | DH48: NULL | DI48: NULL | DJ48: 2628 | DK48: 1983 | DL48: 1736 | DM48: 2729 | DN48: 1759 | DO48: 3295 | DP48: 2351 | DQ48: 3295 | DR48: 1754 | DS48: 3294 | DT48: 1649 | DU48: 3295 | DV48: 1598 | DW48: 3295 | DX48: 1723 | DY48: 1307 | DZ48: 1321 | EA48: 3296 | EB48: 1020 | EC48: 700 | ED48: 14.77 | EE48: -20.15 | EF48: -0.04 | EG48: 20 | EH48: 17 | EI48: -0.04 | EJ48: 28.54 | EK48: 21 | EL48: NULL | EM48: 13.7 | EN48: 13.8 | EO48: 16.2 | EP48: 16.5 | EQ48: 13.2 | ER48: 13.6 | ES48: 40.43 | ET48: 4925 | EU48: 4924 | EV48: NULL | EW48: 12.6 | EX48: 0 | EY48: 3000 | EZ48: NULL | FA48: 1.154 | FB48: NULL | FC48: 1197 | FD48: 1 | FE48: 0 | FF48: NULL | FG48: NULL | FH48: NULL | FI48: NULL | FJ48: NULL | FK48: NULL | FL48: NULL | FM48: 0 | FN48: 0 | FO48: 305 | FP48: 0 | FQ48: 0.6 | FR48: 0.21 | FS48: 0.2 | FT48: 0.35 | FU48: 0.35 | FV48: NULL | FW48: NULL | FX48: 13.97 | FY48: 0 | FZ48: -0.02 | GA48: 15.86 | GB48: -19.98 | GC48: 40.03 | GD48: 13.68 | GE48: NULL | GF48: NULL | GG48: NULL | GH48: 10.83 | GI48: 14.44 | GJ48: -0.0435
A49: 2023-07-31T22:00:00 | B49: 16.61 | C49: 17.14 | D49: 18.39 | E49: 17.79 | F49: 16.83 | G49: 18.8 | H49: 18.59 | I49: 18.59 | J49: 19.04 | K49: 19.21 | L49: 18.91 | M49: 18.4 | N49: 18.68 | O49: 17.99 | P49: 17.67 | Q49: 18.5 | R49: 0 | S49: 16 | T49: 44.5 | U49: 0.1618 | V49: 0.1681 | W49: 0.1559 | X49: 0.1669 | Y49: 0.1988 | Z49: 0.0462 | AA49: 0.2563 | AB49: 0.3673 | AC49: 0.3862 | AD49: 0.3895 | AE49: 818.2 | AF49: 868.59 | AG49: 868.61 | AH49: 0 | AI49: 156 | AJ49: 190 | AK49: 0.3 | AL49: 1.8 | AM49: 0 | AN49: 0 | AO49: 0 | AP49: 0 | AQ49: 0.7 | AR49: 2.3 | AS49: 0.7 | AT49: 1.2 | AU49: NULL | AV49: NULL | AW49: NULL | AX49: 0 | AY49: 0 | AZ49: -0.1 | BA49: 219.9 | BB49: 0.1 | BC49: 216.2 | BD49: 0 | BE49: 219.3 | BF49: 0.1 | BG49: 207.4 | BH49: 0 | BI49: 211 | BJ49: 0 | BK49: 214.1 | BL49: 0 | BM49: 226.6 | BN49: 0 | BO49: 226.6 | BP49: NULL | BQ49: NULL | BR49: -0.41 | BS49: 0.32 | BT49: 122.32 | BU49: 133.07 | BV49: 0.1 | BW49: 694.4 | BX49: 0 | BY49: 498.9 | BZ49: 12.5 | CA49: NULL | CB49: 8.7 | CC49: NULL | CD49: 4.5 | CE49: NULL | CF49: NULL | CG49: NULL | CH49: 11.8 | CI49: 40.9 | CJ49: -27.2 | CK49: 12.9 | CL49: NULL | CM49: -20.2 | CN49: -15.4 | CO49: -19.4 | CP49: NULL | CQ49: NULL | CR49: 15.78 | CS49: 15.95 | CT49: 17.1 | CU49: 17.14 | CV49: 17.27 | CW49: 17.27 | CX49: 17.34 | CY49: NULL | CZ49: 17.26 | DA49: 17.37 | DB49: 17.25 | DC49: 17.29 | DD49: 17.14 | DE49: 17.27 | DF49: 17.06 | DG49: 17.16 | DH49: NULL | DI49: NULL | DJ49: 2634 | DK49: 1984 | DL49: 1727 | DM49: 2722 | DN49: 1759 | DO49: 3296 | DP49: 2354 | DQ49: 3296 | DR49: 1756 | DS49: 3295 | DT49: 1644 | DU49: 3296 | DV49: 1594 | DW49: 3296 | DX49: 1723 | DY49: 1308 | DZ49: 1320 | EA49: 3297 | EB49: 1017 | EC49: 695 | ED49: 13.88 | EE49: -20.15 | EF49: -0.04 | EG49: 19.99 | EH49: 16.9 | EI49: -0.04 | EJ49: 28.57 | EK49: NULL | EL49: NULL | EM49: 15.5 | EN49: 15.5 | EO49: 16.5 | EP49: 16.4 | EQ49: 14.6 | ER49: 14.7 | ES49: 39.86 | ET49: 4949 | EU49: 4948 | EV49: NULL | EW49: 12.6 | EX49: 0 | EY49: 3000 | EZ49: NULL | FA49: NULL | FB49: NULL | FC49: 1197 | FD49: 1 | FE49: NULL | FF49: NULL | FG49: NULL | FH49: NULL | FI49: NULL | FJ49: NULL | FK49: NULL | FL49: NULL | FM49: 0 | FN49: 0 | FO49: 289 | FP49: 0 | FQ49: 0.9 | FR49: 0.16 | FS49: 0.15 | FT49: 0.34 | FU49: 0.34 | FV49: NULL | FW49: NULL | FX49: 15.42 | FY49: 0 | FZ49: 0 | GA49: 17.3 | GB49: -19.98 | GC49: 40.02 | GD49: 15.13 | GE49: NULL | GF49: NULL | GG49: NULL | GH49: 12.19 | GI49: 15.11 | GJ49: -0.0338
A50: 2023-07-31T23:00:00 | B50: 16.79 | C50: 17.35 | D50: 18.21 | E50: 17.74 | F50: 16.84 | G50: 18.55 | H50: 18.29 | I50: 18.29 | J50: 18.74 | K50: 18.96 | L50: 18.68 | M50: 18.38 | N50: 18.59 | O50: 18.01 | P50: 17.67 | Q50: 18.6 | R50: 0 | S50: 16.4 | T50: 41.5 | U50: 0.1617 | V50: 0.168 | W50: 0.1559 | X50: 0.1668 | Y50: 0.1982 | Z50: 0.0446 | AA50: 0.2562 | AB50: 0.3673 | AC50: 0.3862 | AD50: 0.3895 | AE50: 815.8 | AF50: 868.23 | AG50: 868.25 | AH50: 0 | AI50: 149 | AJ50: 150 | AK50: 0.2 | AL50: 1.6 | AM50: 0 | AN50: 0 | AO50: 0 | AP50: 0 | AQ50: 0.7 | AR50: 2.8 | AS50: 0.7 | AT50: 1 | AU50: NULL | AV50: NULL | AW50: NULL | AX50: 0 | AY50: 0 | AZ50: 0 | BA50: 219.9 | BB50: 0 | BC50: 216.2 | BD50: 0 | BE50: 219.3 | BF50: 0 | BG50: 207.4 | BH50: 0 | BI50: 211 | BJ50: 0 | BK50: 214.1 | BL50: 0 | BM50: 226.6 | BN50: 0 | BO50: 226.6 | BP50: NULL | BQ50: NULL | BR50: -0.27 | BS50: 0.2 | BT50: 129.53 | BU50: 135.94 | BV50: 0 | BW50: 694.4 | BX50: 0 | BY50: 498.9 | BZ50: 11.7 | CA50: NULL | CB50: 2.9 | CC50: NULL | CD50: 4.4 | CE50: -0.3 | CF50: NULL | CG50: NULL | CH50: 12 | CI50: 40.9 | CJ50: -27.2 | CK50: 13.4 | CL50: NULL | CM50: -16.2 | CN50: -12.2 | CO50: -16.5 | CP50: NULL | CQ50: NULL | CR50: 15.74 | CS50: 15.96 | CT50: 17.17 | CU50: 17.21 | CV50: 17.36 | CW50: 17.33 | CX50: 17.44 | CY50: NULL | CZ50: 17.37 | DA50: 17.46 | DB50: 17.37 | DC50: 17.39 | DD50: 17.27 | DE50: 17.38 | DF50: 17.14 | DG50: 17.24 | DH50: NULL | DI50: NULL | DJ50: 2628 | DK50: 1994 | DL50: 1726 | DM50: 2711 | DN50: 1760 | DO50: 3216 | DP50: 2305 | DQ50: 3194 | DR50: 1724 | DS50: 3276 | DT50: 1643 | DU50: 3296 | DV50: 1598 | DW50: 3301 | DX50: 1728 | DY50: 1320 | DZ50: 1322 | EA50: 3310 | EB50: 1025 | EC50: 705 | ED50: 13.9 | EE50: -20.15 | EF50: -0.04 | EG50: 19.99 | EH50: 16.8 | EI50: -0.06 | EJ50: 28.55 | EK50: 23 | EL50: NULL | EM50: 15.9 | EN50: 16 | EO50: 16.9 | EP50: 16.8 | EQ50: 15.1 | ER50: 15.7 | ES50: 39.83 | ET50: 4900 | EU50: 4875 | EV50: NULL | EW50: 12.6 | EX50: 0 | EY50: 3000 | EZ50: NULL | FA50: 1.264 | FB50: NULL | FC50: 1197 | FD50: 1 | FE50: 0 | FF50: NULL | FG50: NULL | FH50: NULL | FI50: NULL | FJ50: NULL | FK50: NULL | FL50: NULL | FM50: 0 | FN50: 0 | FO50: 204 | FP50: 0 | FQ50: 0.5 | FR50: 0.16 | FS50: 0.16 | FT50: 0.34 | FU50: 0.34 | FV50: NULL | FW50: NULL | FX50: 15.99 | FY50: 0 | FZ50: 0.02 | GA50: 17.53 | GB50: -19.97 | GC50: 40.03 | GD50: 15.86 | GE50: NULL | GF50: NULL | GG50: NULL | GH50: 12.55 | GI50: 15.95 | GJ50: -0.042
A51: 2023-08-01 | B51: 15.54 | C51: 15.7 | D51: 18.07 | E51: 17.68 | F51: 16.87 | G51: 18.27 | H51: 18.01 | I51: 17.97 | J51: 18.51 | K51: 18.7 | L51: 18.51 | M51: 18.27 | N51: 18.44 | O51: 18.01 | P51: 17.69 | Q51: 17.4 | R51: 0 | S51: 15.1 | T51: 47.9 | U51: 0.1616 | V51: 0.1678 | W51: 0.1555 | X51: 0.1668 | Y51: 0.1978 | Z51: 0.0457 | AA51: 0.2562 | AB51: 0.3672 | AC51: 0.3862 | AD51: 0.3896 | AE51: 820.4 | AF51: 867.81 | AG51: 867.83 | AH51: 0 | AI51: 261 | AJ51: 200 | AK51: 0.2 | AL51: 1 | AM51: 0 | AN51: 0 | AO51: 0 | AP51: 0 | AQ51: 0.6 | AR51: 1.8 | AS51: 0.6 | AT51: 1 | AU51: NULL | AV51: NULL | AW51: NULL | AX51: 0 | AY51: 0 | AZ51: 0 | BA51: 219.9 | BB51: -0.1 | BC51: 216.1 | BD51: 0 | BE51: 219.3 | BF51: -0.1 | BG51: 207.3 | BH51: 0 | BI51: 211 | BJ51: 0 | BK51: 214.1 | BL51: 0 | BM51: 226.6 | BN51: 0 | BO51: 226.6 | BP51: NULL | BQ51: NULL | BR51: -0.79 | BS51: 0.08 | BT51: 121.86 | BU51: 133.34 | BV51: 0.1 | BW51: 694.5 | BX51: 0.1 | BY51: 499 | BZ51: 11.6 | CA51: NULL | CB51: 9.5 | CC51: NULL | CD51: 4.5 | CE51: -0.3 | CF51: NULL | CG51: NULL | CH51: 8.3 | CI51: 41.6 | CJ51: -27.2 | CK51: 10.7 | CL51: NULL | CM51: -21.2 | CN51: -16.8 | CO51: -19.6 | CP51: NULL | CQ51: NULL | CR51: 13.93 | CS51: 14.62 | CT51: 15.61 | CU51: 15.58 | CV51: 15.86 | CW51: 15.8 | CX51: 15.89 | CY51: NULL | CZ51: 15.8 | DA51: 15.92 | DB51: 15.82 | DC51: 15.83 | DD51: 15.65 | DE51: 15.8 | DF51: 15.4 | DG51: 15.55 | DH51: NULL | DI51: NULL | DJ51: 2616 | DK51: 1968 | DL51: 1716 | DM51: 2703 | DN51: 1748 | DO51: 3296 | DP51: 2340 | DQ51: 3296 | DR51: 1749 | DS51: 3296 | DT51: 1640 | DU51: 3297 | DV51: 1588 | DW51: 3297 | DX51: 1717 | DY51: 1302 | DZ51: 1313 | EA51: 3297 | EB51: 1018 | EC51: 697 | ED51: 13.8 | EE51: -20.15 | EF51: -0.04 | EG51: 20 | EH51: 16.7 | EI51: -0.04 | EJ51: 28.53 | EK51: 22 | EL51: NULL | EM51: 14.1 | EN51: 14.1 | EO51: 16.3 | EP51: 16.5 | EQ51: 12.7 | ER51: 14.8 | ES51: 39.83 | ET51: 4944 | EU51: 4943 | EV51: NULL | EW51: 12.6 | EX51: 0 | EY51: 3000 | EZ51: NULL | FA51: 1.294 | FB51: NULL | FC51: 1198 | FD51: 1 | FE51: 0 | FF51: NULL | FG51: NULL | FH51: NULL | FI51: NULL | FJ51: NULL | FK51: NULL | FL51: NULL | FM51: 0 | FN51: 0 | FO51: 358 | FP51: 0 | FQ51: 0.6 | FR51: 0.28 | FS51: 0.29 | FT51: 0.36 | FU51: 0.37 | FV51: NULL | FW51: NULL | FX51: 14.85 | FY51: 0 | FZ51: 0 | GA51: 15.93 | GB51: -19.98 | GC51: 40.02 | GD51: 14.66 | GE51: NULL | GF51: NULL | GG51: NULL | GH51: 9.01 | GI51: 15.37 | GJ51: -0.0754
A52: 2023-08-01T01:00:00 | B52: 15.91 | C52: 16.36 | D52: 17.91 | E52: 17.62 | F52: 16.89 | G52: 17.97 | H52: 17.69 | I52: 17.63 | J52: 18.27 | K52: 18.46 | L52: 18.33 | M52: 18.16 | N52: 18.38 | O52: 18.06 | P52: 17.69 | Q52: 17.5 | R52: 0 | S52: 15.5 | T52: 47.5 | U52: 0.1615 | V52: 0.1676 | W52: 0.1554 | X52: 0.1665 | Y52: 0.1974 | Z52: 0.0501 | AA52: 0.256 | AB52: 0.3669 | AC52: 0.3861 | AD52: 0.3895 | AE52: 820 | AF52: 867.24 | AG52: 867.26 | AH52: 0 | AI52: 302 | AJ52: 200 | AK52: 0.8 | AL52: 4 | AM52: 0 | AN52: 0 | AO52: 0 | AP52: 0 | AQ52: 1.3 | AR52: 4.8 | AS52: 1 | AT52: 2.2 | AU52: NULL | AV52: NULL | AW52: NULL | AX52: 0 | AY52: 0 | AZ52: 0 | BA52: 219.9 | BB52: 0 | BC52: 216.1 | BD52: 0 | BE52: 219.3 | BF52: 0 | BG52: 207.3 | BH52: 0 | BI52: 211 | BJ52: 0 | BK52: 214.1 | BL52: 0 | BM52: 226.6 | BN52: 0 | BO52: 226.6 | BP52: NULL | BQ52: NULL | BR52: -0.77 | BS52: 0.15 | BT52: 118.64 | BU52: 132.24 | BV52: 0 | BW52: 694.5 | BX52: 0 | BY52: 499 | BZ52: 13.3 | CA52: NULL | CB52: 11.8 | CC52: NULL | CD52: 4.5 | CE52: NULL | CF52: NULL | CG52: NULL | CH52: 8.8 | CI52: 41.6 | CJ52: -27.2 | CK52: 10.6 | CL52: NULL | CM52: -22.7 | CN52: -17.4 | CO52: -21 | CP52: NULL | CQ52: NULL | CR52: 14.48 | CS52: 14.9 | CT52: 16.07 | CU52: 15.98 | CV52: 16.32 | CW52: 16.22 | CX52: 16.38 | CY52: NULL | CZ52: 16.31 | DA52: 16.33 | DB52: 16.28 | DC52: 16.25 | DD52: 16.09 | DE52: 16.18 | DF52: 15.82 | DG52: 15.92 | DH52: NULL | DI52: NULL | DJ52: 2625 | DK52: 1987 | DL52: 1735 | DM52: 2681 | DN52: 1767 | DO52: 3300 | DP52: 2357 | DQ52: 3301 | DR52: 1772 | DS52: 3300 | DT52: 1662 | DU52: 3302 | DV52: 1610 | DW52: 3311 | DX52: 1744 | DY52: 1322 | DZ52: 1333 | EA52: 3313 | EB52: 1042 | EC52: 716 | ED52: 13.4 | EE52: -20.14 | EF52: -0.04 | EG52: 19.99 | EH52: 16.6 | EI52: -0.04 | EJ52: 28.55 | EK52: NULL | EL52: NULL | EM52: 14.4 | EN52: 14.4 | EO52: 16.3 | EP52: 16.3 | EQ52: 13.2 | ER52: 14.6 | ES52: 39.66 | ET52: 4807 | EU52: 4806 | EV52: NULL | EW52: 12.6 | EX52: 0 | EY52: 3000 | EZ52: NULL | FA52: NULL | FB52: NULL | FC52: 1198 | FD52: 1 | FE52: NULL | FF52: NULL | FG52: NULL | FH52: NULL | FI52: NULL | FJ52: NULL | FK52: NULL | FL52: NULL | FM52: 0 | FN52: 0 | FO52: 232 | FP52: 0 | FQ52: 0.7 | FR52: 0.22 | FS52: 0.22 | FT52: 0.36 | FU52: 0.36 | FV52: NULL | FW52: NULL | FX52: 14.91 | FY52: 0 | FZ52: 0 | GA52: 16.5 | GB52: -19.98 | GC52: 40.03 | GD52: 14.68 | GE52: NULL | GF52: NULL | GG52: NULL | GH52: 9.03 | GI52: 15.22 | GJ52: -0.0738
A53: 2023-08-01T02:00:00 | B53: 14.19 | C53: 15.14 | D53: 17.75 | E53: 17.55 | F53: 16.9 | G53: 17.65 | H53: 17.35 | I53: 17.26 | J53: 18.04 | K53: 18.29 | L53: 18.14 | M53: 18.06 | N53: 18.29 | O53: 17.99 | P53: 17.74 | Q53: 16.1 | R53: 0 | S53: 13.9 | T53: 59 | U53: 0.1613 | V53: 0.1675 | W53: 0.1551 | X53: 0.1665 | Y53: 0.1969 | Z53: 0.0536 | AA53: 0.256 | AB53: 0.3667 | AC53: 0.3861 | AD53: 0.3896 | AE53: 826.9 | AF53: 866.64 | AG53: 866.66 | AH53: 0 | AI53: 9 | AJ53: 330 | AK53: 0.2 | AL53: 1.4 | AM53: 0 | AN53: 0 | AO53: 0 | AP53: 0 | AQ53: 0.6 | AR53: 2.2 | AS53: 0.5 | AT53: 1.1 | AU53: NULL | AV53: NULL | AW53: NULL | AX53: 0 | AY53: 0 | AZ53: 0.1 | BA53: 220 | BB53: 0 | BC53: 216.1 | BD53: 0 | BE53: 219.3 | BF53: 0 | BG53: 207.3 | BH53: 0 | BI53: 211 | BJ53: 0 | BK53: 214.1 | BL53: 0 | BM53: 226.6 | BN53: 0 | BO53: 226.6 | BP53: NULL | BQ53: NULL | BR53: -1.12 | BS53: 0 | BT53: 115.15 | BU53: 129.32 | BV53: 0.1 | BW53: 694.6 | BX53: 0 | BY53: 499 | BZ53: 13.1 | CA53: NULL | CB53: 10.3 | CC53: NULL | CD53: 4.6 | CE53: -0.1 | CF53: NULL | CG53: NULL | CH53: 8.2 | CI53: 41.2 | CJ53: -27.2 | CK53: 9.9 | CL53: NULL | CM53: -25.3 | CN53: -18.6 | CO53: -23.2 | CP53: NULL | CQ53: NULL | CR53: 13.58 | CS53: 13.14 | CT53: 14.34 | CU53: 14.43 | CV53: 14.79 | CW53: 14.84 | CX53: 14.9 | CY53: NULL | CZ53: 14.87 | DA53: 15.15 | DB53: 14.9 | DC53: 15.07 | DD53: 14.66 | DE53: 14.95 | DF53: 14.34 | DG53: 14.73 | DH53: NULL | DI53: NULL | DJ53: 2609 | DK53: 1959 | DL53: 1714 | DM53: 2603 | DN53: 1742 | DO53: 3305 | DP53: 2377 | DQ53: 3305 | DR53: 1748 | DS53: 3304 | DT53: 1641 | DU53: 3305 | DV53: 1588 | DW53: 3306 | DX53: 1718 | DY53: 1301 | DZ53: 1315 | EA53: 3306 | EB53: 1019 | EC53: 698 | ED53: 12.78 | EE53: -20.15 | EF53: -0.04 | EG53: 19.99 | EH53: 16.5 | EI53: -0.02 | EJ53: 28.53 | EK53: 20 | EL53: NULL | EM53: 12.5 | EN53: 12.6 | EO53: 15.2 | EP53: 15.3 | EQ53: 11.8 | ER53: 13 | ES53: 39.56 | ET53: 4931 | EU53: 4929 | EV53: NULL | EW53: 12.6 | EX53: 0 | EY53: 3000 | EZ53: NULL | FA53: 0.987 | FB53: NULL | FC53: 1198 | FD53: 1 | FE53: 0 | FF53: NULL | FG53: NULL | FH53: NULL | FI53: NULL | FJ53: NULL | FK53: NULL | FL53: NULL | FM53: 0 | FN53: 0 | FO53: 307 | FP53: 0 | FQ53: 0.9 | FR53: 0.29 | FS53: 0.27 | FT53: 0.37 | FU53: 0.37 | FV53: NULL | FW53: NULL | FX53: 13.39 | FY53: 0 | FZ53: 0.02 | GA53: 15.17 | GB53: -19.98 | GC53: 40.02 | GD53: 13.12 | GE53: NULL | GF53: NULL | GG53: NULL | GH53: 8.68 | GI53: 13.82 | GJ53: -0.0611
A54: 2023-08-01T03:00:00 | B54: 13.53 | C54: 13.54 | D54: 17.58 | E54: 17.47 | F54: 16.91 | G54: 17.31 | H54: 17.12 | I54: 16.96 | J54: 17.78 | K54: 18.02 | L54: 17.95 | M54: 17.95 | N54: 18.17 | O54: 17.93 | P54: 17.65 | Q54: 15.3 | R54: 0 | S54: 13 | T54: 63.2 | U54: 0.1611 | V54: 0.1673 | W54: 0.155 | X54: 0.1664 | Y54: 0.1964 | Z54: 0.0551 | AA54: 0.256 | AB54: 0.3667 | AC54: 0.3862 | AD54: 0.3895 | AE54: 828.7 | AF54: 866.68 | AG54: 866.68 | AH54: 0 | AI54: 356 | AJ54: 30 | AK54: 0.2 | AL54: 1.6 | AM54: 0 | AN54: 0 | AO54: 0 | AP54: 0 | AQ54: 0.6 | AR54: 2.7 | AS54: 0.4 | AT54: 0.9 | AU54: NULL | AV54: NULL | AW54: NULL | AX54: 0 | AY54: 0 | AZ54: 0 | BA54: 220 | BB54: 0 | BC54: 216.1 | BD54: 0 | BE54: 219.3 | BF54: 0 | BG54: 207.3 | BH54: 0.1 | BI54: 211.1 | BJ54: 0 | BK54: 214.1 | BL54: 0 | BM54: 226.6 | BN54: 0 | BO54: 226.6 | BP54: NULL | BQ54: NULL | BR54: -0.78 | BS54: 0.14 | BT54: 116.96 | BU54: 129.47 | BV54: 0 | BW54: 694.6 | BX54: 0 | BY54: 499 | BZ54: 13.1 | CA54: NULL | CB54: 10.3 | CC54: NULL | CD54: 4.7 | CE54: -0.2 | CF54: NULL | CG54: NULL | CH54: 7.2 | CI54: 41.5 | CJ54: -27.2 | CK54: 9.1 | CL54: NULL | CM54: -24.7 | CN54: -18.1 | CO54: -22.6 | CP54: NULL | CQ54: NULL | CR54: 12.05 | CS54: 11.7 | CT54: 13.22 | CU54: 13.27 | CV54: 13.75 | CW54: 13.76 | CX54: 13.91 | CY54: NULL | CZ54: 13.88 | DA54: 14.1 | DB54: 13.92 | DC54: 14.01 | DD54: 13.66 | DE54: 13.85 | DF54: 13.21 | DG54: 13.5 | DH54: NULL | DI54: NULL | DJ54: 2620 | DK54: 1983 | DL54: 1743 | DM54: 2639 | DN54: 1771 | DO54: 3292 | DP54: 2364 | DQ54: 3291 | DR54: 1773 | DS54: 3291 | DT54: 1673 | DU54: 3292 | DV54: 1620 | DW54: 3293 | DX54: 1744 | DY54: 1325 | DZ54: 1339 | EA54: 3295 | EB54: 1054 | EC54: 725 | ED54: 12.12 | EE54: -20.15 | EF54: -0.04 | EG54: 19.99 | EH54: 16.4 | EI54: -0.04 | EJ54: 28.54 | EK54: 20 | EL54: NULL | EM54: 11.9 | EN54: 11.9 | EO54: 14.6 | EP54: 14.7 | EQ54: 11.3 | ER54: 12.1 | ES54: 39.54 | ET54: 4727 | EU54: 4723 | EV54: NULL | EW54: 12.6 | EX54: 0 | EY54: 3000 | EZ54: NULL | FA54: 1.081 | FB54: NULL | FC54: 1199 | FD54: 1 | FE54: 0 | FF54: NULL | FG54: NULL | FH54: NULL | FI54: NULL | FJ54: NULL | FK54: NULL | FL54: NULL | FM54: 0 | FN54: 0 | FO54: 263 | FP54: 0 | FQ54: 0.6 | FR54: 0.21 | FS54: 0.22 | FT54: 0.35 | FU54: 0.36 | FV54: NULL | FW54: NULL | FX54: 12.6 | FY54: 0 | FZ54: 0 | GA54: 13.99 | GB54: -19.97 | GC54: 40.02 | GD54: 12.28 | GE54: NULL | GF54: NULL | GG54: NULL | GH54: 7.86 | GI54: 12.94 | GJ54: -0.058
A55: 2023-08-01T04:00:00 | B55: 13.41 | C55: 14.29 | D55: 17.42 | E55: 17.38 | F55: 16.91 | G55: 17.08 | H55: 16.86 | I55: 16.73 | J55: 17.59 | K55: 17.83 | L55: 17.83 | M55: 17.85 | N55: 18.06 | O55: 17.91 | P55: 17.63 | Q55: 15.4 | R55: 0 | S55: 12.7 | T55: 64.8 | U55: 0.1611 | V55: 0.1672 | W55: 0.1547 | X55: 0.1663 | Y55: 0.1961 | Z55: 0.0558 | AA55: 0.256 | AB55: 0.3666 | AC55: 0.3861 | AD55: 0.3896 | AE55: 829.3 | AF55: 866.06 | AG55: 866.07 | AH55: 0 | AI55: 149 | AJ55: 140 | AK55: 0.2 | AL55: 1 | AM55: 0 | AN55: 0 | AO55: 0 | AP55: 0 | AQ55: 0.6 | AR55: 1.4 | AS55: 0.4 | AT55: 1 | AU55: NULL | AV55: NULL | AW55: NULL | AX55: 0 | AY55: 0 | AZ55: 0 | BA55: 220 | BB55: 0 | BC55: 216.1 | BD55: 0.1 | BE55: 219.4 | BF55: 0 | BG55: 207.3 | BH55: 0 | BI55: 211.1 | BJ55: 0 | BK55: 214.1 | BL55: 0 | BM55: 226.6 | BN55: 0 | BO55: 226.6 | BP55: NULL | BQ55: NULL | BR55: -0.65 | BS55: 0.12 | BT55: 118.46 | BU55: 129.06 | BV55: 0.1 | BW55: 694.7 | BX55: 0 | BY55: 499 | BZ55: 13.3 | CA55: NULL | CB55: 10.6 | CC55: NULL | CD55: 4.8 | CE55: NULL | CF55: NULL | CG55: NULL | CH55: 8.5 | CI55: 40.8 | CJ55: -27.2 | CK55: 9.6 | CL55: NULL | CM55: -23.7 | CN55: -17.3 | CO55: -21.8 | CP55: NULL | CQ55: NULL | CR55: 12.48 | CS55: 12.84 | CT55: 13.72 | CU55: 13.76 | CV55: 13.87 | CW55: 13.89 | CX55: 13.94 | CY55: NULL | CZ55: 13.85 | DA55: 13.97 | DB55: 13.82 | DC55: 13.89 | DD55: 13.65 | DE55: 13.83 | DF55: 13.5 | DG55: 13.67 | DH55: NULL | DI55: NULL | DJ55: 2643 | DK55: 2016 | DL55: 1776 | DM55: 2660 | DN55: 1806 | DO55: 3294 | DP55: 2385 | DQ55: 3295 | DR55: 1810 | DS55: 3294 | DT55: 1714 | DU55: 3295 | DV55: 1661 | DW55: 3295 | DX55: 1783 | DY55: 1358 | DZ55: 1370 | EA55: 3295 | EB55: 1096 | EC55: 757 | ED55: 11.54 | EE55: -20.15 | EF55: -0.04 | EG55: 20 | EH55: 16.3 | EI55: -0.04 | EJ55: 28.59 | EK55: NULL | EL55: NULL | EM55: 11.9 | EN55: 11.8 | EO55: 13.8 | EP55: 13.8 | EQ55: 11.1 | ER55: 11.8 | ES55: 39.37 | ET55: 4509 | EU55: 4508 | EV55: NULL | EW55: 12.6 | EX55: 0 | EY55: 3000 | EZ55: NULL | FA55: NULL | FB55: NULL | FC55: 1199 | FD55: 1 | FE55: NULL | FF55: NULL | FG55: NULL | FH55: NULL | FI55: NULL | FJ55: NULL | FK55: NULL | FL55: NULL | FM55: 0 | FN55: 0 | FO55: 275 | FP55: 0 | FQ55: 0.5 | FR55: 0.21 | FS55: 0.21 | FT55: 0.36 | FU55: 0.36 | FV55: NULL | FW55: NULL | FX55: 12.48 | FY55: 0 | FZ55: -0.02 | GA55: 14.15 | GB55: -19.98 | GC55: 40.02 | GD55: 12.08 | GE55: NULL | GF55: NULL | GG55: NULL | GH55: 8.73 | GI55: 12.48 | GJ55: -0.0446
A56: 2023-08-01T05:00:00 | B56: 13.53 | C56: 13.68 | D56: 17.27 | E56: 17.29 | F56: 16.92 | G56: 16.88 | H56: 16.71 | I56: 16.58 | J56: 17.38 | K56: 17.66 | L56: 17.66 | M56: 17.74 | N56: 17.94 | O56: 17.87 | P56: 17.61 | Q56: 15.1 | R56: 0 | S56: 13.3 | T56: 59.8 | U56: 0.1611 | V56: 0.167 | W56: 0.1545 | X56: 0.1663 | Y56: 0.1956 | Z56: 0.056 | AA56: 0.2559 | AB56: 0.3664 | AC56: 0.3861 | AD56: 0.3895 | AE56: 827.7 | AF56: 865.98 | AG56: 866.01 | AH56: 0 | AI56: 152 | AJ56: 210 | AK56: 0.1 | AL56: 1.4 | AM56: 0 | AN56: 0 | AO56: 0 | AP56: 0 | AQ56: 0.5 | AR56: 1.9 | AS56: 0.6 | AT56: 0.9 | AU56: NULL | AV56: NULL | AW56: NULL | AX56: 0 | AY56: 0 | AZ56: 0 | BA56: 220 | BB56: 0.1 | BC56: 216.2 | BD56: 0 | BE56: 219.4 | BF56: 0.1 | BG56: 207.4 | BH56: 0 | BI56: 211.1 | BJ56: 0 | BK56: 214.1 | BL56: 0 | BM56: 226.6 | BN56: -0.1 | BO56: 226.5 | BP56: NULL | BQ56: NULL | BR56: 1.31 | BS56: 0.67 | BT56: 120.72 | BU56: 130.9 | BV56: 0 | BW56: 694.7 | BX56: 0.1 | BY56: 499.1 | BZ56: 13.2 | CA56: NULL | CB56: NULL | CC56: NULL | CD56: 4.4 | CE56: 0 | CF56: NULL | CG56: NULL | CH56: 8.9 | CI56: 41.3 | CJ56: -27.2 | CK56: 10.3 | CL56: NULL | CM56: -20.8 | CN56: -15.8 | CO56: -19.5 | CP56: NULL | CQ56: NULL | CR56: 12.56 | CS56: 12.86 | CT56: 13.59 | CU56: 13.61 | CV56: 13.77 | CW56: 13.75 | CX56: 13.83 | CY56: NULL | CZ56: 13.74 | DA56: 13.85 | DB56: 13.73 | DC56: 13.77 | DD56: 13.59 | DE56: 13.73 | DF56: 13.46 | DG56: 13.58 | DH56: NULL | DI56: NULL | DJ56: 2603 | DK56: 1947 | DL56: 1705 | DM56: 2629 | DN56: 1735 | DO56: 3295 | DP56: 2342 | DQ56: 3296 | DR56: 1735 | DS56: 3295 | DT56: 1634 | DU56: 3296 | DV56: 1581 | DW56: 3296 | DX56: 1707 | DY56: 1293 | DZ56: 1306 | EA56: 3297 | EB56: 1016 | EC56: 694 | ED56: 11.34 | EE56: -20.15 | EF56: -0.04 | EG56: 20 | EH56: 16.2 | EI56: -0.04 | EJ56: 28.54 | EK56: 19 | EL56: NULL | EM56: 12.6 | EN56: 12.6 | EO56: 13.9 | EP56: 13.8 | EQ56: 11.3 | ER56: 12.5 | ES56: 39.42 | ET56: 4947 | EU56: 4946 | EV56: NULL | EW56: 12.6 | EX56: 0 | EY56: 3000 | EZ56: NULL | FA56: 0.958 | FB56: NULL | FC56: 1201 | FD56: 1 | FE56: 0 | FF56: NULL | FG56: NULL | FH56: NULL | FI56: NULL | FJ56: NULL | FK56: NULL | FL56: NULL | FM56: 0 | FN56: 0 | FO56: 194 | FP56: 0 | FQ56: 0.8 | FR56: 1.71 | FS56: 2.81 | FT56: 1.66 | FU56: 2.7 | FV56: NULL | FW56: NULL | FX56: 12.82 | FY56: 0 | FZ56: 0 | GA56: 13.84 | GB56: -19.97 | GC56: 40.02 | GD56: 12.47 | GE56: NULL | GF56: NULL | GG56: NULL | GH56: 9.27 | GI56: 13.04 | GJ56: -0.0435
A57: 2023-08-01T06:00:00 | B57: 15.07 | C57: 15.48 | D57: 17.14 | E57: 17.2 | F57: 16.91 | G57: 16.73 | H57: 16.58 | I57: 16.5 | J57: 17.25 | K57: 17.46 | L57: 17.46 | M57: 17.63 | N57: 17.83 | O57: 17.83 | P57: 17.55 | Q57: 16.5 | R57: 0 | S57: 13.7 | T57: 53.3 | U57: 0.1611 | V57: 0.1671 | W57: 0.1547 | X57: 0.1662 | Y57: 0.1951 | Z57: 0.0543 | AA57: 0.2558 | AB57: 0.3662 | AC57: 0.3861 | AD57: 0.3895 | AE57: 824.2 | AF57: 866.21 | AG57: 866.23 | AH57: 0 | AI57: 265 | AJ57: 240 | AK57: 0.4 | AL57: 3 | AM57: 0 | AN57: 0 | AO57: 0 | AP57: 0 | AQ57: 0.7 | AR57: 3.9 | AS57: 0.7 | AT57: 2.1 | AU57: NULL | AV57: NULL | AW57: NULL | AX57: 0 | AY57: 0 | AZ57: 0 | BA57: 220 | BB57: 0 | BC57: 216.2 | BD57: -0.1 | BE57: 219.3 | BF57: -0.1 | BG57: 207.3 | BH57: 0 | BI57: 211.1 | BJ57: 0 | BK57: 214.1 | BL57: -0.1 | BM57: 226.5 | BN57: 0 | BO57: 226.5 | BP57: NULL | BQ57: NULL | BR57: 9.69 | BS57: 2.29 | BT57: 120.67 | BU57: 132.27 | BV57: 0.1 | BW57: 694.8 | BX57: 0 | BY57: 499.1 | BZ57: 13.4 | CA57: NULL | CB57: 12.1 | CC57: NULL | CD57: 4.6 | CE57: -0.2 | CF57: NULL | CG57: NULL | CH57: 12.1 | CI57: 41.6 | CJ57: -27.2 | CK57: 12.9 | CL57: NULL | CM57: -15.8 | CN57: -11.1 | CO57: -14.9 | CP57: NULL | CQ57: NULL | CR57: 14.8 | CS57: 14.7 | CT57: 15.34 | CU57: 15.31 | CV57: 15.41 | CW57: 15.36 | CX57: 15.52 | CY57: NULL | CZ57: 15.51 | DA57: 15.47 | DB57: 15.48 | DC57: 15.47 | DD57: 15.52 | DE57: 15.57 | DF57: 15.59 | DG57: 15.55 | DH57: NULL | DI57: NULL | DJ57: 2698 | DK57: 2078 | DL57: 1829 | DM57: 2727 | DN57: 1858 | DO57: 3209 | DP57: 2438 | DQ57: 3317 | DR57: 1823 | DS57: 3337 | DT57: 1716 | DU57: 3352 | DV57: 1666 | DW57: 3499 | DX57: 1838 | DY57: 1401 | DZ57: 1409 | EA57: 3506 | EB57: 1102 | EC57: 760 | ED57: 11.38 | EE57: -20.15 | EF57: -0.04 | EG57: 19.99 | EH57: 16.2 | EI57: -0.04 | EJ57: 28.57 | EK57: 20 | EL57: NULL | EM57: 14.7 | EN57: 14.8 | EO57: 14.2 | EP57: 13.9 | EQ57: 13.6 | ER57: 12.7 | ES57: 39.39 | ET57: 4561 | EU57: 4553 | EV57: NULL | EW57: 12.6 | EX57: 0 | EY57: 3000 | EZ57: NULL | FA57: 1.047 | FB57: NULL | FC57: 1201 | FD57: 1 | FE57: 0 | FF57: NULL | FG57: NULL | FH57: NULL | FI57: NULL | FJ57: NULL | FK57: NULL | FL57: NULL | FM57: 0 | FN57: 0 | FO57: 227 | FP57: 0 | FQ57: 1.4 | FR57: 11.86 | FS57: 13.33 | FT57: 11.33 | FU57: 12.86 | FV57: NULL | FW57: NULL | FX57: 13.87 | FY57: 0 | FZ57: 0 | GA57: 15.38 | GB57: -19.98 | GC57: 40.02 | GD57: 13.49 | GE57: NULL | GF57: NULL | GG57: NULL | GH57: 13.14 | GI57: 13.36 | GJ57: -0.0018
A58: 2023-08-01T07:00:00 | B58: 15.69 | C58: 15.33 | D58: 17.06 | E58: 17.11 | F58: 16.91 | G58: 16.9 | H58: 16.75 | I58: 16.73 | J58: 17.16 | K58: 17.4 | L58: 17.42 | M58: 17.57 | N58: 17.74 | O58: 17.76 | P58: 17.57 | Q58: 16.6 | R58: 0 | S58: 15.9 | T58: 56.4 | U58: 0.1613 | V58: 0.1672 | W58: 0.1547 | X58: 0.1663 | Y58: 0.1948 | Z58: 0.0484 | AA58: 0.2557 | AB58: 0.3658 | AC58: 0.3859 | AD58: 0.3893 | AE58: 826.2 | AF58: 866.42 | AG58: 866.42 | AH58: 0 | AI58: 272 | AJ58: 320 | AK58: 0.6 | AL58: 5.8 | AM58: 0 | AN58: 0 | AO58: 0 | AP58: 0 | AQ58: 1 | AR58: 6.5 | AS58: 0.8 | AT58: 2.9 | AU58: NULL | AV58: NULL | AW58: NULL | AX58: 0 | AY58: 0 | AZ58: -0.1 | BA58: 219.9 | BB58: 0 | BC58: 216.2 | BD58: 0 | BE58: 219.3 | BF58: 0 | BG58: 207.3 | BH58: -0.1 | BI58: 211 | BJ58: 0 | BK58: 214.1 | BL58: 0 | BM58: 226.5 | BN58: 0 | BO58: 226.5 | BP58: NULL | BQ58: NULL | BR58: 42.23 | BS58: 10.22 | BT58: 130.94 | BU58: 140 | BV58: 0.1 | BW58: 694.9 | BX58: 0 | BY58: 499.1 | BZ58: 12.8 | CA58: NULL | CB58: 5.3 | CC58: NULL | CD58: 4.3 | CE58: NULL | CF58: NULL | CG58: NULL | CH58: 15.4 | CI58: 42.2 | CJ58: -27.2 | CK58: 16 | CL58: NULL | CM58: -3.2 | CN58: -1.1 | CO58: -1.7 | CP58: NULL | CQ58: NULL | CR58: 16.4 | CS58: 16.08 | CT58: 15.95 | CU58: 16.08 | CV58: 15.94 | CW58: 15.96 | CX58: 15.94 | CY58: NULL | CZ58: 15.86 | DA58: 16.01 | DB58: 15.93 | DC58: 15.93 | DD58: 16.04 | DE58: 16.07 | DF58: 16.06 | DG58: 16.03 | DH58: NULL | DI58: NULL | DJ58: 2642 | DK58: 2015 | DL58: 1750 | DM58: 2524 | DN58: 1771 | DO58: 3293 | DP58: 2398 | DQ58: 3294 | DR58: 1783 | DS58: 3290 | DT58: 1674 | DU58: 3292 | DV58: 1621 | DW58: 3288 | DX58: 1750 | DY58: 1332 | DZ58: 1340 | EA58: 3292 | EB58: 1056 | EC58: 724 | ED58: 13.13 | EE58: -20.14 | EF58: -0.05 | EG58: 19.99 | EH58: 16.1 | EI58: -0.04 | EJ58: 28.54 | EK58: NULL | EL58: NULL | EM58: 18.4 | EN58: 18.4 | EO58: 16.6 | EP58: 15.9 | EQ58: 17.2 | ER58: 16 | ES58: 39.51 | ET58: 4728 | EU58: 4725 | EV58: NULL | EW58: 12.5 | EX58: 0 | EY58: 3000 | EZ58: NULL | FA58: NULL | FB58: NULL | FC58: 1203 | FD58: 1 | FE58: NULL | FF58: NULL | FG58: NULL | FH58: NULL | FI58: NULL | FJ58: NULL | FK58: NULL | FL58: NULL | FM58: 0 | FN58: 0 | FO58: 216 | FP58: 0 | FQ58: 0.5 | FR58: 48.7 | FS58: 50.61 | FT58: 47.65 | FU58: 49.51 | FV58: NULL | FW58: NULL | FX58: 16.4 | FY58: 0 | FZ58: 0 | GA58: 15.36 | GB58: -19.98 | GC58: 40.02 | GD58: 16.26 | GE58: NULL | GF58: NULL | GG58: NULL | GH58: 15.84 | GI58: 16.25 | GJ58: -0.003
A59: 2023-08-01T08:00:00 | B59: 15.25 | C59: 14.64 | D59: 17.05 | E59: 17.04 | F59: 16.89 | G59: 17.22 | H59: 17.07 | I59: 17.15 | J59: 17.22 | K59: 17.39 | L59: 17.39 | M59: 17.43 | N59: 17.65 | O59: 17.69 | P59: 17.47 | Q59: 16.1 | R59: 0 | S59: 15.4 | T59: 61.1 | U59: 0.1616 | V59: 0.1675 | W59: 0.1552 | X59: 0.1664 | Y59: 0.1943 | Z59: 0.045 | AA59: 0.2557 | AB59: 0.3658 | AC59: 0.3859 | AD59: 0.3893 | AE59: 828.2 | AF59: 866.69 | AG59: 866.7 | AH59: 0 | AI59: 279 | AJ59: 270 | AK59: 0.6 | AL59: 3 | AM59: 0 | AN59: 0 | AO59: 0 | AP59: 0 | AQ59: 1 | AR59: 4.2 | AS59: 1 | AT59: 2 | AU59: NULL | AV59: NULL | AW59: NULL | AX59: 12 | AY59: 0.2 | AZ59: 0.2 | BA59: 220.1 | BB59: 0.1 | BC59: 216.3 | BD59: 0.1 | BE59: 219.4 | BF59: 0.2 | BG59: 207.5 | BH59: 0.1 | BI59: 211.1 | BJ59: 0.1 | BK59: 214.2 | BL59: 0.3 | BM59: 226.8 | BN59: 0.3 | BO59: 226.8 | BP59: NULL | BQ59: NULL | BR59: 55.21 | BS59: 12.71 | BT59: 131.85 | BU59: 141.58 | BV59: 0 | BW59: 694.9 | BX59: 0 | BY59: 499.1 | BZ59: 13.9 | CA59: NULL | CB59: 10 | CC59: NULL | CD59: 4.5 | CE59: NULL | CF59: NULL | CG59: NULL | CH59: 13.8 | CI59: 41 | CJ59: -27.2 | CK59: 15.3 | CL59: NULL | CM59: 2.8 | CN59: 3 | CO59: 5.7 | CP59: NULL | CQ59: NULL | CR59: 15.49 | CS59: 14.81 | CT59: 15.23 | CU59: 15.36 | CV59: 15.24 | CW59: 15.25 | CX59: 15.21 | CY59: NULL | CZ59: 15.13 | DA59: 15.29 | DB59: 15.16 | DC59: 15.19 | DD59: 15.22 | DE59: 15.29 | DF59: 15.2 | DG59: 15.22 | DH59: NULL | DI59: NULL | DJ59: 2622 | DK59: 1993 | DL59: 1736 | DM59: 2435 | DN59: 1745 | DO59: 3293 | DP59: 2380 | DQ59: 3294 | DR59: 1764 | DS59: 3294 | DT59: 1659 | DU59: 3296 | DV59: 1606 | DW59: 3297 | DX59: 1733 | DY59: 1319 | DZ59: 1328 | EA59: 3297 | EB59: 1040 | EC59: 711 | ED59: 14.14 | EE59: -20.15 | EF59: -0.04 | EG59: 20 | EH59: 16.1 | EI59: -0.06 | EJ59: 28.53 | EK59: NULL | EL59: NULL | EM59: 17.1 | EN59: 17 | EO59: 16.6 | EP59: 16.2 | EQ59: 16 | ER59: 15.6 | ES59: 39.49 | ET59: 4823 | EU59: 4822 | EV59: NULL | EW59: 12.6 | EX59: 0 | EY59: 3000 | EZ59: NULL | FA59: NULL | FB59: NULL | FC59: 1201 | FD59: 1 | FE59: NULL | FF59: NULL | FG59: NULL | FH59: NULL | FI59: NULL | FJ59: NULL | FK59: NULL | FL59: NULL | FM59: 0 | FN59: 0 | FO59: 257 | FP59: 0 | FQ59: 1 | FR59: 65.1 | FS59: 64.51 | FT59: 62.97 | FU59: 62.43 | FV59: NULL | FW59: NULL | FX59: 16.08 | FY59: 0 | FZ59: 0 | GA59: 14.89 | GB59: -19.97 | GC59: 40.03 | GD59: 15.38 | GE59: NULL | GF59: NULL | GG59: NULL | GH59: 15.16 | GI59: 16.03 | GJ59: -0.0095
A60: 2023-08-01T09:00:00 | B60: 14.72 | C60: 14.3 | D60: 17.08 | E60: 16.99 | F60: 16.89 | G60: 17.47 | H60: 17.37 | I60: 17.54 | J60: 17.34 | K60: 17.47 | L60: 17.47 | M60: 17.39 | N60: 17.6 | O60: 17.65 | P60: 17.45 | Q60: 15.3 | R60: 0 | S60: 15.4 | T60: 68.5 | U60: 0.162 | V60: 0.1677 | W60: 0.1554 | X60: 0.1665 | Y60: 0.1941 | Z60: 0.043 | AA60: 0.2557 | AB60: 0.3656 | AC60: 0.3858 | AD60: 0.3891 | AE60: 831.9 | AF60: 866.83 | AG60: 866.85 | AH60: 0 | AI60: 7 | AJ60: 30 | AK60: 0.5 | AL60: 2.8 | AM60: 0 | AN60: 0 | AO60: 0 | AP60: 0 | AQ60: 0.8 | AR60: 4 | AS60: 0.9 | AT60: 2.1 | AU60: NULL | AV60: NULL | AW60: NULL | AX60: 0 | AY60: 0 | AZ60: 0 | BA60: 220.1 | BB60: 0.1 | BC60: 216.4 | BD60: 0.1 | BE60: 219.5 | BF60: 0 | BG60: 207.5 | BH60: 0.1 | BI60: 211.2 | BJ60: 0 | BK60: 214.2 | BL60: 0 | BM60: 226.8 | BN60: 0 | BO60: 226.8 | BP60: NULL | BQ60: NULL | BR60: 56.98 | BS60: 12.75 | BT60: 135.56 | BU60: 142.44 | BV60: 0.1 | BW60: 695 | BX60: 0.1 | BY60: 499.2 | BZ60: 14.7 | CA60: NULL | CB60: 9.4 | CC60: NULL | CD60: 4.7 | CE60: -0.3 | CF60: NULL | CG60: NULL | CH60: 16.8 | CI60: 41.2 | CJ60: -27.2 | CK60: 16.7 | CL60: NULL | CM60: 9.8 | CN60: 7.5 | CO60: 10.7 | CP60: NULL | CQ60: NULL | CR60: 15.54 | CS60: 15.77 | CT60: 15.19 | CU60: 15.25 | CV60: 15.07 | CW60: 14.98 | CX60: 15.03 | CY60: NULL | CZ60: 14.98 | DA60: 14.99 | DB60: 14.94 | DC60: 14.94 | DD60: 15.15 | DE60: 15.24 | DF60: 15.19 | DG60: 15.17 | DH60: NULL | DI60: NULL | DJ60: 2608 | DK60: 1978 | DL60: 1722 | DM60: 2338 | DN60: 1719 | DO60: 3295 | DP60: 2369 | DQ60: 3296 | DR60: 1745 | DS60: 3296 | DT60: 1640 | DU60: 3297 | DV60: 1587 | DW60: 3295 | DX60: 1715 | DY60: 1307 | DZ60: 1327 | EA60: 3297 | EB60: 1020 | EC60: 696 | ED60: 14.83 | EE60: -20.15 | EF60: -0.04 | EG60: 20 | EH60: 16.1 | EI60: -0.04 | EJ60: 28.57 | EK60: 22 | EL60: NULL | EM60: 18.5 | EN60: 18.6 | EO60: 16.7 | EP60: 16.3 | EQ60: 17.6 | ER60: 16 | ES60: 39.78 | ET60: 4943 | EU60: 4942 | EV60: NULL | EW60: 12.6 | EX60: 0 | EY60: 3000 | EZ60: NULL | FA60: 1.052 | FB60: NULL | FC60: 1202 | FD60: 1 | FE60: 0 | FF60: NULL | FG60: NULL | FH60: NULL | FI60: NULL | FJ60: NULL | FK60: NULL | FL60: NULL | FM60: 0 | FN60: 0 | FO60: 266 | FP60: 0 | FQ60: 1.3 | FR60: 63.13 | FS60: 70.26 | FT60: 61.01 | FU60: 67.06 | FV60: NULL | FW60: NULL | FX60: 16.26 | FY60: 0 | FZ60: 0 | GA60: 14.66 | GB60: -19.99 | GC60: 40.02 | GD60: 15.69 | GE60: NULL | GF60: NULL | GG60: NULL | GH60: 17.04 | GI60: 16.24 | GJ60: 0.0086
A61: 2023-08-01T10:00:00 | B61: 14.56 | C61: 13.63 | D61: 17.15 | E61: 16.95 | F61: 16.87 | G61: 17.82 | H61: 17.71 | I61: 17.92 | J61: 17.47 | K61: 17.62 | L61: 17.54 | M61: 17.32 | N61: 17.58 | O61: 17.62 | P61: 17.37 | Q61: 15.2 | R61: 0 | S61: 14.3 | T61: 85.1 | U61: 0.1622 | V61: 0.168 | W61: 0.1559 | X61: 0.1667 | Y61: 0.1938 | Z61: 0.0419 | AA61: 0.2557 | AB61: 0.3654 | AC61: 0.3857 | AD61: 0.389 | AE61: 838.4 | AF61: 866.91 | AG61: 866.91 | AH61: 0 | AI61: 265 | AJ61: 190 | AK61: 0.2 | AL61: 2 | AM61: 0 | AN61: 0 | AO61: 0 | AP61: 0.4 | AQ61: 0.4 | AR61: 3.2 | AS61: 0.6 | AT61: 1.5 | AU61: NULL | AV61: NULL | AW61: NULL | AX61: 0.7 | AY61: 0.7 | AZ61: 0.7 | BA61: 220.8 | BB61: 0.6 | BC61: 217 | BD61: 0.7 | BE61: 220.2 | BF61: 0.7 | BG61: 208.2 | BH61: 0.7 | BI61: 211.9 | BJ61: 0.8 | BK61: 215 | BL61: 0.7 | BM61: 227.5 | BN61: 0.8 | BO61: 227.6 | BP61: NULL | BQ61: NULL | BR61: 58.35 | BS61: 12.79 | BT61: 136.48 | BU61: 143.26 | BV61: 0 | BW61: 695 | BX61: 0 | BY61: 499.2 | BZ61: 14.2 | CA61: NULL | CB61: 9.7 | CC61: NULL | CD61: 4.8 | CE61: NULL | CF61: NULL | CG61: NULL | CH61: 16.4 | CI61: 41.3 | CJ61: -27.2 | CK61: 16.7 | CL61: NULL | CM61: 6.5 | CN61: 4.9 | CO61: 8.5 | CP61: NULL | CQ61: NULL | CR61: 14.46 | CS61: 13.65 | CT61: 14.81 | CU61: 15 | CV61: 14.71 | CW61: 14.8 | CX61: 14.72 | CY61: NULL | CZ61: 14.61 | DA61: 14.85 | DB61: 14.73 | DC61: 14.8 | DD61: 14.93 | DE61: 15.03 | DF61: 15 | DG61: 14.94 | DH61: NULL | DI61: NULL | DJ61: 2601 | DK61: 1993 | DL61: 1779 | DM61: 2499 | DN61: 1757 | DO61: 3291 | DP61: 2355 | DQ61: 3292 | DR61: 1747 | DS61: 3291 | DT61: 1640 | DU61: 3293 | DV61: 1587 | DW61: 3293 | DX61: 1723 | DY61: 1322 | DZ61: 1373 | EA61: 3294 | EB61: 1022 | EC61: 703 | ED61: 15.38 | EE61: -20.15 | EF61: -0.04 | EG61: 19.99 | EH61: 16.1 | EI61: -0.02 | EJ61: 28.59 | EK61: NULL | EL61: NULL | EM61: 16.4 | EN61: 16.2 | EO61: 16.5 | EP61: 16.4 | EQ61: 15.3 | ER61: 15.4 | ES61: 39.96 | ET61: 4947 | EU61: 4946 | EV61: NULL | EW61: 12.6 | EX61: 0 | EY61: 3000 | EZ61: NULL | FA61: NULL | FB61: NULL | FC61: 1207 | FD61: 1 | FE61: NULL | FF61: NULL | FG61: NULL | FH61: NULL | FI61: NULL | FJ61: NULL | FK61: NULL | FL61: NULL | FM61: 0 | FN61: 0 | FO61: 257 | FP61: 0 | FQ61: 0.6 | FR61: 64.86 | FS61: 67.67 | FT61: 62.9 | FU61: 65.53 | FV61: NULL | FW61: NULL | FX61: 15.77 | FY61: 0 | FZ61: -0.04 | GA61: 13.84 | GB61: -19.98 | GC61: 40.03 | GD61: 14.81 | GE61: NULL | GF61: NULL | GG61: NULL | GH61: 17.18 | GI61: 15.75 | GJ61: 0.0168
A62: 2023-08-01T11:00:00 | B62: 15.9 | C62: 14.89 | D62: 17.22 | E62: 16.94 | F62: 16.86 | G62: 18.18 | H62: 18.07 | I62: 18.41 | J62: 17.64 | K62: 17.75 | L62: 17.6 | M62: 17.36 | N62: 17.55 | O62: 17.55 | P62: 17.34 | Q62: 16.2 | R62: 0 | S62: 16.6 | T62: 78.8 | U62: 0.1626 | V62: 0.1685 | W62: 0.1563 | X62: 0.1668 | Y62: 0.1935 | Z62: 0.0419 | AA62: 0.2557 | AB62: 0.3653 | AC62: 0.3857 | AD62: 0.389 | AE62: 837.1 | AF62: 866.73 | AG62: 866.76 | AH62: 0 | AI62: 62 | AJ62: 320 | AK62: 0.6 | AL62: 3.2 | AM62: 0 | AN62: 0 | AO62: 0 | AP62: 0 | AQ62: 1.1 | AR62: 3.9 | AS62: 0.9 | AT62: 1.8 | AU62: NULL | AV62: NULL | AW62: NULL | AX62: 0.2 | AY62: 0.2 | AZ62: 0.1 | BA62: 220.9 | BB62: 0.1 | BC62: 217.1 | BD62: 0.1 | BE62: 220.3 | BF62: 0.1 | BG62: 208.3 | BH62: 0 | BI62: 211.9 | BJ62: 0 | BK62: 215 | BL62: 0.2 | BM62: 227.7 | BN62: 0.1 | BO62: 227.7 | BP62: NULL | BQ62: NULL | BR62: 124 | BS62: 27.62 | BT62: 135.51 | BU62: 147.81 | BV62: 0.1 | BW62: 695.1 | BX62: 0 | BY62: 499.2 | BZ62: 14 | CA62: NULL | CB62: NULL | CC62: NULL | CD62: 4.8 | CE62: NULL | CF62: NULL | CG62: NULL | CH62: 19 | CI62: 41.8 | CJ62: -27.2 | CK62: 18.7 | CL62: NULL | CM62: 25.3 | CN62: 20 | CO62: 30 | CP62: NULL | CQ62: NULL | CR62: 16.27 | CS62: 16.49 | CT62: 16.14 | CU62: 16.24 | CV62: 16.03 | CW62: 15.92 | CX62: 15.98 | CY62: NULL | CZ62: 15.93 | DA62: 15.99 | DB62: 15.98 | DC62: 15.92 | DD62: 16.29 | DE62: 16.37 | DF62: 16.51 | DG62: 16.42 | DH62: NULL | DI62: NULL | DJ62: 2620 | DK62: 1994 | DL62: 1735 | DM62: 2428 | DN62: 1739 | DO62: 3296 | DP62: 2360 | DQ62: 3296 | DR62: 1754 | DS62: 3295 | DT62: 1644 | DU62: 3296 | DV62: 1593 | DW62: 3296 | DX62: 1725 | DY62: 1322 | DZ62: 1353 | EA62: 3296 | EB62: 1025 | EC62: 703 | ED62: 16.24 | EE62: -20.15 | EF62: -0.04 | EG62: 19.99 | EH62: 16.1 | EI62: -0.06 | EJ62: 28.56 | EK62: NULL | EL62: NULL | EM62: 22.2 | EN62: 22.1 | EO62: 18.3 | EP62: 17.7 | EQ62: 20.5 | ER62: 18 | ES62: 40.11 | ET62: 4949 | EU62: 4948 | EV62: NULL | EW62: 12.6 | EX62: 0 | EY62: 3000 | EZ62: NULL | FA62: NULL | FB62: NULL | FC62: 1214 | FD62: 1 | FE62: NULL | FF62: NULL | FG62: NULL | FH62: NULL | FI62: NULL | FJ62: NULL | FK62: NULL | FL62: NULL | FM62: 0 | FN62: 0 | FO62: 260 | FP62: 0 | FQ62: 1.2 | FR62: 137.32 | FS62: 137.37 | FT62: 122.84 | FU62: 124.15 | FV62: NULL | FW62: NULL | FX62: 18.12 | FY62: 0 | FZ62: 0.02 | GA62: 15.3 | GB62: -19.97 | GC62: 40.02 | GD62: 17.41 | GE62: NULL | GF62: NULL | GG62: NULL | GH62: 18.82 | GI62: 18.01 | GJ62: 0.0098
A63: 2023-08-01T12:00:00 | B63: 17.03 | C63: 16.29 | D63: 17.37 | E63: 16.94 | F63: 16.84 | G63: 18.94 | H63: 18.77 | I63: 19.29 | J63: 18 | K63: 17.98 | L63: 17.8 | M63: 17.33 | N63: 17.59 | O63: 17.55 | P63: 17.31 | Q63: 17.9 | R63: 0 | S63: 17.6 | T63: 72.6 | U63: 0.1633 | V63: 0.169 | W63: 0.157 | X63: 0.1671 | Y63: 0.1932 | Z63: 0.0431 | AA63: 0.2558 | AB63: 0.3649 | AC63: 0.3856 | AD63: 0.3886 | AE63: 835 | AF63: 866.39 | AG63: 866.4 | AH63: 0 | AI63: 293 | AJ63: 250 | AK63: 0.9 | AL63: 3.4 | AM63: 0 | AN63: 0 | AO63: 0 | AP63: 0 | AQ63: 1.2 | AR63: 4.4 | AS63: 1 | AT63: 2.2 | AU63: NULL | AV63: NULL | AW63: NULL | AX63: 0 | AY63: 0 | AZ63: 0 | BA63: 220.9 | BB63: -0.1 | BC63: 217 | BD63: -0.1 | BE63: 220.2 | BF63: -0.1 | BG63: 208.2 | BH63: 0 | BI63: 211.9 | BJ63: 0 | BK63: 215 | BL63: 0 | BM63: 227.7 | BN63: 0 | BO63: 227.7 | BP63: NULL | BQ63: NULL | BR63: 169.79 | BS63: 38.69 | BT63: 135.83 | BU63: 152.03 | BV63: 0 | BW63: 695.1 | BX63: 0 | BY63: 499.2 | BZ63: 14.4 | CA63: NULL | CB63: 2.5 | CC63: NULL | CD63: 4.8 | CE63: -0.7 | CF63: NULL | CG63: NULL | CH63: 18.8 | CI63: 42.3 | CJ63: -27.2 | CK63: 19.6 | CL63: NULL | CM63: 30 | CN63: 22.5 | CO63: 38.2 | CP63: NULL | CQ63: NULL | CR63: 18.11 | CS63: 17.99 | CT63: 17.22 | CU63: 17.43 | CV63: 17.06 | CW63: 17.15 | CX63: 17.07 | CY63: NULL | CZ63: 16.99 | DA63: 17.16 | DB63: 17.06 | DC63: 17.1 | DD63: 17.29 | DE63: 17.39 | DF63: 17.46 | DG63: 17.38 | DH63: NULL | DI63: NULL | DJ63: 2619 | DK63: 2001 | DL63: 1737 | DM63: 2334 | DN63: 1733 | DO63: 3298 | DP63: 2361 | DQ63: 3297 | DR63: 1761 | DS63: 3298 | DT63: 1648 | DU63: 3300 | DV63: 1596 | DW63: 3301 | DX63: 1730 | DY63: 1322 | DZ63: 1350 | EA63: 3303 | EB63: 1029 | EC63: 709 | ED63: 18.39 | EE63: -20.15 | EF63: -0.04 | EG63: 19.99 | EH63: 16.1 | EI63: -0.04 | EJ63: 28.57 | EK63: 26 | EL63: NULL | EM63: 23.8 | EN63: 23.8 | EO63: 19.5 | EP63: 18.9 | EQ63: 23.1 | ER63: 19.9 | ES63: 40.82 | ET63: 4925 | EU63: 4922 | EV63: NULL | EW63: 12.6 | EX63: 0 | EY63: 3000 | EZ63: NULL | FA63: 1.834 | FB63: NULL | FC63: 1214 | FD63: 1 | FE63: 0 | FF63: NULL | FG63: NULL | FH63: NULL | FI63: NULL | FJ63: NULL | FK63: NULL | FL63: NULL | FM63: 0 | FN63: 0 | FO63: 189 | FP63: 0 | FQ63: 1.3 | FR63: 184.38 | FS63: 176.03 | FT63: 155.31 | FU63: 151.1 | FV63: NULL | FW63: NULL | FX63: 18.79 | FY63: 0 | FZ63: 0 | GA63: 16.63 | GB63: -19.98 | GC63: 40.02 | GD63: 18.63 | GE63: NULL | GF63: NULL | GG63: NULL | GH63: 19.54 | GI63: 19.3 | GJ63: 0.0006
A64: 2023-08-01T13:00:00 | B64: 19.02 | C64: 18.13 | D64: 17.57 | E64: 16.97 | F64: 16.82 | G64: 19.43 | H64: 19.28 | I64: 19.8 | J64: 18.34 | K64: 18.29 | L64: 18.04 | M64: 17.39 | N64: 17.63 | O64: 17.52 | P64: 17.29 | Q64: 19 | R64: 0 | S64: 20.2 | T64: 65 | U64: 0.1636 | V64: 0.1691 | W64: 0.1574 | X64: 0.1673 | Y64: 0.1928 | Z64: 0.0447 | AA64: 0.2559 | AB64: 0.3648 | AC64: 0.3855 | AD64: 0.3883 | AE64: 832 | AF64: 866.33 | AG64: 866.34 | AH64: 0 | AI64: 132 | AJ64: 150 | AK64: 0.7 | AL64: 3.2 | AM64: 0 | AN64: 0 | AO64: 0 | AP64: 0 | AQ64: 1.1 | AR64: 5.1 | AS64: 1 | AT64: 2.1 | AU64: NULL | AV64: NULL | AW64: NULL | AX64: 0 | AY64: 0 | AZ64: 0 | BA64: 220.9 | BB64: 0.1 | BC64: 217.1 | BD64: 0 | BE64: 220.2 | BF64: 0.1 | BG64: 208.3 | BH64: 0 | BI64: 211.9 | BJ64: -0.1 | BK64: 214.9 | BL64: 0 | BM64: 227.7 | BN64: -0.1 | BO64: 227.6 | BP64: NULL | BQ64: NULL | BR64: 144.68 | BS64: 33.23 | BT64: 132.9 | BU64: 151.37 | BV64: 0.1 | BW64: 695.2 | BX64: 0 | BY64: 499.2 | BZ64: 13.4 | CA64: NULL | CB64: NULL | CC64: NULL | CD64: 4.8 | CE64: NULL | CF64: NULL | CG64: NULL | CH64: 26.8 | CI64: 42.7 | CJ64: -27.2 | CK64: 25.2 | CL64: NULL | CM64: 40.6 | CN64: 28.4 | CO64: 44.6 | CP64: NULL | CQ64: NULL | CR64: 21.2 | CS64: 22.05 | CT64: 20.43 | CU64: 20.25 | CV64: 20.03 | CW64: 19.71 | CX64: 19.95 | CY64: NULL | CZ64: 20.24 | DA64: 20.43 | DB64: 21.41 | DC64: 20.03 | DD64: 20.47 | DE64: 20.48 | DF64: 19.86 | DG64: 19.79 | DH64: NULL | DI64: NULL | DJ64: 2648 | DK64: 2075 | DL64: 1799 | DM64: 2456 | DN64: 1803 | DO64: 3294 | DP64: 2384 | DQ64: 3299 | DR64: 1822 | DS64: 3297 | DT64: 1703 | DU64: 3301 | DV64: 1652 | DW64: 3438 | DX64: 1834 | DY64: 1407 | DZ64: 1428 | EA64: 3491 | EB64: 1099 | EC64: 759 | ED64: 19.54 | EE64: -20.15 | EF64: -0.04 | EG64: 20 | EH64: 16.2 | EI64: -0.04 | EJ64: 28.54 | EK64: NULL | EL64: NULL | EM64: 30 | EN64: 30.1 | EO64: 20.8 | EP64: 19.9 | EQ64: 27.5 | ER64: 21.5 | ES64: 41.41 | ET64: 4626 | EU64: 4626 | EV64: NULL | EW64: 12.6 | EX64: 0 | EY64: 3000 | EZ64: NULL | FA64: NULL | FB64: NULL | FC64: 1215 | FD64: 1 | FE64: NULL | FF64: NULL | FG64: NULL | FH64: NULL | FI64: NULL | FJ64: NULL | FK64: NULL | FL64: NULL | FM64: 0 | FN64: 0 | FO64: 271 | FP64: 0 | FQ64: 1 | FR64: 160.52 | FS64: 187.32 | FT64: 132.36 | FU64: 133.41 | FV64: NULL | FW64: NULL | FX64: 21.56 | FY64: 0 | FZ64: 0 | GA64: 18.64 | GB64: -19.97 | GC64: 40.02 | GD64: 22.23 | GE64: NULL | GF64: NULL | GG64: NULL | GH64: 26.94 | GI64: 21.05 | GJ64: 0.0744
A65: 2023-08-01T14:00:00 | B65: 18.72 | C65: 17.86 | D65: 17.8 | E65: 17.03 | F65: 16.81 | G65: 20.13 | H65: 19.96 | I65: 20.65 | J65: 18.72 | K65: 18.63 | L65: 18.31 | M65: 17.47 | N65: 17.71 | O65: 17.54 | P65: 17.26 | Q65: 19.2 | R65: 0 | S65: 20 | T65: 61.5 | U65: 0.164 | V65: 0.1695 | W65: 0.1582 | X65: 0.1675 | Y65: 0.1918 | Z65: 0.0471 | AA65: 0.2561 | AB65: 0.3639 | AC65: 0.3853 | AD65: 0.3879 | AE65: 830 | AF65: 866.07 | AG65: 866.08 | AH65: 0 | AI65: 305 | AJ65: 190 | AK65: 1 | AL65: 5.2 | AM65: 0 | AN65: 0 | AO65: 0 | AP65: 0 | AQ65: 1.4 | AR65: 6.3 | AS65: 1.3 | AT65: 3 | AU65: NULL | AV65: NULL | AW65: NULL | AX65: 0 | AY65: 0 | AZ65: 0 | BA65: 220.9 | BB65: -0.1 | BC65: 217 | BD65: 0 | BE65: 220.2 | BF65: -0.1 | BG65: 208.2 | BH65: 0 | BI65: 211.9 | BJ65: 0.1 | BK65: 215 | BL65: -0.1 | BM65: 227.6 | BN65: 0 | BO65: 227.6 | BP65: NULL | BQ65: NULL | BR65: 201.59 | BS65: 46.41 | BT65: 131.15 | BU65: 155.89 | BV65: 0 | BW65: 695.2 | BX65: 0 | BY65: 499.2 | BZ65: 14.3 | CA65: NULL | CB65: 10 | CC65: NULL | CD65: 4.9 | CE65: NULL | CF65: NULL | CG65: NULL | CH65: 21.9 | CI65: 43.6 | CJ65: -27.2 | CK65: 23 | CL65: NULL | CM65: 45 | CN65: 31.1 | CO65: 49.1 | CP65: NULL | CQ65: NULL | CR65: 21.36 | CS65: 20.91 | CT65: 18.78 | CU65: 19.06 | CV65: 18.73 | CW65: 18.84 | CX65: 18.87 | CY65: NULL | CZ65: 18.79 | DA65: 18.99 | DB65: 19.31 | DC65: 19.36 | DD65: 19.77 | DE65: 19.87 | DF65: 19.49 | DG65: 19.5 | DH65: NULL | DI65: NULL | DJ65: 2625 | DK65: 2036 | DL65: 1758 | DM65: 2381 | DN65: 1750 | DO65: 3301 | DP65: 2363 | DQ65: 3301 | DR65: 1774 | DS65: 3300 | DT65: 1651 | DU65: 3299 | DV65: 1597 | DW65: 3304 | DX65: 1734 | DY65: 1320 | DZ65: 1333 | EA65: 3305 | EB65: 1030 | EC65: 712 | ED65: 21.14 | EE65: -20.15 | EF65: -0.04 | EG65: 20 | EH65: 16.3 | EI65: -0.04 | EJ65: 28.55 | EK65: NULL | EL65: NULL | EM65: 26.3 | EN65: 26.1 | EO65: 22.2 | EP65: 21.4 | EQ65: 26.4 | ER65: 23 | ES65: 42.34 | ET65: 4925 | EU65: 4921 | EV65: NULL | EW65: 12.6 | EX65: 0 | EY65: 3000 | EZ65: NULL | FA65: NULL | FB65: NULL | FC65: 1210 | FD65: 1 | FE65: NULL | FF65: NULL | FG65: NULL | FH65: NULL | FI65: NULL | FJ65: NULL | FK65: NULL | FL65: NULL | FM65: 0 | FN65: 0 | FO65: 315 | FP65: 0 | FQ65: 1.1 | FR65: 222.91 | FS65: 212.15 | FT65: 138.96 | FU65: 135.28 | FV65: NULL | FW65: NULL | FX65: 21.62 | FY65: 0 | FZ65: 0 | GA65: 18.17 | GB65: -19.98 | GC65: 40.02 | GD65: 22.18 | GE65: NULL | GF65: NULL | GG65: NULL | GH65: 23.67 | GI65: 22.26 | GJ65: 0.0173
A66: 2023-08-01T15:00:00 | B66: 17.84 | C66: 16.97 | D66: 18.07 | E66: 17.11 | F66: 16.79 | G66: 20.64 | H66: 20.45 | I66: 21.12 | J66: 19.14 | K66: 19.06 | L66: 18.6 | M66: 17.6 | N66: 17.83 | O66: 17.53 | P66: 17.28 | Q66: 18.4 | R66: 0 | S66: 18.8 | T66: 62.1 | U66: 0.1644 | V66: 0.1696 | W66: 0.1586 | X66: 0.1677 | Y66: 0.1911 | Z66: 0.0497 | AA66: 0.2561 | AB66: 0.3632 | AC66: 0.3852 | AD66: 0.3874 | AE66: 829.6 | AF66: 866.04 | AG66: 866.06 | AH66: 0 | AI66: 95 | AJ66: 260 | AK66: 1.1 | AL66: 4.8 | AM66: 0 | AN66: 0 | AO66: 0 | AP66: 0 | AQ66: 1.4 | AR66: 5.7 | AS66: 1.3 | AT66: 3.2 | AU66: NULL | AV66: NULL | AW66: NULL | AX66: 0 | AY66: 0 | AZ66: -0.1 | BA66: 220.8 | BB66: 0 | BC66: 217 | BD66: 0 | BE66: 220.2 | BF66: 0 | BG66: 208.2 | BH66: -0.1 | BI66: 211.8 | BJ66: 0 | BK66: 215 | BL66: 0 | BM66: 227.6 | BN66: 0.1 | BO66: 227.7 | BP66: NULL | BQ66: NULL | BR66: 190.1 | BS66: 44.18 | BT66: 128.77 | BU66: 155.37 | BV66: 0.1 | BW66: 695.3 | BX66: 0.1 | BY66: 499.3 | BZ66: 13.9 | CA66: NULL | CB66: 2.6 | CC66: NULL | CD66: 4.7 | CE66: -0.1 | CF66: NULL | CG66: NULL | CH66: 15.9 | CI66: 43.8 | CJ66: -27.2 | CK66: 18.2 | CL66: NULL | CM66: 30.3 | CN66: 22.9 | CO66: 37.9 | CP66: NULL | CQ66: NULL | CR66: 17.54 | CS66: 17.76 | CT66: 17.55 | CU66: 17.6 | CV66: 17.64 | CW66: 17.57 | CX66: 17.67 | CY66: NULL | CZ66: 17.61 | DA66: 17.7 | DB66: 17.69 | DC66: 17.59 | DD66: 17.75 | DE66: 17.8 | DF66: 17.67 | DG66: 17.66 | DH66: NULL | DI66: NULL | DJ66: 2605 | DK66: 2002 | DL66: 1757 | DM66: 2263 | DN66: 1727 | DO66: 3297 | DP66: 2361 | DQ66: 3297 | DR66: 1764 | DS66: 3296 | DT66: 1648 | DU66: 3297 | DV66: 1593 | DW66: 3297 | DX66: 1724 | DY66: 1308 | DZ66: 1328 | EA66: 3297 | EB66: 1025 | EC66: 712 | ED66: 22.1 | EE66: -20.15 | EF66: -0.04 | EG66: 20 | EH66: 16.5 | EI66: -0.04 | EJ66: 28.54 | EK66: 28 | EL66: NULL | EM66: 21.8 | EN66: 21.9 | EO66: 21.4 | EP66: 21.5 | EQ66: 22.1 | ER66: 22 | ES66: 43.01 | ET66: 4946 | EU66: 4944 | EV66: NULL | EW66: 12.6 | EX66: 0 | EY66: 3000 | EZ66: NULL | FA66: 0.933 | FB66: NULL | FC66: 1206 | FD66: 1 | FE66: 0 | FF66: NULL | FG66: NULL | FH66: NULL | FI66: NULL | FJ66: NULL | FK66: NULL | FL66: NULL | FM66: 0 | FN66: 0 | FO66: 197 | FP66: 0 | FQ66: 1.2 | FR66: 202.92 | FS66: 179.41 | FT66: 99.82 | FU66: 91.59 | FV66: NULL | FW66: NULL | FX66: 19.91 | FY66: 0 | FZ66: 0 | GA66: 17.43 | GB66: -19.98 | GC66: 40.02 | GD66: 20.23 | GE66: NULL | GF66: NULL | GG66: NULL | GH66: 16.45 | GI66: 21.07 | GJ66: -0.055
A67: 2023-08-01T16:00:00 | B67: 19 | C67: 17.91 | D67: 18.25 | E67: 17.21 | F67: 16.78 | G67: 20.56 | H67: 20.32 | I67: 20.95 | J67: 19.33 | K67: 19.25 | L67: 18.84 | M67: 17.75 | N67: 18 | O67: 17.55 | P67: 17.28 | Q67: 19 | R67: 0 | S67: 21 | T67: 65.3 | U67: 0.1641 | V67: 0.1694 | W67: 0.1585 | X67: 0.1679 | Y67: 0.1904 | Z67: 0.05 | AA67: 0.2563 | AB67: 0.3628 | AC67: 0.3852 | AD67: 0.3871 | AE67: 830.8 | AF67: 865.9 | AG67: 865.92 | AH67: 0 | AI67: 275 | AJ67: 340 | AK67: 0.7 | AL67: 4.8 | AM67: 0 | AN67: 0 | AO67: 0 | AP67: 0 | AQ67: 1.1 | AR67: 6.2 | AS67: 1.2 | AT67: 2.5 | AU67: NULL | AV67: NULL | AW67: NULL | AX67: 0 | AY67: 0 | AZ67: 0.1 | BA67: 220.9 | BB67: 0 | BC67: 217 | BD67: 0 | BE67: 220.2 | BF67: 0 | BG67: 208.2 | BH67: 0.1 | BI67: 211.9 | BJ67: 0 | BK67: 215 | BL67: 0.1 | BM67: 227.7 | BN67: 0 | BO67: 227.7 | BP67: NULL | BQ67: NULL | BR67: 124.78 | BS67: 30.32 | BT67: 133.32 | BU67: 151.05 | BV67: 0 | BW67: 695.3 | BX67: 0 | BY67: 499.3 | BZ67: 14.1 | CA67: NULL | CB67: 0.4 | CC67: NULL | CD67: 4.8 | CE67: NULL | CF67: NULL | CG67: NULL | CH67: 19.7 | CI67: 44.4 | CJ67: -27.2 | CK67: 20.5 | CL67: NULL | CM67: 29 | CN67: 25 | CO67: 30.8 | CP67: NULL | CQ67: NULL | CR67: 20.41 | CS67: 20.93 | CT67: 19.09 | CU67: 19.1 | CV67: 19.3 | CW67: 18.87 | CX67: 19.4 | CY67: NULL | CZ67: 19.34 | DA67: 18.97 | DB67: 19.45 | DC67: 18.99 | DD67: 20.35 | DE67: 19.85 | DF67: 21.03 | DG67: 21.23 | DH67: NULL | DI67: NULL | DJ67: 2614 | DK67: 2037 | DL67: 1770 | DM67: 2365 | DN67: 1750 | DO67: 3291 | DP67: 2355 | DQ67: 3291 | DR67: 1776 | DS67: 3290 | DT67: 1648 | DU67: 3291 | DV67: 1593 | DW67: 3291 | DX67: 1736 | DY67: 1315 | DZ67: 1347 | EA67: 3292 | EB67: 1024 | EC67: 709 | ED67: 21.57 | EE67: -20.15 | EF67: -0.04 | EG67: 19.99 | EH67: 16.6 | EI67: -0.04 | EJ67: 28.54 | EK67: NULL | EL67: NULL | EM67: 27.7 | EN67: 27.3 | EO67: 21.2 | EP67: 20.8 | EQ67: 26.4 | ER67: 22.5 | ES67: 42.99 | ET67: 4944 | EU67: 4943 | EV67: NULL | EW67: 12.6 | EX67: 0 | EY67: 3000 | EZ67: NULL | FA67: NULL | FB67: NULL | FC67: 1204 | FD67: 1 | FE67: NULL | FF67: NULL | FG67: NULL | FH67: NULL | FI67: NULL | FJ67: NULL | FK67: NULL | FL67: NULL | FM67: 0 | FN67: 0 | FO67: 185 | FP67: 0 | FQ67: 1 | FR67: 129.03 | FS67: 133.47 | FT67: 78.93 | FU67: 74.8 | FV67: NULL | FW67: NULL | FX67: 22.65 | FY67: 0 | FZ67: 0 | GA67: 18.49 | GB67: -19.97 | GC67: 40.02 | GD67: 21.84 | GE67: NULL | GF67: NULL | GG67: NULL | GH67: 20.68 | GI67: 21.57 | GJ67: -0.0115
A68: 2023-08-01T17:00:00 | B68: 16.9 | C68: 16.24 | D68: 18.37 | E68: 17.31 | F68: 16.77 | G68: 20.49 | H68: 20.28 | I68: 20.78 | J68: 19.44 | K68: 19.42 | L68: 18.97 | M68: 17.88 | N68: 18.13 | O68: 17.58 | P68: 17.32 | Q68: 18 | R68: 0 | S68: 17.2 | T68: 69.4 | U68: 0.1641 | V68: 0.1694 | W68: 0.1584 | X68: 0.1679 | Y68: 0.1898 | Z68: 0.0499 | AA68: 0.2565 | AB68: 0.3626 | AC68: 0.3852 | AD68: 0.387 | AE68: 832.5 | AF68: 865.99 | AG68: 866.01 | AH68: 0 | AI68: 93 | AJ68: 0 | AK68: 0.3 | AL68: 2.2 | AM68: 0 | AN68: 0 | AO68: 0 | AP68: 0 | AQ68: 0.6 | AR68: 2.9 | AS68: 0.7 | AT68: 1.8 | AU68: NULL | AV68: NULL | AW68: NULL | AX68: 0 | AY68: 0 | AZ68: 0 | BA68: 220.9 | BB68: 0 | BC68: 217 | BD68: 0 | BE68: 220.2 | BF68: 0 | BG68: 208.2 | BH68: 0 | BI68: 211.9 | BJ68: 0 | BK68: 215 | BL68: 0 | BM68: 227.7 | BN68: 0 | BO68: 227.7 | BP68: NULL | BQ68: NULL | BR68: 73.51 | BS68: 17.17 | BT68: 130.29 | BU68: 148.24 | BV68: 0.1 | BW68: 695.4 | BX68: 0 | BY68: 499.3 | BZ68: 14.6 | CA68: NULL | CB68: 3.1 | CC68: NULL | CD68: 4.9 | CE68: NULL | CF68: NULL | CG68: NULL | CH68: 15.6 | CI68: 44.5 | CJ68: -27.2 | CK68: 17.4 | CL68: NULL | CM68: 9 | CN68: 6.8 | CO68: 12.9 | CP68: NULL | CQ68: NULL | CR68: 16.53 | CS68: 16.5 | CT68: 16.74 | CU68: 16.7 | CV68: 16.82 | CW68: 16.69 | CX68: 16.81 | CY68: NULL | CZ68: 16.74 | DA68: 16.81 | DB68: 16.8 | DC68: 16.69 | DD68: 16.83 | DE68: 16.78 | DF68: 16.8 | DG68: 16.64 | DH68: NULL | DI68: NULL | DJ68: 2598 | DK68: 1990 | DL68: 1761 | DM68: 2232 | DN68: 1718 | DO68: 3290 | DP68: 2353 | DQ68: 3291 | DR68: 1759 | DS68: 3290 | DT68: 1648 | DU68: 3292 | DV68: 1592 | DW68: 3292 | DX68: 1723 | DY68: 1307 | DZ68: 1333 | EA68: 3293 | EB68: 1023 | EC68: 710 | ED68: 20.98 | EE68: -20.15 | EF68: -0.04 | EG68: 20 | EH68: 16.7 | EI68: -0.02 | EJ68: 28.57 | EK68: NULL | EL68: NULL | EM68: 18.8 | EN68: 19 | EO68: 19.6 | EP68: 20 | EQ68: 18.4 | ER68: 19.9 | ES68: 43.62 | ET68: 4946 | EU68: 4945 | EV68: NULL | EW68: 12.6 | EX68: 0 | EY68: 3000 | EZ68: NULL | FA68: NULL | FB68: NULL | FC68: 1202 | FD68: 1 | FE68: NULL | FF68: NULL | FG68: NULL | FH68: NULL | FI68: NULL | FJ68: NULL | FK68: NULL | FL68: NULL | FM68: 0 | FN68: 0 | FO68: 200 | FP68: 0 | FQ68: 0 | FR68: 80.71 | FS68: 69.67 | FT68: 42.74 | FU68: 37.87 | FV68: NULL | FW68: NULL | FX68: 17.94 | FY68: 0 | FZ68: 0.02 | GA68: 16.56 | GB68: -19.98 | GC68: 40.02 | GD68: 18.12 | GE68: NULL | GF68: NULL | GG68: NULL | GH68: 16.33 | GI68: 19.35 | GJ68: -0.0377
A69: 2023-08-01T18:00:00 | B69: 16.4 | C69: 15.94 | D69: 18.39 | E69: 17.4 | F69: 16.77 | G69: 20.14 | H69: 19.86 | I69: 20.22 | J69: 19.36 | K69: 19.41 | L69: 19 | M69: 17.97 | N69: 18.25 | O69: 17.65 | P69: 17.37 | Q69: 17.6 | R69: 0 | S69: 16.4 | T69: 71.3 | U69: 0.1638 | V69: 0.1691 | W69: 0.158 | X69: 0.1678 | Y69: 0.1896 | Z69: 0.0487 | AA69: 0.2566 | AB69: 0.3625 | AC69: 0.385 | AD69: 0.387 | AE69: 833.2 | AF69: 866.01 | AG69: 866.03 | AH69: 0 | AI69: 305 | AJ69: 260 | AK69: 0.5 | AL69: 4.2 | AM69: 0 | AN69: 0 | AO69: 0 | AP69: 0 | AQ69: 0.8 | AR69: 5.1 | AS69: 0.8 | AT69: 2.9 | AU69: NULL | AV69: NULL | AW69: NULL | AX69: 0 | AY69: 0 | AZ69: 0 | BA69: 220.9 | BB69: 0 | BC69: 217 | BD69: 0 | BE69: 220.2 | BF69: 0 | BG69: 208.2 | BH69: 0 | BI69: 211.9 | BJ69: 0 | BK69: 215 | BL69: 0 | BM69: 227.7 | BN69: 0 | BO69: 227.7 | BP69: NULL | BQ69: NULL | BR69: 27.61 | BS69: 6.31 | BT69: 130.78 | BU69: 143.66 | BV69: 0 | BW69: 695.4 | BX69: 0 | BY69: 499.3 | BZ69: 12.7 | CA69: NULL | CB69: 3.6 | CC69: NULL | CD69: 5.5 | CE69: -0.3 | CF69: NULL | CG69: NULL | CH69: 13.5 | CI69: 42.7 | CJ69: -27.2 | CK69: 15.2 | CL69: NULL | CM69: -0.5 | CN69: 0.2 | CO69: 2 | CP69: NULL | CQ69: NULL | CR69: 16.42 | CS69: 15.68 | CT69: 16.24 | CU69: 16.29 | CV69: 16.36 | CW69: 16.32 | CX69: 16.37 | CY69: NULL | CZ69: 16.3 | DA69: 16.41 | DB69: 16.34 | DC69: 16.32 | DD69: 16.25 | DE69: 16.37 | DF69: 16.13 | DG69: 16.2 | DH69: NULL | DI69: NULL | DJ69: 2599 | DK69: 1977 | DL69: 1755 | DM69: 2217 | DN69: 1711 | DO69: 3031 | DP69: 2264 | DQ69: 3179 | DR69: 1724 | DS69: 3191 | DT69: 1624 | DU69: 3217 | DV69: 1575 | DW69: 3224 | DX69: 1704 | DY69: 1295 | DZ69: 1319 | EA69: 3233 | EB69: 1020 | EC69: 707 | ED69: 19.32 | EE69: -20.15 | EF69: -0.04 | EG69: 20 | EH69: 16.7 | EI69: -0.02 | EJ69: 28.56 | EK69: 24 | EL69: NULL | EM69: 17 | EN69: 17.1 | EO69: 18.3 | EP69: 19.1 | EQ69: 16.5 | ER69: 17.3 | ES69: 42.04 | ET69: 4941 | EU69: 4940 | EV69: NULL | EW69: 12.5 | EX69: 0 | EY69: 3000 | EZ69: NULL | FA69: 0.998 | FB69: NULL | FC69: 1205 | FD69: 1 | FE69: 0 | FF69: NULL | FG69: NULL | FH69: NULL | FI69: NULL | FJ69: NULL | FK69: NULL | FL69: NULL | FM69: 0 | FN69: 0 | FO69: 196 | FP69: 0 | FQ69: 1.5 | FR69: 32.29 | FS69: 30.63 | FT69: 24.64 | FU69: 23.94 | FV69: NULL | FW69: NULL | FX69: 16.67 | FY69: 0 | FZ69: 0.02 | GA69: 16.23 | GB69: -19.98 | GC69: 40.02 | GD69: 16.52 | GE69: NULL | GF69: NULL | GG69: NULL | GH69: 14.19 | GI69: 17.4 | GJ69: -0.0381
A70: 2023-08-01T19:00:00 | B70: 14.63 | C70: 14.51 | D70: 18.35 | E70: 17.46 | F70: 16.77 | G70: 19.65 | H70: 19.4 | I70: 19.63 | J70: 19.27 | K70: 19.31 | L70: 18.9 | M70: 18.07 | N70: 18.28 | O70: 17.66 | P70: 17.4 | Q70: 16.2 | R70: 0 | S70: 14.6 | T70: 82.7 | U70: 0.1635 | V70: 0.1688 | W70: 0.1576 | X70: 0.1677 | Y70: 0.1893 | Z70: 0.0475 | AA70: 0.2567 | AB70: 0.3624 | AC70: 0.3851 | AD70: 0.387 | AE70: 837.3 | AF70: 866.3 | AG70: 866.3 | AH70: 0 | AI70: 56 | AJ70: 30 | AK70: 0.7 | AL70: 3.2 | AM70: 0 | AN70: 0 | AO70: 0 | AP70: 0 | AQ70: 1.1 | AR70: 4.5 | AS70: 0.7 | AT70: 1.1 | AU70: NULL | AV70: NULL | AW70: NULL | AX70: 0 | AY70: 0 | AZ70: 0 | BA70: 220.9 | BB70: 0 | BC70: 217 | BD70: 0.1 | BE70: 220.3 | BF70: 0 | BG70: 208.2 | BH70: 0 | BI70: 211.9 | BJ70: 0 | BK70: 215 | BL70: 0 | BM70: 227.7 | BN70: 0 | BO70: 227.7 | BP70: NULL | BQ70: NULL | BR70: 7.28 | BS70: 1.59 | BT70: 129.83 | BU70: 140.18 | BV70: 0.1 | BW70: 695.5 | BX70: 0 | BY70: 499.3 | BZ70: 13.9 | CA70: NULL | CB70: 11.2 | CC70: NULL | CD70: 5.2 | CE70: NULL | CF70: NULL | CG70: NULL | CH70: 12.6 | CI70: 41.7 | CJ70: -27.2 | CK70: 14.1 | CL70: NULL | CM70: -5.7 | CN70: -5.4 | CO70: -5.1 | CP70: NULL | CQ70: NULL | CR70: 14.42 | CS70: 14.23 | CT70: 14.54 | CU70: 14.59 | CV70: 14.59 | CW70: 14.61 | CX70: 14.62 | CY70: NULL | CZ70: 14.58 | DA70: 14.67 | DB70: 14.57 | DC70: 14.62 | DD70: 14.56 | DE70: 14.68 | DF70: 14.53 | DG70: 14.59 | DH70: NULL | DI70: NULL | DJ70: 2606 | DK70: 1977 | DL70: 1765 | DM70: 2207 | DN70: 1727 | DO70: 3296 | DP70: 2344 | DQ70: 3296 | DR70: 1773 | DS70: 3296 | DT70: 1670 | DU70: 3297 | DV70: 1612 | DW70: 3296 | DX70: 1750 | DY70: 1346 | DZ70: 1405 | EA70: 3297 | EB70: 1046 | EC70: 729 | ED70: 17.6 | EE70: -20.14 | EF70: -0.04 | EG70: 20 | EH70: 16.7 | EI70: -0.04 | EJ70: 28.53 | EK70: NULL | EL70: NULL | EM70: 14.6 | EN70: 14.6 | EO70: 16.1 | EP70: 16.6 | EQ70: 14.4 | ER70: 15.1 | ES70: 40.71 | ET70: 4820 | EU70: 4818 | EV70: NULL | EW70: 12.6 | EX70: 0 | EY70: 3000 | EZ70: NULL | FA70: NULL | FB70: NULL | FC70: 1206 | FD70: 1 | FE70: NULL | FF70: NULL | FG70: NULL | FH70: NULL | FI70: NULL | FJ70: NULL | FK70: NULL | FL70: NULL | FM70: 0 | FN70: 0 | FO70: 256 | FP70: 0 | FQ70: 1.6 | FR70: 9.29 | FS70: 7.97 | FT70: 8.88 | FU70: 7.59 | FV70: NULL | FW70: NULL | FX70: 14.68 | FY70: 0 | FZ70: 0 | GA70: 14.68 | GB70: -19.98 | GC70: 40.02 | GD70: 14.5 | GE70: NULL | GF70: NULL | GG70: NULL | GH70: 13.8 | GI70: 15.46 | GJ70: -0.0206
A71: 2023-08-01T20:00:00 | B71: 13.92 | C71: 13.66 | D71: 18.25 | E71: 17.49 | F71: 16.77 | G71: 19.21 | H71: 19 | I71: 19.15 | J71: 19.04 | K71: 19.13 | L71: 18.78 | M71: 18.1 | N71: 18.31 | O71: 17.73 | P71: 17.47 | Q71: 15.5 | R71: 0 | S71: 13.7 | T71: 85.7 | U71: 0.1632 | V71: 0.1685 | W71: 0.1572 | X71: 0.1676 | Y71: 0.1889 | Z71: 0.0457 | AA71: 0.2567 | AB71: 0.3623 | AC71: 0.3851 | AD71: 0.3869 | AE71: 838.5 | AF71: 866.59 | AG71: 866.6 | AH71: 0 | AI71: 13 | AJ71: 30 | AK71: 0.9 | AL71: 4 | AM71: 0 | AN71: 0 | AO71: 0 | AP71: 2.8 | AQ71: 1.3 | AR71: 4.4 | AS71: 0.9 | AT71: 1.6 | AU71: NULL | AV71: NULL | AW71: NULL | AX71: 0 | AY71: 0 | AZ71: 0 | BA71: 220.9 | BB71: 0 | BC71: 217 | BD71: 0 | BE71: 220.3 | BF71: 0 | BG71: 208.2 | BH71: 0.1 | BI71: 212 | BJ71: 0.1 | BK71: 215.1 | BL71: 0 | BM71: 227.7 | BN71: 0 | BO71: 227.7 | BP71: NULL | BQ71: NULL | BR71: -0.24 | BS71: 0.03 | BT71: 131.73 | BU71: 138.35 | BV71: 0 | BW71: 695.5 | BX71: 0 | BY71: 499.3 | BZ71: 15.7 | CA71: NULL | CB71: NULL | CC71: NULL | CD71: 5 | CE71: NULL | CF71: NULL | CG71: NULL | CH71: 12.7 | CI71: 42.2 | CJ71: -27.2 | CK71: 13.4 | CL71: NULL | CM71: -9 | CN71: -7.6 | CO71: -8.9 | CP71: NULL | CQ71: NULL | CR71: 13.11 | CS71: 13.43 | CT71: 13.8 | CU71: 13.81 | CV71: 13.85 | CW71: 13.82 | CX71: 13.86 | CY71: NULL | CZ71: 13.81 | DA71: 13.89 | DB71: 13.81 | DC71: 13.83 | DD71: 13.78 | DE71: 13.87 | DF71: 13.73 | DG71: 13.78 | DH71: NULL | DI71: NULL | DJ71: 2594 | DK71: 1950 | DL71: 1735 | DM71: 2182 | DN71: 1708 | DO71: 3296 | DP71: 2327 | DQ71: 3296 | DR71: 1753 | DS71: 3295 | DT71: 1645 | DU71: 3296 | DV71: 1588 | DW71: 3296 | DX71: 1737 | DY71: 1343 | DZ71: 1422 | EA71: 3297 | EB71: 1024 | EC71: 716 | ED71: 16.07 | EE71: -20.15 | EF71: -0.04 | EG71: 20 | EH71: 16.6 | EI71: -0.04 | EJ71: 28.55 | EK71: NULL | EL71: NULL | EM71: 13.7 | EN71: 13.7 | EO71: 14.8 | EP71: 15.2 | EQ71: 13.2 | ER71: 13.9 | ES71: 40.13 | ET71: 4950 | EU71: 4949 | EV71: NULL | EW71: 12.6 | EX71: 0 | EY71: 3000 | EZ71: NULL | FA71: NULL | FB71: NULL | FC71: 1207 | FD71: 1 | FE71: NULL | FF71: NULL | FG71: NULL | FH71: NULL | FI71: NULL | FJ71: NULL | FK71: NULL | FL71: NULL | FM71: 0 | FN71: 0 | FO71: 393 | FP71: 0 | FQ71: 1.1 | FR71: 0.35 | FS71: 0.32 | FT71: 0.4 | FU71: 0.4 | FV71: NULL | FW71: NULL | FX71: 13.75 | FY71: 0 | FZ71: 0.02 | GA71: 13.9 | GB71: -19.98 | GC71: 40.03 | GD71: 13.51 | GE71: NULL | GF71: NULL | GG71: NULL | GH71: 13.22 | GI71: 14.23 | GJ71: -0.0109
A72: 2023-08-01T21:00:00 | B72: 13.62 | C72: 13.44 | D72: 18.14 | E72: 17.49 | F72: 16.78 | G72: 18.9 | H72: 18.68 | I72: 18.73 | J72: 18.81 | K72: 18.94 | L72: 18.68 | M72: 18.12 | N72: 18.27 | O72: 17.76 | P72: 17.52 | Q72: 15.2 | R72: 0 | S72: 13.3 | T72: 86.3 | U72: 0.163 | V72: 0.1683 | W72: 0.1569 | X72: 0.1675 | Y72: 0.1886 | Z72: 0.0419 | AA72: 0.2567 | AB72: 0.3622 | AC72: 0.3851 | AD72: 0.3871 | AE72: 838.4 | AF72: 867.03 | AG72: 867.05 | AH72: 0 | AI72: 5 | AJ72: 20 | AK72: 0.5 | AL72: 2.8 | AM72: 0 | AN72: 0 | AO72: 0 | AP72: 0 | AQ72: 1 | AR72: 3.5 | AS72: 0.8 | AT72: 1.1 | AU72: NULL | AV72: NULL | AW72: NULL | AX72: 0 | AY72: 0 | AZ72: 0 | BA72: 220.9 | BB72: 0 | BC72: 217 | BD72: 0 | BE72: 220.3 | BF72: 0 | BG72: 208.2 | BH72: 0 | BI72: 212 | BJ72: 0 | BK72: 215.1 | BL72: 0 | BM72: 227.7 | BN72: 0 | BO72: 227.7 | BP72: NULL | BQ72: NULL | BR72: -0.32 | BS72: 0.07 | BT72: 131.16 | BU72: 137.43 | BV72: 0.1 | BW72: 695.6 | BX72: 0.1 | BY72: 499.4 | BZ72: 14.4 | CA72: NULL | CB72: 12.1 | CC72: NULL | CD72: 5.1 | CE72: 0.1 | CF72: NULL | CG72: NULL | CH72: 12.6 | CI72: 41 | CJ72: -27.2 | CK72: 13.1 | CL72: NULL | CM72: -10.6 | CN72: -8.7 | CO72: -10.3 | CP72: NULL | CQ72: NULL | CR72: 13.74 | CS72: 13.18 | CT72: 13.48 | CU72: 13.49 | CV72: 13.51 | CW72: 13.49 | CX72: 13.53 | CY72: NULL | CZ72: 13.47 | DA72: 13.55 | DB72: 13.48 | DC72: 13.49 | DD72: 13.45 | DE72: 13.53 | DF72: 13.41 | DG72: 13.43 | DH72: NULL | DI72: NULL | DJ72: 2622 | DK72: 1980 | DL72: 1761 | DM72: 2206 | DN72: 1742 | DO72: 3295 | DP72: 2347 | DQ72: 3296 | DR72: 1790 | DS72: 3295 | DT72: 1684 | DU72: 3297 | DV72: 1626 | DW72: 3297 | DX72: 1778 | DY72: 1381 | DZ72: 1463 | EA72: 3298 | EB72: 1063 | EC72: 746 | ED72: 14.9 | EE72: -20.15 | EF72: -0.04 | EG72: 19.99 | EH72: 16.6 | EI72: -0.04 | EJ72: 28.54 | EK72: 20 | EL72: NULL | EM72: 13.2 | EN72: 13.3 | EO72: 14.3 | EP72: 14.6 | EQ72: 12.7 | ER72: 13.3 | ES72: 39.61 | ET72: 4728 | EU72: 4726 | EV72: NULL | EW72: 12.6 | EX72: 0 | EY72: 3000 | EZ72: NULL | FA72: 0.807 | FB72: NULL | FC72: 1206 | FD72: 1 | FE72: 0 | FF72: NULL | FG72: NULL | FH72: NULL | FI72: NULL | FJ72: NULL | FK72: NULL | FL72: NULL | FM72: 0 | FN72: 0 | FO72: 243 | FP72: 0 | FQ72: 1 | FR72: 0.2 | FS72: 0.19 | FT72: 0.35 | FU72: 0.35 | FV72: NULL | FW72: NULL | FX72: 13.33 | FY72: 0 | FZ72: -0.02 | GA72: 13.66 | GB72: -19.98 | GC72: 40.03 | GD72: 13.06 | GE72: NULL | GF72: NULL | GG72: NULL | GH72: 13.16 | GI72: 13.67 | GJ72: -0.007
A73: 2023-08-01T22:00:00 | B73: 13.44 | C73: 13.2 | D73: 18.03 | E73: 17.48 | F73: 16.79 | G73: 18.56 | H73: 18.36 | I73: 18.41 | J73: 18.6 | K73: 18.73 | L73: 18.49 | M73: 18.06 | N73: 18.26 | O73: 17.81 | P73: 17.53 | Q73: 15 | R73: 0 | S73: 13.1 | T73: 85.9 | U73: 0.1629 | V73: 0.168 | W73: 0.1567 | X73: 0.1674 | Y73: 0.1883 | Z73: 0.0386 | AA73: 0.2567 | AB73: 0.3622 | AC73: 0.3851 | AD73: 0.3871 | AE73: 838.4 | AF73: 867.34 | AG73: 867.35 | AH73: 0 | AI73: 17 | AJ73: 30 | AK73: 0.9 | AL73: 4 | AM73: 0 | AN73: 0 | AO73: 0 | AP73: 0 | AQ73: 1.3 | AR73: 5.1 | AS73: 0.9 | AT73: 1.7 | AU73: NULL | AV73: NULL | AW73: NULL | AX73: 0 | AY73: 0 | AZ73: 0 | BA73: 220.9 | BB73: 0 | BC73: 217 | BD73: 0 | BE73: 220.3 | BF73: 0 | BG73: 208.2 | BH73: 0 | BI73: 212 | BJ73: 0 | BK73: 215.1 | BL73: -0.1 | BM73: 227.6 | BN73: 0 | BO73: 227.7 | BP73: NULL | BQ73: NULL | BR73: -0.2 | BS73: 0.09 | BT73: 131.82 | BU73: 137.14 | BV73: 0 | BW73: 695.6 | BX73: 0 | BY73: 499.4 | BZ73: 14.7 | CA73: NULL | CB73: 7.1 | CC73: NULL | CD73: 5.1 | CE73: NULL | CF73: NULL | CG73: NULL | CH73: 12.2 | CI73: 41.2 | CJ73: -27.2 | CK73: 13 | CL73: NULL | CM73: -11.5 | CN73: -9.2 | CO73: -11.2 | CP73: NULL | CQ73: NULL | CR73: 12 | CS73: 12.94 | CT73: 13.31 | CU73: 13.34 | CV73: 13.36 | CW73: 13.34 | CX73: 13.37 | CY73: NULL | CZ73: 13.32 | DA73: 13.41 | DB73: 13.32 | DC73: 13.35 | DD73: 13.29 | DE73: 13.39 | DF73: 13.25 | DG73: 13.29 | DH73: NULL | DI73: NULL | DJ73: 2608 | DK73: 1952 | DL73: 1728 | DM73: 2179 | DN73: 1709 | DO73: 3273 | DP73: 2314 | DQ73: 3270 | DR73: 1749 | DS73: 3274 | DT73: 1647 | DU73: 3274 | DV73: 1591 | DW73: 3272 | DX73: 1737 | DY73: 1341 | DZ73: 1415 | EA73: 3266 | EB73: 1030 | EC73: 718 | ED73: 14.15 | EE73: -20.15 | EF73: -0.04 | EG73: 19.99 | EH73: 16.5 | EI73: 0 | EJ73: 28.54 | EK73: NULL | EL73: NULL | EM73: 13.1 | EN73: 13.2 | EO73: 14.2 | EP73: 14.3 | EQ73: 12.7 | ER73: 13.1 | ES73: 39.56 | ET73: 4904 | EU73: 4902 | EV73: NULL | EW73: 12.6 | EX73: 0 | EY73: 3000 | EZ73: NULL | FA73: NULL | FB73: NULL | FC73: 1206 | FD73: 1 | FE73: NULL | FF73: NULL | FG73: NULL | FH73: NULL | FI73: NULL | FJ73: NULL | FK73: NULL | FL73: NULL | FM73: 0 | FN73: 0 | FO73: 293 | FP73: 0 | FQ73: 1.2 | FR73: 0.2 | FS73: 0.2 | FT73: 0.35 | FU73: 0.35 | FV73: NULL | FW73: NULL | FX73: 13.2 | FY73: 0 | FZ73: 0 | GA73: 13.35 | GB73: -19.98 | GC73: 40.02 | GD73: 12.97 | GE73: NULL | GF73: NULL | GG73: NULL | GH73: 12.84 | GI73: 13.52 | GJ73: -0.0075
A74: 2023-08-01T23:00:00 | B74: 13.08 | C74: 12.94 | D74: 17.92 | E74: 17.46 | F74: 16.8 | G74: 18.3 | H74: 18.09 | I74: 18.13 | J74: 18.39 | K74: 18.6 | L74: 18.36 | M74: 18.02 | N74: 18.19 | O74: 17.83 | P74: 17.53 | Q74: 14.6 | R74: 0 | S74: 12.9 | T74: 86.4 | U74: 0.1628 | V74: 0.168 | W74: 0.1565 | X74: 0.1673 | Y74: 0.188 | Z74: 0.0367 | AA74: 0.2567 | AB74: 0.3622 | AC74: 0.3851 | AD74: 0.3871 | AE74: 838.5 | AF74: 867.09 | AG74: 867.1 | AH74: 0 | AI74: 359 | AJ74: 30 | AK74: 0.4 | AL74: 1.6 | AM74: 0 | AN74: 0 | AO74: 0 | AP74: 0 | AQ74: 0.9 | AR74: 2.1 | AS74: 0.6 | AT74: 0.9 | AU74: NULL | AV74: NULL | AW74: NULL | AX74: 0 | AY74: 0 | AZ74: 0 | BA74: 220.9 | BB74: 0 | BC74: 217 | BD74: 0 | BE74: 220.3 | BF74: 0 | BG74: 208.2 | BH74: 0 | BI74: 212 | BJ74: 0 | BK74: 215.1 | BL74: 0 | BM74: 227.6 | BN74: -0.1 | BO74: 227.6 | BP74: NULL | BQ74: NULL | BR74: -0.25 | BS74: 0.08 | BT74: 131.29 | BU74: 136.73 | BV74: 0.1 | BW74: 695.7 | BX74: 0 | BY74: 499.4 | BZ74: 14.7 | CA74: NULL | CB74: 8 | CC74: NULL | CD74: 5 | CE74: NULL | CF74: NULL | CG74: NULL | CH74: 12 | CI74: 41.1 | CJ74: -27.2 | CK74: 12.8 | CL74: NULL | CM74: -11.6 | CN74: -9.1 | CO74: -11.2 | CP74: NULL | CQ74: NULL | CR74: 13.65 | CS74: 12.65 | CT74: 13.03 | CU74: 13.05 | CV74: 13.08 | CW74: 13.06 | CX74: 13.08 | CY74: NULL | CZ74: 13.03 | DA74: 13.13 | DB74: 13.03 | DC74: 13.06 | DD74: 12.99 | DE74: 13.08 | DF74: 12.93 | DG74: 12.97 | DH74: NULL | DI74: NULL | DJ74: 2603 | DK74: 1940 | DL74: 1718 | DM74: 2179 | DN74: 1703 | DO74: 3296 | DP74: 2322 | DQ74: 3296 | DR74: 1748 | DS74: 3295 | DT74: 1644 | DU74: 3296 | DV74: 1588 | DW74: 3296 | DX74: 1734 | DY74: 1336 | DZ74: 1409 | EA74: 3297 | EB74: 1023 | EC74: 710 | ED74: 13.61 | EE74: -20.15 | EF74: -0.03 | EG74: 19.99 | EH74: 16.4 | EI74: -0.04 | EJ74: 28.57 | EK74: NULL | EL74: NULL | EM74: 12.8 | EN74: 12.9 | EO74: 14 | EP74: 14 | EQ74: 12.5 | ER74: 12.8 | ES74: 39.54 | ET74: 4950 | EU74: 4949 | EV74: NULL | EW74: 12.6 | EX74: 0 | EY74: 3000 | EZ74: NULL | FA74: NULL | FB74: NULL | FC74: 1206 | FD74: 1 | FE74: NULL | FF74: NULL | FG74: NULL | FH74: NULL | FI74: NULL | FJ74: NULL | FK74: NULL | FL74: NULL | FM74: 0 | FN74: 0 | FO74: 270 | FP74: 0 | FQ74: 0.7 | FR74: 0.19 | FS74: 0.19 | FT74: 0.35 | FU74: 0.35 | FV74: NULL | FW74: NULL | FX74: 12.92 | FY74: 0 | FZ74: 0 | GA74: 13.19 | GB74: -19.97 | GC74: 40.01 | GD74: 12.65 | GE74: NULL | GF74: NULL | GG74: NULL | GH74: 12.86 | GI74: 13.25 | GJ74: -0.0043
A75: 2023-08-02 | B75: 12.97 | C75: 12.98 | D75: 17.81 | E75: 17.42 | F75: 16.81 | G75: 18.11 | H75: 17.92 | I75: 17.92 | J75: 18.19 | K75: 18.43 | L75: 18.24 | M75: 17.94 | N75: 18.17 | O75: 17.83 | P75: 17.53 | Q75: 14.5 | R75: 0 | S75: 12.6 | T75: 84.9 | U75: 0.1626 | V75: 0.168 | W75: 0.1564 | X75: 0.1673 | Y75: 0.1878 | Z75: 0.0373 | AA75: 0.2567 | AB75: 0.3621 | AC75: 0.3851 | AD75: 0.3871 | AE75: 838 | AF75: 866.38 | AG75: 866.39 | AH75: 0 | AI75: 326 | AJ75: 0 | AK75: 0 | AL75: 0.8 | AM75: 0 | AN75: 0 | AO75: 0 | AP75: 0 | AQ75: 0 | AR75: 1.5 | AS75: 0.4 | AT75: 0.9 | AU75: NULL | AV75: NULL | AW75: NULL | AX75: 0 | AY75: 0 | AZ75: 0 | BA75: 220.9 | BB75: 0 | BC75: 217 | BD75: 0 | BE75: 220.3 | BF75: 0 | BG75: 208.2 | BH75: 0 | BI75: 212 | BJ75: 0 | BK75: 215.1 | BL75: 0 | BM75: 227.6 | BN75: 0 | BO75: 227.6 | BP75: NULL | BQ75: NULL | BR75: -0.22 | BS75: 0.11 | BT75: 131.63 | BU75: 136.58 | BV75: 0 | BW75: 695.7 | BX75: 0 | BY75: 499.4 | BZ75: 14.2 | CA75: NULL | CB75: 11.5 | CC75: NULL | CD75: 5.1 | CE75: 0.3 | CF75: NULL | CG75: NULL | CH75: 12.1 | CI75: 41.6 | CJ75: -27.2 | CK75: 12.6 | CL75: NULL | CM75: -11.5 | CN75: -8.9 | CO75: -11.1 | CP75: NULL | CQ75: NULL | CR75: 13.11 | CS75: 12.59 | CT75: 12.97 | CU75: 13 | CV75: 12.98 | CW75: 12.98 | CX75: 13 | CY75: NULL | CZ75: 12.95 | DA75: 13.03 | DB75: 12.92 | DC75: 12.97 | DD75: 12.9 | DE75: 12.98 | DF75: 12.85 | DG75: 12.9 | DH75: NULL | DI75: NULL | DJ75: 2610 | DK75: 1945 | DL75: 1724 | DM75: 2198 | DN75: 1711 | DO75: 3301 | DP75: 2331 | DQ75: 3301 | DR75: 1756 | DS75: 3303 | DT75: 1655 | DU75: 3306 | DV75: 1599 | DW75: 3307 | DX75: 1742 | DY75: 1337 | DZ75: 1404 | EA75: 3307 | EB75: 1032 | EC75: 715 | ED75: 13.24 | EE75: -20.15 | EF75: -0.04 | EG75: 20 | EH75: 16.3 | EI75: -0.04 | EJ75: 28.52 | EK75: 19 | EL75: NULL | EM75: 12.7 | EN75: 12.8 | EO75: 13.8 | EP75: 13.8 | EQ75: 12 | ER75: 12.6 | ES75: 39.57 | ET75: 4902 | EU75: 4904 | EV75: NULL | EW75: 12.6 | EX75: 0 | EY75: 3000 | EZ75: NULL | FA75: 0.771 | FB75: NULL | FC75: 1205 | FD75: 1 | FE75: 0 | FF75: NULL | FG75: NULL | FH75: NULL | FI75: NULL | FJ75: NULL | FK75: NULL | FL75: NULL | FM75: 0 | FN75: 0 | FO75: 272 | FP75: 0 | FQ75: 0 | FR75: 0.19 | FS75: 0.19 | FT75: 0.35 | FU75: 0.35 | FV75: NULL | FW75: NULL | FX75: 12.79 | FY75: 0 | FZ75: 0 | GA75: 13.21 | GB75: -19.98 | GC75: 40.03 | GD75: 12.49 | GE75: NULL | GF75: NULL | GG75: NULL | GH75: 12.79 | GI75: 13.05 | GJ75: -0.0043
A76: 2023-08-02T01:00:00 | B76: 13.08 | C76: 13.31 | D76: 17.71 | E76: 17.38 | F76: 16.82 | G76: 17.94 | H76: 17.74 | I76: 17.77 | J76: 18.11 | K76: 18.28 | L76: 18.15 | M76: 17.87 | N76: 18.11 | O76: 17.81 | P76: 17.53 | Q76: 14.8 | R76: 0 | S76: 12.7 | T76: 78.2 | U76: 0.1626 | V76: 0.1678 | W76: 0.1564 | X76: 0.1672 | Y76: 0.1875 | Z76: 0.0382 | AA76: 0.2567 | AB76: 0.362 | AC76: 0.3851 | AD76: 0.3871 | AE76: 835.9 | AF76: 866.25 | AG76: 866.26 | AH76: 0 | AI76: 193 | AJ76: 220 | AK76: 0.1 | AL76: 1.2 | AM76: 0 | AN76: 0 | AO76: 0 | AP76: 0 | AQ76: 0.3 | AR76: 1.6 | AS76: 0.5 | AT76: 1 | AU76: NULL | AV76: NULL | AW76: NULL | AX76: 0 | AY76: 0 | AZ76: 0 | BA76: 220.9 | BB76: 0 | BC76: 217 | BD76: 0 | BE76: 220.3 | BF76: 0 | BG76: 208.2 | BH76: 0 | BI76: 212 | BJ76: 0 | BK76: 215.1 | BL76: 0 | BM76: 227.6 | BN76: 0 | BO76: 227.6 | BP76: NULL | BQ76: NULL | BR76: -0.14 | BS76: 0.14 | BT76: 131.85 | BU76: 136.39 | BV76: 0.1 | BW76: 695.8 | BX76: 0 | BY76: 499.4 | BZ76: 13.3 | CA76: NULL | CB76: 11.7 | CC76: NULL | CD76: 5.1 | CE76: NULL | CF76: NULL | CG76: NULL | CH76: 11.7 | CI76: 41.6 | CJ76: -27.2 | CK76: 12.5 | CL76: NULL | CM76: -12.1 | CN76: -9.1 | CO76: -11.4 | CP76: NULL | CQ76: NULL | CR76: 12.69 | CS76: 12.76 | CT76: 13.27 | CU76: 13.28 | CV76: 13.31 | CW76: 13.29 | CX76: 13.33 | CY76: NULL | CZ76: 13.28 | DA76: 13.35 | DB76: 13.26 | DC76: 13.29 | DD76: 13.24 | DE76: 13.31 | DF76: 13.21 | DG76: 13.24 | DH76: NULL | DI76: NULL | DJ76: 2607 | DK76: 1938 | DL76: 1714 | DM76: 2220 | DN76: 1701 | DO76: 3296 | DP76: 2326 | DQ76: 3296 | DR76: 1743 | DS76: 3295 | DT76: 1645 | DU76: 3296 | DV76: 1590 | DW76: 3296 | DX76: 1722 | DY76: 1315 | DZ76: 1354 | EA76: 3297 | EB76: 1022 | EC76: 703 | ED76: 13.02 | EE76: -20.15 | EF76: -0.04 | EG76: 19.99 | EH76: 16.3 | EI76: -0.04 | EJ76: 28.55 | EK76: NULL | EL76: NULL | EM76: 12.8 | EN76: 12.8 | EO76: 13.9 | EP76: 13.8 | EQ76: 12.5 | ER76: 12.6 | ES76: 39.59 | ET76: 4943 | EU76: 4941 | EV76: NULL | EW76: 12.6 | EX76: 0 | EY76: 3000 | EZ76: NULL | FA76: NULL | FB76: NULL | FC76: 1205 | FD76: 1 | FE76: NULL | FF76: NULL | FG76: NULL | FH76: NULL | FI76: NULL | FJ76: NULL | FK76: NULL | FL76: NULL | FM76: 0 | FN76: 0 | FO76: 258 | FP76: 0 | FQ76: 0.7 | FR76: 0.17 | FS76: 0.18 | FT76: 0.35 | FU76: 0.35 | FV76: NULL | FW76: NULL | FX76: 12.84 | FY76: 0 | FZ76: -0.02 | GA76: 13.47 | GB76: -19.98 | GC76: 40.02 | GD76: 12.56 | GE76: NULL | GF76: NULL | GG76: NULL | GH76: 12.51 | GI76: 13.01 | GJ76: -0.0063
A77: 2023-08-02T02:00:00 | B77: 12.9 | C77: 13.52 | D77: 17.62 | E77: 17.34 | F77: 16.82 | G77: 17.79 | H77: 17.59 | I77: 17.59 | J77: 17.94 | K77: 18.13 | L77: 18 | M77: 17.81 | N77: 18.07 | O77: 17.77 | P77: 17.53 | Q77: 14.5 | R77: 0 | S77: 12.6 | T77: 75.5 | U77: 0.1625 | V77: 0.1678 | W77: 0.1562 | X77: 0.1672 | Y77: 0.1873 | Z77: 0.0397 | AA77: 0.2566 | AB77: 0.3618 | AC77: 0.3851 | AD77: 0.3871 | AE77: 835.1 | AF77: 865.45 | AG77: 865.47 | AH77: 0 | AI77: 124 | AJ77: 190 | AK77: 0.3 | AL77: 1.2 | AM77: 0 | AN77: 0 | AO77: 0 | AP77: 1.2 | AQ77: 0.8 | AR77: 1.7 | AS77: 0.6 | AT77: 1 | AU77: NULL | AV77: NULL | AW77: NULL | AX77: 0 | AY77: 0 | AZ77: 0 | BA77: 220.9 | BB77: 0 | BC77: 217 | BD77: 0 | BE77: 220.3 | BF77: 0 | BG77: 208.2 | BH77: 0 | BI77: 212 | BJ77: 0 | BK77: 215.1 | BL77: 0 | BM77: 227.6 | BN77: 0 | BO77: 227.6 | BP77: NULL | BQ77: NULL | BR77: -0.24 | BS77: 0.12 | BT77: 128.08 | BU77: 135.06 | BV77: 0 | BW77: 695.8 | BX77: 0 | BY77: 499.4 | BZ77: 13.1 | CA77: NULL | CB77: 4.2 | CC77: NULL | CD77: 5.1 | CE77: NULL | CF77: NULL | CG77: NULL | CH77: 10.8 | CI77: 41.7 | CJ77: -27.2 | CK77: 11.7 | CL77: NULL | CM77: -15.2 | CN77: -11.8 | CO77: -13.7 | CP77: NULL | CQ77: NULL | CR77: 12.52 | CS77: 12.54 | CT77: 13.06 | CU77: 13.09 | CV77: 13.15 | CW77: 13.15 | CX77: 13.19 | CY77: NULL | CZ77: 13.12 | DA77: 13.19 | DB77: 13.11 | DC77: 13.15 | DD77: 13.07 | DE77: 13.18 | DF77: 13.02 | DG77: 13.08 | DH77: NULL | DI77: NULL | DJ77: 2608 | DK77: 1935 | DL77: 1712 | DM77: 2250 | DN77: 1702 | DO77: 3296 | DP77: 2324 | DQ77: 3296 | DR77: 1741 | DS77: 3295 | DT77: 1643 | DU77: 3296 | DV77: 1588 | DW77: 3296 | DX77: 1717 | DY77: 1309 | DZ77: 1341 | EA77: 3297 | EB77: 1020 | EC77: 701 | ED77: 12.82 | EE77: -20.15 | EF77: -0.04 | EG77: 19.99 | EH77: 16.2 | EI77: -0.04 | EJ77: 28.55 | EK77: NULL | EL77: NULL | EM77: 12.2 | EN77: 12.2 | EO77: 13.7 | EP77: 13.7 | EQ77: 11.3 | ER77: 12.4 | ES77: 39.54 | ET77: 4950 | EU77: 4949 | EV77: NULL | EW77: 12.6 | EX77: 0 | EY77: 3000 | EZ77: NULL | FA77: NULL | FB77: NULL | FC77: 1206 | FD77: 1 | FE77: NULL | FF77: NULL | FG77: NULL | FH77: NULL | FI77: NULL | FJ77: NULL | FK77: NULL | FL77: NULL | FM77: 0 | FN77: 0 | FO77: 208 | FP77: 0 | FQ77: 0.6 | FR77: 0.2 | FS77: 0.21 | FT77: 0.36 | FU77: 0.36 | FV77: NULL | FW77: NULL | FX77: 12.56 | FY77: 0 | FZ77: -0.02 | GA77: 13.66 | GB77: -19.98 | GC77: 40.02 | GD77: 12.3 | GE77: NULL | GF77: NULL | GG77: NULL | GH77: 11.34 | GI77: 12.86 | GJ77: -0.0176
A78: 2023-08-02T03:00:00 | B78: 13.08 | C78: 13.2 | D78: 17.52 | E78: 17.28 | F78: 16.82 | G78: 17.59 | H78: 17.42 | I78: 17.38 | J78: 17.81 | K78: 17.96 | L78: 17.87 | M78: 17.77 | N78: 17.98 | O78: 17.77 | P78: 17.51 | Q78: 14.8 | R78: 0 | S78: 12.8 | T78: 70.8 | U78: 0.1625 | V78: 0.1676 | W78: 0.156 | X78: 0.1671 | Y78: 0.187 | Z78: 0.0412 | AA78: 0.2565 | AB78: 0.3618 | AC78: 0.3851 | AD78: 0.3871 | AE78: 833.3 | AF78: 865.16 | AG78: 865.16 | AH78: 0 | AI78: 282 | AJ78: 260 | AK78: 0.4 | AL78: 1.8 | AM78: 0 | AN78: 0 | AO78: 0 | AP78: 0 | AQ78: 0.9 | AR78: 2.7 | AS78: 0.8 | AT78: 1.2 | AU78: NULL | AV78: NULL | AW78: NULL | AX78: 0 | AY78: 0 | AZ78: 0 | BA78: 220.9 | BB78: 0.1 | BC78: 217.1 | BD78: 0 | BE78: 220.3 | BF78: 0 | BG78: 208.2 | BH78: 0 | BI78: 212 | BJ78: 0 | BK78: 215.1 | BL78: 0 | BM78: 227.6 | BN78: 0 | BO78: 227.6 | BP78: NULL | BQ78: NULL | BR78: -0.08 | BS78: 0.11 | BT78: 131.81 | BU78: 135.3 | BV78: 0.1 | BW78: 695.9 | BX78: 0.1 | BY78: 499.5 | BZ78: 15.6 | CA78: NULL | CB78: 9.8 | CC78: NULL | CD78: 5.3 | CE78: 0.4 | CF78: NULL | CG78: NULL | CH78: 11.1 | CI78: 42.8 | CJ78: -27.2 | CK78: 12.1 | CL78: NULL | CM78: -14.5 | CN78: -10.7 | CO78: -12.6 | CP78: NULL | CQ78: NULL | CR78: 12.64 | CS78: 12.43 | CT78: 13.33 | CU78: 13.23 | CV78: 13.39 | CW78: 13.28 | CX78: 13.41 | CY78: NULL | CZ78: 13.35 | DA78: 13.35 | DB78: 13.33 | DC78: 13.29 | DD78: 13.31 | DE78: 13.33 | DF78: 13.3 | DG78: 13.24 | DH78: NULL | DI78: NULL | DJ78: 2616 | DK78: 1950 | DL78: 1726 | DM78: 2236 | DN78: 1713 | DO78: 3273 | DP78: 2328 | DQ78: 3277 | DR78: 1752 | DS78: 3278 | DT78: 1657 | DU78: 3279 | DV78: 1603 | DW78: 3281 | DX78: 1729 | DY78: 1319 | DZ78: 1339 | EA78: 3285 | EB78: 1038 | EC78: 715 | ED78: 12.63 | EE78: -20.15 | EF78: -0.04 | EG78: 19.99 | EH78: 16.1 | EI78: -0.06 | EJ78: 28.55 | EK78: 20 | EL78: NULL | EM78: 12.9 | EN78: 12.9 | EO78: 13.8 | EP78: 13.6 | EQ78: 12.5 | ER78: 12.6 | ES78: 39.64 | ET78: 4844 | EU78: 4843 | EV78: NULL | EW78: 12.5 | EX78: 0 | EY78: 3000 | EZ78: NULL | FA78: 0.798 | FB78: NULL | FC78: 1207 | FD78: 1 | FE78: 0 | FF78: NULL | FG78: NULL | FH78: NULL | FI78: NULL | FJ78: NULL | FK78: NULL | FL78: NULL | FM78: 0 | FN78: 0 | FO78: 260 | FP78: 0 | FQ78: 0.8 | FR78: 0.18 | FS78: 0.18 | FT78: 0.35 | FU78: 0.35 | FV78: NULL | FW78: NULL | FX78: 12.85 | FY78: 0 | FZ78: 0 | GA78: 13.66 | GB78: -19.98 | GC78: 40.02 | GD78: 12.66 | GE78: NULL | GF78: NULL | GG78: NULL | GH78: 11.86 | GI78: 12.91 | GJ78: -0.0118
A79: 2023-08-02T04:00:00 | B79: 12.76 | C79: 12.82 | D79: 17.42 | E79: 17.23 | F79: 16.83 | G79: 17.47 | H79: 17.29 | I79: 17.25 | J79: 17.68 | K79: 17.87 | L79: 17.77 | M79: 17.68 | N79: 17.87 | O79: 17.74 | P79: 17.51 | Q79: 14.4 | R79: 0 | S79: 12.4 | T79: 70.8 | U79: 0.1625 | V79: 0.1676 | W79: 0.1559 | X79: 0.1671 | Y79: 0.1869 | Z79: 0.0419 | AA79: 0.2565 | AB79: 0.3618 | AC79: 0.385 | AD79: 0.3871 | AE79: 833.2 | AF79: 865.17 | AG79: 865.19 | AH79: 0 | AI79: 177 | AJ79: 240 | AK79: 0.1 | AL79: 1.6 | AM79: 0 | AN79: 0 | AO79: 0 | AP79: 0 | AQ79: 0.3 | AR79: 2.4 | AS79: 0.5 | AT79: 1.4 | AU79: NULL | AV79: NULL | AW79: NULL | AX79: 0 | AY79: 0 | AZ79: 0 | BA79: 220.9 | BB79: -0.1 | BC79: 217 | BD79: 0 | BE79: 220.3 | BF79: 0 | BG79: 208.2 | BH79: 0 | BI79: 212 | BJ79: 0 | BK79: 215.1 | BL79: 0 | BM79: 227.6 | BN79: 0 | BO79: 227.6 | BP79: NULL | BQ79: NULL | BR79: -0.11 | BS79: 0.12 | BT79: 130.65 | BU79: 135.36 | BV79: 0 | BW79: 695.9 | BX79: 0 | BY79: 499.5 | BZ79: 14.3 | CA79: NULL | CB79: 9.5 | CC79: NULL | CD79: 5.3 | CE79: NULL | CF79: NULL | CG79: NULL | CH79: 7.8 | CI79: 42.3 | CJ79: -27.2 | CK79: 9.7 | CL79: NULL | CM79: -15.3 | CN79: -12.1 | CO79: -13.7 | CP79: NULL | CQ79: NULL | CR79: 11.3 | CS79: 11.47 | CT79: 12.8 | CU79: 12.74 | CV79: 12.96 | CW79: 12.88 | CX79: 12.97 | CY79: NULL | CZ79: 12.89 | DA79: 12.99 | DB79: 12.9 | DC79: 12.91 | DD79: 12.77 | DE79: 12.89 | DF79: 12.54 | DG79: 12.65 | DH79: NULL | DI79: NULL | DJ79: 2618 | DK79: 1965 | DL79: 1745 | DM79: 2278 | DN79: 1735 | DO79: 3293 | DP79: 2341 | DQ79: 3293 | DR79: 1778 | DS79: 3294 | DT79: 1685 | DU79: 3296 | DV79: 1631 | DW79: 3291 | DX79: 1752 | DY79: 1339 | DZ79: 1356 | EA79: 3293 | EB79: 1065 | EC79: 735 | ED79: 12.6 | EE79: -20.15 | EF79: -0.04 | EG79: 19.99 | EH79: 16 | EI79: -0.06 | EJ79: 28.53 | EK79: NULL | EL79: NULL | EM79: 11.8 | EN79: 11.8 | EO79: 13.8 | EP79: 13.7 | EQ79: 11.3 | ER79: 12.5 | ES79: 39.72 | ET79: 4697 | EU79: 4696 | EV79: NULL | EW79: 12.6 | EX79: 0 | EY79: 3000 | EZ79: NULL | FA79: NULL | FB79: NULL | FC79: 1207 | FD79: 1 | FE79: NULL | FF79: NULL | FG79: NULL | FH79: NULL | FI79: NULL | FJ79: NULL | FK79: NULL | FL79: NULL | FM79: 0 | FN79: 0 | FO79: 258 | FP79: 0 | FQ79: 0.8 | FR79: 0.2 | FS79: 0.28 | FT79: 0.36 | FU79: 0.4 | FV79: NULL | FW79: NULL | FX79: 12.43 | FY79: 0 | FZ79: 0 | GA79: 13.23 | GB79: -19.98 | GC79: 40.02 | GD79: 12.17 | GE79: NULL | GF79: NULL | GG79: NULL | GH79: 8.49 | GI79: 12.87 | GJ79: -0.0517
A80: 2023-08-02T05:00:00 | B80: 11.37 | C80: 12.35 | D80: 17.32 | E80: 17.17 | F80: 16.83 | G80: 17.19 | H80: 17 | I80: 16.93 | J80: 17.53 | K80: 17.75 | L80: 17.7 | M80: 17.62 | N80: 17.83 | O80: 17.75 | P80: 17.45 | Q80: 13.9 | R80: 0 | S80: 10.9 | T80: 76.1 | U80: 0.1623 | V80: 0.1674 | W80: 0.1557 | X80: 0.167 | Y80: 0.1867 | Z80: 0.0476 | AA80: 0.2564 | AB80: 0.3616 | AC80: 0.3849 | AD80: 0.3871 | AE80: 835.6 | AF80: 864.91 | AG80: 864.91 | AH80: 0 | AI80: 275 | AJ80: 0 | AK80: 0.1 | AL80: 1.8 | AM80: 0 | AN80: 0 | AO80: 0 | AP80: 0 | AQ80: 0.4 | AR80: 2.6 | AS80: 0.5 | AT80: 1.2 | AU80: NULL | AV80: NULL | AW80: NULL | AX80: 0 | AY80: 0 | AZ80: 0 | BA80: 220.9 | BB80: 0.1 | BC80: 217.1 | BD80: 0 | BE80: 220.3 | BF80: 0 | BG80: 208.2 | BH80: 0 | BI80: 212 | BJ80: 0 | BK80: 215.1 | BL80: 0 | BM80: 227.6 | BN80: 0 | BO80: 227.6 | BP80: NULL | BQ80: NULL | BR80: 0.49 | BS80: 0.23 | BT80: 112.67 | BU80: 128.05 | BV80: 0.1 | BW80: 696 | BX80: 0 | BY80: 499.5 | BZ80: 13.1 | CA80: NULL | CB80: 11.8 | CC80: NULL | CD80: 5.3 | CE80: NULL | CF80: NULL | CG80: NULL | CH80: 7.6 | CI80: 41.6 | CJ80: -27.2 | CK80: 8.9 | CL80: NULL | CM80: -22.4 | CN80: -17.1 | CO80: -20.5 | CP80: NULL | CQ80: NULL | CR80: 10.15 | CS80: 10.71 | CT80: 11.7 | CU80: 11.65 | CV80: 11.87 | CW80: 11.84 | CX80: 12.02 | CY80: NULL | CZ80: 11.97 | DA80: 11.94 | DB80: 11.88 | DC80: 11.9 | DD80: 11.71 | DE80: 11.88 | DF80: 11.61 | DG80: 11.72 | DH80: NULL | DI80: NULL | DJ80: 2595 | DK80: 1920 | DL80: 1708 | DM80: 2411 | DN80: 1712 | DO80: 3294 | DP80: 2310 | DQ80: 3295 | DR80: 1732 | DS80: 3294 | DT80: 1640 | DU80: 3296 | DV80: 1585 | DW80: 3296 | DX80: 1710 | DY80: 1302 | DZ80: 1333 | EA80: 3297 | EB80: 1021 | EC80: 704 | ED80: 11.69 | EE80: -20.15 | EF80: -0.04 | EG80: 20 | EH80: 15.9 | EI80: -0.02 | EJ80: 28.55 | EK80: NULL | EL80: NULL | EM80: 10.4 | EN80: 10.5 | EO80: 12.5 | EP80: 12.6 | EQ80: 9.2 | ER80: 10.5 | ES80: 39.42 | ET80: 4946 | EU80: 4944 | EV80: NULL | EW80: 12.6 | EX80: 0 | EY80: 3000 | EZ80: NULL | FA80: NULL | FB80: NULL | FC80: 1208 | FD80: 1 | FE80: NULL | FF80: NULL | FG80: NULL | FH80: NULL | FI80: NULL | FJ80: NULL | FK80: NULL | FL80: NULL | FM80: 0 | FN80: 0 | FO80: 242 | FP80: 0 | FQ80: 0 | FR80: 1.7 | FS80: 2.23 | FT80: 1.54 | FU80: 2.07 | FV80: NULL | FW80: NULL | FX80: 10.69 | FY80: 0 | FZ80: 0 | GA80: 12.47 | GB80: -19.98 | GC80: 40.01 | GD80: 10.26 | GE80: NULL | GF80: NULL | GG80: NULL | GH80: 8.1 | GI80: 11.28 | GJ80: -0.0365
A81: 2023-08-02T06:00:00 | B81: 13.51 | C81: 13.98 | D81: 17.18 | E81: 17.11 | F81: 16.82 | G81: 16.93 | H81: 16.71 | I81: 16.63 | J81: 17.34 | K81: 17.53 | L81: 17.51 | M81: 17.51 | N81: 17.72 | O81: 17.7 | P81: 17.4 | Q81: 15.7 | R81: 0 | S81: 12.5 | T81: 71.1 | U81: 0.1622 | V81: 0.1673 | W81: 0.1558 | X81: 0.1669 | Y81: 0.1864 | Z81: 0.0498 | AA81: 0.2564 | AB81: 0.3616 | AC81: 0.3849 | AD81: 0.3869 | AE81: 833.9 | AF81: 864.98 | AG81: 865 | AH81: 0 | AI81: 151 | AJ81: 0 | AK81: 0.1 | AL81: 1.6 | AM81: 0 | AN81: 0 | AO81: 0 | AP81: 0 | AQ81: 0.1 | AR81: 2.3 | AS81: 0.5 | AT81: 1.3 | AU81: NULL | AV81: NULL | AW81: NULL | AX81: 0 | AY81: 0 | AZ81: 0 | BA81: 220.9 | BB81: 0.1 | BC81: 217.2 | BD81: 0 | BE81: 220.3 | BF81: 0.1 | BG81: 208.3 | BH81: 0 | BI81: 212 | BJ81: 0 | BK81: 215.1 | BL81: 0 | BM81: 227.6 | BN81: 0 | BO81: 227.6 | BP81: NULL | BQ81: NULL | BR81: 8.95 | BS81: 1.97 | BT81: 114.87 | BU81: 130.7 | BV81: 0 | BW81: 696 | BX81: 0 | BY81: 499.5 | BZ81: 14.5 | CA81: NULL | CB81: 11.9 | CC81: NULL | CD81: 5.3 | CE81: 0.7 | CF81: NULL | CG81: NULL | CH81: 9.7 | CI81: 41.8 | CJ81: -27.2 | CK81: 10.5 | CL81: NULL | CM81: -18.7 | CN81: -14.7 | CO81: -18.6 | CP81: NULL | CQ81: NULL | CR81: 12.73 | CS81: 12.78 | CT81: 13.78 | CU81: 13.8 | CV81: 13.93 | CW81: 13.89 | CX81: 13.98 | CY81: NULL | CZ81: 13.89 | DA81: 13.98 | DB81: 13.91 | DC81: 13.91 | DD81: 13.81 | DE81: 13.92 | DF81: 13.69 | DG81: 13.78 | DH81: NULL | DI81: NULL | DJ81: 2613 | DK81: 1934 | DL81: 1710 | DM81: 2349 | DN81: 1714 | DO81: 3296 | DP81: 2332 | DQ81: 3296 | DR81: 1741 | DS81: 3295 | DT81: 1642 | DU81: 3296 | DV81: 1588 | DW81: 3296 | DX81: 1714 | DY81: 1304 | DZ81: 1327 | EA81: 3297 | EB81: 1021 | EC81: 705 | ED81: 11.04 | EE81: -20.15 | EF81: -0.04 | EG81: 19.99 | EH81: 15.9 | EI81: -0.04 | EJ81: 28.55 | EK81: 19 | EL81: NULL | EM81: 12.9 | EN81: 12.9 | EO81: 13.4 | EP81: 13 | EQ81: 11.3 | ER81: 11.9 | ES81: 39.5 | ET81: 4949 | EU81: 4948 | EV81: NULL | EW81: 12.6 | EX81: 0 | EY81: 3000 | EZ81: NULL | FA81: 0.617 | FB81: NULL | FC81: 1209 | FD81: 1 | FE81: 0 | FF81: NULL | FG81: NULL | FH81: NULL | FI81: NULL | FJ81: NULL | FK81: NULL | FL81: NULL | FM81: 0 | FN81: 0 | FO81: 304 | FP81: 0 | FQ81: 0 | FR81: 10.94 | FS81: 10.99 | FT81: 9.18 | FU81: 9.19 | FV81: NULL | FW81: NULL | FX81: 12.64 | FY81: 0 | FZ81: 0 | GA81: 13.99 | GB81: -19.98 | GC81: 40.02 | GD81: 12.06 | GE81: NULL | GF81: NULL | GG81: NULL | GH81: 10.09 | GI81: 12.44 | GJ81: -0.028
A82: 2023-08-02T07:00:00 | B82: 14.82 | C82: 14.35 | D82: 17.05 | E82: 17.05 | F82: 16.82 | G82: 16.78 | H82: 16.61 | I82: 16.54 | J82: 17.16 | K82: 17.4 | L82: 17.4 | M82: 17.44 | N82: 17.68 | O82: 17.66 | P82: 17.35 | Q82: 16.1 | R82: 0 | S82: 15.1 | T82: 71.9 | U82: 0.1622 | V82: 0.1672 | W82: 0.1555 | X82: 0.1669 | Y82: 0.1861 | Z82: 0.0487 | AA82: 0.2564 | AB82: 0.3614 | AC82: 0.3849 | AD82: 0.3869 | AE82: 834.3 | AF82: 864.97 | AG82: 864.98 | AH82: 0 | AI82: 132 | AJ82: 0 | AK82: 0.1 | AL82: 1 | AM82: 0 | AN82: 0 | AO82: 0 | AP82: 0 | AQ82: 0.1 | AR82: 1.7 | AS82: 0.6 | AT82: 0.9 | AU82: NULL | AV82: NULL | AW82: NULL | AX82: 0 | AY82: 0 | AZ82: 0 | BA82: 220.9 | BB82: 0 | BC82: 217.2 | BD82: 0 | BE82: 220.3 | BF82: 0 | BG82: 208.3 | BH82: 0 | BI82: 212 | BJ82: 0 | BK82: 215.1 | BL82: 0 | BM82: 227.6 | BN82: 0 | BO82: 227.6 | BP82: NULL | BQ82: NULL | BR82: 22.54 | BS82: 4.83 | BT82: 118.77 | BU82: 134.34 | BV82: 0.1 | BW82: 696.1 | BX82: 0 | BY82: 499.5 | BZ82: 15.3 | CA82: NULL | CB82: NULL | CC82: NULL | CD82: NULL | CE82: NULL | CF82: NULL | CG82: NULL | CH82: 12.3 | CI82: 41.6 | CJ82: -27.2 | CK82: 12.8 | CL82: NULL | CM82: -9.4 | CN82: -6.4 | CO82: -10.2 | CP82: NULL | CQ82: NULL | CR82: 14 | CS82: 13.7 | CT82: 14.67 | CU82: 14.68 | CV82: 14.81 | CW82: 14.71 | CX82: 14.78 | CY82: NULL | CZ82: 14.68 | DA82: 14.83 | DB82: 14.76 | DC82: 14.72 | DD82: 14.71 | DE82: 14.77 | DF82: 14.58 | DG82: 14.61 | DH82: NULL | DI82: NULL | DJ82: 2617 | DK82: 1963 | DL82: 1729 | DM82: 2253 | DN82: 1721 | DO82: 3269 | DP82: 2352 | DQ82: 3281 | DR82: 1760 | DS82: 3286 | DT82: 1659 | DU82: 3295 | DV82: 1611 | DW82: 3296 | DX82: 1729 | DY82: 1324 | DZ82: 1343 | EA82: 3302 | EB82: 1038 | EC82: 720 | ED82: 11.42 | EE82: -20.15 | EF82: -0.04 | EG82: 19.99 | EH82: 15.8 | EI82: -0.04 | EJ82: 28.59 | EK82: NULL | EL82: NULL | EM82: 16.3 | EN82: 16.6 | EO82: 15 | EP82: 14.2 | EQ82: 14.6 | ER82: 13.9 | ES82: 39.59 | ET82: 4867 | EU82: 4859 | EV82: NULL | EW82: 12.5 | EX82: 0 | EY82: 3000 | EZ82: NULL | FA82: NULL | FB82: NULL | FC82: 1210 | FD82: 1 | FE82: NULL | FF82: NULL | FG82: NULL | FH82: NULL | FI82: NULL | FJ82: NULL | FK82: NULL | FL82: NULL | FM82: 0 | FN82: 0 | FO82: 240 | FP82: 0 | FQ82: 0 | FR82: 63.89 | FS82: 66.4 | FT82: 24.96 | FU82: 25.64 | FV82: NULL | FW82: NULL | FX82: 14.74 | FY82: 0 | FZ82: 0 | GA82: 14.62 | GB82: -19.98 | GC82: 40.02 | GD82: 14.16 | GE82: NULL | GF82: NULL | GG82: NULL | GH82: 12.55 | GI82: 14.45 | GJ82: -0.0221
A83: 2023-08-02T08:00:00 | B83: 17.7 | C83: 16.7 | D83: 16.97 | E83: 16.97 | F83: 16.81 | G83: 16.81 | H83: 16.64 | I83: 16.6 | J83: 17.09 | K83: 17.33 | L83: 17.33 | M83: 17.33 | N83: 17.58 | O83: 17.61 | P83: 17.35 | Q83: 18.6 | R83: 0 | S83: 16.6 | T83: 66.4 | U83: 0.1623 | V83: 0.1671 | W83: 0.1557 | X83: 0.1669 | Y83: 0.1859 | Z83: 0.0457 | AA83: 0.2563 | AB83: 0.3614 | AC83: 0.3849 | AD83: 0.3869 | AE83: 831.2 | AF83: 864.76 | AG83: 864.78 | AH83: 0 | AI83: 257 | AJ83: 210 | AK83: 0.2 | AL83: 2.2 | AM83: 0 | AN83: 0 | AO83: 0 | AP83: 0 | AQ83: 0.5 | AR83: 3 | AS83: 0.6 | AT83: 1.2 | AU83: NULL | AV83: NULL | AW83: NULL | AX83: 0 | AY83: 0 | AZ83: -0.1 | BA83: 220.8 | BB83: -0.1 | BC83: 217.1 | BD83: 0 | BE83: 220.3 | BF83: -0.1 | BG83: 208.2 | BH83: -0.2 | BI83: 211.8 | BJ83: -0.1 | BK83: 215 | BL83: 0 | BM83: 227.6 | BN83: 0 | BO83: 227.6 | BP83: NULL | BQ83: NULL | BR83: 32.9 | BS83: 6.8 | BT83: 116.13 | BU83: 137.19 | BV83: 0 | BW83: 696.1 | BX83: 0 | BY83: 499.5 | BZ83: 15 | CA83: NULL | CB83: 4.7 | CC83: NULL | CD83: 5.3 | CE83: NULL | CF83: NULL | CG83: NULL | CH83: 15.9 | CI83: 42.1 | CJ83: -27.2 | CK83: 17.3 | CL83: NULL | CM83: -6.3 | CN83: -3.3 | CO83: -7.3 | CP83: NULL | CQ83: NULL | CR83: 17.48 | CS83: 16.6 | CT83: 17.26 | CU83: 17.31 | CV83: 17.24 | CW83: 17.27 | CX83: 17.26 | CY83: NULL | CZ83: 17.23 | DA83: 17.49 | DB83: 17.43 | DC83: 17.42 | DD83: 17.7 | DE83: 17.69 | DF83: 18.78 | DG83: 18.6 | DH83: NULL | DI83: NULL | DJ83: 2664 | DK83: 2020 | DL83: 1775 | DM83: 2312 | DN83: 1771 | DO83: 3299 | DP83: 2409 | DQ83: 3300 | DR83: 1811 | DS83: 3299 | DT83: 1699 | DU83: 3300 | DV83: 1650 | DW83: 3300 | DX83: 1774 | DY83: 1362 | DZ83: 1380 | EA83: 3301 | EB83: 1068 | EC83: 742 | ED83: 12.49 | EE83: -20.15 | EF83: -0.04 | EG83: 19.99 | EH83: 15.8 | EI83: -0.04 | EJ83: 28.55 | EK83: NULL | EL83: NULL | EM83: 26.7 | EN83: 26.6 | EO83: 17.5 | EP83: 15.7 | EQ83: 22.8 | ER83: 15.7 | ES83: 40.14 | ET83: 4702 | EU83: 4700 | EV83: NULL | EW83: 12.6 | EX83: 0 | EY83: 3000 | EZ83: NULL | FA83: NULL | FB83: NULL | FC83: 1205 | FD83: 1 | FE83: NULL | FF83: NULL | FG83: NULL | FH83: NULL | FI83: NULL | FJ83: NULL | FK83: NULL | FL83: NULL | FM83: 0 | FN83: 0 | FO83: 194 | FP83: 0 | FQ83: 0.9 | FR83: 175.06 | FS83: 165.43 | FT83: 19 | FU83: 30.3 | FV83: NULL | FW83: NULL | FX83: 17.79 | FY83: 0 | FZ83: 0 | GA83: 17.12 | GB83: -19.97 | GC83: 40.02 | GD83: 17.01 | GE83: NULL | GF83: NULL | GG83: NULL | GH83: 18.54 | GI83: 16.41 | GJ83: 0.0252
A84: 2023-08-02T09:00:00 | B84: 20.2 | C84: 19.15 | D84: 16.95 | E84: 16.9 | F84: 16.8 | G84: 17.28 | H84: 17.17 | I84: 17.38 | J84: 17.15 | K84: 17.3 | L84: 17.3 | M84: 17.3 | N84: 17.49 | O84: 17.55 | P84: 17.34 | Q84: 20.3 | R84: 0 | S84: 18.8 | T84: 54.3 | U84: 0.1626 | V84: 0.1674 | W84: 0.1561 | X84: 0.1669 | Y84: 0.1853 | Z84: 0.0436 | AA84: 0.2562 | AB84: 0.3609 | AC84: 0.3847 | AD84: 0.3864 | AE84: 824.9 | AF84: 864.7 | AG84: 864.71 | AH84: 0 | AI84: 19 | AJ84: 250 | AK84: 1.1 | AL84: 4.4 | AM84: 0 | AN84: 0 | AO84: 0 | AP84: 0 | AQ84: 1.4 | AR84: 6.1 | AS84: 1.1 | AT84: 2.4 | AU84: NULL | AV84: NULL | AW84: NULL | AX84: 0 | AY84: 0 | AZ84: 0 | BA84: 220.8 | BB84: -0.1 | BC84: 217 | BD84: -0.1 | BE84: 220.2 | BF84: 0.1 | BG84: 208.3 | BH84: 0 | BI84: 211.8 | BJ84: -0.1 | BK84: 214.9 | BL84: 0 | BM84: 227.6 | BN84: 0 | BO84: 227.6 | BP84: NULL | BQ84: NULL | BR84: 197.65 | BS84: 39.9 | BT84: 122.19 | BU84: 150.62 | BV84: 0.1 | BW84: 696.2 | BX84: 0 | BY84: 499.5 | BZ84: 14.2 | CA84: NULL | CB84: 4.6 | CC84: NULL | CD84: 5 | CE84: -0.2 | CF84: NULL | CG84: NULL | CH84: 25.3 | CI84: 43 | CJ84: -27.2 | CK84: 24.3 | CL84: NULL | CM84: 18.4 | CN84: 25.9 | CO84: 32.3 | CP84: NULL | CQ84: NULL | CR84: 22.22 | CS84: 23.12 | CT84: 20.62 | CU84: 20.79 | CV84: 20.51 | CW84: 20.55 | CX84: 20.54 | CY84: NULL | CZ84: 20.37 | DA84: 20.62 | DB84: 20.62 | DC84: 20.66 | DD84: 21.84 | DE84: 21.1 | DF84: 23.16 | DG84: 21.46 | DH84: NULL | DI84: NULL | DJ84: 2634 | DK84: 2064 | DL84: 1784 | DM84: 2420 | DN84: 1786 | DO84: 3271 | DP84: 2386 | DQ84: 3274 | DR84: 1804 | DS84: 3276 | DT84: 1677 | DU84: 3279 | DV84: 1629 | DW84: 3280 | DX84: 1762 | DY84: 1355 | DZ84: 1351 | EA84: 3281 | EB84: 1048 | EC84: 715 | ED84: 16.83 | EE84: -20.15 | EF84: -0.04 | EG84: 19.99 | EH84: 15.8 | EI84: -0.04 | EJ84: 28.54 | EK84: 25 | EL84: NULL | EM84: 31 | EN84: 30.1 | EO84: 20.7 | EP84: 19.1 | EQ84: 29.4 | ER84: 22.7 | ES84: 40.79 | ET84: 4813 | EU84: 4812 | EV84: NULL | EW84: 12.6 | EX84: 0 | EY84: 3000 | EZ84: NULL | FA84: 0.83 | FB84: NULL | FC84: 1203 | FD84: 1 | FE84: 0 | FF84: NULL | FG84: NULL | FH84: NULL | FI84: NULL | FJ84: NULL | FK84: NULL | FL84: NULL | FM84: 0 | FN84: 0 | FO84: 212 | FP84: 0 | FQ84: 1.5 | FR84: 143.15 | FS84: 167.9 | FT84: 55.58 | FU84: 56.97 | FV84: NULL | FW84: NULL | FX84: 22.34 | FY84: 0 | FZ84: -0.02 | GA84: 19.23 | GB84: -19.98 | GC84: 40.03 | GD84: 22.51 | GE84: NULL | GF84: NULL | GG84: NULL | GH84: 24.34 | GI84: 21.71 | GJ84: 0.0323
A85: 2023-08-02T10:00:00 | B85: 21.33 | C85: 20.84 | D85: 17.09 | E85: 16.87 | F85: 16.79 | G85: 18.15 | H85: 18.1 | I85: 18.47 | J85: 17.5 | K85: 17.54 | L85: 17.48 | M85: 17.22 | N85: 17.46 | O85: 17.5 | P85: 17.27 | Q85: 21.6 | R85: 0 | S85: 22 | T85: 50 | U85: 0.1632 | V85: 0.1679 | W85: 0.1569 | X85: 0.1671 | Y85: 0.1846 | Z85: 0.0443 | AA85: 0.2561 | AB85: 0.3603 | AC85: 0.3844 | AD85: 0.3859 | AE85: 820.8 | AF85: 864.75 | AG85: 864.78 | AH85: 0 | AI85: 267 | AJ85: 240 | AK85: 1.6 | AL85: 6.4 | AM85: 0 | AN85: 0 | AO85: 0 | AP85: 0 | AQ85: 1.9 | AR85: 7.5 | AS85: 1.7 | AT85: 3 | AU85: NULL | AV85: NULL | AW85: NULL | AX85: 0 | AY85: 0 | AZ85: 0 | BA85: 220.8 | BB85: 0 | BC85: 217 | BD85: 0 | BE85: 220.2 | BF85: -0.1 | BG85: 208.2 | BH85: 0 | BI85: 211.8 | BJ85: 0 | BK85: 214.9 | BL85: 0 | BM85: 227.6 | BN85: 0 | BO85: 227.6 | BP85: NULL | BQ85: NULL | BR85: 222.53 | BS85: 46.54 | BT85: 126.2 | BU85: 155.33 | BV85: 0 | BW85: 696.2 | BX85: 0.1 | BY85: 499.6 | BZ85: 13.7 | CA85: NULL | CB85: 10.7 | CC85: NULL | CD85: 4.8 | CE85: NULL | CF85: NULL | CG85: NULL | CH85: 27.4 | CI85: 44.4 | CJ85: -27.2 | CK85: 26.6 | CL85: NULL | CM85: 26.6 | CN85: 24 | CO85: 43.5 | CP85: NULL | CQ85: NULL | CR85: 23.32 | CS85: 24.59 | CT85: 21.84 | CU85: 21.94 | CV85: 21.5 | CW85: 21.56 | CX85: 21.52 | CY85: NULL | CZ85: 21.36 | DA85: 21.66 | DB85: 21.79 | DC85: 21.77 | DD85: 24.27 | DE85: 22.05 | DF85: 22.27 | DG85: 21.37 | DH85: NULL | DI85: NULL | DJ85: 2643 | DK85: 2105 | DL85: 1820 | DM85: 2451 | DN85: 1825 | DO85: 3294 | DP85: 2425 | DQ85: 3295 | DR85: 1849 | DS85: 3296 | DT85: 1714 | DU85: 3296 | DV85: 1663 | DW85: 3288 | DX85: 1804 | DY85: 1382 | DZ85: 1380 | EA85: 3294 | EB85: 1088 | EC85: 746 | ED85: 20.73 | EE85: -20.15 | EF85: -0.03 | EG85: 20 | EH85: 15.9 | EI85: -0.04 | EJ85: 28.52 | EK85: NULL | EL85: NULL | EM85: 31.3 | EN85: 30.3 | EO85: 23.6 | EP85: 22.2 | EQ85: 31.5 | ER85: 26 | ES85: 42.5 | ET85: 4580 | EU85: 4582 | EV85: NULL | EW85: 12.6 | EX85: 0 | EY85: 3000 | EZ85: NULL | FA85: NULL | FB85: NULL | FC85: 1197 | FD85: 1 | FE85: NULL | FF85: NULL | FG85: NULL | FH85: NULL | FI85: NULL | FJ85: NULL | FK85: NULL | FL85: NULL | FM85: 0 | FN85: 0 | FO85: 290 | FP85: 0 | FQ85: 1.4 | FR85: 291.61 | FS85: 293.64 | FT85: 66.11 | FU85: 58.7 | FV85: NULL | FW85: NULL | FX85: 23.73 | FY85: 5 | FZ85: 0.02 | GA85: 21.12 | GB85: -19.98 | GC85: 40.02 | GD85: 24.8 | GE85: NULL | GF85: NULL | GG85: NULL | GH85: 27.07 | GI85: 24.76 | GJ85: 0.0301
A86: 2023-08-02T11:00:00 | B86: 22.92 | C86: 22.64 | D86: 17.31 | E86: 16.87 | F86: 16.78 | G86: 19.08 | H86: 19.08 | I86: 19.85 | J86: 17.88 | K86: 17.88 | L86: 17.71 | M86: 17.24 | N86: 17.49 | O86: 17.49 | P86: 17.24 | Q86: 24 | R86: 0 | S86: 23.9 | T86: 49.7 | U86: 0.1633 | V86: 0.168 | W86: 0.158 | X86: 0.167 | Y86: 0.1831 | Z86: 0.0511 | AA86: 0.2557 | AB86: 0.3593 | AC86: 0.3841 | AD86: 0.3849 | AE86: 819.4 | AF86: 864.38 | AG86: 864.41 | AH86: 0 | AI86: 297 | AJ86: 300 | AK86: 1.2 | AL86: 6.2 | AM86: 0 | AN86: 0 | AO86: 0 | AP86: 0 | AQ86: 1.5 | AR86: 8.3 | AS86: 1.4 | AT86: 2.5 | AU86: NULL | AV86: NULL | AW86: NULL | AX86: 0 | AY86: 0 | AZ86: 0 | BA86: 220.8 | BB86: -0.1 | BC86: 216.9 | BD86: -0.1 | BE86: 220.1 | BF86: -0.1 | BG86: 208.1 | BH86: -0.1 | BI86: 211.7 | BJ86: 0 | BK86: 214.9 | BL86: 0 | BM86: 227.6 | BN86: 0 | BO86: 227.6 | BP86: NULL | BQ86: NULL | BR86: 308.85 | BS86: 69.73 | BT86: 124.33 | BU86: 164.3 | BV86: 0.1 | BW86: 696.3 | BX86: 0 | BY86: 499.6 | BZ86: 14.3 | CA86: NULL | CB86: 10.8 | CC86: NULL | CD86: 5.3 | CE86: NULL | CF86: NULL | CG86: NULL | CH86: 28.4 | CI86: 47 | CJ86: -27.2 | CK86: 26.8 | CL86: NULL | CM86: 61.8 | CN86: 37.8 | CO86: 82 | CP86: NULL | CQ86: NULL | CR86: 23.52 | CS86: 26.7 | CT86: 23.98 | CU86: 24.12 | CV86: 23.55 | CW86: 23.66 | CX86: 23.62 | CY86: NULL | CZ86: 23.51 | DA86: 23.65 | DB86: 23.57 | DC86: 24.33 | DD86: 24.93 | DE86: 23.82 | DF86: 23.01 | DG86: 23.17 | DH86: NULL | DI86: NULL | DJ86: 2610 | DK86: 2095 | DL86: 1789 | DM86: 2407 | DN86: 1789 | DO86: 3297 | DP86: 2406 | DQ86: 3298 | DR86: 1817 | DS86: 3297 | DT86: 1665 | DU86: 3298 | DV86: 1613 | DW86: 3295 | DX86: 1768 | DY86: 1343 | DZ86: 1352 | EA86: 3298 | EB86: 1039 | EC86: 710 | ED86: 23.21 | EE86: -20.15 | EF86: -0.04 | EG86: 19.99 | EH86: 16.1 | EI86: -0.02 | EJ86: 28.55 | EK86: NULL | EL86: NULL | EM86: 33.2 | EN86: 32.3 | EO86: 26.1 | EP86: 24.7 | EQ86: 32.7 | ER86: 28.7 | ES86: 45.5 | ET86: 4848 | EU86: 4847 | EV86: NULL | EW86: 12.6 | EX86: 0 | EY86: 3000 | EZ86: NULL | FA86: NULL | FB86: NULL | FC86: 1188 | FD86: 1 | FE86: NULL | FF86: NULL | FG86: NULL | FH86: NULL | FI86: NULL | FJ86: NULL | FK86: NULL | FL86: NULL | FM86: 0 | FN86: 0 | FO86: 270 | FP86: 0 | FQ86: 1.4 | FR86: 315.68 | FS86: 317.71 | FT86: 21.38 | FU86: 21.53 | FV86: NULL | FW86: NULL | FX86: 25.52 | FY86: 0 | FZ86: -0.02 | GA86: 22.59 | GB86: -19.98 | GC86: 40.02 | GD86: 27.2 | GE86: NULL | GF86: NULL | GG86: NULL | GH86: 26.59 | GI86: 27.38 | GJ86: -0.0131
A87: 2023-08-02T12:00:00 | B87: 23.95 | C87: 23.4 | D87: 17.71 | E87: 16.92 | F87: 16.76 | G87: 20.51 | H87: 20.44 | I87: 21.47 | J87: 18.58 | K87: 18.47 | L87: 18.21 | M87: 17.33 | N87: 17.55 | O87: 17.44 | P87: 17.21 | Q87: 25.4 | R87: 0 | S87: 24.9 | T87: 46.6 | U87: 0.1639 | V87: 0.1682 | W87: 0.1587 | X87: 0.167 | Y87: 0.1814 | Z87: 0.0576 | AA87: 0.2556 | AB87: 0.3578 | AC87: 0.3837 | AD87: 0.3837 | AE87: 817 | AF87: 864.07 | AG87: 864.11 | AH87: 0 | AI87: 247 | AJ87: 250 | AK87: 1.3 | AL87: 6 | AM87: 0 | AN87: 0 | AO87: 0 | AP87: 0 | AQ87: 1.5 | AR87: 7.4 | AS87: 1.5 | AT87: 2.8 | AU87: NULL | AV87: NULL | AW87: NULL | AX87: 0 | AY87: 0 | AZ87: 0 | BA87: 220.8 | BB87: 0 | BC87: 216.9 | BD87: 0 | BE87: 220.1 | BF87: 0 | BG87: 208.1 | BH87: 0 | BI87: 211.7 | BJ87: 0 | BK87: 214.9 | BL87: 0 | BM87: 227.6 | BN87: 0 | BO87: 227.6 | BP87: NULL | BQ87: NULL | BR87: 325.76 | BS87: 72.34 | BT87: 125.06 | BU87: 167.63 | BV87: 0 | BW87: 696.3 | BX87: 0 | BY87: 499.6 | BZ87: 12.4 | CA87: NULL | CB87: NULL | CC87: NULL | CD87: 5.1 | CE87: -0.7 | CF87: NULL | CG87: NULL | CH87: 29.7 | CI87: 48.4 | CJ87: -27.2 | CK87: 28.7 | CL87: NULL | CM87: 75.9 | CN87: 43.4 | CO87: 91.7 | CP87: NULL | CQ87: NULL | CR87: 24.96 | CS87: 27.13 | CT87: 24.93 | CU87: 25.47 | CV87: 24.59 | CW87: 24.9 | CX87: 24.73 | CY87: NULL | CZ87: 24.54 | DA87: 25.08 | DB87: 25.86 | DC87: 25.21 | DD87: 24.69 | DE87: 24.78 | DF87: 23.98 | DG87: 24.02 | DH87: NULL | DI87: NULL | DJ87: 2598 | DK87: 2115 | DL87: 1813 | DM87: 2413 | DN87: 1804 | DO87: 3292 | DP87: 2409 | DQ87: 3293 | DR87: 1834 | DS87: 3293 | DT87: 1680 | DU87: 3294 | DV87: 1624 | DW87: 3294 | DX87: 1782 | DY87: 1351 | DZ87: 1368 | EA87: 3295 | EB87: 1050 | EC87: 725 | ED87: 24.94 | EE87: -20.15 | EF87: -0.04 | EG87: 20 | EH87: 16.4 | EI87: -0.04 | EJ87: 28.56 | EK87: 35 | EL87: NULL | EM87: 33.1 | EN87: 33 | EO87: 27.2 | EP87: 26.4 | EQ87: 32.2 | ER87: 29.5 | ES87: 46.92 | ET87: 4791 | EU87: 4789 | EV87: NULL | EW87: 12.6 | EX87: 0 | EY87: 3000 | EZ87: NULL | FA87: 2.274 | FB87: NULL | FC87: 1187 | FD87: 1 | FE87: 0 | FF87: NULL | FG87: NULL | FH87: NULL | FI87: NULL | FJ87: NULL | FK87: NULL | FL87: NULL | FM87: 0 | FN87: 0 | FO87: 284 | FP87: 0 | FQ87: 1.8 | FR87: 330.94 | FS87: 331.02 | FT87: 22.57 | FU87: 22.87 | FV87: NULL | FW87: NULL | FX87: 26.35 | FY87: 0 | FZ87: 0 | GA87: 23.88 | GB87: -19.98 | GC87: 40.02 | GD87: 28.07 | GE87: NULL | GF87: NULL | GG87: NULL | GH87: 28.48 | GI87: 28.35 | GJ87: 0.0007
A88: 2023-08-02T13:00:00 | B88: 24.68 | C88: 24.24 | D88: 18.18 | E88: 17.04 | F88: 16.74 | G88: 21.53 | H88: 21.38 | I88: 22.5 | J88: 19.26 | K88: 19.13 | L88: 18.72 | M88: 17.48 | N88: 17.71 | O88: 17.46 | P88: 17.2 | Q88: 25.2 | R88: 0 | S88: 26.1 | T88: 46.4 | U88: 0.1639 | V88: 0.168 | W88: 0.1592 | X88: 0.167 | Y88: 0.1795 | Z88: 0.0619 | AA88: 0.2555 | AB88: 0.3562 | AC88: 0.3832 | AD88: 0.3823 | AE88: 816 | AF88: 863.68 | AG88: 863.7 | AH88: 0 | AI88: 205 | AJ88: 300 | AK88: 1.5 | AL88: 8.2 | AM88: 0 | AN88: 0 | AO88: 0 | AP88: 0 | AQ88: 1.8 | AR88: 9.8 | AS88: 1.6 | AT88: 2.8 | AU88: NULL | AV88: NULL | AW88: NULL | AX88: 0 | AY88: 0 | AZ88: 0 | BA88: 220.8 | BB88: 0 | BC88: 216.9 | BD88: -0.1 | BE88: 220 | BF88: 0 | BG88: 208.1 | BH88: 0 | BI88: 211.7 | BJ88: 0 | BK88: 214.9 | BL88: 0 | BM88: 227.6 | BN88: 0 | BO88: 227.6 | BP88: NULL | BQ88: NULL | BR88: 321.21 | BS88: 71.63 | BT88: 126.64 | BU88: 167.62 | BV88: 0.1 | BW88: 696.4 | BX88: 0 | BY88: 499.6 | BZ88: 12.6 | CA88: NULL | CB88: NULL | CC88: NULL | CD88: 4.7 | CE88: NULL | CF88: NULL | CG88: NULL | CH88: 29.8 | CI88: 48.6 | CJ88: -27.2 | CK88: 28.6 | CL88: NULL | CM88: 79.9 | CN88: 50 | CO88: 87.6 | CP88: NULL | CQ88: NULL | CR88: 24.81 | CS88: 26.59 | CT88: 25.46 | CU88: 25.29 | CV88: 25.33 | CW88: 24.93 | CX88: 25.32 | CY88: NULL | CZ88: 25.72 | DA88: 25.73 | DB88: 27.32 | DC88: 25.55 | DD88: 25.91 | DE88: 25.87 | DF88: 25.03 | DG88: 24.87 | DH88: NULL | DI88: NULL | DJ88: 2583 | DK88: 2104 | DL88: 1804 | DM88: 2387 | DN88: 1787 | DO88: 3295 | DP88: 2402 | DQ88: 3293 | DR88: 1821 | DS88: 3294 | DT88: 1664 | DU88: 3295 | DV88: 1604 | DW88: 3295 | DX88: 1766 | DY88: 1331 | DZ88: 1361 | EA88: 3293 | EB88: 1026 | EC88: 712 | ED88: 26.22 | EE88: -20.15 | EF88: -0.04 | EG88: 20 | EH88: 16.7 | EI88: -0.04 | EJ88: 28.55 | EK88: NULL | EL88: NULL | EM88: 34 | EN88: 33.6 | EO88: 27.9 | EP88: 27.1 | EQ88: 33.2 | ER88: 29.1 | ES88: 47.3 | ET88: 4937 | EU88: 4935 | EV88: NULL | EW88: 12.6 | EX88: 0 | EY88: 3000 | EZ88: NULL | FA88: NULL | FB88: NULL | FC88: 1182 | FD88: 1 | FE88: NULL | FF88: NULL | FG88: NULL | FH88: NULL | FI88: NULL | FJ88: NULL | FK88: NULL | FL88: NULL | FM88: 0 | FN88: 0 | FO88: 318 | FP88: 0 | FQ88: 1.6 | FR88: 323.12 | FS88: 322.35 | FT88: 25.23 | FU88: 24.94 | FV88: NULL | FW88: NULL | FX88: 27.23 | FY88: 0 | FZ88: -0.02 | GA88: 24.98 | GB88: -19.97 | GC88: 40.02 | GD88: 28.78 | GE88: NULL | GF88: NULL | GG88: NULL | GH88: 28.91 | GI88: 28.26 | GJ88: 0.0075
A89: 2023-08-02T14:00:00 | B89: 24.64 | C89: 24.2 | D89: 18.64 | E89: 17.21 | F89: 16.73 | G89: 22.24 | H89: 21.93 | I89: 23.05 | J89: 19.85 | K89: 19.72 | L89: 19.23 | M89: 17.69 | N89: 17.99 | O89: 17.45 | P89: 17.24 | Q89: 25.7 | R89: 0 | S89: 25.7 | T89: 40.4 | U89: 0.1637 | V89: 0.1677 | W89: 0.1587 | X89: 0.1669 | Y89: 0.1778 | Z89: 0.0639 | AA89: 0.2553 | AB89: 0.3544 | AC89: 0.3828 | AD89: 0.381 | AE89: 811.1 | AF89: 863.15 | AG89: 863.15 | AH89: 0 | AI89: 309 | AJ89: 270 | AK89: 1.8 | AL89: 8.2 | AM89: 0 | AN89: 0 | AO89: 0 | AP89: 0 | AQ89: 2.1 | AR89: 9.3 | AS89: 1.8 | AT89: 3.4 | AU89: NULL | AV89: NULL | AW89: NULL | AX89: 0 | AY89: 0 | AZ89: 0 | BA89: 220.8 | BB89: 0 | BC89: 216.9 | BD89: 0 | BE89: 220 | BF89: 0 | BG89: 208.1 | BH89: 0.1 | BI89: 211.8 | BJ89: -0.1 | BK89: 214.8 | BL89: 0 | BM89: 227.6 | BN89: 0 | BO89: 227.6 | BP89: NULL | BQ89: NULL | BR89: 297.75 | BS89: 68.21 | BT89: 126.89 | BU89: 167.17 | BV89: 0 | BW89: 696.4 | BX89: 0 | BY89: 499.6 | BZ89: 13 | CA89: NULL | CB89: 5.7 | CC89: NULL | CD89: 4.4 | CE89: NULL | CF89: NULL | CG89: NULL | CH89: 28.4 | CI89: 49.7 | CJ89: -27.2 | CK89: 28.7 | CL89: NULL | CM89: 70.9 | CN89: 51.2 | CO89: 78.1 | CP89: NULL | CQ89: NULL | CR89: 28.36 | CS89: 27.16 | CT89: 25.17 | CU89: 25.37 | CV89: 25.07 | CW89: 25.13 | CX89: 25.27 | CY89: NULL | CZ89: 25.2 | DA89: 25.25 | DB89: 25.87 | DC89: 26.02 | DD89: 26.58 | DE89: 26.52 | DF89: 25.58 | DG89: 25.69 | DH89: NULL | DI89: NULL | DJ89: 2564 | DK89: 2090 | DL89: 1804 | DM89: 2354 | DN89: 1778 | DO89: 3288 | DP89: 2380 | DQ89: 3290 | DR89: 1816 | DS89: 3290 | DT89: 1668 | DU89: 3291 | DV89: 1602 | DW89: 3292 | DX89: 1762 | DY89: 1326 | DZ89: 1359 | EA89: 3293 | EB89: 1026 | EC89: 716 | ED89: 27.25 | EE89: -20.15 | EF89: -0.04 | EG89: 20 | EH89: 17 | EI89: -0.04 | EJ89: 28.54 | EK89: NULL | EL89: NULL | EM89: 33.1 | EN89: 32.4 | EO89: 27.9 | EP89: 27.4 | EQ89: 32.7 | ER89: 29.1 | ES89: 48.26 | ET89: 4938 | EU89: 4937 | EV89: NULL | EW89: 12.6 | EX89: 0 | EY89: 3000 | EZ89: NULL | FA89: NULL | FB89: NULL | FC89: 1178 | FD89: 1 | FE89: NULL | FF89: NULL | FG89: NULL | FH89: NULL | FI89: NULL | FJ89: NULL | FK89: NULL | FL89: NULL | FM89: 0 | FN89: 0 | FO89: 322 | FP89: 0 | FQ89: 2.3 | FR89: 305.33 | FS89: 302.51 | FT89: 24.9 | FU89: 24.87 | FV89: NULL | FW89: NULL | FX89: 27.45 | FY89: 0 | FZ89: 0.02 | GA89: 24.65 | GB89: -19.98 | GC89: 40.02 | GD89: 28.4 | GE89: NULL | GF89: NULL | GG89: NULL | GH89: 28.48 | GI89: 28.23 | GJ89: 0.0021
A90: 2023-08-02T15:00:00 | B90: 23.88 | C90: 23.61 | D90: 19.02 | E90: 17.4 | F90: 16.72 | G90: 22.41 | H90: 22 | I90: 22.99 | J90: 20.28 | K90: 20.21 | L90: 19.68 | M90: 17.94 | N90: 18.24 | O90: 17.51 | P90: 17.26 | Q90: 24.9 | R90: 0 | S90: 25.1 | T90: 41.9 | U90: 0.1632 | V90: 0.167 | W90: 0.1584 | X90: 0.1669 | Y90: 0.1762 | Z90: 0.063 | AA90: 0.2553 | AB90: 0.3534 | AC90: 0.3825 | AD90: 0.38 | AE90: 810.6 | AF90: 863.18 | AG90: 863.2 | AH90: 0 | AI90: 293 | AJ90: 300 | AK90: 2.1 | AL90: 10.2 | AM90: 0 | AN90: 0 | AO90: 0 | AP90: 0 | AQ90: 2.4 | AR90: 12.6 | AS90: 2.3 | AT90: 4 | AU90: NULL | AV90: NULL | AW90: NULL | AX90: 0 | AY90: 0 | AZ90: 0 | BA90: 220.8 | BB90: 0.1 | BC90: 217 | BD90: 0 | BE90: 220 | BF90: 0 | BG90: 208.1 | BH90: 0 | BI90: 211.8 | BJ90: 0 | BK90: 214.8 | BL90: 0 | BM90: 227.6 | BN90: 0 | BO90: 227.6 | BP90: NULL | BQ90: NULL | BR90: 228.33 | BS90: 53.33 | BT90: 126.85 | BU90: 162.04 | BV90: 0 | BW90: 696.4 | BX90: 0 | BY90: 499.6 | BZ90: 11.6 | CA90: NULL | CB90: 8.2 | CC90: NULL | CD90: 4.2 | CE90: -0.8 | CF90: NULL | CG90: NULL | CH90: 24.1 | CI90: 49.3 | CJ90: -27.2 | CK90: 25.6 | CL90: NULL | CM90: 44.5 | CN90: 36.6 | CO90: 50.4 | CP90: NULL | CQ90: NULL | CR90: 26.01 | CS90: 26.31 | CT90: 24.2 | CU90: 24.22 | CV90: 24.14 | CW90: 23.94 | CX90: 24.28 | CY90: NULL | CZ90: 24.2 | DA90: 24 | DB90: 24.59 | DC90: 23.98 | DD90: 25.29 | DE90: 26.29 | DF90: 25.37 | DG90: 26.15 | DH90: NULL | DI90: NULL | DJ90: 2564 | DK90: 2089 | DL90: 1812 | DM90: 2357 | DN90: 1777 | DO90: 3289 | DP90: 2377 | DQ90: 3296 | DR90: 1821 | DS90: 3295 | DT90: 1676 | DU90: 3296 | DV90: 1606 | DW90: 3297 | DX90: 1771 | DY90: 1337 | DZ90: 1370 | EA90: 3297 | EB90: 1027 | EC90: 720 | ED90: 27.51 | EE90: -20.14 | EF90: -0.04 | EG90: 20 | EH90: 17.3 | EI90: -0.06 | EJ90: 28.56 | EK90: 34 | EL90: NULL | EM90: 31 | EN90: 30.2 | EO90: 26 | EP90: 26.2 | EQ90: 30.1 | ER90: 27 | ES90: 48.04 | ET90: 4933 | EU90: 4930 | EV90: NULL | EW90: 12.6 | EX90: 0 | EY90: 3000 | EZ90: NULL | FA90: 3.125 | FB90: NULL | FC90: 1171 | FD90: 1 | FE90: 0 | FF90: NULL | FG90: NULL | FH90: NULL | FI90: NULL | FJ90: NULL | FK90: NULL | FL90: NULL | FM90: 0 | FN90: 0 | FO90: 307 | FP90: 0 | FQ90: 2.1 | FR90: 233.29 | FS90: 234.05 | FT90: 29.04 | FU90: 28.14 | FV90: NULL | FW90: NULL | FX90: 26.45 | FY90: 0 | FZ90: -0.02 | GA90: 24.46 | GB90: -19.98 | GC90: 40.03 | GD90: 26.4 | GE90: NULL | GF90: NULL | GG90: NULL | GH90: 25.21 | GI90: 26.23 | GJ90: -0.0158
A91: 2023-08-02T16:00:00 | B91: 23.17 | C91: 22.92 | D91: 19.25 | E91: 17.6 | F91: 16.72 | G91: 22.21 | H91: 21.74 | I91: 22.58 | J91: 20.45 | K91: 20.45 | L91: 19.9 | M91: 18.2 | N91: 18.46 | O91: 17.6 | P91: 17.34 | Q91: 23.9 | R91: 0 | S91: 24 | T91: 44.5 | U91: 0.1627 | V91: 0.1664 | W91: 0.1577 | X91: 0.1667 | Y91: 0.1748 | Z91: 0.0619 | AA91: 0.2554 | AB91: 0.3523 | AC91: 0.3822 | AD91: 0.3791 | AE91: 812 | AF91: 863.27 | AG91: 863.3 | AH91: 0 | AI91: 324 | AJ91: 280 | AK91: 2.5 | AL91: 9.8 | AM91: 0 | AN91: 0 | AO91: 0 | AP91: 0 | AQ91: 2.7 | AR91: 11.3 | AS91: 2.6 | AT91: 4.7 | AU91: NULL | AV91: NULL | AW91: NULL | AX91: 0 | AY91: 0 | AZ91: 0 | BA91: 220.8 | BB91: 0 | BC91: 217 | BD91: 0 | BE91: 220 | BF91: 0 | BG91: 208.1 | BH91: 0 | BI91: 211.8 | BJ91: 0 | BK91: 214.8 | BL91: 0 | BM91: 227.6 | BN91: 0 | BO91: 227.6 | BP91: NULL | BQ91: NULL | BR91: 204.52 | BS91: 49.84 | BT91: 126.02 | BU91: 157.99 | BV91: 0.1 | BW91: 696.5 | BX91: 0 | BY91: 499.6 | BZ91: 12.3 | CA91: NULL | CB91: 2.5 | CC91: NULL | CD91: 16.9 | CE91: NULL | CF91: NULL | CG91: NULL | CH91: 22.3 | CI91: NULL | CJ91: -27.2 | CK91: 24 | CL91: NULL | CM91: 25.7 | CN91: 23.4 | CO91: 30.4 | CP91: NULL | CQ91: NULL | CR91: 25.3 | CS91: 24.95 | CT91: 23.47 | CU91: 23.3 | CV91: 23.47 | CW91: 23.05 | CX91: 23.64 | CY91: NULL | CZ91: 23.52 | DA91: 23.12 | DB91: 23.59 | DC91: 23.2 | DD91: 24.47 | DE91: 23.87 | DF91: 25.2 | DG91: 25.32 | DH91: NULL | DI91: NULL | DJ91: 2541 | DK91: 2070 | DL91: 1805 | DM91: 2318 | DN91: 1763 | DO91: 3280 | DP91: 2354 | DQ91: 3284 | DR91: 1810 | DS91: 3274 | DT91: 1671 | DU91: 3281 | DV91: 1597 | DW91: 3287 | DX91: 1766 | DY91: 1341 | DZ91: 1374 | EA91: 3285 | EB91: 1023 | EC91: 720 | ED91: 27.02 | EE91: -20.15 | EF91: -0.04 | EG91: 20 | EH91: 17.7 | EI91: -0.04 | EJ91: 28.56 | EK91: NULL | EL91: NULL | EM91: 29.5 | EN91: 28.7 | EO91: 25 | EP91: 25.4 | EQ91: 28.9 | ER91: 26 | ES91: 49.02 | ET91: 4942 | EU91: 4936 | EV91: NULL | EW91: 12.6 | EX91: 0 | EY91: 3000 | EZ91: NULL | FA91: NULL | FB91: NULL | FC91: 1170 | FD91: 1 | FE91: NULL | FF91: NULL | FG91: NULL | FH91: NULL | FI91: NULL | FJ91: NULL | FK91: NULL | FL91: NULL | FM91: 0 | FN91: 0 | FO91: 216 | FP91: 0 | FQ91: 2.5 | FR91: 205.96 | FS91: 200.36 | FT91: 36.2 | FU91: 36.44 | FV91: NULL | FW91: NULL | FX91: 25.82 | FY91: 0 | FZ91: 0 | GA91: 23.25 | GB91: -19.98 | GC91: 40.01 | GD91: 25.08 | GE91: NULL | GF91: NULL | GG91: NULL | GH91: 23.53 | GI91: 24.91 | GJ91: -0.0176
A92: 2023-08-02T17:00:00 | B92: 20.89 | C92: 20.68 | D92: 19.34 | E92: 17.77 | F92: 16.72 | G92: 21.73 | H92: 21.23 | I92: 21.88 | J92: 20.46 | K92: 20.51 | L92: 19.95 | M92: 18.38 | N92: 18.66 | O92: 17.7 | P92: 17.42 | Q92: 22.4 | R92: 0 | S92: 20.9 | T92: 51.5 | U92: 0.1621 | V92: 0.166 | W92: 0.157 | X92: 0.1667 | Y92: 0.1739 | Z92: 0.0593 | AA92: 0.2555 | AB92: 0.3517 | AC92: 0.382 | AD92: 0.3788 | AE92: 817 | AF92: 863.23 | AG92: 863.28 | AH92: 0 | AI92: 318 | AJ92: 270 | AK92: 2.4 | AL92: 8.8 | AM92: 0 | AN92: 0 | AO92: 0 | AP92: 0 | AQ92: 2.6 | AR92: 11.4 | AS92: 2.5 | AT92: 4.3 | AU92: NULL | AV92: NULL | AW92: NULL | AX92: 0 | AY92: 0 | AZ92: 0 | BA92: 220.8 | BB92: 0 | BC92: 217 | BD92: 0.1 | BE92: 220.1 | BF92: 0 | BG92: 208.1 | BH92: 0 | BI92: 211.8 | BJ92: 0.1 | BK92: 214.9 | BL92: 0 | BM92: 227.6 | BN92: 0 | BO92: 227.6 | BP92: NULL | BQ92: NULL | BR92: 78.45 | BS92: 18.89 | BT92: 129.38 | BU92: 150.23 | BV92: 0 | BW92: 696.5 | BX92: 0 | BY92: 499.6 | BZ92: 12.9 | CA92: NULL | CB92: 6.6 | CC92: NULL | CD92: 5 | CE92: NULL | CF92: NULL | CG92: NULL | CH92: 17.2 | CI92: 46.8 | CJ92: -27.2 | CK92: 19 | CL92: NULL | CM92: 1.6 | CN92: 2.2 | CO92: 5.8 | CP92: NULL | CQ92: NULL | CR92: 21.02 | CS92: 20.46 | CT92: 20.84 | CU92: 20.84 | CV92: 20.93 | CW92: 20.87 | CX92: 20.95 | CY92: NULL | CZ92: 20.87 | DA92: 20.95 | DB92: 20.9 | DC92: 20.88 | DD92: 20.89 | DE92: 20.95 | DF92: 20.83 | DG92: 20.83 | DH92: NULL | DI92: NULL | DJ92: 2542 | DK92: 2026 | DL92: 1793 | DM92: 2231 | DN92: 1734 | DO92: 3296 | DP92: 2369 | DQ92: 3296 | DR92: 1792 | DS92: 3296 | DT92: 1670 | DU92: 3297 | DV92: 1596 | DW92: 3297 | DX92: 1750 | DY92: 1329 | DZ92: 1356 | EA92: 3297 | EB92: 1023 | EC92: 718 | ED92: 25.06 | EE92: -20.15 | EF92: -0.04 | EG92: 20 | EH92: 17.8 | EI92: -0.02 | EJ92: 28.53 | EK92: NULL | EL92: NULL | EM92: 21.8 | EN92: 21.8 | EO92: 22.1 | EP92: 22.8 | EQ92: 21.6 | ER92: 21.6 | ES92: 46.55 | ET92: 4936 | EU92: 4936 | EV92: NULL | EW92: 12.6 | EX92: 0 | EY92: 3000 | EZ92: NULL | FA92: NULL | FB92: NULL | FC92: 1171 | FD92: 1 | FE92: NULL | FF92: NULL | FG92: NULL | FH92: NULL | FI92: NULL | FJ92: NULL | FK92: NULL | FL92: NULL | FM92: 0 | FN92: 0 | FO92: 222 | FP92: 0 | FQ92: 2.6 | FR92: 82.76 | FS92: 74.75 | FT92: 30.73 | FU92: 30.92 | FV92: NULL | FW92: NULL | FX92: 21.01 | FY92: 0 | FZ92: 0 | GA92: 21.14 | GB92: -19.97 | GC92: 40.02 | GD92: 20.95 | GE92: NULL | GF92: NULL | GG92: NULL | GH92: 17.8 | GI92: 21.43 | GJ92: -0.0447
A93: 2023-08-02T18:00:00 | B93: 19.34 | C93: 19.02 | D93: 19.29 | E93: 17.9 | F93: 16.74 | G93: 21.08 | H93: 20.63 | I93: 21.08 | J93: 20.24 | K93: 20.35 | L93: 19.87 | M93: 18.57 | N93: 18.78 | O93: 17.79 | P93: 17.51 | Q93: 21.1 | R93: 0 | S93: 19 | T93: 59.5 | U93: 0.1616 | V93: 0.1654 | W93: 0.1563 | X93: 0.1666 | Y93: 0.1734 | Z93: 0.0567 | AA93: 0.2558 | AB93: 0.3515 | AC93: 0.382 | AD93: 0.3789 | AE93: 822 | AF93: 863.48 | AG93: 863.52 | AH93: 0 | AI93: 311 | AJ93: 280 | AK93: 1.5 | AL93: 7.6 | AM93: 0 | AN93: 0 | AO93: 0 | AP93: 0 | AQ93: 1.8 | AR93: 10.3 | AS93: 1.8 | AT93: 3.3 | AU93: NULL | AV93: NULL | AW93: NULL | AX93: 0 | AY93: 0 | AZ93: 0 | BA93: 220.8 | BB93: 0.1 | BC93: 217.1 | BD93: 0 | BE93: 220.1 | BF93: 0.1 | BG93: 208.2 | BH93: 0 | BI93: 211.8 | BJ93: 0 | BK93: 214.9 | BL93: 0 | BM93: 227.6 | BN93: 0 | BO93: 227.6 | BP93: NULL | BQ93: NULL | BR93: 5.5 | BS93: 1.21 | BT93: 143.18 | BU93: 146.6 | BV93: 0.1 | BW93: 696.6 | BX93: 0.1 | BY93: 499.7 | BZ93: 14 | CA93: NULL | CB93: NULL | CC93: NULL | CD93: 5.4 | CE93: -1 | CF93: NULL | CG93: NULL | CH93: 14.7 | CI93: 43.4 | CJ93: -27.2 | CK93: 17 | CL93: NULL | CM93: -6.1 | CN93: -4.3 | CO93: -3.6 | CP93: NULL | CQ93: NULL | CR93: 18.97 | CS93: 18.28 | CT93: 19.27 | CU93: 19.29 | CV93: 19.42 | CW93: 19.39 | CX93: 19.46 | CY93: NULL | CZ93: 19.4 | DA93: 19.49 | DB93: 19.41 | DC93: 19.42 | DD93: 19.38 | DE93: 19.45 | DF93: 19.32 | DG93: 19.34 | DH93: NULL | DI93: NULL | DJ93: 2536 | DK93: 1997 | DL93: 1770 | DM93: 2200 | DN93: 1715 | DO93: 3296 | DP93: 2342 | DQ93: 3296 | DR93: 1776 | DS93: 3295 | DT93: 1663 | DU93: 3297 | DV93: 1589 | DW93: 3297 | DX93: 1737 | DY93: 1313 | DZ93: 1345 | EA93: 3298 | EB93: 1020 | EC93: 712 | ED93: 22.66 | EE93: -20.15 | EF93: -0.04 | EG93: 20 | EH93: 17.8 | EI93: -0.04 | EJ93: 28.55 | EK93: 26 | EL93: NULL | EM93: 17.1 | EN93: 17.4 | EO93: 20.7 | EP93: 21.2 | EQ93: 17.2 | ER93: 19.4 | ES93: 43.12 | ET93: 4936 | EU93: 4934 | EV93: NULL | EW93: 12.6 | EX93: 0 | EY93: 3000 | EZ93: NULL | FA93: 3.077 | FB93: NULL | FC93: 1172 | FD93: 1 | FE93: 0 | FF93: NULL | FG93: NULL | FH93: NULL | FI93: NULL | FJ93: NULL | FK93: NULL | FL93: NULL | FM93: 0 | FN93: 0 | FO93: 202 | FP93: 0 | FQ93: 2.1 | FR93: 7.06 | FS93: 6.75 | FT93: 6.65 | FU93: 6.34 | FV93: NULL | FW93: NULL | FX93: 19.09 | FY93: 0 | FZ93: -0.02 | GA93: 19.03 | GB93: -19.98 | GC93: 40.01 | GD93: 18.32 | GE93: NULL | GF93: NULL | GG93: NULL | GH93: 16.02 | GI93: 19.78 | GJ93: -0.0462
A94: 2023-08-02T19:00:00 | B94: 16.13 | C94: 16.09 | D94: 19.16 | E94: 17.98 | F94: 16.76 | G94: 20.53 | H94: 20.14 | I94: 20.42 | J94: 20.02 | K94: 20.12 | L94: 19.72 | M94: 18.58 | N94: 18.83 | O94: 17.89 | P94: 17.59 | Q94: 18 | R94: 0 | S94: 16.2 | T94: 86.1 | U94: 0.1613 | V94: 0.1651 | W94: 0.1559 | X94: 0.1664 | Y94: 0.173 | Z94: 0.0537 | AA94: 0.2559 | AB94: 0.3514 | AC94: 0.382 | AD94: 0.379 | AE94: 835.1 | AF94: 864.98 | AG94: 864.99 | AH94: 0 | AI94: 280 | AJ94: 250 | AK94: 1.8 | AL94: 9 | AM94: 0 | AN94: 0 | AO94: 0 | AP94: 0 | AQ94: 2.1 | AR94: 11.5 | AS94: 2.1 | AT94: 4.2 | AU94: NULL | AV94: NULL | AW94: NULL | AX94: 1.1 | AY94: 1.1 | AZ94: 1 | BA94: 221.8 | BB94: 0.9 | BC94: 218 | BD94: 1 | BE94: 221.1 | BF94: 1 | BG94: 209.2 | BH94: 1.1 | BI94: 212.9 | BJ94: 1 | BK94: 215.9 | BL94: 0.7 | BM94: 228.3 | BN94: 1.1 | BO94: 228.7 | BP94: NULL | BQ94: NULL | BR94: 0.04 | BS94: 0.45 | BT94: 142.06 | BU94: 143.09 | BV94: 0 | BW94: 696.6 | BX94: 0 | BY94: 499.7 | BZ94: 13.2 | CA94: NULL | CB94: NULL | CC94: NULL | CD94: 5 | CE94: NULL | CF94: NULL | CG94: NULL | CH94: 13.2 | CI94: 41.2 | CJ94: -27.2 | CK94: 15.3 | CL94: NULL | CM94: -11.3 | CN94: -7.9 | CO94: -11 | CP94: NULL | CQ94: NULL | CR94: 15.34 | CS94: 14.47 | CT94: 15.23 | CU94: 15.47 | CV94: 15.13 | CW94: 15.18 | CX94: 15.02 | CY94: NULL | CZ94: 14.71 | DA94: 15 | DB94: 14.73 | DC94: 14.82 | DD94: 14.62 | DE94: 14.79 | DF94: 14.53 | DG94: 14.64 | DH94: NULL | DI94: NULL | DJ94: 2551 | DK94: 2264 | DL94: 2010 | DM94: 2466 | DN94: 1975 | DO94: 3303 | DP94: 2431 | DQ94: 3305 | DR94: 2077 | DS94: 3306 | DT94: 1710 | DU94: 3308 | DV94: 1623 | DW94: 3308 | DX94: 1973 | DY94: 1564 | DZ94: 2901 | EA94: 3310 | EB94: 1071 | EC94: 756 | ED94: 20.13 | EE94: -20.14 | EF94: -0.03 | EG94: 20 | EH94: 17.8 | EI94: -0.04 | EJ94: 28.57 | EK94: NULL | EL94: NULL | EM94: 14.8 | EN94: 14.9 | EO94: 17.9 | EP94: 18.5 | EQ94: 14.6 | ER94: 16.3 | ES94: 41.12 | ET94: 4724 | EU94: 4726 | EV94: NULL | EW94: 12.6 | EX94: 0 | EY94: 3000 | EZ94: NULL | FA94: NULL | FB94: NULL | FC94: 1174 | FD94: 1 | FE94: NULL | FF94: NULL | FG94: NULL | FH94: NULL | FI94: NULL | FJ94: NULL | FK94: NULL | FL94: NULL | FM94: 0 | FN94: 0 | FO94: 199 | FP94: 0 | FQ94: 2.9 | FR94: 2.18 | FS94: 1.96 | FT94: 1.96 | FU94: 1.75 | FV94: NULL | FW94: NULL | FX94: 15.89 | FY94: 0 | FZ94: 0 | GA94: 16.2 | GB94: -19.98 | GC94: 40.02 | GD94: 15.12 | GE94: NULL | GF94: NULL | GG94: NULL | GH94: 14.91 | GI94: 16.93 | GJ94: -0.0243
A95: 2023-08-02T20:00:00 | B95: 14.71 | C95: 14.49 | D95: 19.02 | E95: 18.03 | F95: 16.79 | G95: 19.9 | H95: 19.1 | I95: 19.38 | J95: 19.71 | K95: 19.68 | L95: 19.49 | M95: 18.65 | N95: 18.87 | O95: 17.99 | P95: 17.67 | Q95: 16.4 | R95: 0 | S95: 14.7 | T95: 94.5 | U95: 0.1612 | V95: 0.1653 | W95: 0.1556 | X95: 0.1663 | Y95: 0.3059 | Z95: 0.0092 | AA95: 0.2563 | AB95: 0.3512 | AC95: 0.3819 | AD95: 0.3792 | AE95: 838 | AF95: 866.17 | AG95: 866.2 | AH95: 0 | AI95: 284 | AJ95: 80 | AK95: 1.8 | AL95: 9.8 | AM95: 0 | AN95: 0 | AO95: 0 | AP95: 0 | AQ95: 2.1 | AR95: 12 | AS95: 1.8 | AT95: 4.1 | AU95: NULL | AV95: NULL | AW95: NULL | AX95: 6.2 | AY95: 6.3 | AZ95: 5.9 | BA95: 227.7 | BB95: 5.9 | BC95: 223.9 | BD95: 5.9 | BE95: 227 | BF95: 5.8 | BG95: 215 | BH95: 5.9 | BI95: 218.8 | BJ95: 6.1 | BK95: 222 | BL95: 6 | BM95: 234.3 | BN95: 5.6 | BO95: 234.3 | BP95: NULL | BQ95: NULL | BR95: -0.27 | BS95: 0.27 | BT95: 139.6 | BU95: 140.78 | BV95: 0.2 | BW95: 696.8 | BX95: 2.1 | BY95: 501.8 | BZ95: 14.7 | CA95: NULL | CB95: 4.4 | CC95: NULL | CD95: 4.7 | CE95: NULL | CF95: NULL | CG95: NULL | CH95: 12.9 | CI95: 40.7 | CJ95: -27.2 | CK95: 14.2 | CL95: NULL | CM95: -18.3 | CN95: -16 | CO95: -20.9 | CP95: NULL | CQ95: NULL | CR95: 14.32 | CS95: 14.02 | CT95: 14.2 | CU95: 14.19 | CV95: 14.16 | CW95: 14.14 | CX95: 14.16 | CY95: NULL | CZ95: 14.18 | DA95: 14.24 | DB95: 14.12 | DC95: 14.14 | DD95: 14.1 | DE95: 14.2 | DF95: 14.08 | DG95: 14.1 | DH95: NULL | DI95: NULL | DJ95: 2433 | DK95: 2249 | DL95: 1782 | DM95: 2616 | DN95: 2752 | DO95: 3295 | DP95: 2703 | DQ95: 3295 | DR95: 2752 | DS95: 3293 | DT95: 1639 | DU95: 3295 | DV95: 1544 | DW95: 3296 | DX95: 2718 | DY95: 1913 | DZ95: 2786 | EA95: 3296 | EB95: 1028 | EC95: 706 | ED95: 17.94 | EE95: -20.14 | EF95: -0.03 | EG95: 19.99 | EH95: 17.7 | EI95: -0.02 | EJ95: 28.59 | EK95: NULL | EL95: NULL | EM95: 14.2 | EN95: 14.2 | EO95: 15.8 | EP95: 16.4 | EQ95: 13.9 | ER95: 14.7 | ES95: 39.91 | ET95: 4946 | EU95: 4943 | EV95: NULL | EW95: 12.6 | EX95: 0 | EY95: 3000 | EZ95: NULL | FA95: NULL | FB95: NULL | FC95: 1176 | FD95: 1 | FE95: NULL | FF95: NULL | FG95: NULL | FH95: NULL | FI95: NULL | FJ95: NULL | FK95: NULL | FL95: NULL | FM95: 0 | FN95: 0 | FO95: 186 | FP95: 0 | FQ95: 1.6 | FR95: 0.25 | FS95: 0.25 | FT95: 0.37 | FU95: 0.37 | FV95: NULL | FW95: NULL | FX95: 14.48 | FY95: 0 | FZ95: 0.02 | GA95: 14.69 | GB95: -19.98 | GC95: 40.03 | GD95: 14.2 | GE95: NULL | GF95: NULL | GG95: NULL | GH95: 14.12 | GI95: 15.07 | GJ95: -0.0131
A96: 2023-08-02T21:00:00 | B96: 13.48 | C96: 13.13 | D96: 18.8 | E96: 18.03 | F96: 16.81 | G96: 19.41 | H96: 18.96 | I96: 19.05 | J96: 19.39 | K96: 19.52 | L96: 19.24 | M96: 18.6 | N96: 18.83 | O96: 18.04 | P96: 17.74 | Q96: 14.9 | R96: 0 | S96: 13.3 | T96: 93.5 | U96: 0.161 | V96: 0.1657 | W96: 0.1554 | X96: 0.1663 | Y96: 0.2898 | Z96: 0.0407 | AA96: 0.2564 | AB96: 0.3513 | AC96: 0.3818 | AD96: 0.3793 | AE96: 837.8 | AF96: 866.58 | AG96: 866.6 | AH96: 0 | AI96: 190 | AJ96: 200 | AK96: 1 | AL96: 8.4 | AM96: 0 | AN96: 0 | AO96: 0 | AP96: 0 | AQ96: 1.4 | AR96: 10.9 | AS96: 1.1 | AT96: 3.1 | AU96: NULL | AV96: NULL | AW96: NULL | AX96: 0 | AY96: 0 | AZ96: 0.1 | BA96: 227.8 | BB96: 0 | BC96: 223.9 | BD96: 0.1 | BE96: 227.1 | BF96: 0.1 | BG96: 215.1 | BH96: 0.1 | BI96: 218.9 | BJ96: 0 | BK96: 222 | BL96: 0.1 | BM96: 234.4 | BN96: 0.1 | BO96: 234.4 | BP96: NULL | BQ96: NULL | BR96: -0.56 | BS96: 0.33 | BT96: 124.95 | BU96: 137.51 | BV96: 0.4 | BW96: 697.2 | BX96: 0.4 | BY96: 502.2 | BZ96: 14.9 | CA96: NULL | CB96: 2.8 | CC96: NULL | CD96: 4.9 | CE96: 0.8 | CF96: NULL | CG96: NULL | CH96: 11.8 | CI96: 41.3 | CJ96: -27.2 | CK96: 12.7 | CL96: NULL | CM96: -16.5 | CN96: -13.1 | CO96: -17.2 | CP96: NULL | CQ96: NULL | CR96: 12.86 | CS96: 12.55 | CT96: 13.05 | CU96: 13.07 | CV96: 12.95 | CW96: 12.88 | CX96: 13.01 | CY96: NULL | CZ96: 13.02 | DA96: 13.02 | DB96: 12.93 | DC96: 12.93 | DD96: 12.9 | DE96: 12.99 | DF96: 12.76 | DG96: 12.86 | DH96: NULL | DI96: NULL | DJ96: 2438 | DK96: 2182 | DL96: 1757 | DM96: 2612 | DN96: 2747 | DO96: 3295 | DP96: 2684 | DQ96: 3295 | DR96: 2715 | DS96: 3293 | DT96: 1638 | DU96: 3295 | DV96: 1546 | DW96: 3296 | DX96: 2692 | DY96: 1908 | DZ96: 2665 | EA96: 3296 | EB96: 1028 | EC96: 703 | ED96: 16.09 | EE96: -20.14 | EF96: -0.04 | EG96: 20 | EH96: 17.6 | EI96: -0.04 | EJ96: 28.54 | EK96: 20 | EL96: NULL | EM96: 12.8 | EN96: 12.9 | EO96: 14.7 | EP96: 15.2 | EQ96: 12.5 | ER96: 13.3 | ES96: 39.66 | ET96: 4948 | EU96: 4946 | EV96: NULL | EW96: 12.6 | EX96: 0 | EY96: 3000 | EZ96: NULL | FA96: 0.522 | FB96: NULL | FC96: 1176 | FD96: 1 | FE96: 0 | FF96: NULL | FG96: NULL | FH96: NULL | FI96: NULL | FJ96: NULL | FK96: NULL | FL96: NULL | FM96: 0 | FN96: 0 | FO96: 198 | FP96: 0 | FQ96: 0.9 | FR96: 0.24 | FS96: 0.25 | FT96: 0.36 | FU96: 0.36 | FV96: NULL | FW96: NULL | FX96: 13.05 | FY96: 0 | FZ96: 0 | GA96: 13.26 | GB96: -19.98 | GC96: 40.02 | GD96: 12.7 | GE96: NULL | GF96: NULL | GG96: NULL | GH96: 12.28 | GI96: 13.87 | GJ96: -0.0191
A97: 2023-08-02T22:00:00 | B97: 12.58 | C97: 12.68 | D97: 18.63 | E97: 17.99 | F97: 16.83 | G97: 18.97 | H97: 18.67 | I97: 18.65 | J97: 19.1 | K97: 19.22 | L97: 19.05 | M97: 18.54 | N97: 18.77 | O97: 18.09 | P97: 17.76 | Q97: 14.7 | R97: 0 | S97: 11.9 | T97: 96.8 | U97: 0.1608 | V97: 0.1661 | W97: 0.1552 | X97: 0.1662 | Y97: 0.2795 | Z97: 0.054 | AA97: 0.256 | AB97: 0.3515 | AC97: 0.3818 | AD97: 0.3799 | AE97: 838.7 | AF97: 866.22 | AG97: 866.24 | AH97: 0 | AI97: 263 | AJ97: 260 | AK97: 0.2 | AL97: 2.4 | AM97: 0 | AN97: 0 | AO97: 0 | AP97: 0 | AQ97: 0.6 | AR97: 2.9 | AS97: 0.9 | AT97: 1.7 | AU97: NULL | AV97: NULL | AW97: NULL | AX97: 0 | AY97: 0 | AZ97: 0 | BA97: 227.8 | BB97: 0 | BC97: 223.9 | BD97: 0 | BE97: 227.1 | BF97: 0 | BG97: 215.1 | BH97: 0 | BI97: 218.9 | BJ97: 0 | BK97: 222 | BL97: 0 | BM97: 234.4 | BN97: 0 | BO97: 234.4 | BP97: NULL | BQ97: NULL | BR97: -0.73 | BS97: 0.17 | BT97: 114.81 | BU97: 133.2 | BV97: 0.1 | BW97: 697.3 | BX97: 0.1 | BY97: 502.3 | BZ97: 15.1 | CA97: NULL | CB97: 7.8 | CC97: NULL | CD97: 5 | CE97: NULL | CF97: NULL | CG97: NULL | CH97: 10.2 | CI97: 41.3 | CJ97: -27.2 | CK97: 11.2 | CL97: NULL | CM97: -20.5 | CN97: -16.2 | CO97: -21 | CP97: NULL | CQ97: NULL | CR97: 11.83 | CS97: 11.65 | CT97: 12.67 | CU97: 12.61 | CV97: 12.57 | CW97: 12.45 | CX97: 12.76 | CY97: NULL | CZ97: 12.78 | DA97: 12.68 | DB97: 12.62 | DC97: 12.6 | DD97: 12.62 | DE97: 12.67 | DF97: 12.42 | DG97: 12.57 | DH97: NULL | DI97: NULL | DJ97: 2455 | DK97: 2337 | DL97: 1790 | DM97: 2625 | DN97: 2808 | DO97: 3286 | DP97: 2705 | DQ97: 3285 | DR97: 2746 | DS97: 3283 | DT97: 1639 | DU97: 3285 | DV97: 1547 | DW97: 3286 | DX97: 2752 | DY97: 2082 | DZ97: 2841 | EA97: 3285 | EB97: 1031 | EC97: 702 | ED97: 14.32 | EE97: -20.15 | EF97: -0.04 | EG97: 20 | EH97: 17.4 | EI97: -0.04 | EJ97: 28.57 | EK97: NULL | EL97: NULL | EM97: 11.8 | EN97: 11.9 | EO97: 13.4 | EP97: 13.9 | EQ97: 11.3 | ER97: 11.8 | ES97: 39.66 | ET97: 4937 | EU97: 4935 | EV97: NULL | EW97: 12.6 | EX97: 0 | EY97: 3000 | EZ97: NULL | FA97: NULL | FB97: NULL | FC97: 1176 | FD97: 1 | FE97: NULL | FF97: NULL | FG97: NULL | FH97: NULL | FI97: NULL | FJ97: NULL | FK97: NULL | FL97: NULL | FM97: 0 | FN97: 0 | FO97: 228 | FP97: 0 | FQ97: 0.5 | FR97: 0.29 | FS97: 0.27 | FT97: 0.37 | FU97: 0.37 | FV97: NULL | FW97: NULL | FX97: 11.89 | FY97: 0 | FZ97: 0 | GA97: 12.62 | GB97: -19.98 | GC97: 40.02 | GD97: 11.62 | GE97: NULL | GF97: NULL | GG97: NULL | GH97: 10.97 | GI97: 12.28 | GJ97: -0.0159
A98: 2023-08-02T23:00:00 | B98: 13.01 | C98: 12.87 | D98: 18.45 | E98: 17.94 | F98: 16.86 | G98: 18.52 | H98: 18.26 | I98: 18.22 | J98: 18.82 | K98: 19.01 | L98: 18.84 | M98: 18.46 | N98: 18.65 | O98: 18.11 | P98: 17.79 | Q98: 15.2 | R98: 0 | S98: 12.8 | T98: 96.7 | U98: 0.1606 | V98: 0.1663 | W98: 0.1549 | X98: 0.166 | Y98: 0.2735 | Z98: 0.0574 | AA98: 0.2559 | AB98: 0.3519 | AC98: 0.3818 | AD98: 0.3805 | AE98: 838.6 | AF98: 865.94 | AG98: 865.97 | AH98: 0 | AI98: 24 | AJ98: 230 | AK98: 0.3 | AL98: 2.4 | AM98: 0 | AN98: 0 | AO98: 0 | AP98: 0 | AQ98: 0.8 | AR98: 3.3 | AS98: 0.9 | AT98: 2.3 | AU98: NULL | AV98: NULL | AW98: NULL | AX98: 0 | AY98: 0 | AZ98: 0 | BA98: 227.8 | BB98: 0.1 | BC98: 224 | BD98: 0 | BE98: 227.1 | BF98: 0 | BG98: 215.1 | BH98: 0 | BI98: 218.9 | BJ98: 0.1 | BK98: 222.1 | BL98: 0 | BM98: 234.4 | BN98: 0 | BO98: 234.4 | BP98: NULL | BQ98: NULL | BR98: -0.31 | BS98: 0.18 | BT98: 125.26 | BU98: 134.32 | BV98: 0.1 | BW98: 697.4 | BX98: 0 | BY98: 502.3 | BZ98: 14.7 | CA98: NULL | CB98: 4.6 | CC98: NULL | CD98: 5.1 | CE98: NULL | CF98: NULL | CG98: NULL | CH98: 12.3 | CI98: 41.8 | CJ98: -27.2 | CK98: 12.8 | CL98: NULL | CM98: -17.4 | CN98: -13.4 | CO98: -18.1 | CP98: NULL | CQ98: NULL | CR98: 12.77 | CS98: 12.52 | CT98: 13.1 | CU98: 13.04 | CV98: 12.86 | CW98: 12.66 | CX98: 13.08 | CY98: NULL | CZ98: 13.03 | DA98: 12.86 | DB98: 12.99 | DC98: 12.75 | DD98: 12.88 | DE98: 12.84 | DF98: 12.88 | DG98: 12.77 | DH98: NULL | DI98: NULL | DJ98: 2496 | DK98: 2387 | DL98: 1817 | DM98: 2661 | DN98: 2817 | DO98: 3295 | DP98: 2688 | DQ98: 3295 | DR98: 2731 | DS98: 3294 | DT98: 1645 | DU98: 3296 | DV98: 1556 | DW98: 3296 | DX98: 2659 | DY98: 1996 | DZ98: 2698 | EA98: 3297 | EB98: 1030 | EC98: 699 | ED98: 13.19 | EE98: -20.15 | EF98: -0.04 | EG98: 19.99 | EH98: 17.3 | EI98: -0.04 | EJ98: 28.55 | EK98: NULL | EL98: NULL | EM98: 12.5 | EN98: 12.5 | EO98: 13.6 | EP98: 13.6 | EQ98: 12 | ER98: 12.2 | ES98: 39.61 | ET98: 4949 | EU98: 4948 | EV98: NULL | EW98: 12.6 | EX98: 0 | EY98: 3000 | EZ98: NULL | FA98: NULL | FB98: NULL | FC98: 1175 | FD98: 1 | FE98: NULL | FF98: NULL | FG98: NULL | FH98: NULL | FI98: NULL | FJ98: NULL | FK98: NULL | FL98: NULL | FM98: 0 | FN98: 0 | FO98: 212 | FP98: 0 | FQ98: 0.8 | FR98: 0.15 | FS98: 0.15 | FT98: 0.35 | FU98: 0.35 | FV98: NULL | FW98: NULL | FX98: 12.57 | FY98: 0 | FZ98: -0.02 | GA98: 13.22 | GB98: -19.98 | GC98: 40.02 | GD98: 12.37 | GE98: NULL | GF98: NULL | GG98: NULL | GH98: 13.1 | GI98: 12.57 | GJ98: 0.0063
A99: 2023-08-03 | B99: 11.69 | C99: 11.32 | D99: 18.28 | E99: 17.88 | F99: 16.88 | G99: 18.24 | H99: 17.96 | I99: 17.94 | J99: 18.54 | K99: 18.72 | L99: 18.67 | M99: 18.33 | N99: 18.59 | O99: 18.11 | P99: 17.79 | Q99: 13 | R99: 0 | S99: 11.6 | T99: 94.2 | U99: 0.1606 | V99: 0.1667 | W99: 0.1549 | X99: 0.1659 | Y99: 0.3064 | Z99: 0.064 | AA99: 0.2564 | AB99: 0.3523 | AC99: 0.3818 | AD99: 0.381 | AE99: 837.9 | AF99: 865.88 | AG99: 865.89 | AH99: 0 | AI99: 284 | AJ99: 240 | AK99: 0.9 | AL99: 6.2 | AM99: 0 | AN99: 0 | AO99: 0 | AP99: 0 | AQ99: 1.3 | AR99: 7.9 | AS99: 1.4 | AT99: 4.1 | AU99: NULL | AV99: NULL | AW99: NULL | AX99: 1.7 | AY99: 1.8 | AZ99: 1.7 | BA99: 229.5 | BB99: 1.6 | BC99: 225.6 | BD99: 1.7 | BE99: 228.8 | BF99: 1.6 | BG99: 216.7 | BH99: 1.7 | BI99: 220.6 | BJ99: 1.6 | BK99: 223.7 | BL99: 1.6 | BM99: 236 | BN99: 1.6 | BO99: 236 | BP99: NULL | BQ99: NULL | BR99: -0.26 | BS99: 0.39 | BT99: 133.38 | BU99: 136.27 | BV99: 0.1 | BW99: 697.5 | BX99: 0.3 | BY99: 502.6 | BZ99: 14.7 | CA99: NULL | CB99: 4.9 | CC99: NULL | CD99: 4.3 | CE99: 0.9 | CF99: NULL | CG99: NULL | CH99: 11 | CI99: 42.1 | CJ99: -27.2 | CK99: 11.9 | CL99: NULL | CM99: -20.1 | CN99: -15.7 | CO99: -20 | CP99: NULL | CQ99: NULL | CR99: 11.32 | CS99: 11.13 | CT99: 11.41 | CU99: 11.47 | CV99: 11.34 | CW99: 11.23 | CX99: 11.43 | CY99: NULL | CZ99: 11.4 | DA99: 11.4 | DB99: 11.41 | DC99: 11.27 | DD99: 11.4 | DE99: 11.23 | DF99: 11.28 | DG99: 11.14 | DH99: NULL | DI99: NULL | DJ99: 2427 | DK99: 2317 | DL99: 1814 | DM99: 2580 | DN99: 2736 | DO99: 3291 | DP99: 2595 | DQ99: 3295 | DR99: 2427 | DS99: 3294 | DT99: 1636 | DU99: 3298 | DV99: 1548 | DW99: 3299 | DX99: 2377 | DY99: 1781 | DZ99: 2533 | EA99: 3298 | EB99: 1032 | EC99: 698 | ED99: 12.9 | EE99: -20.15 | EF99: -0.04 | EG99: 20 | EH99: 17.1 | EI99: -0.04 | EJ99: 28.55 | EK99: 18 | EL99: NULL | EM99: 11.3 | EN99: 11.4 | EO99: 13.2 | EP99: 13.5 | EQ99: 11.1 | ER99: 11.7 | ES99: 39.96 | ET99: 4929 | EU99: 4922 | EV99: NULL | EW99: 12.6 | EX99: 0 | EY99: 3000 | EZ99: NULL | FA99: 0.556 | FB99: NULL | FC99: 1175 | FD99: 1 | FE99: 0 | FF99: NULL | FG99: NULL | FH99: NULL | FI99: NULL | FJ99: NULL | FK99: NULL | FL99: NULL | FM99: 0 | FN99: 0 | FO99: 195 | FP99: 0 | FQ99: 0.8 | FR99: 0.48 | FS99: 0.43 | FT99: 0.52 | FU99: 0.49 | FV99: NULL | FW99: NULL | FX99: 11.56 | FY99: 0 | FZ99: -0.02 | GA99: 11.69 | GB99: -19.98 | GC99: 40.02 | GD99: 11.29 | GE99: NULL | GF99: NULL | GG99: NULL | GH99: 12.08 | GI99: 12.25 | GJ99: -0.0015
A100: 2023-08-03T01:00:00 | B100: 11.33 | C100: 11.1 | D100: 18.13 | E100: 17.81 | F100: 16.91 | G100: 18.01 | H100: 17.79 | I100: 17.77 | J100: 18.35 | K100: 18.55 | L100: 18.46 | M100: 18.25 | N100: 18.48 | O100: 18.09 | P100: 17.79 | Q100: 12.9 | R100: 0 | S100: 11.2 | T100: 95.5 | U100: 0.1608 | V100: 0.167 | W100: 0.1549 | X100: 0.1659 | Y100: 0.3055 | Z100: 0.066 | AA100: 0.2564 | AB100: 0.3528 | AC100: 0.3818 | AD100: 0.3824 | AE100: 838.1 | AF100: 866.03 | AG100: 866.06 | AH100: 0 | AI100: 289 | AJ100: 270 | AK100: 0.6 | AL100: 3.2 | AM100: 0 | AN100: 0 | AO100: 0 | AP100: 0 | AQ100: 1.1 | AR100: 4.7 | AS100: 1.2 | AT100: 2.2 | AU100: NULL | AV100: NULL | AW100: NULL | AX100: 0.5 | AY100: 0.5 | AZ100: 0.6 | BA100: 230.1 | BB100: 0.6 | BC100: 226.2 | BD100: 0.6 | BE100: 229.4 | BF100: 0.7 | BG100: 217.4 | BH100: 0.6 | BI100: 221.2 | BJ100: 0.6 | BK100: 224.3 | BL100: 0.4 | BM100: 236.4 | BN100: 0.6 | BO100: 236.6 | BP100: NULL | BQ100: NULL | BR100: -0.16 | BS100: 0.21 | BT100: 131.21 | BU100: 134.98 | BV100: 0.1 | BW100: 697.6 | BX100: 0.3 | BY100: 502.9 | BZ100: 15.4 | CA100: NULL | CB100: 5.6 | CC100: NULL | CD100: 4.5 | CE100: NULL | CF100: NULL | CG100: NULL | CH100: 10.3 | CI100: 42.9 | CJ100: -27.2 | CK100: 11.4 | CL100: NULL | CM100: -19 | CN100: -14.8 | CO100: -18.5 | CP100: NULL | CQ100: NULL | CR100: 13.2 | CS100: 10.79 | CT100: 11.25 | CU100: 11.17 | CV100: 11.21 | CW100: 10.94 | CX100: 11.26 | CY100: NULL | CZ100: 11.22 | DA100: 11.17 | DB100: 11.23 | DC100: 11.02 | DD100: 11.22 | DE100: 11.12 | DF100: 11.18 | DG100: 11.05 | DH100: NULL | DI100: NULL | DJ100: 2418 | DK100: 2320 | DL100: 1801 | DM100: 2591 | DN100: 2726 | DO100: 3297 | DP100: 2601 | DQ100: 3299 | DR100: 2337 | DS100: 3300 | DT100: 1636 | DU100: 3301 | DV100: 1550 | DW100: 3299 | DX100: 2426 | DY100: 1822 | DZ100: 2602 | EA100: 3307 | EB100: 1038 | EC100: 708 | ED100: 12.45 | EE100: -20.15 | EF100: -0.04 | EG100: 19.99 | EH100: 17 | EI100: -0.04 | EJ100: 28.54 | EK100: NULL | EL100: NULL | EM100: 10.9 | EN100: 10.9 | EO100: 12.4 | EP100: 12.7 | EQ100: 10.6 | ER100: 11.2 | ES100: 39.97 | ET100: 4887 | EU100: 4837 | EV100: 41.139 | EW100: 12.5 | EX100: 0 | EY100: 3000 | EZ100: NULL | FA100: NULL | FB100: NULL | FC100: 1174 | FD100: 1 | FE100: NULL | FF100: NULL | FG100: NULL | FH100: NULL | FI100: NULL | FJ100: NULL | FK100: NULL | FL100: NULL | FM100: 0 | FN100: 0 | FO100: 244 | FP100: 0 | FQ100: 1.4 | FR100: 0.18 | FS100: 0.22 | FT100: 0.35 | FU100: 0.37 | FV100: NULL | FW100: NULL | FX100: 11.21 | FY100: 0 | FZ100: 0 | GA100: 11.34 | GB100: -19.98 | GC100: 40.02 | GD100: 10.91 | GE100: NULL | GF100: NULL | GG100: NULL | GH100: 11.46 | GI100: 11.61 | GJ100: -0.0016
A101: 2023-08-03T02:00:00 | B101: 11.13 | C101: 11.14 | D101: 18 | E101: 17.74 | F101: 16.93 | G101: 17.8 | H101: 17.62 | I101: 17.56 | J101: 18.12 | K101: 18.33 | L101: 18.29 | M101: 18.14 | N101: 18.4 | O101: 18.06 | P101: 17.78 | Q101: 13.9 | R101: 0 | S101: 10.4 | T101: 83.5 | U101: 0.1608 | V101: 0.1674 | W101: 0.1547 | X101: 0.1659 | Y101: 0.3104 | Z101: 0.0714 | AA101: 0.2564 | AB101: 0.3539 | AC101: 0.3818 | AD101: 0.3906 | AE101: 833.8 | AF101: 865.62 | AG101: 865.65 | AH101: 0 | AI101: 278 | AJ101: 230 | AK101: 0.9 | AL101: 4.4 | AM101: 0 | AN101: 0 | AO101: 0 | AP101: 0 | AQ101: 1.4 | AR101: 5.4 | AS101: 1.2 | AT101: 3 | AU101: NULL | AV101: NULL | AW101: NULL | AX101: 0.2 | AY101: 0.3 | AZ101: 0.2 | BA101: 230.3 | BB101: 0.2 | BC101: 226.4 | BD101: 0.2 | BE101: 229.6 | BF101: 0 | BG101: 217.4 | BH101: 0.1 | BI101: 221.3 | BJ101: 0.1 | BK101: 224.4 | BL101: 0.3 | BM101: 236.7 | BN101: 0.1 | BO101: 236.7 | BP101: NULL | BQ101: NULL | BR101: -0.31 | BS101: 0.21 | BT101: 128.14 | BU101: 133.38 | BV101: 0 | BW101: 697.6 | BX101: 0.2 | BY101: 503.1 | BZ101: 16.3 | CA101: NULL | CB101: 5.2 | CC101: NULL | CD101: 4.2 | CE101: NULL | CF101: NULL | CG101: NULL | CH101: 9.3 | CI101: 41.7 | CJ101: -27.2 | CK101: 10.5 | CL101: NULL | CM101: -20.3 | CN101: -15.7 | CO101: -19 | CP101: NULL | CQ101: NULL | CR101: 11.07 | CS101: 10.66 | CT101: 12.13 | CU101: 11.77 | CV101: 12 | CW101: 10.87 | CX101: 12.19 | CY101: NULL | CZ101: 12.2 | DA101: 11.6 | DB101: 12 | DC101: 11.14 | DD101: 11.93 | DE101: 11.05 | DF101: 11.89 | DG101: 11.29 | DH101: NULL | DI101: NULL | DJ101: 2402 | DK101: 2244 | DL101: 1735 | DM101: 2522 | DN101: 2620 | DO101: 3290 | DP101: 2555 | DQ101: 3293 | DR101: 1790 | DS101: 3287 | DT101: 1615 | DU101: 3292 | DV101: 1543 | DW101: 3293 | DX101: 1754 | DY101: 1336 | DZ101: 1391 | EA101: 3289 | EB101: 1012 | EC101: 684 | ED101: 11.91 | EE101: -20.15 | EF101: -0.04 | EG101: 19.99 | EH101: 16.9 | EI101: -0.04 | EJ101: 28.56 | EK101: NULL | EL101: NULL | EM101: 10.2 | EN101: 10.2 | EO101: 11.6 | EP101: 11.9 | EQ101: 9.9 | ER101: 10.4 | ES101: 39.92 | ET101: 4921 | EU101: 4918 | EV101: NULL | EW101: 12.6 | EX101: 0 | EY101: 3000 | EZ101: NULL | FA101: NULL | FB101: NULL | FC101: 1172 | FD101: 1 | FE101: NULL | FF101: NULL | FG101: NULL | FH101: NULL | FI101: NULL | FJ101: NULL | FK101: NULL | FL101: NULL | FM101: 0 | FN101: 0 | FO101: 218 | FP101: 0 | FQ101: 1.7 | FR101: 0.23 | FS101: 0.22 | FT101: 0.37 | FU101: 0.36 | FV101: NULL | FW101: NULL | FX101: 10.52 | FY101: 0 | FZ101: 0 | GA101: 11.36 | GB101: -19.97 | GC101: 40.02 | GD101: 10.01 | GE101: NULL | GF101: NULL | GG101: NULL | GH101: 10.77 | GI101: 10.82 | GJ101: -0.0001
A102: 2023-08-03T03:00:00 | B102: 10.16 | C102: 9.56 | D102: 17.86 | E102: 17.66 | F102: 16.94 | G102: 17.56 | H102: 17.37 | I102: 17.3 | J102: 17.95 | K102: 18.16 | L102: 18.12 | M102: 18.03 | N102: 18.29 | O102: 18.03 | P102: 17.75 | Q102: 11.1 | R102: 0 | S102: 10.1 | T102: 88.6 | U102: 0.1606 | V102: 0.1678 | W102: 0.1547 | X102: 0.1659 | Y102: 0.304 | Z102: 0.0773 | AA102: 0.2564 | AB102: 0.3581 | AC102: 0.3818 | AD102: 0.3952 | AE102: 835.5 | AF102: 865.53 | AG102: 865.56 | AH102: 0 | AI102: 60 | AJ102: 310 | AK102: 1.4 | AL102: 6.2 | AM102: 0 | AN102: 0 | AO102: 0 | AP102: 0 | AQ102: 1.8 | AR102: 6.8 | AS102: 2 | AT102: 4.4 | AU102: NULL | AV102: NULL | AW102: NULL | AX102: 0 | AY102: 0 | AZ102: 0 | BA102: 230.3 | BB102: -0.1 | BC102: 226.3 | BD102: 0 | BE102: 229.6 | BF102: 0.1 | BG102: 217.5 | BH102: 0 | BI102: 221.3 | BJ102: 0 | BK102: 224.4 | BL102: 0 | BM102: 236.7 | BN102: 0 | BO102: 236.7 | BP102: NULL | BQ102: NULL | BR102: -0.51 | BS102: 0.76 | BT102: 118.98 | BU102: 131.35 | BV102: 0.1 | BW102: 697.7 | BX102: 0.1 | BY102: 503.2 | BZ102: 15.9 | CA102: NULL | CB102: 2.3 | CC102: NULL | CD102: 5.3 | CE102: 1.2 | CF102: NULL | CG102: NULL | CH102: 6.8 | CI102: 42.4 | CJ102: -27.2 | CK102: 8 | CL102: NULL | CM102: -24.8 | CN102: -18.4 | CO102: -23.5 | CP102: NULL | CQ102: NULL | CR102: 8.69 | CS102: 8.46 | CT102: 9.92 | CU102: 9.86 | CV102: 10.31 | CW102: 10.08 | CX102: 10.34 | CY102: NULL | CZ102: 10.28 | DA102: 10.27 | DB102: 10.34 | DC102: 10.17 | DD102: 10.11 | DE102: 10.13 | DF102: 9.59 | DG102: 9.72 | DH102: NULL | DI102: NULL | DJ102: 2411 | DK102: 2075 | DL102: 1695 | DM102: 2513 | DN102: 1757 | DO102: 3310 | DP102: 2164 | DQ102: 3310 | DR102: 1747 | DS102: 3308 | DT102: 1621 | DU102: 3310 | DV102: 1550 | DW102: 3311 | DX102: 1741 | DY102: 1370 | DZ102: 1663 | EA102: 3312 | EB102: 1022 | EC102: 698 | ED102: 11.28 | EE102: -20.15 | EF102: -0.04 | EG102: 19.99 | EH102: 16.7 | EI102: -0.06 | EJ102: 28.54 | EK102: 17 | EL102: NULL | EM102: 8.9 | EN102: 9 | EO102: 12.2 | EP102: 12.3 | EQ102: 8 | ER102: 10.3 | ES102: 39.99 | ET102: 4911 | EU102: 4910 | EV102: NULL | EW102: 12.6 | EX102: 0 | EY102: 3000 | EZ102: NULL | FA102: 0.408 | FB102: NULL | FC102: 1170 | FD102: 1 | FE102: 0 | FF102: NULL | FG102: NULL | FH102: NULL | FI102: NULL | FJ102: NULL | FK102: NULL | FL102: NULL | FM102: 0 | FN102: 0 | FO102: 189 | FP102: 0 | FQ102: 0.5 | FR102: 0.18 | FS102: 0.24 | FT102: 0.36 | FU102: 0.38 | FV102: NULL | FW102: NULL | FX102: 9.68 | FY102: 0 | FZ102: 0 | GA102: 9.79 | GB102: -19.98 | GC102: 40.03 | GD102: 9.23 | GE102: NULL | GF102: NULL | GG102: NULL | GH102: 6.96 | GI102: 10.9 | GJ102: -0.0454
A103: 2023-08-03T04:00:00 | B103: 9.07 | C103: 8.89 | D103: 17.72 | E103: 17.58 | F103: 16.95 | G103: 17.18 | H103: 17.03 | I103: 16.9 | J103: 17.69 | K103: 18 | L103: 18.02 | M103: 17.95 | N103: 18.19 | O103: 18.02 | P103: 17.69 | Q103: 10.3 | R103: 0 | S103: 8.7 | T103: 95.4 | U103: 0.1606 | V103: 0.1681 | W103: 0.1545 | X103: 0.1658 | Y103: 0.2983 | Z103: 0.0815 | AA103: 0.2564 | AB103: 0.3628 | AC103: 0.3818 | AD103: 0.3969 | AE103: 837.6 | AF103: 865.66 | AG103: 865.68 | AH103: 0 | AI103: 334 | AJ103: 360 | AK103: 0.3 | AL103: 1.2 | AM103: 0 | AN103: 0 | AO103: 0 | AP103: 0 | AQ103: 0.7 | AR103: 2.2 | AS103: 0.5 | AT103: 0.9 | AU103: NULL | AV103: NULL | AW103: NULL | AX103: 0 | AY103: 0 | AZ103: 0 | BA103: 230.3 | BB103: 0 | BC103: 226.3 | BD103: 0 | BE103: 229.6 | BF103: 0 | BG103: 217.5 | BH103: 0.1 | BI103: 221.4 | BJ103: 0.1 | BK103: 224.5 | BL103: 0 | BM103: 236.7 | BN103: 0 | BO103: 236.7 | BP103: NULL | BQ103: NULL | BR103: -0.88 | BS103: 0.16 | BT103: 108.78 | BU103: 126.32 | BV103: 0.1 | BW103: 697.8 | BX103: 0.1 | BY103: 503.3 | BZ103: 15.4 | CA103: NULL | CB103: 9 | CC103: NULL | CD103: 5.3 | CE103: NULL | CF103: NULL | CG103: NULL | CH103: 5.7 | CI103: 42 | CJ103: -27.2 | CK103: 7 | CL103: NULL | CM103: -28.1 | CN103: -21.1 | CO103: -26.3 | CP103: NULL | CQ103: NULL | CR103: 7.98 | CS103: 7.77 | CT103: 8.85 | CU103: 8.85 | CV103: 9.11 | CW103: 9.03 | CX103: 9.16 | CY103: NULL | CZ103: 9.08 | DA103: 9.18 | DB103: 9.1 | DC103: 9.1 | DD103: 8.87 | DE103: 9 | DF103: 8.56 | DG103: 8.71 | DH103: NULL | DI103: NULL | DJ103: 2469 | DK103: 2307 | DL103: 1754 | DM103: 2577 | DN103: 2047 | DO103: 3296 | DP103: 2231 | DQ103: 3299 | DR103: 1890 | DS103: 3297 | DT103: 1639 | DU103: 3300 | DV103: 1563 | DW103: 3302 | DX103: 1946 | DY103: 1585 | DZ103: 2480 | EA103: 3305 | EB103: 1033 | EC103: 697 | ED103: 10.16 | EE103: -20.15 | EF103: -0.04 | EG103: 19.99 | EH103: 16.6 | EI103: -0.02 | EJ103: 28.54 | EK103: NULL | EL103: NULL | EM103: 7.8 | EN103: 7.8 | EO103: 10.3 | EP103: 10.7 | EQ103: 7.3 | ER103: 8.4 | ES103: 39.89 | ET103: 4904 | EU103: 4908 | EV103: NULL | EW103: 12.5 | EX103: 0 | EY103: 3000 | EZ103: NULL | FA103: NULL | FB103: NULL | FC103: 1167 | FD103: 1 | FE103: NULL | FF103: NULL | FG103: NULL | FH103: NULL | FI103: NULL | FJ103: NULL | FK103: NULL | FL103: NULL | FM103: 0 | FN103: 0 | FO103: 259 | FP103: 0 | FQ103: 0.6 | FR103: 0.29 | FS103: 0.29 | FT103: 0.39 | FU103: 0.39 | FV103: NULL | FW103: NULL | FX103: 8.39 | FY103: 0 | FZ103: 0.02 | GA103: 9.18 | GB103: -19.98 | GC103: 40.02 | GD103: 8.06 | GE103: NULL | GF103: NULL | GG103: NULL | GH103: 6.1 | GI103: 9.14 | GJ103: -0.034
A104: 2023-08-03T05:00:00 | B104: 8.6 | C104: 8.57 | D104: 17.53 | E104: 17.49 | F104: 16.96 | G104: 16.79 | H104: 16.69 | I104: 16.49 | J104: 17.48 | K104: 17.76 | L104: 17.78 | M104: 17.85 | N104: 18.06 | O104: 17.95 | P104: 17.7 | Q104: 10.1 | R104: 0 | S104: 8.3 | T104: 97.6 | U104: 0.1604 | V104: 0.1683 | W104: 0.1545 | X104: 0.1657 | Y104: 0.2938 | Z104: 0.0858 | AA104: 0.256 | AB104: 0.3661 | AC104: 0.3816 | AD104: 0.3975 | AE104: 838 | AF104: 865.76 | AG104: 865.77 | AH104: 0 | AI104: 349 | AJ104: 360 | AK104: 0.1 | AL104: 1 | AM104: 0 | AN104: 0 | AO104: 0 | AP104: 0 | AQ104: 0.4 | AR104: 2 | AS104: 0.6 | AT104: 0.8 | AU104: NULL | AV104: NULL | AW104: NULL | AX104: 0 | AY104: 0 | AZ104: 0 | BA104: 230.3 | BB104: 0.1 | BC104: 226.4 | BD104: 0 | BE104: 229.6 | BF104: 0 | BG104: 217.5 | BH104: 0 | BI104: 221.4 | BJ104: 0 | BK104: 224.5 | BL104: 0 | BM104: 236.7 | BN104: 0 | BO104: 236.7 | BP104: NULL | BQ104: NULL | BR104: 0.85 | BS104: 0.5 | BT104: 110.62 | BU104: 125.25 | BV104: 0.1 | BW104: 697.9 | BX104: 0.1 | BY104: 503.4 | BZ104: 15.4 | CA104: NULL | CB104: 10 | CC104: NULL | CD104: 5.3 | CE104: NULL | CF104: NULL | CG104: NULL | CH104: 5.2 | CI104: 42.4 | CJ104: -27.2 | CK104: 6.4 | CL104: NULL | CM104: -31.4 | CN104: -23.6 | CO104: -29.4 | CP104: NULL | CQ104: NULL | CR104: 8.09 | CS104: 7.74 | CT104: 8.41 | CU104: 8.44 | CV104: 8.69 | CW104: 8.64 | CX104: 8.73 | CY104: NULL | CZ104: 8.67 | DA104: 8.79 | DB104: 8.67 | DC104: 8.7 | DD104: 8.48 | DE104: 8.62 | DF104: 8.19 | DG104: 8.36 | DH104: NULL | DI104: NULL | DJ104: 2473 | DK104: 2323 | DL104: 1758 | DM104: 2571 | DN104: 2470 | DO104: 3260 | DP104: 2307 | DQ104: 3264 | DR104: 2133 | DS104: 3263 | DT104: 1629 | DU104: 3266 | DV104: 1548 | DW104: 3260 | DX104: 2378 | DY104: 1833 | DZ104: 2839 | EA104: 3264 | EB104: 1025 | EC104: 691 | ED104: 9.08 | EE104: -20.15 | EF104: -0.04 | EG104: 19.99 | EH104: 16.4 | EI104: -0.06 | EJ104: 28.55 | EK104: NULL | EL104: NULL | EM104: 7.3 | EN104: 7.3 | EO104: 9.5 | EP104: 9.7 | EQ104: 6.8 | ER104: 7.6 | ES104: 39.84 | ET104: 4937 | EU104: 4936 | EV104: 46.283 | EW104: 12.5 | EX104: 0 | EY104: 3000 | EZ104: NULL | FA104: NULL | FB104: NULL | FC104: 1164 | FD104: 1 | FE104: NULL | FF104: NULL | FG104: NULL | FH104: NULL | FI104: NULL | FJ104: NULL | FK104: NULL | FL104: NULL | FM104: 0 | FN104: 0 | FO104: 236 | FP104: 0 | FQ104: 0.5 | FR104: 1.67 | FS104: 2.24 | FT104: 1.54 | FU104: 2.1 | FV104: NULL | FW104: NULL | FX104: 8.04 | FY104: 0 | FZ104: -0.02 | GA104: 8.67 | GB104: -19.97 | GC104: 40.02 | GD104: 7.68 | GE104: NULL | GF104: NULL | GG104: NULL | GH104: 5.8 | GI104: 8.42 | GJ104: -0.0295
A105: 2023-08-03T06:00:00 | B105: 9.38 | C105: 9.58 | D105: 17.34 | E105: 17.39 | F105: 16.96 | G105: 16.49 | H105: 16.36 | I105: 16.17 | J105: 17.18 | K105: 17.55 | L105: 17.59 | M105: 17.74 | N105: 17.98 | O105: 17.95 | P105: 17.65 | Q105: 11.2 | R105: 0 | S105: 8.7 | T105: 98.6 | U105: 0.1603 | V105: 0.1686 | W105: 0.1542 | X105: 0.1657 | Y105: 0.29 | Z105: 0.0863 | AA105: 0.256 | AB105: 0.3687 | AC105: 0.3816 | AD105: 0.3975 | AE105: 838 | AF105: 865.78 | AG105: 865.79 | AH105: 0 | AI105: 19 | AJ105: 0 | AK105: 0.1 | AL105: 1.2 | AM105: 0 | AN105: 0 | AO105: 0 | AP105: 0 | AQ105: 0.5 | AR105: 1.9 | AS105: 0.6 | AT105: 1 | AU105: NULL | AV105: NULL | AW105: NULL | AX105: 0 | AY105: 0 | AZ105: 0 | BA105: 230.3 | BB105: 0 | BC105: 226.4 | BD105: 0 | BE105: 229.6 | BF105: 0 | BG105: 217.5 | BH105: 0 | BI105: 221.4 | BJ105: 0 | BK105: 224.5 | BL105: 0 | BM105: 236.7 | BN105: 0 | BO105: 236.7 | BP105: NULL | BQ105: NULL | BR105: 8.09 | BS105: 1.51 | BT105: 116.3 | BU105: 126.54 | BV105: 0 | BW105: 697.9 | BX105: 0.1 | BY105: 503.5 | BZ105: 14.8 | CA105: NULL | CB105: 11.6 | CC105: NULL | CD105: 5.2 | CE105: 1.3 | CF105: NULL | CG105: NULL | CH105: 6.6 | CI105: 42.2 | CJ105: -27.2 | CK105: 7.5 | CL105: NULL | CM105: -29.8 | CN105: -22.2 | CO105: -28 | CP105: NULL | CQ105: NULL | CR105: 9.05 | CS105: 8.51 | CT105: 9.32 | CU105: 9.36 | CV105: 9.47 | CW105: 9.43 | CX105: 9.54 | CY105: NULL | CZ105: 9.48 | DA105: 9.56 | DB105: 9.48 | DC105: 9.5 | DD105: 9.33 | DE105: 9.44 | DF105: 9.13 | DG105: 9.18 | DH105: NULL | DI105: NULL | DJ105: 2509 | DK105: 2354 | DL105: 1827 | DM105: 2602 | DN105: 2553 | DO105: 3314 | DP105: 2413 | DQ105: 3314 | DR105: 2251 | DS105: 3314 | DT105: 1717 | DU105: 3317 | DV105: 1635 | DW105: 3310 | DX105: 2487 | DY105: 1906 | DZ105: 2932 | EA105: 3317 | EB105: 1103 | EC105: 749 | ED105: 8.41 | EE105: -20.15 | EF105: -0.05 | EG105: 20 | EH105: 16.2 | EI105: -0.06 | EJ105: 28.55 | EK105: 15 | EL105: NULL | EM105: 8.2 | EN105: 8.3 | EO105: 9.6 | EP105: 9.6 | EQ105: 7.5 | ER105: 7.9 | ES105: 39.92 | ET105: 4525 | EU105: 4525 | EV105: NULL | EW105: 12.6 | EX105: 0 | EY105: 3000 | EZ105: NULL | FA105: 0.557 | FB105: NULL | FC105: 1162 | FD105: 1 | FE105: 0 | FF105: NULL | FG105: NULL | FH105: NULL | FI105: NULL | FJ105: NULL | FK105: NULL | FL105: NULL | FM105: 0 | FN105: 0 | FO105: 540 | FP105: 0 | FQ105: 0 | FR105: 9.65 | FS105: 10.08 | FT105: 8.56 | FU105: 9 | FV105: NULL | FW105: NULL | FX105: 8.62 | FY105: 0 | FZ105: -0.02 | GA105: 9.65 | GB105: -19.97 | GC105: 40.02 | GD105: 8.15 | GE105: NULL | GF105: NULL | GG105: NULL | GH105: 7.32 | GI105: 8.61 | GJ105: -0.0146
A106: 2023-08-03T07:00:00 | B106: 10 | C106: 11.07 | D106: 17.15 | E106: 17.29 | F106: 16.95 | G106: 16.23 | H106: 16.13 | I106: 15.95 | J106: 16.96 | K106: 17.33 | L106: 17.37 | M106: 17.58 | N106: 17.85 | O106: 17.89 | P106: 17.61 | Q106: 12.7 | R106: 0 | S106: 9.5 | T106: 94 | U106: 0.1603 | V106: 0.1688 | W106: 0.154 | X106: 0.1656 | Y106: 0.287 | Z106: 0.086 | AA106: 0.256 | AB106: 0.3703 | AC106: 0.3816 | AD106: 0.3972 | AE106: 836.4 | AF106: 865.97 | AG106: 866.01 | AH106: 0 | AI106: 94 | AJ106: 0 | AK106: 0.2 | AL106: 1.8 | AM106: 0 | AN106: 0 | AO106: 0 | AP106: 0 | AQ106: 0.5 | AR106: 2.6 | AS106: 0.4 | AT106: 0.9 | AU106: NULL | AV106: NULL | AW106: NULL | AX106: 0 | AY106: 0 | AZ106: 0 | BA106: 230.3 | BB106: 0.1 | BC106: 226.5 | BD106: 0 | BE106: 229.6 | BF106: 0 | BG106: 217.5 | BH106: 0 | BI106: 221.4 | BJ106: 0 | BK106: 224.5 | BL106: 0 | BM106: 236.7 | BN106: 0 | BO106: 236.7 | BP106: NULL | BQ106: NULL | BR106: 12.83 | BS106: 2.25 | BT106: 119.31 | BU106: 128.11 | BV106: 0.1 | BW106: 698 | BX106: 0 | BY106: 503.5 | BZ106: 14.8 | CA106: NULL | CB106: 6.4 | CC106: NULL | CD106: 5.1 | CE106: NULL | CF106: NULL | CG106: NULL | CH106: 8.2 | CI106: 42.9 | CJ106: -27.2 | CK106: 8.4 | CL106: NULL | CM106: -26.9 | CN106: -20.6 | CO106: -26.1 | CP106: NULL | CQ106: NULL | CR106: 9.22 | CS106: 8.81 | CT106: 10.37 | CU106: 10.34 | CV106: 10.38 | CW106: 10.28 | CX106: 10.46 | CY106: NULL | CZ106: 10.43 | DA106: 10.43 | DB106: 10.36 | DC106: 10.41 | DD106: 10.23 | DE106: 10.36 | DF106: 10.26 | DG106: 10.47 | DH106: NULL | DI106: NULL | DJ106: 2498 | DK106: 2347 | DL106: 1778 | DM106: 2595 | DN106: 1883 | DO106: 3315 | DP106: 2256 | DQ106: 3324 | DR106: 1801 | DS106: 3308 | DT106: 1650 | DU106: 3318 | DV106: 1584 | DW106: 3310 | DX106: 1799 | DY106: 1407 | DZ106: 1801 | EA106: 3327 | EB106: 1033 | EC106: 713 | ED106: 8.35 | EE106: -20.15 | EF106: -0.04 | EG106: 19.99 | EH106: 16.1 | EI106: 0 | EJ106: 28.53 | EK106: NULL | EL106: NULL | EM106: 9.1 | EN106: 9.4 | EO106: 10.3 | EP106: 10.1 | EQ106: 8 | ER106: 8.6 | ES106: 40.52 | ET106: 4842 | EU106: 4829 | EV106: NULL | EW106: 12.6 | EX106: 0 | EY106: 3000 | EZ106: NULL | FA106: NULL | FB106: NULL | FC106: 1161 | FD106: 1 | FE106: NULL | FF106: NULL | FG106: NULL | FH106: NULL | FI106: NULL | FJ106: NULL | FK106: NULL | FL106: NULL | FM106: 0 | FN106: 0 | FO106: 189 | FP106: 0 | FQ106: 0 | FR106: 76.6 | FS106: 88.09 | FT106: 13.34 | FU106: 13.87 | FV106: NULL | FW106: NULL | FX106: 9.07 | FY106: 0 | FZ106: -0.04 | GA106: 11.14 | GB106: -19.98 | GC106: 40.02 | GD106: 8.67 | GE106: NULL | GF106: NULL | GG106: NULL | GH106: 8.37 | GI106: 9.21 | GJ106: -0.0098
A107: 2023-08-03T08:00:00 | B107: 13.55 | C107: 12.62 | D107: 16.99 | E107: 17.18 | F107: 16.94 | G107: 16.12 | H107: 16.03 | I107: 15.93 | J107: 16.76 | K107: 17.15 | L107: 17.24 | M107: 17.45 | N107: 17.71 | O107: 17.79 | P107: 17.54 | Q107: 14.7 | R107: 0 | S107: 11.5 | T107: 66.5 | U107: 0.1604 | V107: 0.1691 | W107: 0.154 | X107: 0.1656 | Y107: 0.2844 | Z107: 0.079 | AA107: 0.2558 | AB107: 0.3715 | AC107: 0.3816 | AD107: 0.3968 | AE107: 824.4 | AF107: 866.06 | AG107: 866.06 | AH107: 0 | AI107: 328 | AJ107: 270 | AK107: 0.3 | AL107: 2.2 | AM107: 0 | AN107: 0 | AO107: 0 | AP107: 0 | AQ107: 0.6 | AR107: 2.9 | AS107: 0.7 | AT107: 1.6 | AU107: NULL | AV107: NULL | AW107: NULL | AX107: 0 | AY107: 0 | AZ107: -0.1 | BA107: 230.2 | BB107: 0 | BC107: 226.5 | BD107: 0 | BE107: 229.6 | BF107: 0.1 | BG107: 217.6 | BH107: -0.2 | BI107: 221.2 | BJ107: -0.1 | BK107: 224.4 | BL107: -0.1 | BM107: 236.6 | BN107: -0.1 | BO107: 236.6 | BP107: NULL | BQ107: NULL | BR107: 37.36 | BS107: 8.62 | BT107: 113.52 | BU107: 132.02 | BV107: 0.1 | BW107: 698.1 | BX107: 0.1 | BY107: 503.6 | BZ107: 16.1 | CA107: NULL | CB107: 9 | CC107: NULL | CD107: 5.1 | CE107: NULL | CF107: NULL | CG107: NULL | CH107: 10 | CI107: 45.1 | CJ107: -27.2 | CK107: 15.1 | CL107: NULL | CM107: -18.2 | CN107: -13.7 | CO107: -17.9 | CP107: NULL | CQ107: NULL | CR107: 13.15 | CS107: 11.79 | CT107: 13.49 | CU107: 13.44 | CV107: 13.39 | CW107: 13.49 | CX107: 13.47 | CY107: NULL | CZ107: 13.49 | DA107: 13.6 | DB107: 13.77 | DC107: 13.68 | DD107: 14.42 | DE107: 14.16 | DF107: 17.57 | DG107: 16.83 | DH107: NULL | DI107: NULL | DJ107: 2522 | DK107: 2148 | DL107: 1731 | DM107: 2578 | DN107: 1746 | DO107: 3295 | DP107: 2239 | DQ107: 3296 | DR107: 1731 | DS107: 3294 | DT107: 1625 | DU107: 3296 | DV107: 1567 | DW107: 3296 | DX107: 1706 | DY107: 1297 | DZ107: 1344 | EA107: 3296 | EB107: 1002 | EC107: 670 | ED107: 8.88 | EE107: -20.15 | EF107: -0.04 | EG107: 19.99 | EH107: 16 | EI107: -0.02 | EJ107: 28.54 | EK107: NULL | EL107: NULL | EM107: 22.7 | EN107: 23.3 | EO107: 13.8 | EP107: 12.3 | EQ107: 16.5 | ER107: 10.8 | ES107: 42.11 | ET107: 4944 | EU107: 4942 | EV107: NULL | EW107: 12.6 | EX107: 0 | EY107: 3000 | EZ107: NULL | FA107: NULL | FB107: NULL | FC107: 1160 | FD107: 1 | FE107: NULL | FF107: NULL | FG107: NULL | FH107: NULL | FI107: NULL | FJ107: NULL | FK107: NULL | FL107: NULL | FM107: 0 | FN107: 0 | FO107: 267 | FP107: 0 | FQ107: 0.7 | FR107: 173.02 | FS107: 163.35 | FT107: 26.85 | FU107: 26.04 | FV107: NULL | FW107: NULL | FX107: 14.42 | FY107: 0 | FZ107: -0.04 | GA107: 12.84 | GB107: -19.98 | GC107: 40.02 | GD107: 12.73 | GE107: NULL | GF107: NULL | GG107: NULL | GH107: 17.13 | GI107: 12.11 | GJ107: 0.0617
A108: 2023-08-03T09:00:00 | B108: 15.69 | C108: 14.95 | D108: 16.91 | E108: 17.07 | F108: 16.94 | G108: 16.46 | H108: 16.46 | I108: 16.54 | J108: 16.71 | K108: 17.01 | L108: 17.12 | M108: 17.4 | N108: 17.59 | O108: 17.77 | P108: 17.49 | Q108: 15.9 | R108: 0 | S108: 13.7 | T108: 55.8 | U108: 0.1609 | V108: 0.1698 | W108: 0.1546 | X108: 0.1658 | Y108: 0.2815 | Z108: 0.0702 | AA108: 0.2558 | AB108: 0.3721 | AC108: 0.3815 | AD108: 0.3963 | AE108: 817.2 | AF108: 866.1 | AG108: 866.13 | AH108: 0 | AI108: 350 | AJ108: 250 | AK108: 0.9 | AL108: 4.4 | AM108: 0 | AN108: 0 | AO108: 0 | AP108: 0 | AQ108: 1.2 | AR108: 5.5 | AS108: 1.4 | AT108: 3.6 | AU108: NULL | AV108: NULL | AW108: NULL | AX108: 0 | AY108: 0 | AZ108: 0 | BA108: 230.2 | BB108: -0.2 | BC108: 226.3 | BD108: -0.1 | BE108: 229.5 | BF108: -0.1 | BG108: 217.5 | BH108: 0 | BI108: 221.2 | BJ108: 0 | BK108: 224.4 | BL108: 0 | BM108: 236.6 | BN108: 0 | BO108: 236.6 | BP108: NULL | BQ108: NULL | BR108: 235.3 | BS108: 46.1 | BT108: 109.07 | BU108: 146.51 | BV108: 0 | BW108: 698.1 | BX108: 0.1 | BY108: 503.7 | BZ108: 14.8 | CA108: NULL | CB108: 3.3 | CC108: NULL | CD108: 5.1 | CE108: 1.1 | CF108: NULL | CG108: NULL | CH108: 19.6 | CI108: 45.1 | CJ108: -27.2 | CK108: 20.9 | CL108: NULL | CM108: 6.8 | CN108: 16.2 | CO108: 22.6 | CP108: NULL | CQ108: NULL | CR108: 18.38 | CS108: 18.33 | CT108: 15.69 | CU108: 15.77 | CV108: 15.45 | CW108: 15.49 | CX108: 15.48 | CY108: NULL | CZ108: 15.42 | DA108: 15.66 | DB108: 15.71 | DC108: 15.73 | DD108: 17.07 | DE108: 16.23 | DF108: 19.1 | DG108: 17.07 | DH108: NULL | DI108: NULL | DJ108: 2532 | DK108: 2193 | DL108: 1774 | DM108: 2640 | DN108: 1779 | DO108: 3025 | DP108: 2093 | DQ108: 3056 | DR108: 1685 | DS108: 3186 | DT108: 1625 | DU108: 3243 | DV108: 1577 | DW108: 3234 | DX108: 1691 | DY108: 1289 | DZ108: 1286 | EA108: 3214 | EB108: 1007 | EC108: 666 | ED108: 12.67 | EE108: -20.15 | EF108: -0.04 | EG108: 20 | EH108: 16 | EI108: -0.06 | EJ108: 28.54 | EK108: 20 | EL108: NULL | EM108: 25.8 | EN108: 25.3 | EO108: 16 | EP108: 14.8 | EQ108: 22.4 | ER108: 18.8 | ES108: 42.75 | ET108: 4901 | EU108: 4897 | EV108: NULL | EW108: 12.6 | EX108: 0 | EY108: 3000 | EZ108: NULL | FA108: 0.456 | FB108: NULL | FC108: 1160 | FD108: 1 | FE108: 0 | FF108: NULL | FG108: NULL | FH108: NULL | FI108: NULL | FJ108: NULL | FK108: NULL | FL108: NULL | FM108: 0 | FN108: 0 | FO108: 178 | FP108: 0 | FQ108: 1.8 | FR108: 138.16 | FS108: 166.34 | FT108: 31.65 | FU108: 37.56 | FV108: NULL | FW108: NULL | FX108: 17.2 | FY108: 0 | FZ108: 0.02 | GA108: 14.96 | GB108: -19.98 | GC108: 40.02 | GD108: 16.45 | GE108: NULL | GF108: NULL | GG108: NULL | GH108: 20.59 | GI108: 17.92 | GJ108: 0.0323
A109: 2023-08-03T10:00:00 | B109: 14.78 | C109: 13.79 | D109: 16.99 | E109: 16.99 | F109: 16.92 | G109: 17.45 | H109: 17.45 | I109: 17.82 | J109: 17.04 | K109: 17.24 | L109: 17.26 | M109: 17.26 | N109: 17.52 | O109: 17.67 | P109: 17.45 | Q109: 14.9 | R109: 0 | S109: 16.7 | T109: 51 | U109: 0.1617 | V109: 0.1708 | W109: 0.1557 | X109: 0.166 | Y109: 0.2786 | Z109: 0.0061 | AA109: 0.2557 | AB109: 0.3723 | AC109: 0.3815 | AD109: 0.3954 | AE109: 814.1 | AF109: 866.27 | AG109: 866.3 | AH109: 0 | AI109: 310 | AJ109: 280 | AK109: 0.7 | AL109: 4.2 | AM109: 0 | AN109: 0 | AO109: 0 | AP109: 0 | AQ109: 1.1 | AR109: 5.2 | AS109: 1 | AT109: 1.8 | AU109: NULL | AV109: NULL | AW109: NULL | AX109: 0 | AY109: 0 | AZ109: 0 | BA109: 230.2 | BB109: -0.1 | BC109: 226.2 | BD109: 0 | BE109: 229.5 | BF109: -0.1 | BG109: 217.4 | BH109: 0 | BI109: 221.2 | BJ109: 0 | BK109: 224.4 | BL109: 0 | BM109: 236.6 | BN109: 0 | BO109: 236.6 | BP109: NULL | BQ109: NULL | BR109: 191.88 | BS109: 40.43 | BT109: 115.77 | BU109: 149.53 | BV109: 0.1 | BW109: 698.2 | BX109: 0 | BY109: 503.7 | BZ109: 15.3 | CA109: NULL | CB109: 4.2 | CC109: NULL | CD109: 5.2 | CE109: 0.6 | CF109: NULL | CG109: NULL | CH109: 14.8 | CI109: NULL | CJ109: -27.2 | CK109: 17.8 | CL109: NULL | CM109: 14.2 | CN109: 10.5 | CO109: 23.9 | CP109: NULL | CQ109: NULL | CR109: 15.01 | CS109: 15.48 | CT109: 14.92 | CU109: 15.08 | CV109: 14.84 | CW109: 14.92 | CX109: 14.8 | CY109: NULL | CZ109: 14.7 | DA109: 14.92 | DB109: 14.9 | DC109: 14.87 | DD109: 15.04 | DE109: 15.03 | DF109: 14.96 | DG109: 14.88 | DH109: NULL | DI109: NULL | DJ109: 2490 | DK109: 2158 | DL109: 1741 | DM109: 2570 | DN109: 1734 | DO109: 3295 | DP109: 2222 | DQ109: 3295 | DR109: 1726 | DS109: 3293 | DT109: 1628 | DU109: 3295 | DV109: 1569 | DW109: 3295 | DX109: 1691 | DY109: 1298 | DZ109: 1294 | EA109: 3296 | EB109: 1005 | EC109: 655 | ED109: 16.66 | EE109: -20.15 | EF109: -0.04 | EG109: 20 | EH109: 16.1 | EI109: -0.04 | EJ109: 28.57 | EK109: 26 | EL109: NULL | EM109: 23.4 | EN109: 23.3 | EO109: 19.2 | EP109: 17.8 | EQ109: 22.8 | ER109: 21.7 | ES109: NULL | ET109: 4940 | EU109: 4939 | EV109: 46.283 | EW109: 12.6 | EX109: 0 | EY109: 3000 | EZ109: NULL | FA109: 0.467 | FB109: NULL | FC109: 1159 | FD109: 1 | FE109: 0 | FF109: NULL | FG109: NULL | FH109: NULL | FI109: NULL | FJ109: NULL | FK109: NULL | FL109: NULL | FM109: 0 | FN109: 0 | FO109: 236 | FP109: 0 | FQ109: 0.9 | FR109: 275.12 | FS109: 255.56 | FT109: 69.28 | FU109: 74.11 | FV109: NULL | FW109: NULL | FX109: 18.25 | FY109: 0 | FZ109: -0.02 | GA109: 14.17 | GB109: -19.98 | GC109: 40.02 | GD109: 18.89 | GE109: NULL | GF109: NULL | GG109: NULL | GH109: 16.14 | GI109: 20.51 | GJ109: -0.0541
A110: 2023-08-03T11:00:00 | B110: 16.79 | C110: 16.51 | D110: 17.11 | E110: 16.95 | F110: 16.9 | G110: 18.26 | H110: 18.28 | I110: 18.9 | J110: 17.38 | K110: 17.51 | L110: 17.44 | M110: 17.25 | N110: 17.49 | O110: 17.59 | P110: 17.4 | Q110: 17.7 | R110: 0 | S110: 18.9 | T110: 55.5 | U110: 0.1623 | V110: 0.1713 | W110: 0.1565 | X110: 0.1662 | Y110: 0.2746 | Z110: 0.0247 | AA110: 0.2557 | AB110: 0.3719 | AC110: 0.3812 | AD110: 0.3941 | AE110: 816.7 | AF110: 865.98 | AG110: 866.02 | AH110: 0 | AI110: 336 | AJ110: 300 | AK110: 0.8 | AL110: 3.4 | AM110: 0 | AN110: 0 | AO110: 0 | AP110: 0 | AQ110: 1.2 | AR110: 4.5 | AS110: 1.3 | AT110: 2.9 | AU110: NULL | AV110: NULL | AW110: NULL | AX110: 0 | AY110: 0 | AZ110: 0 | BA110: 230.2 | BB110: 0.1 | BC110: 226.3 | BD110: 0 | BE110: 229.5 | BF110: 0.1 | BG110: 217.5 | BH110: 0 | BI110: 221.2 | BJ110: -0.1 | BK110: 224.3 | BL110: 0 | BM110: 236.6 | BN110: 0 | BO110: 236.6 | BP110: NULL | BQ110: NULL | BR110: 278.24 | BS110: 64.07 | BT110: 118.72 | BU110: 154.31 | BV110: 0 | BW110: 698.2 | BX110: 0.1 | BY110: 503.8 | BZ110: 14.3 | CA110: NULL | CB110: NULL | CC110: NULL | CD110: 6.1 | CE110: NULL | CF110: NULL | CG110: NULL | CH110: 27.5 | CI110: 49 | CJ110: -27.2 | CK110: 25.9 | CL110: NULL | CM110: 44.4 | CN110: 32.8 | CO110: 62.7 | CP110: NULL | CQ110: NULL | CR110: 19.14 | CS110: 22.61 | CT110: 19.37 | CU110: 19.58 | CV110: 18.53 | CW110: 18.89 | CX110: 18.54 | CY110: NULL | CZ110: 18.41 | DA110: 18.53 | DB110: 18.41 | DC110: 19.52 | DD110: 20.51 | DE110: 19.15 | DF110: 18.21 | DG110: 18.19 | DH110: NULL | DI110: NULL | DJ110: 2560 | DK110: 2258 | DL110: 1824 | DM110: 2659 | DN110: 1819 | DO110: 3295 | DP110: 2259 | DQ110: 3295 | DR110: 1814 | DS110: 3295 | DT110: 1711 | DU110: 3297 | DV110: 1655 | DW110: 3296 | DX110: 1776 | DY110: 1374 | DZ110: 1362 | EA110: 3298 | EB110: 1080 | EC110: 711 | ED110: 18.51 | EE110: -20.15 | EF110: -0.04 | EG110: 20 | EH110: 16.2 | EI110: -0.04 | EJ110: 28.55 | EK110: NULL | EL110: NULL | EM110: 28.7 | EN110: 28 | EO110: 19.8 | EP110: 19.1 | EQ110: 26.8 | ER110: 23.5 | ES110: 47.53 | ET110: 4528 | EU110: 4527 | EV110: 25.713 | EW110: 12.6 | EX110: 0 | EY110: 3000 | EZ110: NULL | FA110: NULL | FB110: NULL | FC110: 1159 | FD110: 1 | FE110: NULL | FF110: NULL | FG110: NULL | FH110: NULL | FI110: NULL | FJ110: NULL | FK110: NULL | FL110: NULL | FM110: 0 | FN110: 0 | FO110: 203 | FP110: 0 | FQ110: 1 | FR110: 291 | FS110: 300.74 | FT110: 89.28 | FU110: 97.22 | FV110: NULL | FW110: NULL | FX110: 20.38 | FY110: 0 | FZ110: 0.02 | GA110: 16.93 | GB110: -19.98 | GC110: 40.02 | GD110: 21.85 | GE110: NULL | GF110: NULL | GG110: NULL | GH110: 26.93 | GI110: 22.42 | GJ110: 0.059
A111: 2023-08-03T12:00:00 | B111: 18.15 | C111: 17.26 | D111: 17.43 | E111: 16.95 | F111: 16.89 | G111: 20.03 | H111: 19.96 | I111: 21.02 | J111: 18.18 | K111: 18.03 | L111: 17.82 | M111: 17.26 | N111: 17.52 | O111: 17.54 | P111: 17.32 | Q111: 18.1 | R111: 0 | S111: 20.9 | T111: 54.7 | U111: 0.1635 | V111: 0.1723 | W111: 0.1585 | X111: 0.1666 | Y111: 0.2698 | Z111: 0.0581 | AA111: 0.2556 | AB111: 0.3708 | AC111: 0.3808 | AD111: 0.3924 | AE111: 816.4 | AF111: 866 | AG111: 866.02 | AH111: 0 | AI111: 4 | AJ111: 70 | AK111: 0.7 | AL111: 4.4 | AM111: 0 | AN111: 0 | AO111: 0 | AP111: 0 | AQ111: 1.1 | AR111: 5.3 | AS111: 1.3 | AT111: 2.4 | AU111: NULL | AV111: NULL | AW111: NULL | AX111: 0 | AY111: 0 | AZ111: -0.1 | BA111: 230.1 | BB111: -0.1 | BC111: 226.2 | BD111: -0.1 | BE111: 229.4 | BF111: -0.1 | BG111: 217.4 | BH111: -0.1 | BI111: 221.1 | BJ111: 0.1 | BK111: 224.4 | BL111: 0 | BM111: 236.6 | BN111: 0 | BO111: 236.6 | BP111: NULL | BQ111: NULL | BR111: 360.54 | BS111: 82.63 | BT111: 127.06 | BU111: 162.82 | BV111: 0.1 | BW111: 698.3 | BX111: 0 | BY111: 503.8 | BZ111: 14.3 | CA111: NULL | CB111: 403 | CC111: NULL | CD111: 9.7 | CE111: 0.1 | CF111: NULL | CG111: NULL | CH111: 22.7 | CI111: 47.2 | CJ111: -27.2 | CK111: 23.8 | CL111: NULL | CM111: 72.5 | CN111: 44.3 | CO111: 83.9 | CP111: NULL | CQ111: NULL | CR111: 19.65 | CS111: 21.03 | CT111: 18.85 | CU111: 19.15 | CV111: 18.57 | CW111: 18.9 | CX111: 18.69 | CY111: NULL | CZ111: 18.67 | DA111: 19.12 | DB111: 19.57 | DC111: 19.28 | DD111: 19.07 | DE111: 19.24 | DF111: 18.48 | DG111: 18.61 | DH111: NULL | DI111: NULL | DJ111: 2500 | DK111: 2200 | DL111: 1747 | DM111: 2625 | DN111: 1740 | DO111: 3295 | DP111: 2220 | DQ111: 3295 | DR111: 1736 | DS111: 3294 | DT111: 1630 | DU111: 3295 | DV111: 1569 | DW111: 3296 | DX111: 1697 | DY111: 1304 | DZ111: 1301 | EA111: 3296 | EB111: 1006 | EC111: 656 | ED111: 21.48 | EE111: -20.15 | EF111: -0.04 | EG111: 20 | EH111: 16.3 | EI111: -0.04 | EJ111: 28.55 | EK111: 32 | EL111: NULL | EM111: 31.3 | EN111: 30.4 | EO111: 22.2 | EP111: 21.1 | EQ111: 30.6 | ER111: 25.4 | ES111: 46.53 | ET111: 4949 | EU111: 4947 | EV111: NULL | EW111: 12.6 | EX111: 0 | EY111: 3000 | EZ111: NULL | FA111: 0.714 | FB111: NULL | FC111: 1159 | FD111: 1 | FE111: 0 | FF111: NULL | FG111: NULL | FH111: NULL | FI111: NULL | FJ111: NULL | FK111: NULL | FL111: NULL | FM111: 0 | FN111: 0 | FO111: 0 | FP111: 0 | FQ111: 0.8 | FR111: 372.06 | FS111: 375.45 | FT111: 114.01 | FU111: 114.6 | FV111: NULL | FW111: NULL | FX111: 22.18 | FY111: 0 | FZ111: 0 | GA111: 18.59 | GB111: -19.98 | GC111: 40.02 | GD111: 24.4 | GE111: NULL | GF111: NULL | GG111: NULL | GH111: 23.09 | GI111: 23.96 | GJ111: -0.0098
A112: 2023-08-03T13:00:00 | B112: 15.82 | C112: 15.53 | D112: 17.85 | E112: 17.02 | F112: 16.86 | G112: 21.23 | H112: 20.97 | I112: 22.04 | J112: 19.01 | K112: 18.8 | L112: 18.37 | M112: 17.38 | N112: 17.64 | O112: 17.51 | P112: 17.28 | Q112: 16.4 | R112: 0 | S112: 18.3 | T112: 59.8 | U112: 0.1644 | V112: 0.1731 | W112: 0.1596 | X112: 0.1672 | Y112: 0.2665 | Z112: 0.0733 | AA112: 0.2558 | AB112: 0.3703 | AC112: 0.3806 | AD112: 0.3911 | AE112: 819.9 | AF112: 865.99 | AG112: 866.02 | AH112: 0 | AI112: 335 | AJ112: 290 | AK112: 0.6 | AL112: 4 | AM112: 0 | AN112: 0 | AO112: 0 | AP112: 0 | AQ112: 0.9 | AR112: 4.8 | AS112: 1.1 | AT112: 2.1 | AU112: NULL | AV112: NULL | AW112: NULL | AX112: 0 | AY112: 0 | AZ112: 0 | BA112: 230.1 | BB112: -0.1 | BC112: 226.1 | BD112: 0.1 | BE112: 229.5 | BF112: -0.1 | BG112: 217.3 | BH112: 0 | BI112: 221.1 | BJ112: 0 | BK112: 224.4 | BL112: 0.1 | BM112: 236.7 | BN112: 0.1 | BO112: 236.7 | BP112: NULL | BQ112: NULL | BR112: 245.61 | BS112: 55.96 | BT112: 125.52 | BU112: 157.54 | BV112: 0 | BW112: 698.3 | BX112: 0.1 | BY112: 503.9 | BZ112: 13.7 | CA112: NULL | CB112: 0.5 | CC112: NULL | CD112: 6.6 | CE112: 0.3 | CF112: NULL | CG112: NULL | CH112: 17.7 | CI112: 46.4 | CJ112: -27.2 | CK112: 20 | CL112: NULL | CM112: 44.2 | CN112: 30.6 | CO112: 57.3 | CP112: NULL | CQ112: NULL | CR112: 16.46 | CS112: 17.75 | CT112: 16.73 | CU112: 16.89 | CV112: 16.56 | CW112: 16.67 | CX112: 16.46 | CY112: NULL | CZ112: 16.38 | DA112: 16.57 | DB112: 16.64 | DC112: 16.48 | DD112: 16.64 | DE112: 16.69 | DF112: 16.46 | DG112: 16.4 | DH112: NULL | DI112: NULL | DJ112: 2487 | DK112: 2178 | DL112: 1756 | DM112: 2586 | DN112: 1728 | DO112: 3295 | DP112: 2212 | DQ112: 3296 | DR112: 1732 | DS112: 3295 | DT112: 1635 | DU112: 3297 | DV112: 1571 | DW112: 3296 | DX112: 1695 | DY112: 1300 | DZ112: 1304 | EA112: 3296 | EB112: 1011 | EC112: 669 | ED112: 22.22 | EE112: -20.15 | EF112: -0.04 | EG112: 20 | EH112: 16.5 | EI112: -0.04 | EJ112: 28.55 | EK112: 30 | EL112: NULL | EM112: 22.9 | EN112: 22.5 | EO112: 19.8 | EP112: 20.4 | EQ112: 21.6 | ER112: 22.7 | ES112: 45.77 | ET112: 4916 | EU112: 4910 | EV112: NULL | EW112: 12.6 | EX112: 0 | EY112: 3000 | EZ112: NULL | FA112: 0.56 | FB112: NULL | FC112: 1159 | FD112: 1 | FE112: 0 | FF112: NULL | FG112: NULL | FH112: NULL | FI112: NULL | FJ112: NULL | FK112: NULL | FL112: NULL | FM112: 0 | FN112: 0 | FO112: 200 | FP112: 0 | FQ112: 1 | FR112: 255.48 | FS112: 231.07 | FT112: 95.51 | FU112: 95.26 | FV112: NULL | FW112: NULL | FX112: 18.89 | FY112: 0 | FZ112: 0.02 | GA112: 15.56 | GB112: -19.98 | GC112: 40.02 | GD112: 19.9 | GE112: NULL | GF112: NULL | GG112: NULL | GH112: 18.68 | GI112: 21.35 | GJ112: -0.0322
A113: 2023-08-03T14:00:00 | B113: 17.26 | C113: 16.56 | D113: 18.16 | E113: 17.14 | F113: 16.84 | G113: 21.08 | H113: 20.84 | I113: 21.66 | J113: 19.49 | K113: 19.29 | L113: 18.76 | M113: 17.62 | N113: 17.81 | O113: 17.51 | P113: 17.26 | Q113: 17.4 | R113: 0 | S113: 19.6 | T113: 46.1 | U113: 0.164 | V113: 0.1731 | W113: 0.1591 | X113: 0.1674 | Y113: 0.2643 | Z113: 0.0727 | AA113: 0.2561 | AB113: 0.3704 | AC113: 0.3805 | AD113: 0.3905 | AE113: 810.5 | AF113: 866.04 | AG113: 866.06 | AH113: 0 | AI113: 283 | AJ113: 290 | AK113: 0.4 | AL113: 6.2 | AM113: 0 | AN113: 0 | AO113: 0 | AP113: 0 | AQ113: 0.8 | AR113: 7.7 | AS113: 1 | AT113: 3.2 | AU113: NULL | AV113: NULL | AW113: NULL | AX113: 0 | AY113: 0 | AZ113: 0.1 | BA113: 230.2 | BB113: 0.1 | BC113: 226.2 | BD113: 0 | BE113: 229.5 | BF113: 0.1 | BG113: 217.4 | BH113: 0.1 | BI113: 221.2 | BJ113: 0 | BK113: 224.4 | BL113: -0.1 | BM113: 236.6 | BN113: -0.1 | BO113: 236.6 | BP113: NULL | BQ113: NULL | BR113: 119.08 | BS113: 27.49 | BT113: 122.83 | BU113: 148.31 | BV113: 0.1 | BW113: 698.4 | BX113: 0 | BY113: 503.9 | BZ113: 11.4 | CA113: NULL | CB113: 5.2 | CC113: NULL | CD113: 4.4 | CE113: NULL | CF113: NULL | CG113: NULL | CH113: 17.9 | CI113: 44.4 | CJ113: -27.2 | CK113: 19.7 | CL113: NULL | CM113: 36.4 | CN113: 28.2 | CO113: 40.6 | CP113: NULL | CQ113: NULL | CR113: 18.73 | CS113: 18.57 | CT113: 17.17 | CU113: 17.52 | CV113: 17.12 | CW113: 17.35 | CX113: 17.16 | CY113: NULL | CZ113: 17.11 | DA113: 17.47 | DB113: 17.47 | DC113: 17.65 | DD113: 17.66 | DE113: 17.98 | DF113: 17.17 | DG113: 17.44 | DH113: NULL | DI113: NULL | DJ113: 2490 | DK113: 2200 | DL113: 1767 | DM113: 2596 | DN113: 1734 | DO113: 3282 | DP113: 2211 | DQ113: 3287 | DR113: 1740 | DS113: 3279 | DT113: 1642 | DU113: 3284 | DV113: 1580 | DW113: 3279 | DX113: 1702 | DY113: 1309 | DZ113: 1304 | EA113: 3285 | EB113: 1018 | EC113: 669 | ED113: 20.99 | EE113: -20.15 | EF113: -0.04 | EG113: 20 | EH113: 16.6 | EI113: -0.04 | EJ113: 28.55 | EK113: NULL | EL113: NULL | EM113: 26.5 | EN113: 26.2 | EO113: 19.8 | EP113: 19 | EQ113: 24.9 | ER113: 21 | ES113: 44.02 | ET113: 4868 | EU113: 4864 | EV113: NULL | EW113: 12.6 | EX113: 0 | EY113: 3000 | EZ113: NULL | FA113: NULL | FB113: NULL | FC113: 1159 | FD113: 1 | FE113: NULL | FF113: NULL | FG113: NULL | FH113: NULL | FI113: NULL | FJ113: NULL | FK113: NULL | FL113: NULL | FM113: 0 | FN113: 0 | FO113: 316 | FP113: 0 | FQ113: 0.9 | FR113: 126.07 | FS113: 149.41 | FT113: 76.31 | FU113: 77.37 | FV113: NULL | FW113: NULL | FX113: 20.55 | FY113: 0 | FZ113: 0 | GA113: 17.09 | GB113: -19.98 | GC113: 40.02 | GD113: 21.06 | GE113: NULL | GF113: NULL | GG113: NULL | GH113: 19.29 | GI113: 20.45 | GJ113: -0.0145
A114: 2023-08-03T15:00:00 | B114: 17.78 | C114: 17.2 | D114: 18.35 | E114: 17.27 | F114: 16.83 | G114: 21.31 | H114: 21.05 | I114: 21.85 | J114: 19.7 | K114: 19.57 | L114: 18.99 | M114: 17.81 | N114: 18.03 | O114: 17.55 | P114: 17.3 | Q114: 18.2 | R114: 0 | S114: 19.2 | T114: 41.6 | U114: 0.1643 | V114: 0.1729 | W114: 0.1594 | X114: 0.1673 | Y114: 0.2614 | Z114: 0.0722 | AA114: 0.2563 | AB114: 0.3697 | AC114: 0.3803 | AD114: 0.3893 | AE114: 807.3 | AF114: 865.92 | AG114: 865.93 | AH114: 0 | AI114: 289 | AJ114: 280 | AK114: 1.3 | AL114: 5.2 | AM114: 0 | AN114: 0 | AO114: 0 | AP114: 0 | AQ114: 1.6 | AR114: 6.8 | AS114: 1.6 | AT114: 3.4 | AU114: NULL | AV114: NULL | AW114: NULL | AX114: 0 | AY114: 0 | AZ114: 0 | BA114: 230.2 | BB114: 0 | BC114: 226.2 | BD114: -0.1 | BE114: 229.4 | BF114: -0.1 | BG114: 217.3 | BH114: 0 | BI114: 221.2 | BJ114: -0.1 | BK114: 224.3 | BL114: 0 | BM114: 236.6 | BN114: 0 | BO114: 236.6 | BP114: NULL | BQ114: NULL | BR114: 218.01 | BS114: 51.84 | BT114: 113.88 | BU114: 153.41 | BV114: 0 | BW114: 698.4 | BX114: 0.1 | BY114: 504 | BZ114: 11.5 | CA114: NULL | CB114: 9.4 | CC114: NULL | CD114: 3.4 | CE114: 0 | CF114: NULL | CG114: NULL | CH114: 21.5 | CI114: 44.6 | CJ114: -27.2 | CK114: 22.5 | CL114: NULL | CM114: 36.1 | CN114: 31.7 | CO114: 41.1 | CP114: NULL | CQ114: NULL | CR114: 21.07 | CS114: 21.54 | CT114: 18.24 | CU114: 18.13 | CV114: 18.11 | CW114: 17.71 | CX114: 18.28 | CY114: NULL | CZ114: 18.22 | DA114: 17.71 | DB114: 18.76 | DC114: 17.72 | DD114: 19.63 | DE114: 20.23 | DF114: 20.09 | DG114: 20.51 | DH114: NULL | DI114: NULL | DJ114: 2492 | DK114: 2201 | DL114: 1765 | DM114: 2686 | DN114: 1750 | DO114: 3314 | DP114: 2236 | DQ114: 3301 | DR114: 1770 | DS114: 3351 | DT114: 1656 | DU114: 3318 | DV114: 1593 | DW114: 3330 | DX114: 1713 | DY114: 1320 | DZ114: 1303 | EA114: 3354 | EB114: 1036 | EC114: 702 | ED114: 21.4 | EE114: -20.15 | EF114: -0.04 | EG114: 20 | EH114: 16.7 | EI114: -0.04 | EJ114: 28.54 | EK114: 28 | EL114: NULL | EM114: 27.1 | EN114: 26.7 | EO114: 20.2 | EP114: 20 | EQ114: 25.4 | ER114: 22 | ES114: 43.99 | ET114: 4771 | EU114: 4712 | EV114: 46.284 | EW114: 12.6 | EX114: 0 | EY114: 3000 | EZ114: NULL | FA114: 0.852 | FB114: NULL | FC114: 1159 | FD114: 1 | FE114: 0 | FF114: NULL | FG114: NULL | FH114: NULL | FI114: NULL | FJ114: NULL | FK114: NULL | FL114: NULL | FM114: 0 | FN114: 0 | FO114: 338 | FP114: 0 | FQ114: 1.8 | FR114: 225.96 | FS114: 231.32 | FT114: 46.29 | FU114: 45.44 | FV114: NULL | FW114: NULL | FX114: 21.23 | FY114: 0 | FZ114: -0.04 | GA114: 17.73 | GB114: -19.98 | GC114: 40.02 | GD114: 21.11 | GE114: NULL | GF114: NULL | GG114: NULL | GH114: 22.84 | GI114: 21.13 | GJ114: 0.0204
A115: 2023-08-03T16:00:00 | B115: 18.14 | C115: 17.67 | D115: 18.53 | E115: 17.39 | F115: 16.81 | G115: 21.45 | H115: 21.15 | I115: 21.92 | J115: 19.88 | K115: 19.82 | L115: 19.22 | M115: 17.97 | N115: 18.21 | O115: 17.63 | P115: 17.33 | Q115: 18.1 | R115: 0 | S115: 22 | T115: 46.6 | U115: 0.1644 | V115: 0.1729 | W115: 0.1593 | X115: 0.1676 | Y115: 0.2587 | Z115: 0.0725 | AA115: 0.2565 | AB115: 0.3691 | AC115: 0.3801 | AD115: 0.3884 | AE115: 810.7 | AF115: 865.55 | AG115: 865.57 | AH115: 0 | AI115: 301 | AJ115: 300 | AK115: 1 | AL115: 5.4 | AM115: 0 | AN115: 0 | AO115: 0 | AP115: 0 | AQ115: 1.3 | AR115: 6.5 | AS115: 1.5 | AT115: 3.3 | AU115: NULL | AV115: NULL | AW115: NULL | AX115: 0 | AY115: 0 | AZ115: 0 | BA115: 230.2 | BB115: 0 | BC115: 226.2 | BD115: 0 | BE115: 229.4 | BF115: 0 | BG115: 217.3 | BH115: 0 | BI115: 221.2 | BJ115: 0 | BK115: 224.3 | BL115: 0 | BM115: 236.6 | BN115: 0 | BO115: 236.6 | BP115: NULL | BQ115: NULL | BR115: 223.68 | BS115: 55.55 | BT115: 113.15 | BU115: 154.2 | BV115: 0.1 | BW115: 698.5 | BX115: 0.1 | BY115: 504.1 | BZ115: 13.1 | CA115: NULL | CB115: 0.4 | CC115: NULL | CD115: 2.4 | CE115: -0.5 | CF115: NULL | CG115: NULL | CH115: 20.1 | CI115: 47 | CJ115: -27.2 | CK115: 22.5 | CL115: NULL | CM115: 31.7 | CN115: 31.3 | CO115: 36.4 | CP115: NULL | CQ115: NULL | CR115: 20.66 | CS115: 22.5 | CT115: 18.91 | CU115: 18.65 | CV115: 18.83 | CW115: 18.23 | CX115: 18.96 | CY115: NULL | CZ115: 18.85 | DA115: 18.2 | DB115: 18.95 | DC115: 18.38 | DD115: 19.72 | DE115: 19.11 | DF115: 20.27 | DG115: 20.48 | DH115: NULL | DI115: NULL | DJ115: 2496 | DK115: 2176 | DL115: 1775 | DM115: 2658 | DN115: 1747 | DO115: 3305 | DP115: 2219 | DQ115: 3304 | DR115: 1762 | DS115: 3304 | DT115: 1658 | DU115: 3307 | DV115: 1590 | DW115: 3313 | DX115: 1726 | DY115: 1308 | DZ115: 1331 | EA115: 3316 | EB115: 1031 | EC115: 694 | ED115: 22.18 | EE115: -20.15 | EF115: -0.04 | EG115: 20 | EH115: 16.8 | EI115: -0.06 | EJ115: 28.56 | EK115: 31 | EL115: NULL | EM115: 28.3 | EN115: 28.1 | EO115: 21.4 | EP115: 21.1 | EQ115: 27.5 | ER115: 23.9 | ES115: 46.31 | ET115: 4803 | EU115: 4804 | EV115: NULL | EW115: 12.6 | EX115: 0 | EY115: 3000 | EZ115: NULL | FA115: 1.604 | FB115: NULL | FC115: 1158 | FD115: 1 | FE115: 0 | FF115: NULL | FG115: NULL | FH115: NULL | FI115: NULL | FJ115: NULL | FK115: NULL | FL115: NULL | FM115: 0 | FN115: 0 | FO115: 206 | FP115: 0 | FQ115: 1.5 | FR115: 226.9 | FS115: 225.74 | FT115: 40.51 | FU115: 43.34 | FV115: NULL | FW115: NULL | FX115: 23.37 | FY115: 0 | FZ115: 0.02 | GA115: 18.03 | GB115: -19.97 | GC115: 40.02 | GD115: 22.38 | GE115: NULL | GF115: NULL | GG115: NULL | GH115: 20.97 | GI115: 22.17 | GJ115: -0.0148
A116: 2023-08-03T17:00:00 | B116: 16.26 | C116: 16.42 | D116: 18.68 | E116: 17.51 | F116: 16.81 | G116: 21.36 | H116: 21.04 | I116: 21.71 | J116: 20.01 | K116: 19.97 | L116: 19.37 | M116: 18.14 | N116: 18.34 | O116: 17.67 | P116: 17.39 | Q116: 17.8 | R116: 0 | S116: 18.7 | T116: 51.9 | U116: 0.1643 | V116: 0.1727 | W116: 0.1591 | X116: 0.1676 | Y116: 0.2566 | Z116: 0.0713 | AA116: 0.2567 | AB116: 0.3687 | AC116: 0.38 | AD116: 0.3877 | AE116: 814.4 | AF116: 865.5 | AG116: 865.52 | AH116: 0 | AI116: 324 | AJ116: 320 | AK116: 0.7 | AL116: 3.6 | AM116: 0 | AN116: 0 | AO116: 0 | AP116: 0 | AQ116: 1 | AR116: 4.7 | AS116: 1.2 | AT116: 2.3 | AU116: NULL | AV116: NULL | AW116: NULL | AX116: 0 | AY116: 0 | AZ116: -0.1 | BA116: 230.1 | BB116: 0 | BC116: 226.2 | BD116: 0 | BE116: 229.4 | BF116: 0 | BG116: 217.3 | BH116: 0 | BI116: 221.2 | BJ116: 0 | BK116: 224.3 | BL116: 0 | BM116: 236.6 | BN116: 0 | BO116: 236.6 | BP116: NULL | BQ116: NULL | BR116: 150.57 | BS116: 39.17 | BT116: 111.91 | BU116: 149.35 | BV116: 0.1 | BW116: 698.6 | BX116: 0 | BY116: 504.1 | BZ116: 14.8 | CA116: NULL | CB116: 3.9 | CC116: NULL | CD116: 3.2 | CE116: NULL | CF116: NULL | CG116: NULL | CH116: 17.3 | CI116: 47 | CJ116: -27.2 | CK116: 19.6 | CL116: NULL | CM116: 17.1 | CN116: 16.4 | CO116: 15.3 | CP116: NULL | CQ116: NULL | CR116: 20.33 | CS116: 18.73 | CT116: 17.99 | CU116: 17.52 | CV116: 18.36 | CW116: 17.47 | CX116: 18.67 | CY116: NULL | CZ116: 18.66 | DA116: 17.76 | DB116: 18.8 | DC116: 17.72 | DD116: 19.06 | DE116: 17.89 | DF116: 21.44 | DG116: 17.73 | DH116: NULL | DI116: NULL | DJ116: 2461 | DK116: 2140 | DL116: 1750 | DM116: 2637 | DN116: 1720 | DO116: 3295 | DP116: 2207 | DQ116: 3295 | DR116: 1737 | DS116: 3294 | DT116: 1630 | DU116: 3296 | DV116: 1562 | DW116: 3296 | DX116: 1699 | DY116: 1286 | DZ116: 1314 | EA116: 3296 | EB116: 1005 | EC116: 675 | ED116: 21.64 | EE116: -20.15 | EF116: -0.04 | EG116: 20 | EH116: 16.8 | EI116: -0.02 | EJ116: 28.55 | EK116: NULL | EL116: NULL | EM116: 26.3 | EN116: 26.4 | EO116: 21.7 | EP116: 21.4 | EQ116: 26.1 | ER116: 23.4 | ES116: 46.95 | ET116: 4943 | EU116: 4941 | EV116: NULL | EW116: 12.6 | EX116: 0 | EY116: 3000 | EZ116: NULL | FA116: NULL | FB116: NULL | FC116: 1158 | FD116: 1 | FE116: NULL | FF116: NULL | FG116: NULL | FH116: NULL | FI116: NULL | FJ116: NULL | FK116: NULL | FL116: NULL | FM116: 0 | FN116: 0 | FO116: 216 | FP116: 0 | FQ116: 0.9 | FR116: 154.38 | FS116: 148.9 | FT116: 28.1 | FU116: 27.42 | FV116: NULL | FW116: NULL | FX116: 22.79 | FY116: 0 | FZ116: 0 | GA116: 16.91 | GB116: -19.98 | GC116: 40.02 | GD116: 21 | GE116: NULL | GF116: NULL | GG116: NULL | GH116: 17.76 | GI116: 21.07 | GJ116: -0.0401
A117: 2023-08-03T18:00:00 | B117: 14.27 | C117: 14.32 | D117: 18.71 | E117: 17.6 | F117: 16.81 | G117: 20.89 | H117: 20.55 | I117: 21 | J117: 20.02 | K117: 19.99 | L117: 19.41 | M117: 18.28 | N117: 18.47 | O117: 17.72 | P117: 17.46 | Q117: 15.4 | R117: 0 | S117: 14.8 | T117: 59.4 | U117: 0.1639 | V117: 0.1726 | W117: 0.1586 | X117: 0.1676 | Y117: 0.2554 | Z117: 0.0682 | AA117: 0.2568 | AB117: 0.3687 | AC117: 0.38 | AD117: 0.3876 | AE117: 819.5 | AF117: 865.9 | AG117: 865.92 | AH117: 0 | AI117: 4 | AJ117: 20 | AK117: 0.4 | AL117: 3.6 | AM117: 0 | AN117: 0 | AO117: 0 | AP117: 0 | AQ117: 0.8 | AR117: 4.7 | AS117: 0.9 | AT117: 1.8 | AU117: NULL | AV117: NULL | AW117: NULL | AX117: 0 | AY117: 0 | AZ117: 0 | BA117: 230.1 | BB117: 0 | BC117: 226.2 | BD117: 0.1 | BE117: 229.5 | BF117: 0.1 | BG117: 217.4 | BH117: 0 | BI117: 221.2 | BJ117: 0.1 | BK117: 224.4 | BL117: 0.1 | BM117: 236.7 | BN117: 0.1 | BO117: 236.7 | BP117: NULL | BQ117: NULL | BR117: 70.9 | BS117: 17.17 | BT117: 110.63 | BU117: 141.44 | BV117: 0 | BW117: 698.6 | BX117: 0.1 | BY117: 504.2 | BZ117: 14.5 | CA117: NULL | CB117: 5.2 | CC117: NULL | CD117: 5 | CE117: 0.3 | CF117: NULL | CG117: NULL | CH117: 10 | CI117: 46.7 | CJ117: -27.2 | CK117: 13.3 | CL117: NULL | CM117: -0.3 | CN117: -2.4 | CO117: -1.6 | CP117: NULL | CQ117: NULL | CR117: 13.3 | CS117: 13.37 | CT117: 14.23 | CU117: 14.25 | CV117: 14.4 | CW117: 14.32 | CX117: 14.46 | CY117: NULL | CZ117: 14.41 | DA117: 14.45 | DB117: 14.4 | DC117: 14.36 | DD117: 14.31 | DE117: 14.41 | DF117: 14.2 | DG117: 14.23 | DH117: NULL | DI117: NULL | DJ117: 2361 | DK117: 2028 | DL117: 1704 | DM117: 2516 | DN117: 1667 | DO117: 3299 | DP117: 2154 | DQ117: 3301 | DR117: 1689 | DS117: 3288 | DT117: 1611 | DU117: 3291 | DV117: 1544 | DW117: 3292 | DX117: 1662 | DY117: 1257 | DZ117: 1270 | EA117: 3298 | EB117: 1003 | EC117: 676 | ED117: 19.51 | EE117: -20.15 | EF117: -0.04 | EG117: 19.99 | EH117: 16.8 | EI117: -0.04 | EJ117: 28.56 | EK117: 24 | EL117: NULL | EM117: 15.1 | EN117: 16.9 | EO117: 19.1 | EP117: 20.3 | EQ117: 16 | ER117: 18.5 | ES117: 45.88 | ET117: 4935 | EU117: 4927 | EV117: 30.855 | EW117: 12.6 | EX117: 0 | EY117: 3000 | EZ117: NULL | FA117: 0.689 | FB117: NULL | FC117: 1159 | FD117: 1 | FE117: 0 | FF117: NULL | FG117: NULL | FH117: NULL | FI117: NULL | FJ117: NULL | FK117: NULL | FL117: NULL | FM117: 0 | FN117: 0 | FO117: 198 | FP117: 0 | FQ117: 1 | FR117: 80.82 | FS117: 70.14 | FT117: 19.4 | FU117: 18.64 | FV117: NULL | FW117: NULL | FX117: 16.53 | FY117: 0 | FZ117: 0 | GA117: 14.64 | GB117: -19.98 | GC117: 40.02 | GD117: 16.01 | GE117: NULL | GF117: NULL | GG117: NULL | GH117: 10.84 | GI117: 17.27 | GJ117: -0.0758
A118: 2023-08-03T19:00:00 | B118: 12.1 | C118: 12.62 | D118: 18.64 | E118: 17.67 | F118: 16.81 | G118: 20.19 | H118: 19.82 | I118: 20.03 | J118: 19.76 | K118: 19.82 | L118: 19.33 | M118: 18.36 | N118: 18.57 | O118: 17.8 | P118: 17.5 | Q118: 14.1 | R118: 0 | S118: 11.3 | T118: 67 | U118: 0.1634 | V118: 0.1722 | W118: 0.1581 | X118: 0.1675 | Y118: 0.2543 | Z118: 0.0619 | AA118: 0.257 | AB118: 0.3689 | AC118: 0.38 | AD118: 0.3876 | AE118: 824.2 | AF118: 866.19 | AG118: 866.22 | AH118: 0 | AI118: 53 | AJ118: 0 | AK118: 0.1 | AL118: 1.4 | AM118: 0 | AN118: 0 | AO118: 0 | AP118: 0 | AQ118: 0.4 | AR118: 2.9 | AS118: 0.4 | AT118: 1.2 | AU118: NULL | AV118: NULL | AW118: NULL | AX118: 0 | AY118: 0 | AZ118: 0.1 | BA118: 230.2 | BB118: 0 | BC118: 226.2 | BD118: 0.1 | BE118: 229.6 | BF118: 0 | BG118: 217.4 | BH118: 0.1 | BI118: 221.3 | BJ118: 0.1 | BK118: 224.5 | BL118: 0 | BM118: 236.7 | BN118: 0 | BO118: 236.7 | BP118: NULL | BQ118: NULL | BR118: 6.76 | BS118: 1.42 | BT118: 110.56 | BU118: 132.51 | BV118: 0.1 | BW118: 698.7 | BX118: 0 | BY118: 504.2 | BZ118: 14.5 | CA118: NULL | CB118: 5.4 | CC118: NULL | CD118: 4.3 | CE118: 0.2 | CF118: NULL | CG118: NULL | CH118: 7.6 | CI118: 41.8 | CJ118: -27.2 | CK118: 9.3 | CL118: NULL | CM118: -17.5 | CN118: -14.4 | CO118: -15 | CP118: NULL | CQ118: NULL | CR118: 10.8 | CS118: 10.33 | CT118: 11.83 | CU118: 12.06 | CV118: 12.15 | CW118: 12.31 | CX118: 12.34 | CY118: NULL | CZ118: 12.3 | DA118: 12.54 | DB118: 12.28 | DC118: 12.49 | DD118: 12.07 | DE118: 12.43 | DF118: 11.93 | DG118: 12.21 | DH118: NULL | DI118: NULL | DJ118: 2391 | DK118: 2038 | DL118: 1710 | DM118: 2529 | DN118: 1672 | DO118: 3289 | DP118: 2155 | DQ118: 3290 | DR118: 1694 | DS118: 3289 | DT118: 1624 | DU118: 3291 | DV118: 1552 | DW118: 3290 | DX118: 1671 | DY118: 1269 | DZ118: 1285 | EA118: 3292 | EB118: 1007 | EC118: 676 | ED118: 16.33 | EE118: -20.15 | EF118: -0.03 | EG118: 19.99 | EH118: 16.8 | EI118: -0.04 | EJ118: 28.52 | EK118: 19 | EL118: NULL | EM118: 11.1 | EN118: 11.4 | EO118: 14.9 | EP118: 15.9 | EQ118: 10.6 | ER118: 12.5 | ES118: 41.94 | ET118: 4897 | EU118: 4895 | EV118: 25.713 | EW118: 12.6 | EX118: 0 | EY118: 3000 | EZ118: NULL | FA118: 0.657 | FB118: NULL | FC118: 1159 | FD118: 1 | FE118: 0 | FF118: NULL | FG118: NULL | FH118: NULL | FI118: NULL | FJ118: NULL | FK118: NULL | FL118: NULL | FM118: 0 | FN118: 0 | FO118: 200 | FP118: 0 | FQ118: 0 | FR118: 10.96 | FS118: 9.49 | FT118: 9.94 | FU118: 8.59 | FV118: NULL | FW118: NULL | FX118: 11.77 | FY118: 0 | FZ118: 0.02 | GA118: 12.89 | GB118: -19.98 | GC118: 40.02 | GD118: 11.37 | GE118: NULL | GF118: NULL | GG118: NULL | GH118: 7.89 | GI118: 13.22 | GJ118: -0.0614
A119: 2023-08-03T20:00:00 | B119: 11.56 | C119: 10.96 | D119: 18.47 | E119: 17.7 | F119: 16.82 | G119: 19.47 | H119: 19.17 | I119: 19.25 | J119: 19.41 | K119: 19.54 | L119: 19.15 | M119: 18.37 | N119: 18.61 | O119: 17.86 | P119: 17.6 | Q119: 12.9 | R119: 0 | S119: 11.3 | T119: 79 | U119: 0.163 | V119: 0.1719 | W119: 0.1575 | X119: 0.1672 | Y119: 0.2532 | Z119: 0.0516 | AA119: 0.2571 | AB119: 0.3688 | AC119: 0.3799 | AD119: 0.3875 | AE119: 830.4 | AF119: 866.43 | AG119: 866.46 | AH119: 0 | AI119: 29 | AJ119: 40 | AK119: 0.2 | AL119: 2.2 | AM119: 0 | AN119: 0 | AO119: 0 | AP119: 0 | AQ119: 0.7 | AR119: 3.7 | AS119: 0.5 | AT119: 1.2 | AU119: NULL | AV119: NULL | AW119: NULL | AX119: 0.3 | AY119: 0.3 | AZ119: 0.3 | BA119: 230.5 | BB119: 0.4 | BC119: 226.6 | BD119: 0.3 | BE119: 229.9 | BF119: 0.3 | BG119: 217.7 | BH119: 0.3 | BI119: 221.6 | BJ119: 0.3 | BK119: 224.8 | BL119: 0.2 | BM119: 236.9 | BN119: 0.3 | BO119: 237 | BP119: NULL | BQ119: NULL | BR119: -0.45 | BS119: 0.24 | BT119: 124.26 | BU119: 132.57 | BV119: 0 | BW119: 698.7 | BX119: 0.1 | BY119: 504.3 | BZ119: 13.6 | CA119: NULL | CB119: 5 | CC119: NULL | CD119: 4.6 | CE119: NULL | CF119: NULL | CG119: NULL | CH119: 9.3 | CI119: 41.1 | CJ119: -27.2 | CK119: 10.7 | CL119: NULL | CM119: -17.1 | CN119: -14.3 | CO119: -16.4 | CP119: NULL | CQ119: NULL | CR119: 10.14 | CS119: 10.11 | CT119: 11.61 | CU119: 11.68 | CV119: 11.67 | CW119: 11.71 | CX119: 11.64 | CY119: NULL | CZ119: 11.58 | DA119: 11.75 | DB119: 11.58 | DC119: 11.66 | DD119: 11.55 | DE119: 11.69 | DF119: 11.4 | DG119: 11.51 | DH119: NULL | DI119: NULL | DJ119: 2409 | DK119: 2077 | DL119: 1720 | DM119: 2551 | DN119: 1692 | DO119: 3296 | DP119: 2169 | DQ119: 3296 | DR119: 1700 | DS119: 3294 | DT119: 1624 | DU119: 3296 | DV119: 1554 | DW119: 3296 | DX119: 1686 | DY119: 1293 | DZ119: 1366 | EA119: 3296 | EB119: 1001 | EC119: 673 | ED119: 13.96 | EE119: -20.15 | EF119: -0.04 | EG119: 19.99 | EH119: 16.7 | EI119: -0.04 | EJ119: 28.59 | EK119: NULL | EL119: NULL | EM119: 10.2 | EN119: 10.3 | EO119: 13.4 | EP119: 14 | EQ119: 9.9 | ER119: 11.1 | ES119: 40.13 | ET119: 4950 | EU119: 4948 | EV119: 46.283 | EW119: 12.6 | EX119: 0 | EY119: 3000 | EZ119: NULL | FA119: NULL | FB119: NULL | FC119: 1158 | FD119: 1 | FE119: NULL | FF119: NULL | FG119: NULL | FH119: NULL | FI119: NULL | FJ119: NULL | FK119: NULL | FL119: NULL | FM119: 0 | FN119: 0 | FO119: 207 | FP119: 0 | FQ119: 1.1 | FR119: 0.45 | FS119: 0.52 | FT119: 0.52 | FU119: 0.55 | FV119: NULL | FW119: NULL | FX119: 11.51 | FY119: 0 | FZ119: 0 | GA119: 11.36 | GB119: -19.98 | GC119: 40.02 | GD119: 10.74 | GE119: NULL | GF119: NULL | GG119: NULL | GH119: 10.65 | GI119: 11.78 | GJ119: -0.0133
